Workbook

Sheet MENU
L4: =+TABLAS!A81 -> 1-2-3-Total--------
L5: =+TABLAS!A118 -> 1-2-3-Total--------
L6: =+TABLAS!A153 -> 1-2-3-Total--------
L7: =+TABLAS!A188 -> 1-2-3-Total--------
L8: =+TABLAS!A224 -> 1-2-3-Total--------
L9: =+TABLAS!A259 -> 1-2-3-Total--------
H27: CONTROL DE MESES
H29: =+TABLAS!A81 -> 1-2-3-Total--------
C30: =+INFORME!S15 -> __ENE_MAR_2025

Sheet TABLAS (hidden)
C8: Valores | I8: Tabla | J8: =IF(I9="(Todas)","CUSCO ","") -> 
C9: RED | D9: 03 - LA CONVENCION | I9: =IF(MID(D9,1,2)="99","(All)",MID(D9,1,2)) -> 03 | J9: =IF(I9="(All)"," ",I9) -> 03 | M9: =LEN(MID(D9,5,90)) -> 14 | O9: =IF(MID(D9,6,5)="(All)","",D9) -> 03 - LA CONVENCION
C10: Micro RED | D10: 0399 - (All) | I10: =IF(MID(D10,3,2)="99","(All)",MID(D10,1,4)) -> (All) | M10: =LEN(MID(D10,7,90)) -> 6 | O10: =IF(MID(D10,8,5)="(All)","",D10) -> 
C11: Establecimiento | D11: 999999999 - (All) | I11: =IF(OR(MID(D11,1,9)="999999999",MID(D11,1,9)="000000000"),"(All)",MID(D11,1,9)) -> (All) | M11: =LEN(MID(D11,12,90)) -> 6 | O11: =IF(MID(D11,13,5)="(All)","",D11) -> 
C12: Provincia | D12: 00 - (All) | I12: =IF(MID(D12,1,2)="00","(All)",MID(D12,1,2)) -> (All) | M12: =LEN(MID(D12,6,90)) -> 5 | O12: =IF(MID(D12,6,5)="(All)","",D12) -> 
C13: Distrito | D13: 0000 - (All) | I13: =IF(OR(MID(D13,1,4)="0000",MID(D13,3,2)="00"),"(All)",MID(D13,1,4)) -> (All) | M13: =LEN(MID(D13,8,90)) -> 5 | O13: =IF(MID(D13,8,5)="(All)","",D13) -> 
C14: Ejecutira | D14: 99 - (ALL) | I14: =IF(MID(D14,1,2)="99","(All)",MID(D14,1,2)) -> (All) | M14: =LEN(MID(D14,5,90)) -> 6 | O14: =IF(MID(D14,6,5)="(All)","",D14) -> 
C16: Año | D16: 2025 | I16: =+D16 -> 2025 | J16: =IF(I16="(Todas)"," ",I16) -> 2025
B20: 1 | C20: 1 | D20: 1 | E20: 0 | F20: 0 | G20: 0 | H20: 0 | I20: 0 | J20: 0 | K20: 0 | L20: 0 | M20: 0 | N20: =SUM(B20:M20) -> 3
B21: =IF(B20=1,"ENERO","") -> ENERO | C21: =IF(C20=1,"FEBRERO","") -> FEBRERO | D21: =IF(D20=1,"MARZO","") -> MARZO | E21: =IF(E20=1,"ABRIL","") ->  | F21: =IF(F20=1,"MAYO","") ->  | G21: =IF(G20=1,"JUNIO","") ->  | H21: =IF(H20=1,"JULIO","") ->  | I21: =IF(I20=1,"AGOSTO","") ->  | J21: =IF(J20=1,"SETIEMBRE","") ->  | K21: =IF(K20=1,"OCTUBRE","") ->  | L21: =IF(L20=1,"NOVIEMBRE","") ->  | M21: =IF(M20=1,"DICIEMBRE","") ->  | N21: =IF(B20=1,B21,IF(C20=1,C21,IF(D20=1,D21,IF(E20=1,E21,IF(F20=1,F21,IF(G20=1,G21,IF(H20=1,H21,IF(I20=1,I21,IF(J20=1,J21,IF(K20=1,K21,IF(L20=1,L21,IF(M20=1,M21,"")))))))))))) -> ENERO
N22: =IF(N20=1,N21,"") -> 
B23: 2 | C23: 4 | D23: 6 | N23: =MIN(B23:M23) -> 2 | O23: =MAX(B23:M23) -> 6 | P23: =MAX(C23:N23) -> 6
B24: =IF(B23=2,"ENE","") -> ENE | C24: =IF(C23=4,"FEB","") -> FEB | D24: =IF(D23=6,"MAR","") -> MAR | E24: =IF(E23=8,"ABR","") ->  | F24: =IF(F23=10,"MAY","") ->  | G24: =IF(G23=12,"JUN","") ->  | H24: =IF(H23=14,"JUL","") ->  | I24: =IF(I23=16,"AGO","") ->  | J24: =IF(J23=18,"SET","") ->  | K24: =IF(K23=20,"OCT","") ->  | L24: =IF(L23=22,"NOV","") ->  | M24: =IF(M23=24,"DIC","") ->  | N24: =IF(N23=B23,B24,IF(N23=C23,C24,IF(N23=D23,D24,IF(N23=E23,E24,IF(N23=F23,F24,IF(N23=G23,G24,IF(N23=H23,#REF!,IF(N23=I23,I24,IF(N23=J23,J24,IF(N23=K23,K24,IF(N23=L23,L24,IF(N23=M23,M24,"")))))))))))) -> ENE | O24: =IF(O23=C23,C24,IF(O23=D23,D24,IF(O23=E23,E24,IF(O23=F23,F24,IF(O23=G23,G24,IF(O23=H23,H24,IF(O23=I23,I24,IF(O23=J23,J24,IF(O23=K23,K24,IF(O23=L23,L24,IF(O23=M23,M24,""))))))))))) -> MAR | P24: =IF(P23=D23,D24,IF(P23=E23,E24,IF(P23=F23,F24,IF(P23=G23,G24,IF(P23=H23,H24,IF(P23=I23,I24,IF(P23=J23,J24,IF(P23=K23,K24,IF(P23=L23,L24,IF(P23=M23,M24,IF(P23=N23,N24,""))))))))))) -> MAR
N25: =CONCATENATE(N24," - ",O24) -> ENE - MAR
N26: =IF(N23=O23,N22,N25) -> ENE - MAR
A50: PLANI_01
A51: ANNO | B51: 2025
A52: cod_red | B52: 03
A53: codmic | B53: (Todas)
A54: cod_prov | B54: (Todas)
A55: coddist | B55: (Todas)
A56: cod_estab | B56: (Todas)
A57: cod_eje | B57: (Todas)
B59: Valores
A60: Etiquetas de fila | B60: BAS001 | C60: BAS002 | D60: BAS003 | E60: BAS004 | F60: BAS005 | G60: BAS006 | H60: BAS007 | I60: BAS008 | J60: BAS009 | K60: BAS010 | L60: BAS011 | M60: BAS012 | N60: BAS013 | O60: BAS014 | P60: BAS015 | Q60: BAS016 | R60: BAS017 | S60: BAS018 | T60: BAS019 | U60: BAS020 | V60: BAS021 | W60: BAS022 | X60: BAS023 | Y60: BAS024 | Z60: BAS025 | AA60: BAS026 | AB60: BAS027 | AC60: BAS028 | AD60: BAS029 | AE60: BAS030 | AF60: BAS031 | AG60: BAS032 | AH60: BAS033 | AI60: BAS034 | AJ60: BAS035 | AK60: BAS036 | AL60: BAS037 | AM60: BAS038 | AN60: BAS039 | AO60: BAS040 | AP60: BAS041 | AQ60: BAS042 | AR60: BAS043 | AS60: BAS044 | AT60: BAS045 | AU60: BAS046 | AV60: BAS047 | AW60: BAS048 | AX60: BAS049 | AY60: BAS050 | AZ60: BAS051 | BA60: BAS052 | BB60: BAS053 | BC60: BAS054 | BD60: BAS055 | BE60: BAS056 | BF60: BAS057 | BG60: BAS058 | BH60: BAS059 | BI60: BAS060 | BJ60: BAS061 | BK60: BAS062 | BL60: BAS063 | BM60: BAS064 | BN60: BAS065 | BO60: BAS066 | BP60: BAS067 | BQ60: BAS068 | BR60: BAS069 | BS60: BAS070 | BT60: BAS071 | BU60: BAS072 | BV60: BAS073 | BW60: BAS074 | BX60: BAS075 | BY60: BAS076 | BZ60: BAS077 | CA60: BAS078 | CB60: BAS079 | CC60: BAS080 | CD60: BAS081 | CE60: BAS082 | CF60: BAS083 | CG60: BAS084 | CH60: BAS085 | CI60: BAS086 | CJ60: BAS087 | CK60: BAS088 | CL60: BAS089 | CM60: BAS090 | CN60: BAS091 | CO60: BAS092 | CP60: BAS093 | CQ60: BAS094 | CR60: BAS095 | CS60: BAS096 | CT60: BAS097 | CU60: BAS098 | CV60: BAS099 | CW60: BAS100 | CX60: BAS101 | CY60: BAS102 | CZ60: BAS103 | DA60: BAS104 | DB60: BAS105 | DC60: BAS106 | DD60: BAS107 | DE60: BAS108 | DF60: BAS109 | DG60: BAS110 | DH60: BAS111 | DI60: BAS112 | DJ60: BAS113 | DK60: BAS114 | DL60: BAS115 | DM60: BAS116 | DN60: BAS117 | DO60: BAS118 | DP60: BAS119 | DQ60: BAS120 | DR60: BAS121 | DS60: BAS122 | DT60: BAS123 | DU60: BAS124 | DV60: BAS125 | DW60: BAS126 | DX60: BAS127 | DY60: BAS128 | DZ60: BAS129 | EA60: BAS130 | EB60: BAS131 | EC60: BAS132 | ED60: BAS133 | EE60: BAS134 | EF60: BAS135 | EG60: BAS136 | EH60: BAS137 | EI60: BAS138 | EJ60: BAS139 | EK60: BAS140 | EL60: BAS141 | EM60: BAS142 | EN60: BAS143 | EO60: BAS144 | EP60: BAS145 | EQ60: BAS146 | ER60: BAS147 | ES60: BAS148 | ET60: BAS149 | EU60: BAS150 | EV60: BAS151 | EW60: BAS152 | EX60: BAS153 | EY60: BAS154 | EZ60: BAS155 | FA60: BAS156 | FB60: BAS157 | FC60: BAS158 | FD60: BAS159 | FE60: BAS160 | FF60: BAS161 | FG60: BAS162 | FH60: BAS163 | FI60: BAS164 | FJ60: BAS165 | FK60: BAS166 | FL60: BAS167 | FM60: BAS168 | FN60: BAS169 | FO60: BAS170 | FP60: BAS171 | FQ60: BAS172 | FR60: BAS173 | FS60: BAS174 | FT60: BAS175 | FU60: BAS176 | FV60: BAS177 | FW60: BAS178 | FX60: BAS179 | FY60: BAS180 | FZ60: BAS181 | GA60: BAS182 | GB60: BAS183 | GC60: BAS184 | GD60: BAS185 | GE60: BAS186 | GF60: BAS187 | GG60: BAS188 | GH60: BAS189 | GI60: BAS190 | GJ60: BAS191 | GK60: BAS192 | GL60: BAS193 | GM60: BAS194 | GN60: BAS195 | GO60: BAS196 | GP60: BAS197 | GQ60: BAS198 | GR60: BAS199 | GS60: BAS200 | GT60: BAS201 | GU60: BAS202 | GV60: BAS203 | GW60: BAS204 | GX60: BAS205 | GY60: BAS206 | GZ60: BAS207 | HA60: BAS208 | HB60: BAS209 | HC60: BAS210 | HD60: BAS211 | HE60: BAS212 | HF60: BAS213 | HG60: BAS214 | HH60: BAS215 | HI60: BAS216 | HJ60: BAS217 | HK60: BAS218 | HL60: BAS219 | HM60: BAS220 | HN60: BAS221 | HO60: BAS222 | HP60: BAS223 | HQ60: BAS224 | HR60: BAS225 | HS60: BAS226 | HT60: BAS227 | HU60: BAS228 | HV60: BAS229 | HW60: BAS230
A61: 1 | B61: 0 | C61: 0 | D61: 0 | E61: 0 | F61: 0 | G61: 0 | H61: 0 | I61: 0 | J61: 0 | K61: 0 | L61: 0 | M61: 0 | N61: 0 | O61: 0 | P61: 0 | Q61: 0 | R61: 0 | S61: 0 | T61: 0 | U61: 0 | V61: 1 | W61: 0 | X61: 1 | Y61: 0 | Z61: 0 | AA61: 0 | AB61: 0 | AC61: 0 | AD61: 0 | AE61: 0 | AF61: 0 | AG61: 0 | AH61: 0 | AI61: 0 | AJ61: 0 | AK61: 0 | AL61: 0 | AM61: 0 | AN61: 0 | AO61: 0 | AP61: 0 | AQ61: 0 | AR61: 0 | AS61: 0 | AT61: 0 | AU61: 0 | AV61: 0 | AW61: 0 | AX61: 0 | AY61: 0 | AZ61: 0 | BA61: 0 | BB61: 0 | BC61: 0 | BD61: 0 | BE61: 0 | BF61: 0 | BG61: 0 | BH61: 0 | BI61: 0 | BJ61: 0 | BK61: 0 | BL61: 0 | BM61: 0 | BN61: 0 | BO61: 0 | BP61: 0 | BQ61: 0 | BR61: 0 | BS61: 0 | BT61: 0 | BU61: 0 | BV61: 0 | BW61: 0 | BX61: 0 | BY61: 0 | BZ61: 0 | CA61: 0 | CB61: 0 | CC61: 0 | CD61: 0 | CE61: 0 | CF61: 0 | CG61: 0 | CH61: 0 | CI61: 0 | CJ61: 18 | CK61: 0 | CL61: 1 | CM61: 0 | CN61: 0 | CO61: 0 | CP61: 0 | CQ61: 0 | CR61: 0 | CS61: 0 | CT61: 0 | CU61: 0 | CV61: 0 | CW61: 0 | CX61: 0 | CY61: 0 | CZ61: 0 | DA61: 0 | DB61: 0 | DC61: 0 | DD61: 0 | DE61: 0 | DF61: 0 | DG61: 0 | DH61: 0 | DI61: 0 | DJ61: 0 | DK61: 0 | DL61: 0 | DM61: 0 | DN61: 0 | DO61: 0 | DP61: 0 | DQ61: 0 | DR61: 0 | DS61: 0 | DT61: 0 | DU61: 0 | DV61: 0 | DW61: 0 | DX61: 0 | DY61: 0 | DZ61: 0 | EA61: 0 | EB61: 0 | EC61: 0 | ED61: 0 | EE61: 0 | EF61: 0 | EG61: 0 | EH61: 0 | EI61: 0 | EJ61: 0 | EK61: 0 | EL61: 0 | EM61: 0 | EN61: 0 | EO61: 0 | EP61: 0 | EQ61: 0 | ER61: 0 | ES61: 0 | ET61: 0 | EU61: 0 | EV61: 0 | EW61: 0 | EX61: 0 | EY61: 0 | EZ61: 0 | FA61: 0 | FB61: 0 | FC61: 0 | FD61: 0 | FE61: 0 | FF61: 0 | FG61: 0 | FH61: 0 | FI61: 0 | FJ61: 0 | FK61: 0 | FL61: 0 | FM61: 0 | FN61: 0 | FO61: 0 | FP61: 0 | FQ61: 0 | FR61: 0 | FS61: 0 | FT61: 0 | FU61: 0 | FV61: 0 | FW61: 0 | FX61: 0 | FY61: 0 | FZ61: 0 | GA61: 0 | GB61: 0 | GC61: 0 | GD61: 0 | GE61: 0 | GF61: 0 | GG61: 0 | GH61: 0 | GI61: 0 | GJ61: 0 | GK61: 0 | GL61: 0 | GM61: 0 | GN61: 0 | GO61: 0 | GP61: 0 | GQ61: 0 | GR61: 0 | GS61: 0 | GT61: 0 | GU61: 0 | GV61: 0 | GW61: 0 | GX61: 0 | GY61: 0 | GZ61: 0 | HA61: 0 | HB61: 0 | HC61: 0 | HD61: 0 | HE61: 0 | HF61: 0 | HG61: 0 | HH61: 0 | HI61: 0 | HJ61: 0 | HK61: 0 | HL61: 0 | HM61: 0 | HN61: 0 | HO61: 0 | HP61: 0 | HQ61: 0 | HR61: 0 | HS61: 0 | HT61: 0 | HU61: 0 | HV61: 0 | HW61: 0
A62: 2 | B62: 0 | C62: 0 | D62: 0 | E62: 0 | F62: 0 | G62: 0 | H62: 0 | I62: 0 | J62: 0 | K62: 0 | L62: 0 | M62: 0 | N62: 1 | O62: 0 | P62: 1 | Q62: 0 | R62: 0 | S62: 0 | T62: 0 | U62: 0 | V62: 0 | W62: 0 | X62: 0 | Y62: 0 | Z62: 0 | AA62: 0 | AB62: 0 | AC62: 0 | AD62: 0 | AE62: 0 | AF62: 0 | AG62: 0 | AH62: 0 | AI62: 0 | AJ62: 0 | AK62: 0 | AL62: 0 | AM62: 0 | AN62: 0 | AO62: 0 | AP62: 0 | AQ62: 0 | AR62: 0 | AS62: 0 | AT62: 0 | AU62: 0 | AV62: 0 | AW62: 0 | AX62: 0 | AY62: 0 | AZ62: 0 | BA62: 0 | BB62: 0 | BC62: 0 | BD62: 0 | BE62: 0 | BF62: 0 | BG62: 0 | BH62: 0 | BI62: 0 | BJ62: 0 | BK62: 0 | BL62: 0 | BM62: 0 | BN62: 0 | BO62: 0 | BP62: 0 | BQ62: 0 | BR62: 0 | BS62: 0 | BT62: 0 | BU62: 0 | BV62: 0 | BW62: 0 | BX62: 0 | BY62: 0 | BZ62: 0 | CA62: 0 | CB62: 0 | CC62: 0 | CD62: 0 | CE62: 0 | CF62: 0 | CG62: 0 | CH62: 0 | CI62: 0 | CJ62: 14 | CK62: 0 | CL62: 2 | CM62: 0 | CN62: 0 | CO62: 0 | CP62: 0 | CQ62: 0 | CR62: 0 | CS62: 0 | CT62: 0 | CU62: 0 | CV62: 0 | CW62: 0 | CX62: 0 | CY62: 0 | CZ62: 0 | DA62: 0 | DB62: 0 | DC62: 0 | DD62: 0 | DE62: 0 | DF62: 0 | DG62: 0 | DH62: 0 | DI62: 0 | DJ62: 0 | DK62: 0 | DL62: 0 | DM62: 0 | DN62: 0 | DO62: 0 | DP62: 0 | DQ62: 0 | DR62: 0 | DS62: 0 | DT62: 0 | DU62: 0 | DV62: 0 | DW62: 0 | DX62: 0 | DY62: 0 | DZ62: 0 | EA62: 0 | EB62: 0 | EC62: 0 | ED62: 0 | EE62: 0 | EF62: 0 | EG62: 0 | EH62: 0 | EI62: 0 | EJ62: 0 | EK62: 0 | EL62: 0 | EM62: 0 | EN62: 0 | EO62: 0 | EP62: 0 | EQ62: 0 | ER62: 0 | ES62: 0 | ET62: 0 | EU62: 0 | EV62: 0 | EW62: 0 | EX62: 0 | EY62: 0 | EZ62: 0 | FA62: 0 | FB62: 0 | FC62: 0 | FD62: 0 | FE62: 0 | FF62: 0 | FG62: 0 | FH62: 0 | FI62: 0 | FJ62: 0 | FK62: 0 | FL62: 0 | FM62: 0 | FN62: 0 | FO62: 0 | FP62: 0 | FQ62: 0 | FR62: 0 | FS62: 0 | FT62: 0 | FU62: 0 | FV62: 0 | FW62: 0 | FX62: 0 | FY62: 0 | FZ62: 0 | GA62: 0 | GB62: 0 | GC62: 0 | GD62: 0 | GE62: 0 | GF62: 0 | GG62: 0 | GH62: 0 | GI62: 0 | GJ62: 0 | GK62: 0 | GL62: 0 | GM62: 0 | GN62: 0 | GO62: 0 | GP62: 0 | GQ62: 0 | GR62: 0 | GS62: 0 | GT62: 0 | GU62: 0 | GV62: 0 | GW62: 0 | GX62: 0 | GY62: 0 | GZ62: 0 | HA62: 0 | HB62: 0 | HC62: 0 | HD62: 0 | HE62: 0 | HF62: 0 | HG62: 0 | HH62: 0 | HI62: 0 | HJ62: 0 | HK62: 0 | HL62: 0 | HM62: 0 | HN62: 0 | HO62: 0 | HP62: 0 | HQ62: 0 | HR62: 0 | HS62: 0 | HT62: 0 | HU62: 0 | HV62: 0 | HW62: 0
A63: 3 | B63: 0 | C63: 0 | D63: 0 | E63: 0 | F63: 0 | G63: 0 | H63: 0 | I63: 0 | J63: 0 | K63: 0 | L63: 0 | M63: 0 | N63: 1 | O63: 0 | P63: 1 | Q63: 0 | R63: 0 | S63: 0 | T63: 0 | U63: 0 | V63: 0 | W63: 0 | X63: 0 | Y63: 0 | Z63: 0 | AA63: 0 | AB63: 0 | AC63: 0 | AD63: 0 | AE63: 0 | AF63: 0 | AG63: 0 | AH63: 0 | AI63: 0 | AJ63: 0 | AK63: 0 | AL63: 0 | AM63: 0 | AN63: 0 | AO63: 0 | AP63: 0 | AQ63: 0 | AR63: 0 | AS63: 0 | AT63: 0 | AU63: 0 | AV63: 0 | AW63: 0 | AX63: 0 | AY63: 0 | AZ63: 0 | BA63: 0 | BB63: 0 | BC63: 0 | BD63: 0 | BE63: 0 | BF63: 0 | BG63: 0 | BH63: 0 | BI63: 0 | BJ63: 0 | BK63: 0 | BL63: 0 | BM63: 0 | BN63: 0 | BO63: 0 | BP63: 0 | BQ63: 0 | BR63: 0 | BS63: 0 | BT63: 0 | BU63: 0 | BV63: 0 | BW63: 0 | BX63: 0 | BY63: 0 | BZ63: 0 | CA63: 0 | CB63: 0 | CC63: 0 | CD63: 0 | CE63: 0 | CF63: 0 | CG63: 0 | CH63: 0 | CI63: 0 | CJ63: 9 | CK63: 0 | CL63: 1 | CM63: 0 | CN63: 0 | CO63: 0 | CP63: 0 | CQ63: 0 | CR63: 0 | CS63: 0 | CT63: 0 | CU63: 0 | CV63: 0 | CW63: 0 | CX63: 0 | CY63: 0 | CZ63: 0 | DA63: 0 | DB63: 0 | DC63: 0 | DD63: 0 | DE63: 0 | DF63: 0 | DG63: 0 | DH63: 0 | DI63: 0 | DJ63: 0 | DK63: 0 | DL63: 0 | DM63: 0 | DN63: 0 | DO63: 0 | DP63: 0 | DQ63: 0 | DR63: 0 | DS63: 0 | DT63: 0 | DU63: 0 | DV63: 0 | DW63: 0 | DX63: 0 | DY63: 0 | DZ63: 0 | EA63: 0 | EB63: 0 | EC63: 0 | ED63: 0 | EE63: 0 | EF63: 0 | EG63: 0 | EH63: 0 | EI63: 0 | EJ63: 0 | EK63: 0 | EL63: 0 | EM63: 0 | EN63: 0 | EO63: 0 | EP63: 0 | EQ63: 0 | ER63: 0 | ES63: 0 | ET63: 0 | EU63: 0 | EV63: 0 | EW63: 0 | EX63: 0 | EY63: 0 | EZ63: 0 | FA63: 0 | FB63: 0 | FC63: 0 | FD63: 0 | FE63: 0 | FF63: 0 | FG63: 0 | FH63: 0 | FI63: 0 | FJ63: 0 | FK63: 0 | FL63: 0 | FM63: 0 | FN63: 0 | FO63: 0 | FP63: 0 | FQ63: 0 | FR63: 0 | FS63: 0 | FT63: 0 | FU63: 0 | FV63: 0 | FW63: 0 | FX63: 0 | FY63: 0 | FZ63: 0 | GA63: 0 | GB63: 0 | GC63: 0 | GD63: 0 | GE63: 0 | GF63: 0 | GG63: 0 | GH63: 0 | GI63: 0 | GJ63: 0 | GK63: 0 | GL63: 0 | GM63: 0 | GN63: 0 | GO63: 0 | GP63: 0 | GQ63: 0 | GR63: 0 | GS63: 0 | GT63: 0 | GU63: 0 | GV63: 0 | GW63: 0 | GX63: 0 | GY63: 0 | GZ63: 0 | HA63: 0 | HB63: 0 | HC63: 0 | HD63: 0 | HE63: 0 | HF63: 0 | HG63: 0 | HH63: 0 | HI63: 0 | HJ63: 0 | HK63: 0 | HL63: 0 | HM63: 0 | HN63: 0 | HO63: 0 | HP63: 0 | HQ63: 0 | HR63: 0 | HS63: 0 | HT63: 0 | HU63: 0 | HV63: 0 | HW63: 0
A64: Total | B64: 0 | C64: 0 | D64: 0 | E64: 0 | F64: 0 | G64: 0 | H64: 0 | I64: 0 | J64: 0 | K64: 0 | L64: 0 | M64: 0 | N64: 2 | O64: 0 | P64: 2 | Q64: 0 | R64: 0 | S64: 0 | T64: 0 | U64: 0 | V64: 1 | W64: 0 | X64: 1 | Y64: 0 | Z64: 0 | AA64: 0 | AB64: 0 | AC64: 0 | AD64: 0 | AE64: 0 | AF64: 0 | AG64: 0 | AH64: 0 | AI64: 0 | AJ64: 0 | AK64: 0 | AL64: 0 | AM64: 0 | AN64: 0 | AO64: 0 | AP64: 0 | AQ64: 0 | AR64: 0 | AS64: 0 | AT64: 0 | AU64: 0 | AV64: 0 | AW64: 0 | AX64: 0 | AY64: 0 | AZ64: 0 | BA64: 0 | BB64: 0 | BC64: 0 | BD64: 0 | BE64: 0 | BF64: 0 | BG64: 0 | BH64: 0 | BI64: 0 | BJ64: 0 | BK64: 0 | BL64: 0 | BM64: 0 | BN64: 0 | BO64: 0 | BP64: 0 | BQ64: 0 | BR64: 0 | BS64: 0 | BT64: 0 | BU64: 0 | BV64: 0 | BW64: 0 | BX64: 0 | BY64: 0 | BZ64: 0 | CA64: 0 | CB64: 0 | CC64: 0 | CD64: 0 | CE64: 0 | CF64: 0 | CG64: 0 | CH64: 0 | CI64: 0 | CJ64: 41 | CK64: 0 | CL64: 4 | CM64: 0 | CN64: 0 | CO64: 0 | CP64: 0 | CQ64: 0 | CR64: 0 | CS64: 0 | CT64: 0 | CU64: 0 | CV64: 0 | CW64: 0 | CX64: 0 | CY64: 0 | CZ64: 0 | DA64: 0 | DB64: 0 | DC64: 0 | DD64: 0 | DE64: 0 | DF64: 0 | DG64: 0 | DH64: 0 | DI64: 0 | DJ64: 0 | DK64: 0 | DL64: 0 | DM64: 0 | DN64: 0 | DO64: 0 | DP64: 0 | DQ64: 0 | DR64: 0 | DS64: 0 | DT64: 0 | DU64: 0 | DV64: 0 | DW64: 0 | DX64: 0 | DY64: 0 | DZ64: 0 | EA64: 0 | EB64: 0 | EC64: 0 | ED64: 0 | EE64: 0 | EF64: 0 | EG64: 0 | EH64: 0 | EI64: 0 | EJ64: 0 | EK64: 0 | EL64: 0 | EM64: 0 | EN64: 0 | EO64: 0 | EP64: 0 | EQ64: 0 | ER64: 0 | ES64: 0 | ET64: 0 | EU64: 0 | EV64: 0 | EW64: 0 | EX64: 0 | EY64: 0 | EZ64: 0 | FA64: 0 | FB64: 0 | FC64: 0 | FD64: 0 | FE64: 0 | FF64: 0 | FG64: 0 | FH64: 0 | FI64: 0 | FJ64: 0 | FK64: 0 | FL64: 0 | FM64: 0 | FN64: 0 | FO64: 0 | FP64: 0 | FQ64: 0 | FR64: 0 | FS64: 0 | FT64: 0 | FU64: 0 | FV64: 0 | FW64: 0 | FX64: 0 | FY64: 0 | FZ64: 0 | GA64: 0 | GB64: 0 | GC64: 0 | GD64: 0 | GE64: 0 | GF64: 0 | GG64: 0 | GH64: 0 | GI64: 0 | GJ64: 0 | GK64: 0 | GL64: 0 | GM64: 0 | GN64: 0 | GO64: 0 | GP64: 0 | GQ64: 0 | GR64: 0 | GS64: 0 | GT64: 0 | GU64: 0 | GV64: 0 | GW64: 0 | GX64: 0 | GY64: 0 | GZ64: 0 | HA64: 0 | HB64: 0 | HC64: 0 | HD64: 0 | HE64: 0 | HF64: 0 | HG64: 0 | HH64: 0 | HI64: 0 | HJ64: 0 | HK64: 0 | HL64: 0 | HM64: 0 | HN64: 0 | HO64: 0 | HP64: 0 | HQ64: 0 | HR64: 0 | HS64: 0 | HT64: 0 | HU64: 0 | HV64: 0 | HW64: 0
A79: TOTAL
A80: =COUNT(A61:A77) -> 3 | B80: =SUM(B61:B77) -> 0 | C80: =SUM(C61:C77) -> 0 | D80: 0 | E80: 0 | F80: 0 | G80: 0 | H80: 0 | I80: 0 | J80: 0 | K80: 0 | L80: 0 | M80: 0 | N80: 4 | O80: 0 | P80: 4 | Q80: 0 | R80: 0 | S80: 0 | T80: 0 | U80: 0 | V80: 2 | W80: 0 | X80: 2 | Y80: 0 | Z80: 0 | AA80: 0 | AB80: 0 | AC80: 0 | AD80: 0 | AE80: 0 | AF80: 0 | AG80: 0 | AH80: 0 | AI80: 0 | AJ80: 0 | AK80: 0 | AL80: 0 | AM80: 0 | AN80: 0 | AO80: 0 | AP80: 0 | AQ80: 0 | AR80: 0 | AS80: 0 | AT80: 0 | AU80: 0 | AV80: 0 | AW80: 0 | AX80: 0 | AY80: 0 | AZ80: 0 | BA80: 0 | BB80: 0 | BC80: 0 | BD80: 0 | BE80: 0 | BF80: 0 | BG80: 0 | BH80: 0 | BI80: 0 | BJ80: 0 | BK80: 0 | BL80: 0 | BM80: 0 | BN80: 0 | BO80: =SUM(BO61:BO77) -> 0 | BP80: 0 | BQ80: 0 | BR80: 0 | BS80: 0 | BT80: 0 | BU80: 0 | BV80: 0 | BW80: 0 | BX80: 0 | BY80: 0 | BZ80: 0 | CA80: 0 | CB80: 0 | CC80: 0 | CD80: 0 | CE80: 0 | CF80: 0 | CG80: 0 | CH80: 0 | CI80: 0 | CJ80: 82 | CK80: 0 | CL80: 8 | CM80: 0 | CN80: 0 | CO80: 0 | CP80: 0 | CQ80: 0 | CR80: 0 | CS80: 0 | CT80: 0 | CU80: 0 | CV80: 0 | CW80: 0 | CX80: 0 | CY80: 0 | CZ80: 0 | DA80: 0 | DB80: 0 | DC80: 0 | DD80: 0 | DE80: 0 | DF80: 0 | DG80: 0 | DH80: 0 | DI80: 0 | DJ80: 0 | DK80: 0 | DL80: 0 | DM80: 0 | DN80: 0 | DO80: 0 | DP80: 0 | DQ80: 0 | DR80: 0 | DS80: 0 | DT80: 0 | DU80: 0 | DV80: 0 | DW80: 0 | DX80: 0 | DY80: 0 | DZ80: 0 | EA80: =SUM(EA61:EA77) -> 0 | EB80: 0 | EC80: 0 | ED80: 0 | EE80: 0 | EF80: 0 | EG80: 0 | EH80: 0 | EI80: 0 | EJ80: 0 | EK80: 0 | EL80: 0 | EM80: 0 | EN80: 0 | EO80: 0 | EP80: 0 | EQ80: 0 | ER80: 0 | ES80: 0 | ET80: 0 | EU80: 0 | EV80: 0 | EW80: 0 | EX80: 0 | EY80: 0 | EZ80: 0 | FA80: 0 | FB80: 0 | FC80: 0 | FD80: 0 | FE80: 0 | FF80: 0 | FG80: 0 | FH80: 0 | FI80: 0 | FJ80: 0 | FK80: 0 | FL80: 0 | FM80: 0 | FN80: 0 | FO80: 0 | FP80: 0 | FQ80: 0 | FR80: 0 | FS80: 0 | FT80: 0 | FU80: 0 | FV80: 0 | FW80: 0 | FX80: 0 | FY80: 0 | FZ80: 0 | GA80: 0 | GB80: 0 | GC80: 0 | GD80: 0 | GE80: 0 | GF80: 0 | GG80: 0 | GH80: 0 | GI80: 0 | GJ80: 0 | GK80: 0 | GL80: 0 | GM80: =SUM(GM61:GM77) -> 0 | GN80: 0 | GO80: 0 | GP80: 0 | GQ80: 0 | GR80: 0 | GS80: 0 | GT80: 0 | GU80: 0 | GV80: 0 | GW80: 0 | GX80: 0 | GY80: 0 | GZ80: 0 | HA80: 0 | HB80: 0 | HC80: 0 | HD80: 0 | HE80: 0 | HF80: 0 | HG80: 0 | HH80: 0 | HI80: 0 | HJ80: 0 | HK80: 0 | HL80: 0 | HM80: 0 | HN80: 0 | HO80: 0 | HP80: 0 | HQ80: 0 | HR80: 0 | HS80: 0 | HT80: 0 | HU80: 0 | HV80: 0 | HW80: 0 | HX80: 0
A81: =CONCATENATE(A61,"-",A62,"-",A63,"-",A64,"-",A65,"-",A66,"-",A67,"-",A68,"-",A69,"-",A70,"-",A71,"-",A72) -> 1-2-3-Total--------
B82: BAS001 | C82: BAS002 | D82: BAS003 | E82: BAS004 | F82: BAS005 | G82: BAS006 | H82: BAS007 | I82: BAS008 | J82: BAS009 | K82: BAS010 | L82: BAS011 | M82: BAS012 | N82: BAS013 | O82: BAS014 | P82: BAS015 | Q82: BAS016 | R82: BAS017 | S82: BAS018 | T82: BAS019 | U82: BAS020 | V82: BAS021 | W82: BAS022 | X82: BAS023 | Y82: BAS024 | Z82: BAS025 | AA82: BAS026 | AB82: BAS027 | AC82: BAS028 | AD82: BAS029 | AE82: BAS030 | AF82: BAS031 | AG82: BAS032 | AH82: BAS033 | AI82: BAS034 | AJ82: BAS035 | AK82: BAS036 | AL82: BAS037 | AM82: BAS038 | AN82: BAS039 | AO82: BAS040 | AP82: BAS041 | AQ82: BAS042 | AR82: BAS043 | AS82: BAS044 | AT82: BAS045 | AU82: BAS046 | AV82: BAS047 | AW82: BAS048 | AX82: BAS049 | AY82: BAS050 | AZ82: BAS051 | BA82: BAS052 | BB82: BAS053 | BC82: BAS054 | BD82: BAS055 | BE82: BAS056 | BF82: BAS057 | BG82: BAS058 | BH82: BAS059 | BI82: BAS060 | BJ82: BAS061 | BK82: BAS062 | BL82: BAS063 | BM82: BAS064 | BN82: BAS065 | BO82: BAS066 | BP82: BAS067 | BQ82: BAS068 | BR82: BAS069 | BS82: BAS070 | BT82: BAS071 | BU82: BAS072 | BV82: BAS073 | BW82: BAS074 | BX82: BAS075 | BY82: BAS076 | BZ82: BAS077 | CA82: BAS078 | CB82: BAS079 | CC82: BAS080 | CD82: BAS081 | CE82: BAS082 | CF82: BAS083 | CG82: BAS084 | CH82: BAS085 | CI82: BAS086 | CJ82: BAS087 | CK82: BAS088 | CL82: BAS089 | CM82: BAS090 | CN82: BAS091 | CO82: BAS092 | CP82: BAS093 | CQ82: BAS094 | CR82: BAS095 | CS82: BAS096 | CT82: BAS097 | CU82: BAS098 | CV82: BAS099 | CW82: BAS100 | CX82: BAS101 | CY82: BAS102 | CZ82: BAS103 | DA82: BAS104 | DB82: BAS105 | DC82: BAS106 | DD82: BAS107 | DE82: BAS108 | DF82: BAS109 | DG82: BAS110 | DH82: BAS111 | DI82: BAS112 | DJ82: BAS113 | DK82: BAS114 | DL82: BAS115 | DM82: BAS116 | DN82: BAS117 | DO82: BAS118 | DP82: BAS119 | DQ82: BAS120 | DR82: BAS121 | DS82: BAS122 | DT82: BAS123 | DU82: BAS124 | DV82: BAS125 | DW82: BAS126 | DX82: BAS127 | DY82: BAS128 | DZ82: BAS129 | EA82: BAS130 | EB82: BAS131 | EC82: BAS132 | ED82: BAS133 | EE82: BAS134 | EF82: BAS135 | EG82: BAS136 | EH82: BAS137 | EI82: BAS138 | EJ82: BAS139 | EK82: BAS140 | EL82: BAS141 | EM82: BAS142 | EN82: BAS143 | EO82: BAS144 | EP82: BAS145 | EQ82: BAS146 | ER82: BAS147 | ES82: BAS148 | ET82: BAS149 | EU82: BAS150 | EV82: BAS151 | EW82: BAS152 | EX82: BAS153 | EY82: BAS154 | EZ82: BAS155 | FA82: BAS156 | FB82: BAS157 | FC82: BAS158 | FD82: BAS159 | FE82: BAS160 | FF82: BAS161 | FG82: BAS162 | FH82: BAS163 | FI82: BAS164 | FJ82: BAS165 | FK82: BAS166 | FL82: BAS167 | FM82: BAS168 | FN82: BAS169 | FO82: BAS170 | FP82: BAS171 | FQ82: BAS172 | FR82: BAS173 | FS82: BAS174 | FT82: BAS175 | FU82: BAS176 | FV82: BAS177 | FW82: BAS178 | FX82: BAS179 | FY82: BAS180 | FZ82: BAS181 | GA82: BAS182 | GB82: BAS183 | GC82: BAS184 | GD82: BAS185 | GE82: BAS186 | GF82: BAS187 | GG82: BAS188 | GH82: BAS189 | GI82: BAS190 | GJ82: BAS191 | GK82: BAS192 | GL82: BAS193 | GM82: BAS194 | GN82: BAS195 | GO82: BAS196 | GP82: BAS197 | GQ82: BAS198 | GR82: BAS199 | GS82: BAS200 | GT82: BAS201 | GU82: BAS202 | GV82: BAS203 | GW82: BAS204 | GX82: BAS205 | GY82: BAS206 | GZ82: BAS207 | HA82: BAS208 | HB82: BAS209 | HC82: BAS210 | HD82: BAS211 | HE82: BAS212 | HF82: BAS213 | HG82: BAS214 | HH82: BAS215 | HI82: BAS216 | HJ82: BAS217 | HK82: BAS218 | HL82: BAS219 | HM82: BAS220 | HN82: BAS221 | HO82: BAS222 | HP82: BAS223 | HQ82: BAS224 | HR82: BAS225 | HS82: BAS226 | HT82: BAS227 | HU82: BAS228 | HV82: BAS229 | HW82: BAS230
B83: =IF(B82=B60,"SI","NO") -> SI | C83: =IF(C82=C60,"SI","NO") -> SI | D83: SI | E83: SI | F83: SI | G83: SI | H83: SI | I83: SI | J83: SI | K83: SI | L83: SI | M83: SI | N83: SI | O83: SI | P83: SI | Q83: SI | R83: SI | S83: SI | T83: SI | U83: SI | V83: SI | W83: SI | X83: SI | Y83: SI | Z83: SI | AA83: SI | AB83: SI | AC83: SI | AD83: SI | AE83: SI | AF83: SI | AG83: SI | AH83: SI | AI83: SI | AJ83: SI | AK83: SI | AL83: SI | AM83: SI | AN83: SI | AO83: SI | AP83: SI | AQ83: SI | AR83: SI | AS83: SI | AT83: SI | AU83: SI | AV83: SI | AW83: SI | AX83: SI | AY83: SI | AZ83: SI | BA83: SI | BB83: SI | BC83: SI | BD83: SI | BE83: SI | BF83: SI | BG83: SI | BH83: SI | BI83: SI | BJ83: SI | BK83: SI | BL83: SI | BM83: SI | BN83: SI | BO83: =IF(BO82=BO60,"SI","NO") -> SI | BP83: SI | BQ83: SI | BR83: SI | BS83: SI | BT83: SI | BU83: SI | BV83: SI | BW83: SI | BX83: SI | BY83: SI | BZ83: SI | CA83: SI | CB83: SI | CC83: SI | CD83: SI | CE83: SI | CF83: SI | CG83: SI | CH83: SI | CI83: SI | CJ83: SI | CK83: SI | CL83: SI | CM83: SI | CN83: SI | CO83: SI | CP83: SI | CQ83: SI | CR83: SI | CS83: SI | CT83: SI | CU83: SI | CV83: SI | CW83: SI | CX83: SI | CY83: SI | CZ83: SI | DA83: SI | DB83: SI | DC83: SI | DD83: SI | DE83: SI | DF83: SI | DG83: SI | DH83: SI | DI83: SI | DJ83: SI | DK83: SI | DL83: SI | DM83: SI | DN83: SI | DO83: SI | DP83: SI | DQ83: SI | DR83: SI | DS83: SI | DT83: SI | DU83: SI | DV83: SI | DW83: SI | DX83: SI | DY83: SI | DZ83: SI | EA83: =IF(EA82=EA60,"SI","NO") -> SI | EB83: SI | EC83: SI | ED83: SI | EE83: SI | EF83: SI | EG83: SI | EH83: SI | EI83: SI | EJ83: SI | EK83: SI | EL83: SI | EM83: SI | EN83: SI | EO83: SI | EP83: SI | EQ83: SI | ER83: SI | ES83: SI | ET83: SI | EU83: SI | EV83: SI | EW83: SI | EX83: SI | EY83: SI | EZ83: SI | FA83: SI | FB83: SI | FC83: SI | FD83: SI | FE83: SI | FF83: SI | FG83: SI | FH83: SI | FI83: SI | FJ83: SI | FK83: SI | FL83: SI | FM83: SI | FN83: SI | FO83: SI | FP83: SI | FQ83: SI | FR83: SI | FS83: SI | FT83: SI | FU83: SI | FV83: SI | FW83: SI | FX83: SI | FY83: SI | FZ83: SI | GA83: SI | GB83: SI | GC83: SI | GD83: SI | GE83: SI | GF83: SI | GG83: SI | GH83: SI | GI83: SI | GJ83: SI | GK83: SI | GL83: SI | GM83: =IF(GM82=GM60,"SI","NO") -> SI | GN83: SI | GO83: SI | GP83: SI | GQ83: SI | GR83: SI | GS83: SI | GT83: SI | GU83: SI | GV83: SI | GW83: SI | GX83: SI | GY83: SI | GZ83: SI | HA83: SI | HB83: SI | HC83: SI | HD83: SI | HE83: SI | HF83: SI | HG83: SI | HH83: SI | HI83: SI | HJ83: SI | HK83: SI | HL83: SI | HM83: SI | HN83: SI | HO83: SI | HP83: SI | HQ83: SI | HR83: SI | HS83: SI | HT83: SI | HU83: SI | HV83: SI | HW83: SI
A88: PLANI_02
A89: ANNO | B89: 2025
A90: cod_red | B90: 03
A91: codmic | B91: (Todas)
A92: cod_prov | B92: (Todas)
A93: coddist | B93: (Todas)
A94: cod_estab | B94: (Todas)
A95: cod_eje | B95: (Todas)
B97: Valores
A98: Etiquetas de fila | B98: BAS001 | C98: BAS002 | D98: BAS003 | E98: BAS004 | F98: BAS005 | G98: BAS006 | H98: BAS007 | I98: BAS008 | J98: BAS009 | K98: BAS010 | L98: BAS011 | M98: BAS012 | N98: BAS013 | O98: BAS014 | P98: BAS015 | Q98: BAS016 | R98: BAS017 | S98: BAS018 | T98: BAS019 | U98: BAS020 | V98: BAS021 | W98: BAS022 | X98: BAS023 | Y98: BAS024 | Z98: BAS025 | AA98: BAS026 | AB98: BAS027 | AC98: BAS028 | AD98: BAS029 | AE98: BAS030 | AF98: BAS031 | AG98: BAS032 | AH98: BAS033 | AI98: BAS034 | AJ98: BAS035 | AK98: BAS036 | AL98: BAS037 | AM98: BAS038 | AN98: BAS039 | AO98: BAS040 | AP98: BAS041 | AQ98: BAS042 | AR98: BAS043 | AS98: BAS044 | AT98: BAS045 | AU98: BAS046 | AV98: BAS047 | AW98: BAS048 | AX98: BAS049 | AY98: BAS050 | AZ98: BAS051 | BA98: BAS052 | BB98: BAS053 | BC98: BAS054 | BD98: BAS055 | BE98: BAS056 | BF98: BAS057 | BG98: BAS058 | BH98: BAS059 | BI98: BAS060 | BJ98: BAS061 | BK98: BAS062 | BL98: BAS063 | BM98: BAS064 | BN98: BAS065 | BO98: BAS066 | BP98: BAS067 | BQ98: BAS068 | BR98: BAS069 | BS98: BAS070 | BT98: BAS071 | BU98: BAS072 | BV98: BAS073 | BW98: BAS074 | BX98: BAS075 | BY98: BAS076 | BZ98: BAS077 | CA98: BAS078 | CB98: BAS079 | CC98: BAS080 | CD98: BAS081 | CE98: BAS082 | CF98: BAS083 | CG98: BAS084 | CH98: BAS085 | CI98: BAS086 | CJ98: BAS087 | CK98: BAS088 | CL98: BAS089 | CM98: BAS090 | CN98: BAS091 | CO98: BAS092 | CP98: BAS093 | CQ98: BAS094 | CR98: BAS095 | CS98: BAS096 | CT98: BAS097 | CU98: BAS098 | CV98: BAS099 | CW98: BAS100 | CX98: BAS101 | CY98: BAS102 | CZ98: BAS103 | DA98: BAS104 | DB98: BAS105 | DC98: BAS106 | DD98: BAS107 | DE98: BAS108 | DF98: BAS109 | DG98: BAS110 | DH98: BAS111 | DI98: BAS112 | DJ98: BAS113 | DK98: BAS114 | DL98: BAS115 | DM98: BAS116 | DN98: BAS117 | DO98: BAS118 | DP98: BAS119 | DQ98: BAS120 | DR98: BAS121 | DS98: BAS122 | DT98: BAS123 | DU98: BAS124 | DV98: BAS125 | DW98: BAS126 | DX98: BAS127 | DY98: BAS128 | DZ98: BAS129 | EA98: BAS130 | EB98: BAS131 | EC98: BAS132 | ED98: BAS133 | EE98: BAS134 | EF98: BAS135 | EG98: BAS136 | EH98: BAS137 | EI98: BAS138 | EJ98: BAS139 | EK98: BAS140 | EL98: BAS141 | EM98: BAS142 | EN98: BAS143 | EO98: BAS144 | EP98: BAS145 | EQ98: BAS146 | ER98: BAS147 | ES98: BAS148 | ET98: BAS149 | EU98: BAS150 | EV98: BAS151 | EW98: BAS152 | EX98: BAS153 | EY98: BAS154 | EZ98: BAS155 | FA98: BAS156 | FB98: BAS157 | FC98: BAS158 | FD98: BAS159 | FE98: BAS160 | FF98: BAS161 | FG98: BAS162 | FH98: BAS163 | FI98: BAS164 | FJ98: BAS165 | FK98: BAS166 | FL98: BAS167 | FM98: BAS168 | FN98: BAS169 | FO98: BAS170 | FP98: BAS171 | FQ98: BAS172 | FR98: BAS173 | FS98: BAS174 | FT98: BAS175 | FU98: BAS176 | FV98: BAS177 | FW98: BAS178 | FX98: BAS179 | FY98: BAS180 | FZ98: BAS181 | GA98: BAS182 | GB98: BAS183 | GC98: BAS184 | GD98: BAS185 | GE98: BAS186 | GF98: BAS187 | GG98: BAS188 | GH98: BAS189 | GI98: BAS190 | GJ98: BAS191 | GK98: BAS192 | GL98: BAS193 | GM98: BAS194 | GN98: BAS195 | GO98: BAS196 | GP98: BAS197 | GQ98: BAS198 | GR98: BAS199 | GS98: BAS200 | GT98: BAS201 | GU98: BAS202 | GV98: BAS203 | GW98: BAS204 | GX98: BAS205 | GY98: BAS206 | GZ98: BAS207 | HA98: BAS208 | HB98: BAS209 | HC98: BAS210 | HD98: BAS211 | HE98: BAS212 | HF98: BAS213 | HG98: BAS214 | HH98: BAS215 | HI98: BAS216 | HJ98: BAS217 | HK98: BAS218 | HL98: BAS219 | HM98: BAS220 | HN98: BAS221 | HO98: BAS222 | HP98: BAS223 | HQ98: BAS224 | HR98: BAS225 | HS98: BAS226 | HT98: BAS227 | HU98: BAS228 | HV98: BAS229 | HW98: BAS230
A99: 1 | B99: 0 | C99: 0 | D99: 0 | E99: 0 | F99: 0 | G99: 0 | H99: 0 | I99: 0 | J99: 5 | K99: 0 | L99: 5 | M99: 0 | N99: 29 | O99: 42 | P99: 30 | Q99: 42 | R99: 9 | S99: 15 | T99: 7 | U99: 15 | V99: 7 | W99: 1 | X99: 7 | Y99: 1 | Z99: 3 | AA99: 2 | AB99: 30 | AC99: 60 | AD99: 0 | AE99: 0 | AF99: 0 | AG99: 0 | AH99: 0 | AI99: 0 | AJ99: 0 | AK99: 0 | AL99: 0 | AM99: 0 | AN99: 1 | AO99: 0 | AP99: 0 | AQ99: 0 | AR99: 0 | AS99: 0 | AT99: 0 | AU99: 0 | AV99: 0 | AW99: 0 | AX99: 0 | AY99: 0 | AZ99: 0 | BA99: 0 | BB99: 0 | BC99: 0 | BD99: 0 | BE99: 0 | BF99: 0 | BG99: 0 | BH99: 0 | BI99: 1 | BJ99: 1 | BK99: 0 | BL99: 0 | BM99: 0 | BN99: 0 | BO99: 0 | BP99: 0 | BQ99: 0 | BR99: 0 | BS99: 1 | BT99: 0 | BU99: 0 | BV99: 0 | BW99: 1 | BX99: 0 | BY99: 0 | BZ99: 0 | CA99: 0 | CB99: 2 | CC99: 0 | CD99: 0 | CE99: 0 | CF99: 0 | CG99: 0 | CH99: 9 | CI99: 0 | CJ99: 138 | CK99: 0 | CL99: 9 | CM99: 0 | CN99: 13 | CO99: 0 | CP99: 12 | CQ99: 0 | CR99: 10 | CS99: 0 | CT99: 0 | CU99: 0 | CV99: 0 | CW99: 0 | CX99: 0 | CY99: 0 | CZ99: 0 | DA99: 0 | DB99: 0 | DC99: 0 | DD99: 0 | DE99: 0 | DF99: 0 | DG99: 0 | DH99: 0 | DI99: 0 | DJ99: 1 | DK99: 0 | DL99: 0 | DM99: 0 | DN99: 0 | DO99: 0 | DP99: 0 | DQ99: 0 | DR99: 0 | DS99: 0 | DT99: 0 | DU99: 0 | DV99: 0 | DW99: 0 | DX99: 0 | DY99: 0 | DZ99: 0 | EA99: 0 | EB99: 0 | EC99: 0 | ED99: 0 | EE99: 0 | EF99: 0 | EG99: 0 | EH99: 0 | EI99: 0 | EJ99: 0 | EK99: 0 | EL99: 0 | EM99: 0 | EN99: 0 | EO99: 0 | EP99: 0 | EQ99: 0 | ER99: 0 | ES99: 0 | ET99: 0 | EU99: 0 | EV99: 0 | EW99: 0 | EX99: 0 | EY99: 0 | EZ99: 0 | FA99: 0 | FB99: 0 | FC99: 0 | FD99: 0 | FE99: 0 | FF99: 0 | FG99: 0 | FH99: 0 | FI99: 0 | FJ99: 0 | FK99: 0 | FL99: 0 | FM99: 0 | FN99: 0 | FO99: 0 | FP99: 0 | FQ99: 0 | FR99: 0 | FS99: 0 | FT99: 0 | FU99: 0 | FV99: 0 | FW99: 0 | FX99: 0 | FY99: 0 | FZ99: 0 | GA99: 0 | GB99: 0 | GC99: 0 | GD99: 0 | GE99: 0 | GF99: 0 | GG99: 0 | GH99: 0 | GI99: 0 | GJ99: 0 | GK99: 0 | GL99: 0 | GM99: 0 | GN99: 0 | GO99: 0 | GP99: 0 | GQ99: 0 | GR99: 0 | GS99: 0 | GT99: 0 | GU99: 0 | GV99: 0 | GW99: 0 | GX99: 0 | GY99: 0 | GZ99: 0 | HA99: 0 | HB99: 0 | HC99: 0 | HD99: 0 | HE99: 0 | HF99: 0 | HG99: 0 | HH99: 0 | HI99: 0 | HJ99: 0 | HK99: 0 | HL99: 0 | HM99: 0 | HN99: 0 | HO99: 0 | HP99: 0 | HQ99: 0 | HR99: 0 | HS99: 0 | HT99: 0 | HU99: 0 | HV99: 0 | HW99: 0
A100: 2 | B100: 0 | C100: 0 | D100: 0 | E100: 0 | F100: 0 | G100: 0 | H100: 0 | I100: 0 | J100: 6 | K100: 3 | L100: 6 | M100: 12 | N100: 27 | O100: 36 | P100: 26 | Q100: 36 | R100: 11 | S100: 12 | T100: 9 | U100: 12 | V100: 8 | W100: 1 | X100: 8 | Y100: 1 | Z100: 8 | AA100: 0 | AB100: 61 | AC100: 0 | AD100: 0 | AE100: 0 | AF100: 0 | AG100: 0 | AH100: 0 | AI100: 0 | AJ100: 0 | AK100: 0 | AL100: 0 | AM100: 0 | AN100: 0 | AO100: 0 | AP100: 4 | AQ100: 4 | AR100: 1 | AS100: 1 | AT100: 0 | AU100: 0 | AV100: 0 | AW100: 0 | AX100: 0 | AY100: 0 | AZ100: 0 | BA100: 0 | BB100: 0 | BC100: 0 | BD100: 0 | BE100: 0 | BF100: 0 | BG100: 0 | BH100: 0 | BI100: 1 | BJ100: 0 | BK100: 0 | BL100: 0 | BM100: 0 | BN100: 0 | BO100: 0 | BP100: 0 | BQ100: 0 | BR100: 0 | BS100: 0 | BT100: 0 | BU100: 0 | BV100: 0 | BW100: 0 | BX100: 0 | BY100: 0 | BZ100: 0 | CA100: 0 | CB100: 25 | CC100: 2 | CD100: 0 | CE100: 0 | CF100: 3 | CG100: 0 | CH100: 9 | CI100: 0 | CJ100: 125 | CK100: 0 | CL100: 9 | CM100: 0 | CN100: 20 | CO100: 1 | CP100: 18 | CQ100: 1 | CR100: 17 | CS100: 0 | CT100: 0 | CU100: 0 | CV100: 0 | CW100: 0 | CX100: 0 | CY100: 0 | CZ100: 0 | DA100: 0 | DB100: 0 | DC100: 0 | DD100: 0 | DE100: 0 | DF100: 0 | DG100: 0 | DH100: 0 | DI100: 0 | DJ100: 0 | DK100: 0 | DL100: 0 | DM100: 0 | DN100: 0 | DO100: 0 | DP100: 0 | DQ100: 0 | DR100: 0 | DS100: 0 | DT100: 0 | DU100: 0 | DV100: 0 | DW100: 0 | DX100: 0 | DY100: 0 | DZ100: 0 | EA100: 0 | EB100: 0 | EC100: 0 | ED100: 0 | EE100: 0 | EF100: 0 | EG100: 0 | EH100: 0 | EI100: 0 | EJ100: 0 | EK100: 0 | EL100: 0 | EM100: 0 | EN100: 0 | EO100: 0 | EP100: 0 | EQ100: 0 | ER100: 0 | ES100: 0 | ET100: 0 | EU100: 0 | EV100: 0 | EW100: 0 | EX100: 0 | EY100: 0 | EZ100: 0 | FA100: 0 | FB100: 0 | FC100: 0 | FD100: 0 | FE100: 0 | FF100: 0 | FG100: 0 | FH100: 0 | FI100: 0 | FJ100: 0 | FK100: 0 | FL100: 0 | FM100: 0 | FN100: 0 | FO100: 0 | FP100: 0 | FQ100: 0 | FR100: 0 | FS100: 0 | FT100: 0 | FU100: 0 | FV100: 0 | FW100: 0 | FX100: 0 | FY100: 0 | FZ100: 0 | GA100: 0 | GB100: 0 | GC100: 0 | GD100: 0 | GE100: 0 | GF100: 0 | GG100: 0 | GH100: 0 | GI100: 0 | GJ100: 0 | GK100: 0 | GL100: 0 | GM100: 0 | GN100: 0 | GO100: 0 | GP100: 0 | GQ100: 0 | GR100: 0 | GS100: 0 | GT100: 0 | GU100: 0 | GV100: 0 | GW100: 0 | GX100: 0 | GY100: 0 | GZ100: 0 | HA100: 0 | HB100: 0 | HC100: 0 | HD100: 0 | HE100: 0 | HF100: 0 | HG100: 0 | HH100: 0 | HI100: 0 | HJ100: 0 | HK100: 0 | HL100: 0 | HM100: 0 | HN100: 0 | HO100: 0 | HP100: 0 | HQ100: 0 | HR100: 0 | HS100: 0 | HT100: 0 | HU100: 0 | HV100: 0 | HW100: 0
A101: 3 | B101: 0 | C101: 0 | D101: 0 | E101: 0 | F101: 0 | G101: 0 | H101: 0 | I101: 0 | J101: 7 | K101: 4 | L101: 7 | M101: 16 | N101: 22 | O101: 53 | P101: 22 | Q101: 52 | R101: 10 | S101: 18 | T101: 8 | U101: 20 | V101: 9 | W101: 1 | X101: 9 | Y101: 1 | Z101: 7 | AA101: 3 | AB101: 70 | AC101: 80 | AD101: 0 | AE101: 0 | AF101: 0 | AG101: 0 | AH101: 0 | AI101: 0 | AJ101: 0 | AK101: 0 | AL101: 0 | AM101: 0 | AN101: 6 | AO101: 0 | AP101: 1 | AQ101: 1 | AR101: 0 | AS101: 0 | AT101: 0 | AU101: 0 | AV101: 0 | AW101: 0 | AX101: 0 | AY101: 0 | AZ101: 0 | BA101: 0 | BB101: 0 | BC101: 0 | BD101: 0 | BE101: 0 | BF101: 0 | BG101: 0 | BH101: 0 | BI101: 0 | BJ101: 1 | BK101: 0 | BL101: 0 | BM101: 0 | BN101: 0 | BO101: 0 | BP101: 0 | BQ101: 0 | BR101: 0 | BS101: 1 | BT101: 0 | BU101: 0 | BV101: 0 | BW101: 0 | BX101: 0 | BY101: 0 | BZ101: 0 | CA101: 0 | CB101: 31 | CC101: 8 | CD101: 0 | CE101: 0 | CF101: 2 | CG101: 0 | CH101: 13 | CI101: 2 | CJ101: 201 | CK101: 0 | CL101: 12 | CM101: 0 | CN101: 8 | CO101: 0 | CP101: 7 | CQ101: 0 | CR101: 7 | CS101: 0 | CT101: 0 | CU101: 0 | CV101: 0 | CW101: 0 | CX101: 0 | CY101: 0 | CZ101: 0 | DA101: 0 | DB101: 0 | DC101: 0 | DD101: 0 | DE101: 0 | DF101: 0 | DG101: 0 | DH101: 0 | DI101: 1 | DJ101: 0 | DK101: 0 | DL101: 0 | DM101: 0 | DN101: 0 | DO101: 0 | DP101: 0 | DQ101: 0 | DR101: 0 | DS101: 0 | DT101: 0 | DU101: 0 | DV101: 0 | DW101: 0 | DX101: 0 | DY101: 0 | DZ101: 0 | EA101: 0 | EB101: 0 | EC101: 0 | ED101: 0 | EE101: 0 | EF101: 0 | EG101: 0 | EH101: 0 | EI101: 0 | EJ101: 0 | EK101: 0 | EL101: 0 | EM101: 0 | EN101: 0 | EO101: 0 | EP101: 0 | EQ101: 0 | ER101: 0 | ES101: 0 | ET101: 0 | EU101: 0 | EV101: 0 | EW101: 0 | EX101: 0 | EY101: 0 | EZ101: 0 | FA101: 0 | FB101: 0 | FC101: 0 | FD101: 0 | FE101: 0 | FF101: 0 | FG101: 0 | FH101: 0 | FI101: 0 | FJ101: 0 | FK101: 0 | FL101: 0 | FM101: 0 | FN101: 0 | FO101: 0 | FP101: 0 | FQ101: 0 | FR101: 0 | FS101: 0 | FT101: 0 | FU101: 0 | FV101: 0 | FW101: 0 | FX101: 0 | FY101: 0 | FZ101: 0 | GA101: 0 | GB101: 0 | GC101: 0 | GD101: 0 | GE101: 0 | GF101: 0 | GG101: 0 | GH101: 0 | GI101: 0 | GJ101: 0 | GK101: 0 | GL101: 0 | GM101: 0 | GN101: 0 | GO101: 0 | GP101: 0 | GQ101: 0 | GR101: 0 | GS101: 0 | GT101: 0 | GU101: 0 | GV101: 0 | GW101: 0 | GX101: 0 | GY101: 0 | GZ101: 0 | HA101: 0 | HB101: 0 | HC101: 0 | HD101: 0 | HE101: 0 | HF101: 0 | HG101: 0 | HH101: 0 | HI101: 0 | HJ101: 0 | HK101: 0 | HL101: 0 | HM101: 0 | HN101: 0 | HO101: 0 | HP101: 0 | HQ101: 0 | HR101: 0 | HS101: 0 | HT101: 0 | HU101: 0 | HV101: 0 | HW101: 0
A102: Total | B102: 0 | C102: 0 | D102: 0 | E102: 0 | F102: 0 | G102: 0 | H102: 0 | I102: 0 | J102: 18 | K102: 7 | L102: 18 | M102: 28 | N102: 78 | O102: 131 | P102: 78 | Q102: 130 | R102: 30 | S102: 45 | T102: 24 | U102: 47 | V102: 24 | W102: 3 | X102: 24 | Y102: 3 | Z102: 18 | AA102: 5 | AB102: 161 | AC102: 140 | AD102: 0 | AE102: 0 | AF102: 0 | AG102: 0 | AH102: 0 | AI102: 0 | AJ102: 0 | AK102: 0 | AL102: 0 | AM102: 0 | AN102: 7 | AO102: 0 | AP102: 5 | AQ102: 5 | AR102: 1 | AS102: 1 | AT102: 0 | AU102: 0 | AV102: 0 | AW102: 0 | AX102: 0 | AY102: 0 | AZ102: 0 | BA102: 0 | BB102: 0 | BC102: 0 | BD102: 0 | BE102: 0 | BF102: 0 | BG102: 0 | BH102: 0 | BI102: 2 | BJ102: 2 | BK102: 0 | BL102: 0 | BM102: 0 | BN102: 0 | BO102: 0 | BP102: 0 | BQ102: 0 | BR102: 0 | BS102: 2 | BT102: 0 | BU102: 0 | BV102: 0 | BW102: 1 | BX102: 0 | BY102: 0 | BZ102: 0 | CA102: 0 | CB102: 58 | CC102: 10 | CD102: 0 | CE102: 0 | CF102: 5 | CG102: 0 | CH102: 31 | CI102: 2 | CJ102: 464 | CK102: 0 | CL102: 30 | CM102: 0 | CN102: 41 | CO102: 1 | CP102: 37 | CQ102: 1 | CR102: 34 | CS102: 0 | CT102: 0 | CU102: 0 | CV102: 0 | CW102: 0 | CX102: 0 | CY102: 0 | CZ102: 0 | DA102: 0 | DB102: 0 | DC102: 0 | DD102: 0 | DE102: 0 | DF102: 0 | DG102: 0 | DH102: 0 | DI102: 1 | DJ102: 1 | DK102: 0 | DL102: 0 | DM102: 0 | DN102: 0 | DO102: 0 | DP102: 0 | DQ102: 0 | DR102: 0 | DS102: 0 | DT102: 0 | DU102: 0 | DV102: 0 | DW102: 0 | DX102: 0 | DY102: 0 | DZ102: 0 | EA102: 0 | EB102: 0 | EC102: 0 | ED102: 0 | EE102: 0 | EF102: 0 | EG102: 0 | EH102: 0 | EI102: 0 | EJ102: 0 | EK102: 0 | EL102: 0 | EM102: 0 | EN102: 0 | EO102: 0 | EP102: 0 | EQ102: 0 | ER102: 0 | ES102: 0 | ET102: 0 | EU102: 0 | EV102: 0 | EW102: 0 | EX102: 0 | EY102: 0 | EZ102: 0 | FA102: 0 | FB102: 0 | FC102: 0 | FD102: 0 | FE102: 0 | FF102: 0 | FG102: 0 | FH102: 0 | FI102: 0 | FJ102: 0 | FK102: 0 | FL102: 0 | FM102: 0 | FN102: 0 | FO102: 0 | FP102: 0 | FQ102: 0 | FR102: 0 | FS102: 0 | FT102: 0 | FU102: 0 | FV102: 0 | FW102: 0 | FX102: 0 | FY102: 0 | FZ102: 0 | GA102: 0 | GB102: 0 | GC102: 0 | GD102: 0 | GE102: 0 | GF102: 0 | GG102: 0 | GH102: 0 | GI102: 0 | GJ102: 0 | GK102: 0 | GL102: 0 | GM102: 0 | GN102: 0 | GO102: 0 | GP102: 0 | GQ102: 0 | GR102: 0 | GS102: 0 | GT102: 0 | GU102: 0 | GV102: 0 | GW102: 0 | GX102: 0 | GY102: 0 | GZ102: 0 | HA102: 0 | HB102: 0 | HC102: 0 | HD102: 0 | HE102: 0 | HF102: 0 | HG102: 0 | HH102: 0 | HI102: 0 | HJ102: 0 | HK102: 0 | HL102: 0 | HM102: 0 | HN102: 0 | HO102: 0 | HP102: 0 | HQ102: 0 | HR102: 0 | HS102: 0 | HT102: 0 | HU102: 0 | HV102: 0 | HW102: 0
A116: TOTAL
A117: =COUNT(A96:A114) -> 3 | B117: =SUM(B96:B114) -> 0 | C117: =SUM(C96:C114) -> 0 | D117: 0 | E117: 0 | F117: 0 | G117: 0 | H117: 0 | I117: 0 | J117: 36 | K117: 14 | L117: 36 | M117: 56 | N117: 156 | O117: 262 | P117: 156 | Q117: 260 | R117: 60 | S117: 90 | T117: 48 | U117: 94 | V117: 48 | W117: 6 | X117: 48 | Y117: 6 | Z117: 36 | AA117: 10 | AB117: 322 | AC117: 280 | AD117: 0 | AE117: 0 | AF117: 0 | AG117: 0 | AH117: 0 | AI117: 0 | AJ117: 0 | AK117: 0 | AL117: 0 | AM117: 0 | AN117: 14 | AO117: 0 | AP117: 10 | AQ117: 10 | AR117: 2 | AS117: 2 | AT117: 0 | AU117: 0 | AV117: 0 | AW117: 0 | AX117: 0 | AY117: 0 | AZ117: 0 | BA117: 0 | BB117: 0 | BC117: 0 | BD117: 0 | BE117: 0 | BF117: 0 | BG117: 0 | BH117: 0 | BI117: 4 | BJ117: 4 | BK117: 0 | BL117: 0 | BM117: 0 | BN117: 0 | BO117: =SUM(BO96:BO114) -> 0 | BP117: 0 | BQ117: 0 | BR117: 0 | BS117: 4 | BT117: 0 | BU117: 0 | BV117: 0 | BW117: 2 | BX117: 0 | BY117: 0 | BZ117: 0 | CA117: 0 | CB117: 116 | CC117: 20 | CD117: 0 | CE117: 0 | CF117: 10 | CG117: 0 | CH117: 62 | CI117: 4 | CJ117: 928 | CK117: 0 | CL117: 60 | CM117: 0 | CN117: 82 | CO117: 2 | CP117: 74 | CQ117: 2 | CR117: 68 | CS117: 0 | CT117: 0 | CU117: 0 | CV117: 0 | CW117: 0 | CX117: 0 | CY117: 0 | CZ117: 0 | DA117: 0 | DB117: 0 | DC117: 0 | DD117: 0 | DE117: 0 | DF117: 0 | DG117: 0 | DH117: 0 | DI117: 2 | DJ117: 2 | DK117: 0 | DL117: 0 | DM117: 0 | DN117: 0 | DO117: 0 | DP117: 0 | DQ117: 0 | DR117: 0 | DS117: 0 | DT117: 0 | DU117: 0 | DV117: 0 | DW117: 0 | DX117: 0 | DY117: 0 | DZ117: 0 | EA117: =SUM(EA96:EA114) -> 0 | EB117: 0 | EC117: 0 | ED117: 0 | EE117: 0 | EF117: 0 | EG117: 0 | EH117: 0 | EI117: 0 | EJ117: 0 | EK117: 0 | EL117: 0 | EM117: 0 | EN117: 0 | EO117: 0 | EP117: 0 | EQ117: 0 | ER117: 0 | ES117: 0 | ET117: 0 | EU117: 0 | EV117: 0 | EW117: 0 | EX117: 0 | EY117: 0 | EZ117: 0 | FA117: 0 | FB117: 0 | FC117: 0 | FD117: 0 | FE117: 0 | FF117: 0 | FG117: 0 | FH117: 0 | FI117: 0 | FJ117: 0 | FK117: 0 | FL117: 0 | FM117: 0 | FN117: 0 | FO117: 0 | FP117: 0 | FQ117: 0 | FR117: 0 | FS117: 0 | FT117: 0 | FU117: 0 | FV117: 0 | FW117: 0 | FX117: 0 | FY117: 0 | FZ117: 0 | GA117: 0 | GB117: 0 | GC117: 0 | GD117: 0 | GE117: 0 | GF117: 0 | GG117: 0 | GH117: 0 | GI117: 0 | GJ117: 0 | GK117: 0 | GL117: 0 | GM117: =SUM(GM96:GM114) -> 0 | GN117: 0 | GO117: 0 | GP117: 0 | GQ117: 0 | GR117: 0 | GS117: 0 | GT117: 0 | GU117: 0 | GV117: 0 | GW117: 0 | GX117: 0 | GY117: 0 | GZ117: 0 | HA117: 0 | HB117: 0 | HC117: 0 | HD117: 0 | HE117: 0 | HF117: 0 | HG117: 0 | HH117: 0 | HI117: 0 | HJ117: 0 | HK117: 0 | HL117: 0 | HM117: 0 | HN117: 0 | HO117: 0 | HP117: 0 | HQ117: 0 | HR117: 0 | HS117: 0 | HT117: 0 | HU117: 0 | HV117: 0 | HW117: 0 | HX117: 0
A118: =CONCATENATE(A99,"-",A100,"-",A101,"-",A102,"-",A103,"-",A104,"-",A105,"-",A106,"-",A107,"-",A108,"-",A109,"-",A110) -> 1-2-3-Total--------
B119: BAS001 | C119: BAS002 | D119: BAS003 | E119: BAS004 | F119: BAS005 | G119: BAS006 | H119: BAS007 | I119: BAS008 | J119: BAS009 | K119: BAS010 | L119: BAS011 | M119: BAS012 | N119: BAS013 | O119: BAS014 | P119: BAS015 | Q119: BAS016 | R119: BAS017 | S119: BAS018 | T119: BAS019 | U119: BAS020 | V119: BAS021 | W119: BAS022 | X119: BAS023 | Y119: BAS024 | Z119: BAS025 | AA119: BAS026 | AB119: BAS027 | AC119: BAS028 | AD119: BAS029 | AE119: BAS030 | AF119: BAS031 | AG119: BAS032 | AH119: BAS033 | AI119: BAS034 | AJ119: BAS035 | AK119: BAS036 | AL119: BAS037 | AM119: BAS038 | AN119: BAS039 | AO119: BAS040 | AP119: BAS041 | AQ119: BAS042 | AR119: BAS043 | AS119: BAS044 | AT119: BAS045 | AU119: BAS046 | AV119: BAS047 | AW119: BAS048 | AX119: BAS049 | AY119: BAS050 | AZ119: BAS051 | BA119: BAS052 | BB119: BAS053 | BC119: BAS054 | BD119: BAS055 | BE119: BAS056 | BF119: BAS057 | BG119: BAS058 | BH119: BAS059 | BI119: BAS060 | BJ119: BAS061 | BK119: BAS062 | BL119: BAS063 | BM119: BAS064 | BN119: BAS065 | BO119: BAS066 | BP119: BAS067 | BQ119: BAS068 | BR119: BAS069 | BS119: BAS070 | BT119: BAS071 | BU119: BAS072 | BV119: BAS073 | BW119: BAS074 | BX119: BAS075 | BY119: BAS076 | BZ119: BAS077 | CA119: BAS078 | CB119: BAS079 | CC119: BAS080 | CD119: BAS081 | CE119: BAS082 | CF119: BAS083 | CG119: BAS084 | CH119: BAS085 | CI119: BAS086 | CJ119: BAS087 | CK119: BAS088 | CL119: BAS089 | CM119: BAS090 | CN119: BAS091 | CO119: BAS092 | CP119: BAS093 | CQ119: BAS094 | CR119: BAS095 | CS119: BAS096 | CT119: BAS097 | CU119: BAS098 | CV119: BAS099 | CW119: BAS100 | CX119: BAS101 | CY119: BAS102 | CZ119: BAS103 | DA119: BAS104 | DB119: BAS105 | DC119: BAS106 | DD119: BAS107 | DE119: BAS108 | DF119: BAS109 | DG119: BAS110 | DH119: BAS111 | DI119: BAS112 | DJ119: BAS113 | DK119: BAS114 | DL119: BAS115 | DM119: BAS116 | DN119: BAS117 | DO119: BAS118 | DP119: BAS119 | DQ119: BAS120 | DR119: BAS121 | DS119: BAS122 | DT119: BAS123 | DU119: BAS124 | DV119: BAS125 | DW119: BAS126 | DX119: BAS127 | DY119: BAS128 | DZ119: BAS129 | EA119: BAS130 | EB119: BAS131 | EC119: BAS132 | ED119: BAS133 | EE119: BAS134 | EF119: BAS135 | EG119: BAS136 | EH119: BAS137 | EI119: BAS138 | EJ119: BAS139 | EK119: BAS140 | EL119: BAS141 | EM119: BAS142 | EN119: BAS143 | EO119: BAS144 | EP119: BAS145 | EQ119: BAS146 | ER119: BAS147 | ES119: BAS148 | ET119: BAS149 | EU119: BAS150 | EV119: BAS151 | EW119: BAS152 | EX119: BAS153 | EY119: BAS154 | EZ119: BAS155 | FA119: BAS156 | FB119: BAS157 | FC119: BAS158 | FD119: BAS159 | FE119: BAS160 | FF119: BAS161 | FG119: BAS162 | FH119: BAS163 | FI119: BAS164 | FJ119: BAS165 | FK119: BAS166 | FL119: BAS167 | FM119: BAS168 | FN119: BAS169 | FO119: BAS170 | FP119: BAS171 | FQ119: BAS172 | FR119: BAS173 | FS119: BAS174 | FT119: BAS175 | FU119: BAS176 | FV119: BAS177 | FW119: BAS178 | FX119: BAS179 | FY119: BAS180 | FZ119: BAS181 | GA119: BAS182 | GB119: BAS183 | GC119: BAS184 | GD119: BAS185 | GE119: BAS186 | GF119: BAS187 | GG119: BAS188 | GH119: BAS189 | GI119: BAS190 | GJ119: BAS191 | GK119: BAS192 | GL119: BAS193 | GM119: BAS194 | GN119: BAS195 | GO119: BAS196 | GP119: BAS197 | GQ119: BAS198 | GR119: BAS199 | GS119: BAS200 | GT119: BAS201 | GU119: BAS202 | GV119: BAS203 | GW119: BAS204 | GX119: BAS205 | GY119: BAS206 | GZ119: BAS207 | HA119: BAS208 | HB119: BAS209 | HC119: BAS210 | HD119: BAS211 | HE119: BAS212 | HF119: BAS213 | HG119: BAS214 | HH119: BAS215 | HI119: BAS216 | HJ119: BAS217 | HK119: BAS218 | HL119: BAS219 | HM119: BAS220 | HN119: BAS221 | HO119: BAS222 | HP119: BAS223 | HQ119: BAS224 | HR119: BAS225 | HS119: BAS226 | HT119: BAS227 | HU119: BAS228 | HV119: BAS229 | HW119: BAS230
B120: =IF(B119=B98,"SI","NO") -> SI | C120: =IF(C119=C98,"SI","NO") -> SI | D120: SI | E120: SI | F120: SI | G120: SI | H120: SI | I120: SI | J120: SI | K120: SI | L120: SI | M120: SI | N120: SI | O120: SI | P120: SI | Q120: SI | R120: SI | S120: SI | T120: SI | U120: SI | V120: SI | W120: SI | X120: SI | Y120: SI | Z120: SI | AA120: SI | AB120: SI | AC120: SI | AD120: SI | AE120: SI | AF120: SI | AG120: SI | AH120: SI | AI120: SI | AJ120: SI | AK120: SI | AL120: SI | AM120: SI | AN120: SI | AO120: SI | AP120: SI | AQ120: SI | AR120: SI | AS120: SI | AT120: SI | AU120: SI | AV120: SI | AW120: SI | AX120: SI | AY120: SI | AZ120: SI | BA120: SI | BB120: SI | BC120: SI | BD120: SI | BE120: SI | BF120: SI | BG120: SI | BH120: SI | BI120: SI | BJ120: SI | BK120: SI | BL120: SI | BM120: SI | BN120: SI | BO120: =IF(BO119=BO98,"SI","NO") -> SI | BP120: SI | BQ120: SI | BR120: SI | BS120: SI | BT120: SI | BU120: SI | BV120: SI | BW120: SI | BX120: SI | BY120: SI | BZ120: SI | CA120: SI | CB120: SI | CC120: SI | CD120: SI | CE120: SI | CF120: SI | CG120: SI | CH120: SI | CI120: SI | CJ120: SI | CK120: SI | CL120: SI | CM120: SI | CN120: SI | CO120: SI | CP120: SI | CQ120: SI | CR120: SI | CS120: SI | CT120: SI | CU120: SI | CV120: SI | CW120: SI | CX120: SI | CY120: SI | CZ120: SI | DA120: SI | DB120: SI | DC120: SI | DD120: SI | DE120: SI | DF120: SI | DG120: SI | DH120: SI | DI120: SI | DJ120: SI | DK120: SI | DL120: SI | DM120: SI | DN120: SI | DO120: SI | DP120: SI | DQ120: SI | DR120: SI | DS120: SI | DT120: SI | DU120: SI | DV120: SI | DW120: SI | DX120: SI | DY120: SI | DZ120: SI | EA120: =IF(EA119=EA98,"SI","NO") -> SI | EB120: SI | EC120: SI | ED120: SI | EE120: SI | EF120: SI | EG120: SI | EH120: SI | EI120: SI | EJ120: SI | EK120: SI | EL120: SI | EM120: SI | EN120: SI | EO120: SI | EP120: SI | EQ120: SI | ER120: SI | ES120: SI | ET120: SI | EU120: SI | EV120: SI | EW120: SI | EX120: SI | EY120: SI | EZ120: SI | FA120: SI | FB120: SI | FC120: SI | FD120: SI | FE120: SI | FF120: SI | FG120: SI | FH120: SI | FI120: SI | FJ120: SI | FK120: SI | FL120: SI | FM120: SI | FN120: SI | FO120: SI | FP120: SI | FQ120: SI | FR120: SI | FS120: SI | FT120: SI | FU120: SI | FV120: SI | FW120: SI | FX120: SI | FY120: SI | FZ120: SI | GA120: SI | GB120: SI | GC120: SI | GD120: SI | GE120: SI | GF120: SI | GG120: SI | GH120: SI | GI120: SI | GJ120: SI | GK120: SI | GL120: SI | GM120: =IF(GM119=GM98,"SI","NO") -> SI | GN120: SI | GO120: SI | GP120: SI | GQ120: SI | GR120: SI | GS120: SI | GT120: SI | GU120: SI | GV120: SI | GW120: SI | GX120: SI | GY120: SI | GZ120: SI | HA120: SI | HB120: SI | HC120: SI | HD120: SI | HE120: SI | HF120: SI | HG120: SI | HH120: SI | HI120: SI | HJ120: SI | HK120: SI | HL120: SI | HM120: SI | HN120: SI | HO120: SI | HP120: SI | HQ120: SI | HR120: SI | HS120: SI | HT120: SI | HU120: SI | HV120: SI | HW120: SI
A123: PLANI_03
A124: ANNO | B124: 2025
A125: cod_red | B125: 03
A126: codmic | B126: (Todas)
A127: cod_prov | B127: (Todas)
A128: coddist | B128: (Todas)
A129: cod_estab | B129: (Todas)
A130: cod_eje | B130: (Todas)
B132: Valores
A133: Etiquetas de fila | B133: BAS001 | C133: BAS002 | D133: BAS003 | E133: BAS004 | F133: BAS005 | G133: BAS006 | H133: BAS007 | I133: BAS008 | J133: BAS009 | K133: BAS010 | L133: BAS011 | M133: BAS012 | N133: BAS013 | O133: BAS014 | P133: BAS015 | Q133: BAS016 | R133: BAS017 | S133: BAS018 | T133: BAS019 | U133: BAS020 | V133: BAS021 | W133: BAS022 | X133: BAS023 | Y133: BAS024 | Z133: BAS025 | AA133: BAS026 | AB133: BAS027 | AC133: BAS028 | AD133: BAS029 | AE133: BAS030 | AF133: BAS031 | AG133: BAS032 | AH133: BAS033 | AI133: BAS034 | AJ133: BAS035 | AK133: BAS036 | AL133: BAS037 | AM133: BAS038 | AN133: BAS039 | AO133: BAS040 | AP133: BAS041 | AQ133: BAS042 | AR133: BAS043 | AS133: BAS044 | AT133: BAS045 | AU133: BAS046 | AV133: BAS047 | AW133: BAS048 | AX133: BAS049 | AY133: BAS050 | AZ133: BAS051 | BA133: BAS052 | BB133: BAS053 | BC133: BAS054 | BD133: BAS055 | BE133: BAS056 | BF133: BAS057 | BG133: BAS058 | BH133: BAS059 | BI133: BAS060 | BJ133: BAS061 | BK133: BAS062 | BL133: BAS063 | BM133: BAS064 | BN133: BAS065 | BO133: BAS066 | BP133: BAS067 | BQ133: BAS068 | BR133: BAS069 | BS133: BAS070 | BT133: BAS071 | BU133: BAS072 | BV133: BAS073 | BW133: BAS074 | BX133: BAS075 | BY133: BAS076 | BZ133: BAS077 | CA133: BAS078 | CB133: BAS079 | CC133: BAS080 | CD133: BAS081 | CE133: BAS082 | CF133: BAS083 | CG133: BAS084 | CH133: BAS085 | CI133: BAS086 | CJ133: BAS087 | CK133: BAS088 | CL133: BAS089 | CM133: BAS090 | CN133: BAS091 | CO133: BAS092 | CP133: BAS093 | CQ133: BAS094 | CR133: BAS095 | CS133: BAS096 | CT133: BAS097 | CU133: BAS098 | CV133: BAS099 | CW133: BAS100 | CX133: BAS101 | CY133: BAS102 | CZ133: BAS103 | DA133: BAS104 | DB133: BAS105 | DC133: BAS106 | DD133: BAS107 | DE133: BAS108 | DF133: BAS109 | DG133: BAS110 | DH133: BAS111 | DI133: BAS112 | DJ133: BAS113 | DK133: BAS114 | DL133: BAS115 | DM133: BAS116 | DN133: BAS117 | DO133: BAS118 | DP133: BAS119 | DQ133: BAS120 | DR133: BAS121 | DS133: BAS122 | DT133: BAS123 | DU133: BAS124 | DV133: BAS125 | DW133: BAS126 | DX133: BAS127 | DY133: BAS128 | DZ133: BAS129 | EA133: BAS130 | EB133: BAS131 | EC133: BAS132 | ED133: BAS133 | EE133: BAS134 | EF133: BAS135 | EG133: BAS136 | EH133: BAS137 | EI133: BAS138 | EJ133: BAS139 | EK133: BAS140 | EL133: BAS141 | EM133: BAS142 | EN133: BAS143 | EO133: BAS144 | EP133: BAS145 | EQ133: BAS146 | ER133: BAS147 | ES133: BAS148 | ET133: BAS149 | EU133: BAS150 | EV133: BAS151 | EW133: BAS152 | EX133: BAS153 | EY133: BAS154 | EZ133: BAS155 | FA133: BAS156 | FB133: BAS157 | FC133: BAS158 | FD133: BAS159 | FE133: BAS160 | FF133: BAS161 | FG133: BAS162 | FH133: BAS163 | FI133: BAS164 | FJ133: BAS165 | FK133: BAS166 | FL133: BAS167 | FM133: BAS168 | FN133: BAS169 | FO133: BAS170 | FP133: BAS171 | FQ133: BAS172 | FR133: BAS173 | FS133: BAS174 | FT133: BAS175 | FU133: BAS176 | FV133: BAS177 | FW133: BAS178 | FX133: BAS179 | FY133: BAS180 | FZ133: BAS181 | GA133: BAS182 | GB133: BAS183 | GC133: BAS184 | GD133: BAS185 | GE133: BAS186 | GF133: BAS187 | GG133: BAS188 | GH133: BAS189 | GI133: BAS190 | GJ133: BAS191 | GK133: BAS192 | GL133: BAS193 | GM133: BAS194 | GN133: BAS195 | GO133: BAS196 | GP133: BAS197 | GQ133: BAS198 | GR133: BAS199 | GS133: BAS200 | GT133: BAS201 | GU133: BAS202 | GV133: BAS203 | GW133: BAS204 | GX133: BAS205 | GY133: BAS206 | GZ133: BAS207 | HA133: BAS208 | HB133: BAS209 | HC133: BAS210 | HD133: BAS211 | HE133: BAS212 | HF133: BAS213 | HG133: BAS214 | HH133: BAS215 | HI133: BAS216 | HJ133: BAS217 | HK133: BAS218 | HL133: BAS219 | HM133: BAS220 | HN133: BAS221 | HO133: BAS222 | HP133: BAS223 | HQ133: BAS224 | HR133: BAS225 | HS133: BAS226 | HT133: BAS227 | HU133: BAS228 | HV133: BAS229 | HW133: BAS230
A134: 1 | B134: 3 | C134: 0 | D134: 3 | E134: 0 | F134: 0 | G134: 0 | H134: 0 | I134: 0 | J134: 41 | K134: 62 | L134: 43 | M134: 245 | N134: 143 | O134: 263 | P134: 144 | Q134: 263 | R134: 91 | S134: 136 | T134: 88 | U134: 136 | V134: 43 | W134: 8 | X134: 43 | Y134: 8 | Z134: 64 | AA134: 49 | AB134: 650 | AC134: 1460 | AD134: 0 | AE134: 0 | AF134: 0 | AG134: 0 | AH134: 2 | AI134: 0 | AJ134: 0 | AK134: 0 | AL134: 1 | AM134: 0 | AN134: 5 | AO134: 0 | AP134: 4 | AQ134: 4 | AR134: 0 | AS134: 0 | AT134: 0 | AU134: 0 | AV134: 0 | AW134: 0 | AX134: 0 | AY134: 0 | AZ134: 1 | BA134: 0 | BB134: 0 | BC134: 0 | BD134: 1 | BE134: 0 | BF134: 0 | BG134: 1 | BH134: 0 | BI134: 2 | BJ134: 1 | BK134: 0 | BL134: 0 | BM134: 0 | BN134: 0 | BO134: 0 | BP134: 0 | BQ134: 0 | BR134: 1 | BS134: 3 | BT134: 1 | BU134: 0 | BV134: 0 | BW134: 1 | BX134: 0 | BY134: 1 | BZ134: 0 | CA134: 1 | CB134: 39 | CC134: 0 | CD134: 1 | CE134: 0 | CF134: 2 | CG134: 0 | CH134: 45 | CI134: 0 | CJ134: 874 | CK134: 0 | CL134: 18 | CM134: 0 | CN134: 80 | CO134: 0 | CP134: 78 | CQ134: 0 | CR134: 78 | CS134: 0 | CT134: 0 | CU134: 0 | CV134: 0 | CW134: 0 | CX134: 0 | CY134: 0 | CZ134: 0 | DA134: 0 | DB134: 0 | DC134: 0 | DD134: 0 | DE134: 0 | DF134: 0 | DG134: 1 | DH134: 0 | DI134: 1 | DJ134: 0 | DK134: 0 | DL134: 0 | DM134: 0 | DN134: 1 | DO134: 0 | DP134: 0 | DQ134: 0 | DR134: 0 | DS134: 0 | DT134: 0 | DU134: 0 | DV134: 0 | DW134: 0 | DX134: 0 | DY134: 0 | DZ134: 0 | EA134: 0 | EB134: 0 | EC134: 0 | ED134: 0 | EE134: 0 | EF134: 0 | EG134: 0 | EH134: 0 | EI134: 0 | EJ134: 0 | EK134: 0 | EL134: 0 | EM134: 0 | EN134: 0 | EO134: 0 | EP134: 0 | EQ134: 0 | ER134: 0 | ES134: 0 | ET134: 0 | EU134: 0 | EV134: 0 | EW134: 0 | EX134: 0 | EY134: 0 | EZ134: 0 | FA134: 0 | FB134: 0 | FC134: 0 | FD134: 0 | FE134: 0 | FF134: 0 | FG134: 0 | FH134: 0 | FI134: 0 | FJ134: 0 | FK134: 0 | FL134: 0 | FM134: 0 | FN134: 0 | FO134: 0 | FP134: 0 | FQ134: 0 | FR134: 0 | FS134: 0 | FT134: 0 | FU134: 0 | FV134: 0 | FW134: 0 | FX134: 0 | FY134: 0 | FZ134: 0 | GA134: 0 | GB134: 0 | GC134: 0 | GD134: 0 | GE134: 0 | GF134: 0 | GG134: 0 | GH134: 0 | GI134: 0 | GJ134: 0 | GK134: 0 | GL134: 0 | GM134: 0 | GN134: 0 | GO134: 0 | GP134: 0 | GQ134: 0 | GR134: 0 | GS134: 0 | GT134: 0 | GU134: 0 | GV134: 0 | GW134: 0 | GX134: 0 | GY134: 0 | GZ134: 0 | HA134: 0 | HB134: 0 | HC134: 0 | HD134: 0 | HE134: 0 | HF134: 0 | HG134: 0 | HH134: 0 | HI134: 0 | HJ134: 0 | HK134: 0 | HL134: 0 | HM134: 0 | HN134: 0 | HO134: 0 | HP134: 0 | HQ134: 0 | HR134: 0 | HS134: 0 | HT134: 0 | HU134: 0 | HV134: 0 | HW134: 0
A135: 2 | B135: 0 | C135: 0 | D135: 0 | E135: 0 | F135: 0 | G135: 0 | H135: 0 | I135: 0 | J135: 62 | K135: 67 | L135: 98 | M135: 259 | N135: 119 | O135: 291 | P135: 115 | Q135: 287 | R135: 48 | S135: 125 | T135: 47 | U135: 125 | V135: 23 | W135: 10 | X135: 23 | Y135: 10 | Z135: 82 | AA135: 46 | AB135: 792 | AC135: 1291 | AD135: 0 | AE135: 0 | AF135: 0 | AG135: 0 | AH135: 0 | AI135: 0 | AJ135: 0 | AK135: 0 | AL135: 0 | AM135: 0 | AN135: 2 | AO135: 0 | AP135: 5 | AQ135: 5 | AR135: 0 | AS135: 0 | AT135: 0 | AU135: 0 | AV135: 0 | AW135: 0 | AX135: 0 | AY135: 0 | AZ135: 6 | BA135: 0 | BB135: 0 | BC135: 0 | BD135: 0 | BE135: 0 | BF135: 0 | BG135: 5 | BH135: 0 | BI135: 1 | BJ135: 1 | BK135: 1 | BL135: 0 | BM135: 0 | BN135: 0 | BO135: 0 | BP135: 0 | BQ135: 0 | BR135: 0 | BS135: 8 | BT135: 0 | BU135: 0 | BV135: 0 | BW135: 4 | BX135: 0 | BY135: 0 | BZ135: 0 | CA135: 0 | CB135: 188 | CC135: 1 | CD135: 1 | CE135: 0 | CF135: 4 | CG135: 0 | CH135: 48 | CI135: 0 | CJ135: 680 | CK135: 0 | CL135: 7 | CM135: 0 | CN135: 74 | CO135: 0 | CP135: 72 | CQ135: 0 | CR135: 71 | CS135: 0 | CT135: 0 | CU135: 0 | CV135: 1 | CW135: 0 | CX135: 0 | CY135: 0 | CZ135: 0 | DA135: 0 | DB135: 0 | DC135: 0 | DD135: 0 | DE135: 0 | DF135: 0 | DG135: 0 | DH135: 2 | DI135: 1 | DJ135: 1 | DK135: 0 | DL135: 0 | DM135: 0 | DN135: 0 | DO135: 0 | DP135: 0 | DQ135: 0 | DR135: 0 | DS135: 0 | DT135: 0 | DU135: 0 | DV135: 0 | DW135: 0 | DX135: 0 | DY135: 0 | DZ135: 0 | EA135: 0 | EB135: 0 | EC135: 0 | ED135: 0 | EE135: 0 | EF135: 0 | EG135: 0 | EH135: 0 | EI135: 0 | EJ135: 0 | EK135: 0 | EL135: 0 | EM135: 0 | EN135: 0 | EO135: 0 | EP135: 0 | EQ135: 0 | ER135: 0 | ES135: 0 | ET135: 0 | EU135: 0 | EV135: 0 | EW135: 0 | EX135: 0 | EY135: 0 | EZ135: 0 | FA135: 0 | FB135: 0 | FC135: 0 | FD135: 0 | FE135: 0 | FF135: 0 | FG135: 0 | FH135: 0 | FI135: 0 | FJ135: 0 | FK135: 0 | FL135: 0 | FM135: 0 | FN135: 0 | FO135: 0 | FP135: 0 | FQ135: 0 | FR135: 0 | FS135: 0 | FT135: 0 | FU135: 0 | FV135: 0 | FW135: 0 | FX135: 0 | FY135: 0 | FZ135: 0 | GA135: 0 | GB135: 0 | GC135: 0 | GD135: 0 | GE135: 0 | GF135: 0 | GG135: 0 | GH135: 0 | GI135: 0 | GJ135: 0 | GK135: 0 | GL135: 0 | GM135: 0 | GN135: 0 | GO135: 0 | GP135: 0 | GQ135: 0 | GR135: 0 | GS135: 0 | GT135: 0 | GU135: 0 | GV135: 0 | GW135: 0 | GX135: 0 | GY135: 0 | GZ135: 0 | HA135: 0 | HB135: 0 | HC135: 0 | HD135: 0 | HE135: 0 | HF135: 0 | HG135: 0 | HH135: 0 | HI135: 0 | HJ135: 0 | HK135: 0 | HL135: 0 | HM135: 0 | HN135: 0 | HO135: 0 | HP135: 0 | HQ135: 0 | HR135: 0 | HS135: 0 | HT135: 0 | HU135: 0 | HV135: 0 | HW135: 0
A136: 3 | B136: 1 | C136: 0 | D136: 1 | E136: 0 | F136: 0 | G136: 0 | H136: 0 | I136: 0 | J136: 55 | K136: 67 | L136: 91 | M136: 245 | N136: 113 | O136: 303 | P136: 112 | Q136: 300 | R136: 62 | S136: 128 | T136: 58 | U136: 125 | V136: 46 | W136: 6 | X136: 46 | Y136: 6 | Z136: 99 | AA136: 57 | AB136: 1030 | AC136: 1710 | AD136: 0 | AE136: 0 | AF136: 0 | AG136: 0 | AH136: 4 | AI136: 0 | AJ136: 0 | AK136: 0 | AL136: 0 | AM136: 0 | AN136: 3 | AO136: 0 | AP136: 6 | AQ136: 15 | AR136: 0 | AS136: 0 | AT136: 0 | AU136: 0 | AV136: 0 | AW136: 0 | AX136: 0 | AY136: 0 | AZ136: 2 | BA136: 1 | BB136: 0 | BC136: 0 | BD136: 0 | BE136: 0 | BF136: 0 | BG136: 0 | BH136: 0 | BI136: 4 | BJ136: 0 | BK136: 0 | BL136: 0 | BM136: 0 | BN136: 0 | BO136: 0 | BP136: 0 | BQ136: 0 | BR136: 4 | BS136: 4 | BT136: 0 | BU136: 0 | BV136: 0 | BW136: 3 | BX136: 1 | BY136: 0 | BZ136: 0 | CA136: 4 | CB136: 152 | CC136: 16 | CD136: 2 | CE136: 1 | CF136: 4 | CG136: 0 | CH136: 42 | CI136: 0 | CJ136: 652 | CK136: 0 | CL136: 14 | CM136: 0 | CN136: 62 | CO136: 1 | CP136: 57 | CQ136: 1 | CR136: 59 | CS136: 0 | CT136: 0 | CU136: 0 | CV136: 0 | CW136: 0 | CX136: 0 | CY136: 0 | CZ136: 0 | DA136: 0 | DB136: 0 | DC136: 0 | DD136: 0 | DE136: 0 | DF136: 0 | DG136: 0 | DH136: 2 | DI136: 3 | DJ136: 1 | DK136: 0 | DL136: 0 | DM136: 0 | DN136: 0 | DO136: 0 | DP136: 1 | DQ136: 0 | DR136: 0 | DS136: 0 | DT136: 0 | DU136: 0 | DV136: 0 | DW136: 0 | DX136: 0 | DY136: 0 | DZ136: 0 | EA136: 0 | EB136: 0 | EC136: 0 | ED136: 0 | EE136: 0 | EF136: 0 | EG136: 0 | EH136: 0 | EI136: 0 | EJ136: 0 | EK136: 0 | EL136: 0 | EM136: 0 | EN136: 0 | EO136: 0 | EP136: 0 | EQ136: 0 | ER136: 0 | ES136: 0 | ET136: 0 | EU136: 0 | EV136: 0 | EW136: 0 | EX136: 0 | EY136: 0 | EZ136: 0 | FA136: 0 | FB136: 0 | FC136: 0 | FD136: 0 | FE136: 0 | FF136: 0 | FG136: 0 | FH136: 0 | FI136: 0 | FJ136: 0 | FK136: 0 | FL136: 0 | FM136: 0 | FN136: 0 | FO136: 0 | FP136: 0 | FQ136: 0 | FR136: 0 | FS136: 0 | FT136: 0 | FU136: 0 | FV136: 0 | FW136: 0 | FX136: 0 | FY136: 0 | FZ136: 0 | GA136: 0 | GB136: 0 | GC136: 0 | GD136: 0 | GE136: 0 | GF136: 0 | GG136: 0 | GH136: 0 | GI136: 0 | GJ136: 0 | GK136: 0 | GL136: 0 | GM136: 0 | GN136: 0 | GO136: 0 | GP136: 0 | GQ136: 0 | GR136: 0 | GS136: 0 | GT136: 0 | GU136: 0 | GV136: 0 | GW136: 0 | GX136: 0 | GY136: 0 | GZ136: 0 | HA136: 0 | HB136: 0 | HC136: 0 | HD136: 0 | HE136: 0 | HF136: 0 | HG136: 0 | HH136: 0 | HI136: 0 | HJ136: 0 | HK136: 0 | HL136: 0 | HM136: 0 | HN136: 0 | HO136: 0 | HP136: 0 | HQ136: 0 | HR136: 0 | HS136: 0 | HT136: 0 | HU136: 0 | HV136: 0 | HW136: 0
A137: Total | B137: 4 | C137: 0 | D137: 4 | E137: 0 | F137: 0 | G137: 0 | H137: 0 | I137: 0 | J137: 158 | K137: 196 | L137: 232 | M137: 749 | N137: 375 | O137: 857 | P137: 371 | Q137: 850 | R137: 201 | S137: 389 | T137: 193 | U137: 386 | V137: 112 | W137: 24 | X137: 112 | Y137: 24 | Z137: 245 | AA137: 152 | AB137: 2472 | AC137: 4461 | AD137: 0 | AE137: 0 | AF137: 0 | AG137: 0 | AH137: 6 | AI137: 0 | AJ137: 0 | AK137: 0 | AL137: 1 | AM137: 0 | AN137: 10 | AO137: 0 | AP137: 15 | AQ137: 24 | AR137: 0 | AS137: 0 | AT137: 0 | AU137: 0 | AV137: 0 | AW137: 0 | AX137: 0 | AY137: 0 | AZ137: 9 | BA137: 1 | BB137: 0 | BC137: 0 | BD137: 1 | BE137: 0 | BF137: 0 | BG137: 6 | BH137: 0 | BI137: 7 | BJ137: 2 | BK137: 1 | BL137: 0 | BM137: 0 | BN137: 0 | BO137: 0 | BP137: 0 | BQ137: 0 | BR137: 5 | BS137: 15 | BT137: 1 | BU137: 0 | BV137: 0 | BW137: 8 | BX137: 1 | BY137: 1 | BZ137: 0 | CA137: 5 | CB137: 379 | CC137: 17 | CD137: 4 | CE137: 1 | CF137: 10 | CG137: 0 | CH137: 135 | CI137: 0 | CJ137: 2206 | CK137: 0 | CL137: 39 | CM137: 0 | CN137: 216 | CO137: 1 | CP137: 207 | CQ137: 1 | CR137: 208 | CS137: 0 | CT137: 0 | CU137: 0 | CV137: 1 | CW137: 0 | CX137: 0 | CY137: 0 | CZ137: 0 | DA137: 0 | DB137: 0 | DC137: 0 | DD137: 0 | DE137: 0 | DF137: 0 | DG137: 1 | DH137: 4 | DI137: 5 | DJ137: 2 | DK137: 0 | DL137: 0 | DM137: 0 | DN137: 1 | DO137: 0 | DP137: 1 | DQ137: 0 | DR137: 0 | DS137: 0 | DT137: 0 | DU137: 0 | DV137: 0 | DW137: 0 | DX137: 0 | DY137: 0 | DZ137: 0 | EA137: 0 | EB137: 0 | EC137: 0 | ED137: 0 | EE137: 0 | EF137: 0 | EG137: 0 | EH137: 0 | EI137: 0 | EJ137: 0 | EK137: 0 | EL137: 0 | EM137: 0 | EN137: 0 | EO137: 0 | EP137: 0 | EQ137: 0 | ER137: 0 | ES137: 0 | ET137: 0 | EU137: 0 | EV137: 0 | EW137: 0 | EX137: 0 | EY137: 0 | EZ137: 0 | FA137: 0 | FB137: 0 | FC137: 0 | FD137: 0 | FE137: 0 | FF137: 0 | FG137: 0 | FH137: 0 | FI137: 0 | FJ137: 0 | FK137: 0 | FL137: 0 | FM137: 0 | FN137: 0 | FO137: 0 | FP137: 0 | FQ137: 0 | FR137: 0 | FS137: 0 | FT137: 0 | FU137: 0 | FV137: 0 | FW137: 0 | FX137: 0 | FY137: 0 | FZ137: 0 | GA137: 0 | GB137: 0 | GC137: 0 | GD137: 0 | GE137: 0 | GF137: 0 | GG137: 0 | GH137: 0 | GI137: 0 | GJ137: 0 | GK137: 0 | GL137: 0 | GM137: 0 | GN137: 0 | GO137: 0 | GP137: 0 | GQ137: 0 | GR137: 0 | GS137: 0 | GT137: 0 | GU137: 0 | GV137: 0 | GW137: 0 | GX137: 0 | GY137: 0 | GZ137: 0 | HA137: 0 | HB137: 0 | HC137: 0 | HD137: 0 | HE137: 0 | HF137: 0 | HG137: 0 | HH137: 0 | HI137: 0 | HJ137: 0 | HK137: 0 | HL137: 0 | HM137: 0 | HN137: 0 | HO137: 0 | HP137: 0 | HQ137: 0 | HR137: 0 | HS137: 0 | HT137: 0 | HU137: 0 | HV137: 0 | HW137: 0
A151: TOTAL
A152: =COUNT(A131:A149) -> 3 | B152: =SUM(B131:B149) -> 8 | C152: =SUM(C131:C149) -> 0 | D152: 8 | E152: 0 | F152: 0 | G152: 0 | H152: 0 | I152: 0 | J152: 316 | K152: 392 | L152: 464 | M152: 1498 | N152: 750 | O152: 1714 | P152: 742 | Q152: 1700 | R152: 402 | S152: 778 | T152: 386 | U152: 772 | V152: 224 | W152: 48 | X152: 224 | Y152: 48 | Z152: 490 | AA152: 304 | AB152: 4944 | AC152: 8922 | AD152: 0 | AE152: 0 | AF152: 0 | AG152: 0 | AH152: 12 | AI152: 0 | AJ152: 0 | AK152: 0 | AL152: 2 | AM152: 0 | AN152: 20 | AO152: 0 | AP152: 30 | AQ152: 48 | AR152: 0 | AS152: 0 | AT152: 0 | AU152: 0 | AV152: 0 | AW152: 0 | AX152: 0 | AY152: 0 | AZ152: 18 | BA152: 2 | BB152: 0 | BC152: 0 | BD152: 2 | BE152: 0 | BF152: 0 | BG152: 12 | BH152: 0 | BI152: 14 | BJ152: 4 | BK152: 2 | BL152: 0 | BM152: 0 | BN152: 0 | BO152: =SUM(BO131:BO149) -> 0 | BP152: 0 | BQ152: 0 | BR152: 10 | BS152: 30 | BT152: 2 | BU152: 0 | BV152: 0 | BW152: 16 | BX152: 2 | BY152: 2 | BZ152: 0 | CA152: 10 | CB152: 758 | CC152: 34 | CD152: 8 | CE152: 2 | CF152: 20 | CG152: 0 | CH152: 270 | CI152: 0 | CJ152: 4412 | CK152: 0 | CL152: 78 | CM152: 0 | CN152: 432 | CO152: 2 | CP152: 414 | CQ152: 2 | CR152: 416 | CS152: 0 | CT152: 0 | CU152: 0 | CV152: 2 | CW152: 0 | CX152: 0 | CY152: 0 | CZ152: 0 | DA152: 0 | DB152: 0 | DC152: 0 | DD152: 0 | DE152: 0 | DF152: 0 | DG152: 2 | DH152: 8 | DI152: 10 | DJ152: 4 | DK152: 0 | DL152: 0 | DM152: 0 | DN152: 2 | DO152: 0 | DP152: 2 | DQ152: 0 | DR152: 0 | DS152: 0 | DT152: 0 | DU152: 0 | DV152: 0 | DW152: 0 | DX152: 0 | DY152: 0 | DZ152: 0 | EA152: =SUM(EA131:EA149) -> 0 | EB152: 0 | EC152: 0 | ED152: 0 | EE152: 0 | EF152: 0 | EG152: 0 | EH152: 0 | EI152: 0 | EJ152: 0 | EK152: 0 | EL152: 0 | EM152: 0 | EN152: 0 | EO152: 0 | EP152: 0 | EQ152: 0 | ER152: 0 | ES152: 0 | ET152: 0 | EU152: 0 | EV152: 0 | EW152: 0 | EX152: 0 | EY152: 0 | EZ152: 0 | FA152: 0 | FB152: 0 | FC152: 0 | FD152: 0 | FE152: 0 | FF152: 0 | FG152: 0 | FH152: 0 | FI152: 0 | FJ152: 0 | FK152: 0 | FL152: 0 | FM152: 0 | FN152: 0 | FO152: 0 | FP152: 0 | FQ152: 0 | FR152: 0 | FS152: 0 | FT152: 0 | FU152: 0 | FV152: 0 | FW152: 0 | FX152: 0 | FY152: 0 | FZ152: 0 | GA152: 0 | GB152: 0 | GC152: 0 | GD152: 0 | GE152: 0 | GF152: 0 | GG152: 0 | GH152: 0 | GI152: 0 | GJ152: 0 | GK152: 0 | GL152: 0 | GM152: =SUM(GM131:GM149) -> 0 | GN152: 0 | GO152: 0 | GP152: 0 | GQ152: 0 | GR152: 0 | GS152: 0 | GT152: 0 | GU152: 0 | GV152: 0 | GW152: 0 | GX152: 0 | GY152: 0 | GZ152: 0 | HA152: 0 | HB152: 0 | HC152: 0 | HD152: 0 | HE152: 0 | HF152: 0 | HG152: 0 | HH152: 0 | HI152: 0 | HJ152: 0 | HK152: 0 | HL152: 0 | HM152: 0 | HN152: 0 | HO152: 0 | HP152: 0 | HQ152: 0 | HR152: 0 | HS152: 0 | HT152: 0 | HU152: 0 | HV152: 0 | HW152: 0 | HX152: 0
A153: =CONCATENATE(A134,"-",A135,"-",A136,"-",A137,"-",A138,"-",A139,"-",A140,"-",A141,"-",A142,"-",A143,"-",A144,"-",A145) -> 1-2-3-Total--------
B154: BAS001 | C154: BAS002 | D154: BAS003 | E154: BAS004 | F154: BAS005 | G154: BAS006 | H154: BAS007 | I154: BAS008 | J154: BAS009 | K154: BAS010 | L154: BAS011 | M154: BAS012 | N154: BAS013 | O154: BAS014 | P154: BAS015 | Q154: BAS016 | R154: BAS017 | S154: BAS018 | T154: BAS019 | U154: BAS020 | V154: BAS021 | W154: BAS022 | X154: BAS023 | Y154: BAS024 | Z154: BAS025 | AA154: BAS026 | AB154: BAS027 | AC154: BAS028 | AD154: BAS029 | AE154: BAS030 | AF154: BAS031 | AG154: BAS032 | AH154: BAS033 | AI154: BAS034 | AJ154: BAS035 | AK154: BAS036 | AL154: BAS037 | AM154: BAS038 | AN154: BAS039 | AO154: BAS040 | AP154: BAS041 | AQ154: BAS042 | AR154: BAS043 | AS154: BAS044 | AT154: BAS045 | AU154: BAS046 | AV154: BAS047 | AW154: BAS048 | AX154: BAS049 | AY154: BAS050 | AZ154: BAS051 | BA154: BAS052 | BB154: BAS053 | BC154: BAS054 | BD154: BAS055 | BE154: BAS056 | BF154: BAS057 | BG154: BAS058 | BH154: BAS059 | BI154: BAS060 | BJ154: BAS061 | BK154: BAS062 | BL154: BAS063 | BM154: BAS064 | BN154: BAS065 | BO154: BAS066 | BP154: BAS067 | BQ154: BAS068 | BR154: BAS069 | BS154: BAS070 | BT154: BAS071 | BU154: BAS072 | BV154: BAS073 | BW154: BAS074 | BX154: BAS075 | BY154: BAS076 | BZ154: BAS077 | CA154: BAS078 | CB154: BAS079 | CC154: BAS080 | CD154: BAS081 | CE154: BAS082 | CF154: BAS083 | CG154: BAS084 | CH154: BAS085 | CI154: BAS086 | CJ154: BAS087 | CK154: BAS088 | CL154: BAS089 | CM154: BAS090 | CN154: BAS091 | CO154: BAS092 | CP154: BAS093 | CQ154: BAS094 | CR154: BAS095 | CS154: BAS096 | CT154: BAS097 | CU154: BAS098 | CV154: BAS099 | CW154: BAS100 | CX154: BAS101 | CY154: BAS102 | CZ154: BAS103 | DA154: BAS104 | DB154: BAS105 | DC154: BAS106 | DD154: BAS107 | DE154: BAS108 | DF154: BAS109 | DG154: BAS110 | DH154: BAS111 | DI154: BAS112 | DJ154: BAS113 | DK154: BAS114 | DL154: BAS115 | DM154: BAS116 | DN154: BAS117 | DO154: BAS118 | DP154: BAS119 | DQ154: BAS120 | DR154: BAS121 | DS154: BAS122 | DT154: BAS123 | DU154: BAS124 | DV154: BAS125 | DW154: BAS126 | DX154: BAS127 | DY154: BAS128 | DZ154: BAS129 | EA154: BAS130 | EB154: BAS131 | EC154: BAS132 | ED154: BAS133 | EE154: BAS134 | EF154: BAS135 | EG154: BAS136 | EH154: BAS137 | EI154: BAS138 | EJ154: BAS139 | EK154: BAS140 | EL154: BAS141 | EM154: BAS142 | EN154: BAS143 | EO154: BAS144 | EP154: BAS145 | EQ154: BAS146 | ER154: BAS147 | ES154: BAS148 | ET154: BAS149 | EU154: BAS150 | EV154: BAS151 | EW154: BAS152 | EX154: BAS153 | EY154: BAS154 | EZ154: BAS155 | FA154: BAS156 | FB154: BAS157 | FC154: BAS158 | FD154: BAS159 | FE154: BAS160 | FF154: BAS161 | FG154: BAS162 | FH154: BAS163 | FI154: BAS164 | FJ154: BAS165 | FK154: BAS166 | FL154: BAS167 | FM154: BAS168 | FN154: BAS169 | FO154: BAS170 | FP154: BAS171 | FQ154: BAS172 | FR154: BAS173 | FS154: BAS174 | FT154: BAS175 | FU154: BAS176 | FV154: BAS177 | FW154: BAS178 | FX154: BAS179 | FY154: BAS180 | FZ154: BAS181 | GA154: BAS182 | GB154: BAS183 | GC154: BAS184 | GD154: BAS185 | GE154: BAS186 | GF154: BAS187 | GG154: BAS188 | GH154: BAS189 | GI154: BAS190 | GJ154: BAS191 | GK154: BAS192 | GL154: BAS193 | GM154: BAS194 | GN154: BAS195 | GO154: BAS196 | GP154: BAS197 | GQ154: BAS198 | GR154: BAS199 | GS154: BAS200 | GT154: BAS201 | GU154: BAS202 | GV154: BAS203 | GW154: BAS204 | GX154: BAS205 | GY154: BAS206 | GZ154: BAS207 | HA154: BAS208 | HB154: BAS209 | HC154: BAS210 | HD154: BAS211 | HE154: BAS212 | HF154: BAS213 | HG154: BAS214 | HH154: BAS215 | HI154: BAS216 | HJ154: BAS217 | HK154: BAS218 | HL154: BAS219 | HM154: BAS220 | HN154: BAS221 | HO154: BAS222 | HP154: BAS223 | HQ154: BAS224 | HR154: BAS225 | HS154: BAS226 | HT154: BAS227 | HU154: BAS228 | HV154: BAS229 | HW154: BAS230
B155: =IF(B154=B133,"SI","NO") -> SI | C155: =IF(C154=C133,"SI","NO") -> SI | D155: SI | E155: SI | F155: SI | G155: SI | H155: SI | I155: SI | J155: SI | K155: SI | L155: SI | M155: SI | N155: SI | O155: SI | P155: SI | Q155: SI | R155: SI | S155: SI | T155: SI | U155: SI | V155: SI | W155: SI | X155: SI | Y155: SI | Z155: SI | AA155: SI | AB155: SI | AC155: SI | AD155: SI | AE155: SI | AF155: SI | AG155: SI | AH155: SI | AI155: SI | AJ155: SI | AK155: SI | AL155: SI | AM155: SI | AN155: SI | AO155: SI | AP155: SI | AQ155: SI | AR155: SI | AS155: SI | AT155: SI | AU155: SI | AV155: SI | AW155: SI | AX155: SI | AY155: SI | AZ155: SI | BA155: SI | BB155: SI | BC155: SI | BD155: SI | BE155: SI | BF155: SI | BG155: SI | BH155: SI | BI155: SI | BJ155: SI | BK155: SI | BL155: SI | BM155: SI | BN155: SI | BO155: =IF(BO154=BO133,"SI","NO") -> SI | BP155: SI | BQ155: SI | BR155: SI | BS155: SI | BT155: SI | BU155: SI | BV155: SI | BW155: SI | BX155: SI | BY155: SI | BZ155: SI | CA155: SI | CB155: SI | CC155: SI | CD155: SI | CE155: SI | CF155: SI | CG155: SI | CH155: SI | CI155: SI | CJ155: SI | CK155: SI | CL155: SI | CM155: SI | CN155: SI | CO155: SI | CP155: SI | CQ155: SI | CR155: SI | CS155: SI | CT155: SI | CU155: SI | CV155: SI | CW155: SI | CX155: SI | CY155: SI | CZ155: SI | DA155: SI | DB155: SI | DC155: SI | DD155: SI | DE155: SI | DF155: SI | DG155: SI | DH155: SI | DI155: SI | DJ155: SI | DK155: SI | DL155: SI | DM155: SI | DN155: SI | DO155: SI | DP155: SI | DQ155: SI | DR155: SI | DS155: SI | DT155: SI | DU155: SI | DV155: SI | DW155: SI | DX155: SI | DY155: SI | DZ155: SI | EA155: =IF(EA154=EA133,"SI","NO") -> SI | EB155: SI | EC155: SI | ED155: SI | EE155: SI | EF155: SI | EG155: SI | EH155: SI | EI155: SI | EJ155: SI | EK155: SI | EL155: SI | EM155: SI | EN155: SI | EO155: SI | EP155: SI | EQ155: SI | ER155: SI | ES155: SI | ET155: SI | EU155: SI | EV155: SI | EW155: SI | EX155: SI | EY155: SI | EZ155: SI | FA155: SI | FB155: SI | FC155: SI | FD155: SI | FE155: SI | FF155: SI | FG155: SI | FH155: SI | FI155: SI | FJ155: SI | FK155: SI | FL155: SI | FM155: SI | FN155: SI | FO155: SI | FP155: SI | FQ155: SI | FR155: SI | FS155: SI | FT155: SI | FU155: SI | FV155: SI | FW155: SI | FX155: SI | FY155: SI | FZ155: SI | GA155: SI | GB155: SI | GC155: SI | GD155: SI | GE155: SI | GF155: SI | GG155: SI | GH155: SI | GI155: SI | GJ155: SI | GK155: SI | GL155: SI | GM155: =IF(GM154=GM133,"SI","NO") -> SI | GN155: SI | GO155: SI | GP155: SI | GQ155: SI | GR155: SI | GS155: SI | GT155: SI | GU155: SI | GV155: SI | GW155: SI | GX155: SI | GY155: SI | GZ155: SI | HA155: SI | HB155: SI | HC155: SI | HD155: SI | HE155: SI | HF155: SI | HG155: SI | HH155: SI | HI155: SI | HJ155: SI | HK155: SI | HL155: SI | HM155: SI | HN155: SI | HO155: SI | HP155: SI | HQ155: SI | HR155: SI | HS155: SI | HT155: SI | HU155: SI | HV155: SI | HW155: SI
A158: PLANI_04
A159: ANNO | B159: 2025
A160: cod_red | B160: 03
A161: codmic | B161: (Todas)
A162: cod_prov | B162: (Todas)
A163: coddist | B163: (Todas)
A164: cod_estab | B164: (Todas)
A165: cod_eje | B165: (Todas)
B167: Valores
A168: Etiquetas de fila | B168: BAS001 | C168: BAS002 | D168: BAS003 | E168: BAS004 | F168: BAS005 | G168: BAS006 | H168: BAS007 | I168: BAS008 | J168: BAS009 | K168: BAS010 | L168: BAS011 | M168: BAS012 | N168: BAS013 | O168: BAS014 | P168: BAS015 | Q168: BAS016 | R168: BAS017 | S168: BAS018 | T168: BAS019 | U168: BAS020 | V168: BAS021 | W168: BAS022 | X168: BAS023 | Y168: BAS024 | Z168: BAS025 | AA168: BAS026 | AB168: BAS027 | AC168: BAS028 | AD168: BAS029 | AE168: BAS030 | AF168: BAS031 | AG168: BAS032 | AH168: BAS033 | AI168: BAS034 | AJ168: BAS035 | AK168: BAS036 | AL168: BAS037 | AM168: BAS038 | AN168: BAS039 | AO168: BAS040 | AP168: BAS041 | AQ168: BAS042 | AR168: BAS043 | AS168: BAS044 | AT168: BAS045 | AU168: BAS046 | AV168: BAS047 | AW168: BAS048 | AX168: BAS049 | AY168: BAS050 | AZ168: BAS051 | BA168: BAS052 | BB168: BAS053 | BC168: BAS054 | BD168: BAS055 | BE168: BAS056 | BF168: BAS057 | BG168: BAS058 | BH168: BAS059 | BI168: BAS060 | BJ168: BAS061 | BK168: BAS062 | BL168: BAS063 | BM168: BAS064 | BN168: BAS065 | BO168: BAS066 | BP168: BAS067 | BQ168: BAS068 | BR168: BAS069 | BS168: BAS070 | BT168: BAS071 | BU168: BAS072 | BV168: BAS073 | BW168: BAS074 | BX168: BAS075 | BY168: BAS076 | BZ168: BAS077 | CA168: BAS078 | CB168: BAS079 | CC168: BAS080 | CD168: BAS081 | CE168: BAS082 | CF168: BAS083 | CG168: BAS084 | CH168: BAS085 | CI168: BAS086 | CJ168: BAS087 | CK168: BAS088 | CL168: BAS089 | CM168: BAS090 | CN168: BAS091 | CO168: BAS092 | CP168: BAS093 | CQ168: BAS094 | CR168: BAS095 | CS168: BAS096 | CT168: BAS097 | CU168: BAS098 | CV168: BAS099 | CW168: BAS100 | CX168: BAS101 | CY168: BAS102 | CZ168: BAS103 | DA168: BAS104 | DB168: BAS105 | DC168: BAS106 | DD168: BAS107 | DE168: BAS108 | DF168: BAS109 | DG168: BAS110 | DH168: BAS111 | DI168: BAS112 | DJ168: BAS113 | DK168: BAS114 | DL168: BAS115 | DM168: BAS116 | DN168: BAS117 | DO168: BAS118 | DP168: BAS119 | DQ168: BAS120 | DR168: BAS121 | DS168: BAS122 | DT168: BAS123 | DU168: BAS124 | DV168: BAS125 | DW168: BAS126 | DX168: BAS127 | DY168: BAS128 | DZ168: BAS129 | EA168: BAS130 | EB168: BAS131 | EC168: BAS132 | ED168: BAS133 | EE168: BAS134 | EF168: BAS135 | EG168: BAS136 | EH168: BAS137 | EI168: BAS138 | EJ168: BAS139 | EK168: BAS140 | EL168: BAS141 | EM168: BAS142 | EN168: BAS143 | EO168: BAS144 | EP168: BAS145 | EQ168: BAS146 | ER168: BAS147 | ES168: BAS148 | ET168: BAS149 | EU168: BAS150 | EV168: BAS151 | EW168: BAS152 | EX168: BAS153 | EY168: BAS154 | EZ168: BAS155 | FA168: BAS156 | FB168: BAS157 | FC168: BAS158 | FD168: BAS159 | FE168: BAS160 | FF168: BAS161 | FG168: BAS162 | FH168: BAS163 | FI168: BAS164 | FJ168: BAS165 | FK168: BAS166 | FL168: BAS167 | FM168: BAS168 | FN168: BAS169 | FO168: BAS170 | FP168: BAS171 | FQ168: BAS172 | FR168: BAS173 | FS168: BAS174 | FT168: BAS175 | FU168: BAS176 | FV168: BAS177 | FW168: BAS178 | FX168: BAS179 | FY168: BAS180 | FZ168: BAS181 | GA168: BAS182 | GB168: BAS183 | GC168: BAS184 | GD168: BAS185 | GE168: BAS186 | GF168: BAS187 | GG168: BAS188 | GH168: BAS189 | GI168: BAS190 | GJ168: BAS191 | GK168: BAS192 | GL168: BAS193 | GM168: BAS194 | GN168: BAS195 | GO168: BAS196 | GP168: BAS197 | GQ168: BAS198 | GR168: BAS199 | GS168: BAS200 | GT168: BAS201 | GU168: BAS202 | GV168: BAS203 | GW168: BAS204 | GX168: BAS205 | GY168: BAS206 | GZ168: BAS207 | HA168: BAS208 | HB168: BAS209 | HC168: BAS210 | HD168: BAS211 | HE168: BAS212 | HF168: BAS213 | HG168: BAS214 | HH168: BAS215 | HI168: BAS216 | HJ168: BAS217 | HK168: BAS218 | HL168: BAS219 | HM168: BAS220 | HN168: BAS221 | HO168: BAS222 | HP168: BAS223 | HQ168: BAS224 | HR168: BAS225 | HS168: BAS226 | HT168: BAS227 | HU168: BAS228 | HV168: BAS229 | HW168: BAS230
A169: 1 | B169: 2 | C169: 0 | D169: 2 | E169: 0 | F169: 1 | G169: 0 | H169: 1 | I169: 0 | J169: 50 | K169: 194 | L169: 67 | M169: 763 | N169: 176 | O169: 475 | P169: 175 | Q169: 475 | R169: 126 | S169: 206 | T169: 119 | U169: 205 | V169: 35 | W169: 6 | X169: 35 | Y169: 6 | Z169: 86 | AA169: 119 | AB169: 892 | AC169: 3540 | AD169: 0 | AE169: 0 | AF169: 0 | AG169: 0 | AH169: 5 | AI169: 0 | AJ169: 0 | AK169: 0 | AL169: 1 | AM169: 0 | AN169: 7 | AO169: 0 | AP169: 5 | AQ169: 5 | AR169: 0 | AS169: 0 | AT169: 0 | AU169: 0 | AV169: 0 | AW169: 0 | AX169: 0 | AY169: 0 | AZ169: 0 | BA169: 1 | BB169: 0 | BC169: 0 | BD169: 0 | BE169: 0 | BF169: 0 | BG169: 1 | BH169: 0 | BI169: 0 | BJ169: 0 | BK169: 0 | BL169: 0 | BM169: 0 | BN169: 0 | BO169: 0 | BP169: 0 | BQ169: 0 | BR169: 5 | BS169: 4 | BT169: 0 | BU169: 0 | BV169: 0 | BW169: 1 | BX169: 0 | BY169: 2 | BZ169: 0 | CA169: 5 | CB169: 52 | CC169: 0 | CD169: 7 | CE169: 0 | CF169: 4 | CG169: 0 | CH169: 51 | CI169: 0 | CJ169: 1457 | CK169: 0 | CL169: 30 | CM169: 0 | CN169: 135 | CO169: 0 | CP169: 131 | CQ169: 0 | CR169: 140 | CS169: 0 | CT169: 0 | CU169: 0 | CV169: 0 | CW169: 0 | CX169: 0 | CY169: 0 | CZ169: 0 | DA169: 0 | DB169: 0 | DC169: 0 | DD169: 0 | DE169: 0 | DF169: 0 | DG169: 0 | DH169: 0 | DI169: 1 | DJ169: 1 | DK169: 0 | DL169: 0 | DM169: 0 | DN169: 0 | DO169: 0 | DP169: 0 | DQ169: 0 | DR169: 0 | DS169: 0 | DT169: 0 | DU169: 0 | DV169: 0 | DW169: 0 | DX169: 0 | DY169: 0 | DZ169: 0 | EA169: 0 | EB169: 0 | EC169: 0 | ED169: 0 | EE169: 0 | EF169: 0 | EG169: 0 | EH169: 0 | EI169: 0 | EJ169: 0 | EK169: 0 | EL169: 0 | EM169: 0 | EN169: 0 | EO169: 0 | EP169: 0 | EQ169: 0 | ER169: 0 | ES169: 0 | ET169: 0 | EU169: 0 | EV169: 0 | EW169: 0 | EX169: 0 | EY169: 0 | EZ169: 0 | FA169: 0 | FB169: 0 | FC169: 0 | FD169: 0 | FE169: 0 | FF169: 0 | FG169: 0 | FH169: 0 | FI169: 0 | FJ169: 0 | FK169: 0 | FL169: 0 | FM169: 0 | FN169: 0 | FO169: 0 | FP169: 0 | FQ169: 0 | FR169: 0 | FS169: 0 | FT169: 0 | FU169: 0 | FV169: 0 | FW169: 0 | FX169: 0 | FY169: 0 | FZ169: 0 | GA169: 0 | GB169: 0 | GC169: 0 | GD169: 0 | GE169: 0 | GF169: 0 | GG169: 0 | GH169: 0 | GI169: 0 | GJ169: 0 | GK169: 0 | GL169: 0 | GM169: 0 | GN169: 0 | GO169: 0 | GP169: 0 | GQ169: 0 | GR169: 0 | GS169: 0 | GT169: 0 | GU169: 0 | GV169: 0 | GW169: 0 | GX169: 0 | GY169: 0 | GZ169: 0 | HA169: 0 | HB169: 0 | HC169: 0 | HD169: 0 | HE169: 0 | HF169: 0 | HG169: 0 | HH169: 0 | HI169: 0 | HJ169: 0 | HK169: 0 | HL169: 0 | HM169: 0 | HN169: 0 | HO169: 0 | HP169: 0 | HQ169: 0 | HR169: 0 | HS169: 0 | HT169: 0 | HU169: 0 | HV169: 0 | HW169: 0
A170: 2 | B170: 0 | C170: 0 | D170: 0 | E170: 0 | F170: 0 | G170: 0 | H170: 0 | I170: 0 | J170: 71 | K170: 160 | L170: 104 | M170: 637 | N170: 139 | O170: 420 | P170: 138 | Q170: 420 | R170: 74 | S170: 211 | T170: 74 | U170: 215 | V170: 30 | W170: 12 | X170: 30 | Y170: 12 | Z170: 108 | AA170: 127 | AB170: 1112 | AC170: 3810 | AD170: 2 | AE170: 0 | AF170: 11 | AG170: 0 | AH170: 0 | AI170: 0 | AJ170: 0 | AK170: 0 | AL170: 0 | AM170: 0 | AN170: 6 | AO170: 0 | AP170: 5 | AQ170: 5 | AR170: 0 | AS170: 0 | AT170: 0 | AU170: 0 | AV170: 0 | AW170: 0 | AX170: 0 | AY170: 0 | AZ170: 1 | BA170: 1 | BB170: 0 | BC170: 0 | BD170: 5 | BE170: 0 | BF170: 0 | BG170: 2 | BH170: 0 | BI170: 0 | BJ170: 0 | BK170: 0 | BL170: 0 | BM170: 0 | BN170: 0 | BO170: 0 | BP170: 0 | BQ170: 0 | BR170: 0 | BS170: 9 | BT170: 0 | BU170: 0 | BV170: 0 | BW170: 1 | BX170: 0 | BY170: 0 | BZ170: 0 | CA170: 0 | CB170: 272 | CC170: 7 | CD170: 12 | CE170: 0 | CF170: 6 | CG170: 0 | CH170: 41 | CI170: 0 | CJ170: 1094 | CK170: 0 | CL170: 29 | CM170: 0 | CN170: 136 | CO170: 0 | CP170: 135 | CQ170: 0 | CR170: 132 | CS170: 0 | CT170: 0 | CU170: 0 | CV170: 0 | CW170: 0 | CX170: 0 | CY170: 0 | CZ170: 0 | DA170: 0 | DB170: 0 | DC170: 0 | DD170: 0 | DE170: 0 | DF170: 1 | DG170: 0 | DH170: 1 | DI170: 0 | DJ170: 0 | DK170: 0 | DL170: 0 | DM170: 0 | DN170: 0 | DO170: 0 | DP170: 0 | DQ170: 0 | DR170: 0 | DS170: 0 | DT170: 0 | DU170: 1 | DV170: 0 | DW170: 0 | DX170: 0 | DY170: 0 | DZ170: 0 | EA170: 0 | EB170: 0 | EC170: 0 | ED170: 0 | EE170: 0 | EF170: 0 | EG170: 0 | EH170: 0 | EI170: 0 | EJ170: 0 | EK170: 0 | EL170: 0 | EM170: 0 | EN170: 0 | EO170: 0 | EP170: 0 | EQ170: 0 | ER170: 0 | ES170: 0 | ET170: 0 | EU170: 0 | EV170: 0 | EW170: 0 | EX170: 0 | EY170: 0 | EZ170: 0 | FA170: 0 | FB170: 0 | FC170: 0 | FD170: 0 | FE170: 0 | FF170: 0 | FG170: 0 | FH170: 0 | FI170: 0 | FJ170: 0 | FK170: 0 | FL170: 0 | FM170: 0 | FN170: 0 | FO170: 0 | FP170: 0 | FQ170: 0 | FR170: 0 | FS170: 0 | FT170: 0 | FU170: 0 | FV170: 0 | FW170: 0 | FX170: 0 | FY170: 0 | FZ170: 0 | GA170: 0 | GB170: 0 | GC170: 0 | GD170: 0 | GE170: 0 | GF170: 0 | GG170: 0 | GH170: 0 | GI170: 0 | GJ170: 0 | GK170: 0 | GL170: 0 | GM170: 0 | GN170: 0 | GO170: 0 | GP170: 0 | GQ170: 0 | GR170: 0 | GS170: 0 | GT170: 0 | GU170: 0 | GV170: 0 | GW170: 0 | GX170: 0 | GY170: 0 | GZ170: 0 | HA170: 0 | HB170: 0 | HC170: 0 | HD170: 0 | HE170: 0 | HF170: 0 | HG170: 0 | HH170: 0 | HI170: 0 | HJ170: 0 | HK170: 0 | HL170: 0 | HM170: 0 | HN170: 0 | HO170: 0 | HP170: 0 | HQ170: 0 | HR170: 0 | HS170: 0 | HT170: 0 | HU170: 0 | HV170: 0 | HW170: 0
A171: 3 | B171: 1 | C171: 0 | D171: 1 | E171: 0 | F171: 2 | G171: 0 | H171: 2 | I171: 0 | J171: 60 | K171: 165 | L171: 104 | M171: 639 | N171: 143 | O171: 436 | P171: 142 | Q171: 428 | R171: 76 | S171: 205 | T171: 66 | U171: 205 | V171: 28 | W171: 12 | X171: 28 | Y171: 12 | Z171: 163 | AA171: 127 | AB171: 1741 | AC171: 3810 | AD171: 1 | AE171: 0 | AF171: 1 | AG171: 0 | AH171: 14 | AI171: 0 | AJ171: 0 | AK171: 0 | AL171: 1 | AM171: 0 | AN171: 4 | AO171: 1 | AP171: 3 | AQ171: 12 | AR171: 0 | AS171: 0 | AT171: 0 | AU171: 0 | AV171: 0 | AW171: 0 | AX171: 0 | AY171: 0 | AZ171: 2 | BA171: 2 | BB171: 0 | BC171: 0 | BD171: 2 | BE171: 0 | BF171: 0 | BG171: 2 | BH171: 0 | BI171: 0 | BJ171: 1 | BK171: 0 | BL171: 0 | BM171: 0 | BN171: 0 | BO171: 0 | BP171: 0 | BQ171: 0 | BR171: 14 | BS171: 7 | BT171: 0 | BU171: 0 | BV171: 0 | BW171: 1 | BX171: 0 | BY171: 0 | BZ171: 0 | CA171: 14 | CB171: 220 | CC171: 10 | CD171: 18 | CE171: 5 | CF171: 2 | CG171: 0 | CH171: 35 | CI171: 0 | CJ171: 979 | CK171: 0 | CL171: 33 | CM171: 0 | CN171: 92 | CO171: 0 | CP171: 91 | CQ171: 0 | CR171: 89 | CS171: 0 | CT171: 0 | CU171: 0 | CV171: 1 | CW171: 0 | CX171: 0 | CY171: 0 | CZ171: 0 | DA171: 0 | DB171: 0 | DC171: 0 | DD171: 0 | DE171: 0 | DF171: 0 | DG171: 0 | DH171: 1 | DI171: 0 | DJ171: 0 | DK171: 0 | DL171: 0 | DM171: 0 | DN171: 0 | DO171: 0 | DP171: 0 | DQ171: 0 | DR171: 0 | DS171: 0 | DT171: 0 | DU171: 0 | DV171: 0 | DW171: 0 | DX171: 0 | DY171: 0 | DZ171: 0 | EA171: 0 | EB171: 0 | EC171: 0 | ED171: 0 | EE171: 0 | EF171: 0 | EG171: 0 | EH171: 0 | EI171: 0 | EJ171: 0 | EK171: 0 | EL171: 0 | EM171: 0 | EN171: 0 | EO171: 0 | EP171: 0 | EQ171: 0 | ER171: 0 | ES171: 0 | ET171: 0 | EU171: 0 | EV171: 0 | EW171: 0 | EX171: 0 | EY171: 0 | EZ171: 0 | FA171: 0 | FB171: 0 | FC171: 0 | FD171: 0 | FE171: 0 | FF171: 0 | FG171: 0 | FH171: 0 | FI171: 0 | FJ171: 0 | FK171: 0 | FL171: 0 | FM171: 0 | FN171: 0 | FO171: 0 | FP171: 0 | FQ171: 0 | FR171: 0 | FS171: 0 | FT171: 0 | FU171: 0 | FV171: 0 | FW171: 0 | FX171: 0 | FY171: 0 | FZ171: 0 | GA171: 0 | GB171: 0 | GC171: 0 | GD171: 0 | GE171: 0 | GF171: 0 | GG171: 0 | GH171: 0 | GI171: 0 | GJ171: 0 | GK171: 0 | GL171: 0 | GM171: 0 | GN171: 0 | GO171: 0 | GP171: 0 | GQ171: 0 | GR171: 0 | GS171: 0 | GT171: 0 | GU171: 0 | GV171: 0 | GW171: 0 | GX171: 0 | GY171: 0 | GZ171: 0 | HA171: 0 | HB171: 0 | HC171: 0 | HD171: 0 | HE171: 0 | HF171: 0 | HG171: 0 | HH171: 0 | HI171: 0 | HJ171: 0 | HK171: 0 | HL171: 0 | HM171: 0 | HN171: 0 | HO171: 0 | HP171: 0 | HQ171: 0 | HR171: 0 | HS171: 0 | HT171: 0 | HU171: 0 | HV171: 0 | HW171: 0
A172: Total | B172: 3 | C172: 0 | D172: 3 | E172: 0 | F172: 3 | G172: 0 | H172: 3 | I172: 0 | J172: 181 | K172: 519 | L172: 275 | M172: 2039 | N172: 458 | O172: 1331 | P172: 455 | Q172: 1323 | R172: 276 | S172: 622 | T172: 259 | U172: 625 | V172: 93 | W172: 30 | X172: 93 | Y172: 30 | Z172: 357 | AA172: 373 | AB172: 3745 | AC172: 11160 | AD172: 3 | AE172: 0 | AF172: 12 | AG172: 0 | AH172: 19 | AI172: 0 | AJ172: 0 | AK172: 0 | AL172: 2 | AM172: 0 | AN172: 17 | AO172: 1 | AP172: 13 | AQ172: 22 | AR172: 0 | AS172: 0 | AT172: 0 | AU172: 0 | AV172: 0 | AW172: 0 | AX172: 0 | AY172: 0 | AZ172: 3 | BA172: 4 | BB172: 0 | BC172: 0 | BD172: 7 | BE172: 0 | BF172: 0 | BG172: 5 | BH172: 0 | BI172: 0 | BJ172: 1 | BK172: 0 | BL172: 0 | BM172: 0 | BN172: 0 | BO172: 0 | BP172: 0 | BQ172: 0 | BR172: 19 | BS172: 20 | BT172: 0 | BU172: 0 | BV172: 0 | BW172: 3 | BX172: 0 | BY172: 2 | BZ172: 0 | CA172: 19 | CB172: 544 | CC172: 17 | CD172: 37 | CE172: 5 | CF172: 12 | CG172: 0 | CH172: 127 | CI172: 0 | CJ172: 3530 | CK172: 0 | CL172: 92 | CM172: 0 | CN172: 363 | CO172: 0 | CP172: 357 | CQ172: 0 | CR172: 361 | CS172: 0 | CT172: 0 | CU172: 0 | CV172: 1 | CW172: 0 | CX172: 0 | CY172: 0 | CZ172: 0 | DA172: 0 | DB172: 0 | DC172: 0 | DD172: 0 | DE172: 0 | DF172: 1 | DG172: 0 | DH172: 2 | DI172: 1 | DJ172: 1 | DK172: 0 | DL172: 0 | DM172: 0 | DN172: 0 | DO172: 0 | DP172: 0 | DQ172: 0 | DR172: 0 | DS172: 0 | DT172: 0 | DU172: 1 | DV172: 0 | DW172: 0 | DX172: 0 | DY172: 0 | DZ172: 0 | EA172: 0 | EB172: 0 | EC172: 0 | ED172: 0 | EE172: 0 | EF172: 0 | EG172: 0 | EH172: 0 | EI172: 0 | EJ172: 0 | EK172: 0 | EL172: 0 | EM172: 0 | EN172: 0 | EO172: 0 | EP172: 0 | EQ172: 0 | ER172: 0 | ES172: 0 | ET172: 0 | EU172: 0 | EV172: 0 | EW172: 0 | EX172: 0 | EY172: 0 | EZ172: 0 | FA172: 0 | FB172: 0 | FC172: 0 | FD172: 0 | FE172: 0 | FF172: 0 | FG172: 0 | FH172: 0 | FI172: 0 | FJ172: 0 | FK172: 0 | FL172: 0 | FM172: 0 | FN172: 0 | FO172: 0 | FP172: 0 | FQ172: 0 | FR172: 0 | FS172: 0 | FT172: 0 | FU172: 0 | FV172: 0 | FW172: 0 | FX172: 0 | FY172: 0 | FZ172: 0 | GA172: 0 | GB172: 0 | GC172: 0 | GD172: 0 | GE172: 0 | GF172: 0 | GG172: 0 | GH172: 0 | GI172: 0 | GJ172: 0 | GK172: 0 | GL172: 0 | GM172: 0 | GN172: 0 | GO172: 0 | GP172: 0 | GQ172: 0 | GR172: 0 | GS172: 0 | GT172: 0 | GU172: 0 | GV172: 0 | GW172: 0 | GX172: 0 | GY172: 0 | GZ172: 0 | HA172: 0 | HB172: 0 | HC172: 0 | HD172: 0 | HE172: 0 | HF172: 0 | HG172: 0 | HH172: 0 | HI172: 0 | HJ172: 0 | HK172: 0 | HL172: 0 | HM172: 0 | HN172: 0 | HO172: 0 | HP172: 0 | HQ172: 0 | HR172: 0 | HS172: 0 | HT172: 0 | HU172: 0 | HV172: 0 | HW172: 0
A186: TOTAL
A187: =COUNT(A166:A184) -> 3 | B187: =SUM(B166:B184) -> 6 | C187: =SUM(C166:C184) -> 0 | D187: 6 | E187: 0 | F187: 6 | G187: 0 | H187: 6 | I187: 0 | J187: 362 | K187: 1038 | L187: 550 | M187: 4078 | N187: 916 | O187: 2662 | P187: 910 | Q187: 2646 | R187: 552 | S187: 1244 | T187: 518 | U187: 1250 | V187: 186 | W187: 60 | X187: 186 | Y187: 60 | Z187: 714 | AA187: 746 | AB187: 7490 | AC187: 22320 | AD187: 6 | AE187: 0 | AF187: 24 | AG187: 0 | AH187: 38 | AI187: 0 | AJ187: 0 | AK187: 0 | AL187: 4 | AM187: 0 | AN187: 34 | AO187: 2 | AP187: 26 | AQ187: 44 | AR187: 0 | AS187: 0 | AT187: 0 | AU187: 0 | AV187: 0 | AW187: 0 | AX187: 0 | AY187: 0 | AZ187: 6 | BA187: 8 | BB187: 0 | BC187: 0 | BD187: 14 | BE187: 0 | BF187: 0 | BG187: 10 | BH187: 0 | BI187: 0 | BJ187: 2 | BK187: 0 | BL187: 0 | BM187: 0 | BN187: 0 | BO187: =SUM(BO166:BO184) -> 0 | BP187: 0 | BQ187: 0 | BR187: 38 | BS187: 40 | BT187: 0 | BU187: 0 | BV187: 0 | BW187: 6 | BX187: 0 | BY187: 4 | BZ187: 0 | CA187: 38 | CB187: 1088 | CC187: 34 | CD187: 74 | CE187: 10 | CF187: 24 | CG187: 0 | CH187: 254 | CI187: 0 | CJ187: 7060 | CK187: 0 | CL187: 184 | CM187: 0 | CN187: 726 | CO187: 0 | CP187: 714 | CQ187: 0 | CR187: 722 | CS187: 0 | CT187: 0 | CU187: 0 | CV187: 2 | CW187: 0 | CX187: 0 | CY187: 0 | CZ187: 0 | DA187: 0 | DB187: 0 | DC187: 0 | DD187: 0 | DE187: 0 | DF187: 2 | DG187: 0 | DH187: 4 | DI187: 2 | DJ187: 2 | DK187: 0 | DL187: 0 | DM187: 0 | DN187: 0 | DO187: 0 | DP187: 0 | DQ187: 0 | DR187: 0 | DS187: 0 | DT187: 0 | DU187: 2 | DV187: 0 | DW187: 0 | DX187: 0 | DY187: 0 | DZ187: 0 | EA187: =SUM(EA166:EA184) -> 0 | EB187: 0 | EC187: 0 | ED187: 0 | EE187: 0 | EF187: 0 | EG187: 0 | EH187: 0 | EI187: 0 | EJ187: 0 | EK187: 0 | EL187: 0 | EM187: 0 | EN187: 0 | EO187: 0 | EP187: 0 | EQ187: 0 | ER187: 0 | ES187: 0 | ET187: 0 | EU187: 0 | EV187: 0 | EW187: 0 | EX187: 0 | EY187: 0 | EZ187: 0 | FA187: 0 | FB187: 0 | FC187: 0 | FD187: 0 | FE187: 0 | FF187: 0 | FG187: 0 | FH187: 0 | FI187: 0 | FJ187: 0 | FK187: 0 | FL187: 0 | FM187: 0 | FN187: 0 | FO187: 0 | FP187: 0 | FQ187: 0 | FR187: 0 | FS187: 0 | FT187: 0 | FU187: 0 | FV187: 0 | FW187: 0 | FX187: 0 | FY187: 0 | FZ187: 0 | GA187: 0 | GB187: 0 | GC187: 0 | GD187: 0 | GE187: 0 | GF187: 0 | GG187: 0 | GH187: 0 | GI187: 0 | GJ187: 0 | GK187: 0 | GL187: 0 | GM187: =SUM(GM166:GM184) -> 0 | GN187: 0 | GO187: 0 | GP187: 0 | GQ187: 0 | GR187: 0 | GS187: 0 | GT187: 0 | GU187: 0 | GV187: 0 | GW187: 0 | GX187: 0 | GY187: 0 | GZ187: 0 | HA187: 0 | HB187: 0 | HC187: 0 | HD187: 0 | HE187: 0 | HF187: 0 | HG187: 0 | HH187: 0 | HI187: 0 | HJ187: 0 | HK187: 0 | HL187: 0 | HM187: 0 | HN187: 0 | HO187: 0 | HP187: 0 | HQ187: 0 | HR187: 0 | HS187: 0 | HT187: 0 | HU187: 0 | HV187: 0 | HW187: 0 | HX187: 0
A188: =CONCATENATE(A169,"-",A170,"-",A171,"-",A172,"-",A173,"-",A174,"-",A175,"-",A176,"-",A177,"-",A178,"-",A179,"-",A180) -> 1-2-3-Total--------
B189: BAS001 | C189: BAS002 | D189: BAS003 | E189: BAS004 | F189: BAS005 | G189: BAS006 | H189: BAS007 | I189: BAS008 | J189: BAS009 | K189: BAS010 | L189: BAS011 | M189: BAS012 | N189: BAS013 | O189: BAS014 | P189: BAS015 | Q189: BAS016 | R189: BAS017 | S189: BAS018 | T189: BAS019 | U189: BAS020 | V189: BAS021 | W189: BAS022 | X189: BAS023 | Y189: BAS024 | Z189: BAS025 | AA189: BAS026 | AB189: BAS027 | AC189: BAS028 | AD189: BAS029 | AE189: BAS030 | AF189: BAS031 | AG189: BAS032 | AH189: BAS033 | AI189: BAS034 | AJ189: BAS035 | AK189: BAS036 | AL189: BAS037 | AM189: BAS038 | AN189: BAS039 | AO189: BAS040 | AP189: BAS041 | AQ189: BAS042 | AR189: BAS043 | AS189: BAS044 | AT189: BAS045 | AU189: BAS046 | AV189: BAS047 | AW189: BAS048 | AX189: BAS049 | AY189: BAS050 | AZ189: BAS051 | BA189: BAS052 | BB189: BAS053 | BC189: BAS054 | BD189: BAS055 | BE189: BAS056 | BF189: BAS057 | BG189: BAS058 | BH189: BAS059 | BI189: BAS060 | BJ189: BAS061 | BK189: BAS062 | BL189: BAS063 | BM189: BAS064 | BN189: BAS065 | BO189: BAS066 | BP189: BAS067 | BQ189: BAS068 | BR189: BAS069 | BS189: BAS070 | BT189: BAS071 | BU189: BAS072 | BV189: BAS073 | BW189: BAS074 | BX189: BAS075 | BY189: BAS076 | BZ189: BAS077 | CA189: BAS078 | CB189: BAS079 | CC189: BAS080 | CD189: BAS081 | CE189: BAS082 | CF189: BAS083 | CG189: BAS084 | CH189: BAS085 | CI189: BAS086 | CJ189: BAS087 | CK189: BAS088 | CL189: BAS089 | CM189: BAS090 | CN189: BAS091 | CO189: BAS092 | CP189: BAS093 | CQ189: BAS094 | CR189: BAS095 | CS189: BAS096 | CT189: BAS097 | CU189: BAS098 | CV189: BAS099 | CW189: BAS100 | CX189: BAS101 | CY189: BAS102 | CZ189: BAS103 | DA189: BAS104 | DB189: BAS105 | DC189: BAS106 | DD189: BAS107 | DE189: BAS108 | DF189: BAS109 | DG189: BAS110 | DH189: BAS111 | DI189: BAS112 | DJ189: BAS113 | DK189: BAS114 | DL189: BAS115 | DM189: BAS116 | DN189: BAS117 | DO189: BAS118 | DP189: BAS119 | DQ189: BAS120 | DR189: BAS121 | DS189: BAS122 | DT189: BAS123 | DU189: BAS124 | DV189: BAS125 | DW189: BAS126 | DX189: BAS127 | DY189: BAS128 | DZ189: BAS129 | EA189: BAS130 | EB189: BAS131 | EC189: BAS132 | ED189: BAS133 | EE189: BAS134 | EF189: BAS135 | EG189: BAS136 | EH189: BAS137 | EI189: BAS138 | EJ189: BAS139 | EK189: BAS140 | EL189: BAS141 | EM189: BAS142 | EN189: BAS143 | EO189: BAS144 | EP189: BAS145 | EQ189: BAS146 | ER189: BAS147 | ES189: BAS148 | ET189: BAS149 | EU189: BAS150 | EV189: BAS151 | EW189: BAS152 | EX189: BAS153 | EY189: BAS154 | EZ189: BAS155 | FA189: BAS156 | FB189: BAS157 | FC189: BAS158 | FD189: BAS159 | FE189: BAS160 | FF189: BAS161 | FG189: BAS162 | FH189: BAS163 | FI189: BAS164 | FJ189: BAS165 | FK189: BAS166 | FL189: BAS167 | FM189: BAS168 | FN189: BAS169 | FO189: BAS170 | FP189: BAS171 | FQ189: BAS172 | FR189: BAS173 | FS189: BAS174 | FT189: BAS175 | FU189: BAS176 | FV189: BAS177 | FW189: BAS178 | FX189: BAS179 | FY189: BAS180 | FZ189: BAS181 | GA189: BAS182 | GB189: BAS183 | GC189: BAS184 | GD189: BAS185 | GE189: BAS186 | GF189: BAS187 | GG189: BAS188 | GH189: BAS189 | GI189: BAS190 | GJ189: BAS191 | GK189: BAS192 | GL189: BAS193 | GM189: BAS194 | GN189: BAS195 | GO189: BAS196 | GP189: BAS197 | GQ189: BAS198 | GR189: BAS199 | GS189: BAS200 | GT189: BAS201 | GU189: BAS202 | GV189: BAS203 | GW189: BAS204 | GX189: BAS205 | GY189: BAS206 | GZ189: BAS207 | HA189: BAS208 | HB189: BAS209 | HC189: BAS210 | HD189: BAS211 | HE189: BAS212 | HF189: BAS213 | HG189: BAS214 | HH189: BAS215 | HI189: BAS216 | HJ189: BAS217 | HK189: BAS218 | HL189: BAS219 | HM189: BAS220 | HN189: BAS221 | HO189: BAS222 | HP189: BAS223 | HQ189: BAS224 | HR189: BAS225 | HS189: BAS226 | HT189: BAS227 | HU189: BAS228 | HV189: BAS229 | HW189: BAS230
B190: =IF(B189=B168,"SI","NO") -> SI | C190: =IF(C189=C168,"SI","NO") -> SI | D190: SI | E190: SI | F190: SI | G190: SI | H190: SI | I190: SI | J190: SI | K190: SI | L190: SI | M190: SI | N190: SI | O190: SI | P190: SI | Q190: SI | R190: SI | S190: SI | T190: SI | U190: SI | V190: SI | W190: SI | X190: SI | Y190: SI | Z190: SI | AA190: SI | AB190: SI | AC190: SI | AD190: SI | AE190: SI | AF190: SI | AG190: SI | AH190: SI | AI190: SI | AJ190: SI | AK190: SI | AL190: SI | AM190: SI | AN190: SI | AO190: SI | AP190: SI | AQ190: SI | AR190: SI | AS190: SI | AT190: SI | AU190: SI | AV190: SI | AW190: SI | AX190: SI | AY190: SI | AZ190: SI | BA190: SI | BB190: SI | BC190: SI | BD190: SI | BE190: SI | BF190: SI | BG190: SI | BH190: SI | BI190: SI | BJ190: SI | BK190: SI | BL190: SI | BM190: SI | BN190: SI | BO190: =IF(BO189=BO168,"SI","NO") -> SI | BP190: SI | BQ190: SI | BR190: SI | BS190: SI | BT190: SI | BU190: SI | BV190: SI | BW190: SI | BX190: SI | BY190: SI | BZ190: SI | CA190: SI | CB190: SI | CC190: SI | CD190: SI | CE190: SI | CF190: SI | CG190: SI | CH190: SI | CI190: SI | CJ190: SI | CK190: SI | CL190: SI | CM190: SI | CN190: SI | CO190: SI | CP190: SI | CQ190: SI | CR190: SI | CS190: SI | CT190: SI | CU190: SI | CV190: SI | CW190: SI | CX190: SI | CY190: SI | CZ190: SI | DA190: SI | DB190: SI | DC190: SI | DD190: SI | DE190: SI | DF190: SI | DG190: SI | DH190: SI | DI190: SI | DJ190: SI | DK190: SI | DL190: SI | DM190: SI | DN190: SI | DO190: SI | DP190: SI | DQ190: SI | DR190: SI | DS190: SI | DT190: SI | DU190: SI | DV190: SI | DW190: SI | DX190: SI | DY190: SI | DZ190: SI | EA190: =IF(EA189=EA168,"SI","NO") -> SI | EB190: SI | EC190: SI | ED190: SI | EE190: SI | EF190: SI | EG190: SI | EH190: SI | EI190: SI | EJ190: SI | EK190: SI | EL190: SI | EM190: SI | EN190: SI | EO190: SI | EP190: SI | EQ190: SI | ER190: SI | ES190: SI | ET190: SI | EU190: SI | EV190: SI | EW190: SI | EX190: SI | EY190: SI | EZ190: SI | FA190: SI | FB190: SI | FC190: SI | FD190: SI | FE190: SI | FF190: SI | FG190: SI | FH190: SI | FI190: SI | FJ190: SI | FK190: SI | FL190: SI | FM190: SI | FN190: SI | FO190: SI | FP190: SI | FQ190: SI | FR190: SI | FS190: SI | FT190: SI | FU190: SI | FV190: SI | FW190: SI | FX190: SI | FY190: SI | FZ190: SI | GA190: SI | GB190: SI | GC190: SI | GD190: SI | GE190: SI | GF190: SI | GG190: SI | GH190: SI | GI190: SI | GJ190: SI | GK190: SI | GL190: SI | GM190: =IF(GM189=GM168,"SI","NO") -> SI | GN190: SI | GO190: SI | GP190: SI | GQ190: SI | GR190: SI | GS190: SI | GT190: SI | GU190: SI | GV190: SI | GW190: SI | GX190: SI | GY190: SI | GZ190: SI | HA190: SI | HB190: SI | HC190: SI | HD190: SI | HE190: SI | HF190: SI | HG190: SI | HH190: SI | HI190: SI | HJ190: SI | HK190: SI | HL190: SI | HM190: SI | HN190: SI | HO190: SI | HP190: SI | HQ190: SI | HR190: SI | HS190: SI | HT190: SI | HU190: SI | HV190: SI | HW190: SI
A194: PLANI_05
A195: ANNO | B195: 2025
A196: cod_red | B196: 03
A197: codmic | B197: (Todas)
A198: cod_prov | B198: (Todas)
A199: coddist | B199: (Todas)
A200: cod_estab | B200: (Todas) | D200: =+GETPIVOTDATA(" BAS001",$A$203) -> 0
A201: cod_eje | B201: (Todas)
B203: Valores
A204: Etiquetas de fila | B204: BAS001 | C204: BAS002 | D204: BAS003 | E204: BAS004 | F204: BAS005 | G204: BAS006 | H204: BAS007 | I204: BAS008 | J204: BAS009 | K204: BAS010 | L204: BAS011 | M204: BAS012 | N204: BAS013 | O204: BAS014 | P204: BAS015 | Q204: BAS016 | R204: BAS017 | S204: BAS018 | T204: BAS019 | U204: BAS020 | V204: BAS021 | W204: BAS022 | X204: BAS023 | Y204: BAS024 | Z204: BAS025 | AA204: BAS026 | AB204: BAS027 | AC204: BAS028 | AD204: BAS029 | AE204: BAS030 | AF204: BAS031 | AG204: BAS032 | AH204: BAS033 | AI204: BAS034 | AJ204: BAS035 | AK204: BAS036 | AL204: BAS037 | AM204: BAS038 | AN204: BAS039 | AO204: BAS040 | AP204: BAS041 | AQ204: BAS042 | AR204: BAS043 | AS204: BAS044 | AT204: BAS045 | AU204: BAS046 | AV204: BAS047 | AW204: BAS048 | AX204: BAS049 | AY204: BAS050 | AZ204: BAS051 | BA204: BAS052 | BB204: BAS053 | BC204: BAS054 | BD204: BAS055 | BE204: BAS056 | BF204: BAS057 | BG204: BAS058 | BH204: BAS059 | BI204: BAS060 | BJ204: BAS061 | BK204: BAS062 | BL204: BAS063 | BM204: BAS064 | BN204: BAS065 | BO204: BAS066 | BP204: BAS067 | BQ204: BAS068 | BR204: BAS069 | BS204: BAS070 | BT204: BAS071 | BU204: BAS072 | BV204: BAS073 | BW204: BAS074 | BX204: BAS075 | BY204: BAS076 | BZ204: BAS077 | CA204: BAS078 | CB204: BAS079 | CC204: BAS080 | CD204: BAS081 | CE204: BAS082 | CF204: BAS083 | CG204: BAS084 | CH204: BAS085 | CI204: BAS086 | CJ204: BAS087 | CK204: BAS088 | CL204: BAS089 | CM204: BAS090 | CN204: BAS091 | CO204: BAS092 | CP204: BAS093 | CQ204: BAS094 | CR204: BAS095 | CS204: BAS096 | CT204: BAS097 | CU204: BAS098 | CV204: BAS099 | CW204: BAS100 | CX204: BAS101 | CY204: BAS102 | CZ204: BAS103 | DA204: BAS104 | DB204: BAS105 | DC204: BAS106 | DD204: BAS107 | DE204: BAS108 | DF204: BAS109 | DG204: BAS110 | DH204: BAS111 | DI204: BAS112 | DJ204: BAS113 | DK204: BAS114 | DL204: BAS115 | DM204: BAS116 | DN204: BAS117 | DO204: BAS118 | DP204: BAS119 | DQ204: BAS120 | DR204: BAS121 | DS204: BAS122 | DT204: BAS123 | DU204: BAS124 | DV204: BAS125 | DW204: BAS126 | DX204: BAS127 | DY204: BAS128 | DZ204: BAS129 | EA204: BAS130 | EB204: BAS131 | EC204: BAS132 | ED204: BAS133 | EE204: BAS134 | EF204: BAS135 | EG204: BAS136 | EH204: BAS137 | EI204: BAS138 | EJ204: BAS139 | EK204: BAS140 | EL204: BAS141 | EM204: BAS142 | EN204: BAS143 | EO204: BAS144 | EP204: BAS145 | EQ204: BAS146 | ER204: BAS147 | ES204: BAS148 | ET204: BAS149 | EU204: BAS150 | EV204: BAS151 | EW204: BAS152 | EX204: BAS153 | EY204: BAS154 | EZ204: BAS155 | FA204: BAS156 | FB204: BAS157 | FC204: BAS158 | FD204: BAS159 | FE204: BAS160 | FF204: BAS161 | FG204: BAS162 | FH204: BAS163 | FI204: BAS164 | FJ204: BAS165 | FK204: BAS166 | FL204: BAS167 | FM204: BAS168 | FN204: BAS169 | FO204: BAS170 | FP204: BAS171 | FQ204: BAS172 | FR204: BAS173 | FS204: BAS174 | FT204: BAS175 | FU204: BAS176 | FV204: BAS177 | FW204: BAS178 | FX204: BAS179 | FY204: BAS180 | FZ204: BAS181 | GA204: BAS182 | GB204: BAS183 | GC204: BAS184 | GD204: BAS185 | GE204: BAS186 | GF204: BAS187 | GG204: BAS188 | GH204: BAS189 | GI204: BAS190 | GJ204: BAS191 | GK204: BAS192 | GL204: BAS193 | GM204: BAS194 | GN204: BAS195 | GO204: BAS196 | GP204: BAS197 | GQ204: BAS198 | GR204: BAS199 | GS204: BAS200 | GT204: BAS201 | GU204: BAS202 | GV204: BAS203 | GW204: BAS204 | GX204: BAS205 | GY204: BAS206 | GZ204: BAS207 | HA204: BAS208 | HB204: BAS209 | HC204: BAS210 | HD204: BAS211 | HE204: BAS212 | HF204: BAS213 | HG204: BAS214 | HH204: BAS215 | HI204: BAS216 | HJ204: BAS217 | HK204: BAS218 | HL204: BAS219 | HM204: BAS220 | HN204: BAS221 | HO204: BAS222 | HP204: BAS223 | HQ204: BAS224 | HR204: BAS225 | HS204: BAS226 | HT204: BAS227 | HU204: BAS228 | HV204: BAS229 | HW204: BAS230
A205: 1 | B205: 0 | C205: 0 | D205: 0 | E205: 0 | F205: 0 | G205: 0 | H205: 0 | I205: 0 | J205: 0 | K205: 0 | L205: 0 | M205: 0 | N205: 0 | O205: 0 | P205: 0 | Q205: 0 | R205: 0 | S205: 0 | T205: 0 | U205: 0 | V205: 0 | W205: 0 | X205: 0 | Y205: 0 | Z205: 0 | AA205: 0 | AB205: 0 | AC205: 0 | AD205: 0 | AE205: 0 | AF205: 0 | AG205: 0 | AH205: 0 | AI205: 0 | AJ205: 0 | AK205: 0 | AL205: 0 | AM205: 0 | AN205: 0 | AO205: 0 | AP205: 0 | AQ205: 0 | AR205: 0 | AS205: 0 | AT205: 0 | AU205: 0 | AV205: 0 | AW205: 0 | AX205: 0 | AY205: 0 | AZ205: 0 | BA205: 0 | BB205: 0 | BC205: 0 | BD205: 0 | BE205: 0 | BF205: 0 | BG205: 0 | BH205: 0 | BI205: 0 | BJ205: 0 | BK205: 0 | BL205: 0 | BM205: 0 | BN205: 0 | BO205: 0 | BP205: 0 | BQ205: 0 | BR205: 0 | BS205: 0 | BT205: 0 | BU205: 0 | BV205: 0 | BW205: 0 | BX205: 0 | BY205: 0 | BZ205: 0 | CA205: 0 | CB205: 0 | CC205: 0 | CD205: 0 | CE205: 0 | CF205: 0 | CG205: 0 | CH205: 0 | CI205: 0 | CJ205: 58 | CK205: 0 | CL205: 1 | CM205: 0 | CN205: 0 | CO205: 0 | CP205: 0 | CQ205: 0 | CR205: 0 | CS205: 0 | CT205: 0 | CU205: 0 | CV205: 0 | CW205: 0 | CX205: 0 | CY205: 0 | CZ205: 0 | DA205: 0 | DB205: 0 | DC205: 0 | DD205: 0 | DE205: 0 | DF205: 0 | DG205: 0 | DH205: 0 | DI205: 0 | DJ205: 0 | DK205: 0 | DL205: 0 | DM205: 0 | DN205: 0 | DO205: 0 | DP205: 0 | DQ205: 0 | DR205: 0 | DS205: 0 | DT205: 0 | DU205: 0 | DV205: 0 | DW205: 0 | DX205: 0 | DY205: 0 | DZ205: 0 | EA205: 0 | EB205: 0 | EC205: 0 | ED205: 0 | EE205: 0 | EF205: 0 | EG205: 0 | EH205: 0 | EI205: 0 | EJ205: 0 | EK205: 0 | EL205: 0 | EM205: 0 | EN205: 0 | EO205: 0 | EP205: 0 | EQ205: 0 | ER205: 0 | ES205: 0 | ET205: 0 | EU205: 0 | EV205: 0 | EW205: 0 | EX205: 0 | EY205: 0 | EZ205: 0 | FA205: 0 | FB205: 0 | FC205: 0 | FD205: 0 | FE205: 0 | FF205: 0 | FG205: 0 | FH205: 0 | FI205: 0 | FJ205: 0 | FK205: 0 | FL205: 0 | FM205: 0 | FN205: 0 | FO205: 0 | FP205: 0 | FQ205: 0 | FR205: 0 | FS205: 0 | FT205: 0 | FU205: 0 | FV205: 0 | FW205: 0 | FX205: 0 | FY205: 0 | FZ205: 0 | GA205: 0 | GB205: 0 | GC205: 0 | GD205: 0 | GE205: 0 | GF205: 0 | GG205: 0 | GH205: 0 | GI205: 0 | GJ205: 0 | GK205: 0 | GL205: 0 | GM205: 0 | GN205: 0 | GO205: 0 | GP205: 0 | GQ205: 0 | GR205: 0 | GS205: 0 | GT205: 0 | GU205: 0 | GV205: 0 | GW205: 0 | GX205: 0 | GY205: 0 | GZ205: 0 | HA205: 0 | HB205: 0 | HC205: 0 | HD205: 0 | HE205: 0 | HF205: 0 | HG205: 0 | HH205: 0 | HI205: 0 | HJ205: 0 | HK205: 0 | HL205: 0 | HM205: 0 | HN205: 0 | HO205: 0 | HP205: 0 | HQ205: 0 | HR205: 0 | HS205: 0 | HT205: 0 | HU205: 0 | HV205: 0 | HW205: 0
A206: 2 | B206: 0 | C206: 0 | D206: 0 | E206: 0 | F206: 0 | G206: 0 | H206: 0 | I206: 0 | J206: 0 | K206: 0 | L206: 0 | M206: 0 | N206: 0 | O206: 0 | P206: 0 | Q206: 0 | R206: 0 | S206: 0 | T206: 0 | U206: 0 | V206: 0 | W206: 0 | X206: 0 | Y206: 0 | Z206: 0 | AA206: 0 | AB206: 0 | AC206: 0 | AD206: 0 | AE206: 0 | AF206: 0 | AG206: 0 | AH206: 0 | AI206: 0 | AJ206: 0 | AK206: 0 | AL206: 0 | AM206: 0 | AN206: 0 | AO206: 0 | AP206: 0 | AQ206: 0 | AR206: 0 | AS206: 0 | AT206: 0 | AU206: 0 | AV206: 0 | AW206: 0 | AX206: 0 | AY206: 0 | AZ206: 0 | BA206: 0 | BB206: 0 | BC206: 0 | BD206: 0 | BE206: 0 | BF206: 0 | BG206: 0 | BH206: 0 | BI206: 0 | BJ206: 0 | BK206: 0 | BL206: 0 | BM206: 0 | BN206: 0 | BO206: 0 | BP206: 0 | BQ206: 0 | BR206: 0 | BS206: 0 | BT206: 0 | BU206: 0 | BV206: 0 | BW206: 0 | BX206: 0 | BY206: 0 | BZ206: 0 | CA206: 0 | CB206: 0 | CC206: 0 | CD206: 0 | CE206: 0 | CF206: 1 | CG206: 0 | CH206: 0 | CI206: 0 | CJ206: 60 | CK206: 0 | CL206: 1 | CM206: 0 | CN206: 0 | CO206: 0 | CP206: 0 | CQ206: 0 | CR206: 0 | CS206: 0 | CT206: 0 | CU206: 0 | CV206: 0 | CW206: 0 | CX206: 0 | CY206: 0 | CZ206: 0 | DA206: 0 | DB206: 0 | DC206: 0 | DD206: 0 | DE206: 0 | DF206: 0 | DG206: 0 | DH206: 0 | DI206: 0 | DJ206: 0 | DK206: 0 | DL206: 0 | DM206: 0 | DN206: 0 | DO206: 0 | DP206: 0 | DQ206: 0 | DR206: 0 | DS206: 0 | DT206: 0 | DU206: 0 | DV206: 0 | DW206: 0 | DX206: 0 | DY206: 0 | DZ206: 0 | EA206: 0 | EB206: 0 | EC206: 0 | ED206: 0 | EE206: 0 | EF206: 0 | EG206: 0 | EH206: 0 | EI206: 0 | EJ206: 0 | EK206: 0 | EL206: 0 | EM206: 0 | EN206: 0 | EO206: 0 | EP206: 0 | EQ206: 0 | ER206: 0 | ES206: 0 | ET206: 0 | EU206: 0 | EV206: 0 | EW206: 0 | EX206: 0 | EY206: 0 | EZ206: 0 | FA206: 0 | FB206: 0 | FC206: 0 | FD206: 0 | FE206: 0 | FF206: 0 | FG206: 0 | FH206: 0 | FI206: 0 | FJ206: 0 | FK206: 0 | FL206: 0 | FM206: 0 | FN206: 0 | FO206: 0 | FP206: 0 | FQ206: 0 | FR206: 0 | FS206: 0 | FT206: 0 | FU206: 0 | FV206: 0 | FW206: 0 | FX206: 0 | FY206: 0 | FZ206: 0 | GA206: 0 | GB206: 0 | GC206: 0 | GD206: 0 | GE206: 0 | GF206: 0 | GG206: 0 | GH206: 0 | GI206: 0 | GJ206: 0 | GK206: 0 | GL206: 0 | GM206: 0 | GN206: 0 | GO206: 0 | GP206: 0 | GQ206: 0 | GR206: 0 | GS206: 0 | GT206: 0 | GU206: 0 | GV206: 0 | GW206: 0 | GX206: 0 | GY206: 0 | GZ206: 0 | HA206: 0 | HB206: 0 | HC206: 0 | HD206: 0 | HE206: 0 | HF206: 0 | HG206: 0 | HH206: 0 | HI206: 0 | HJ206: 0 | HK206: 0 | HL206: 0 | HM206: 0 | HN206: 0 | HO206: 0 | HP206: 0 | HQ206: 0 | HR206: 0 | HS206: 0 | HT206: 0 | HU206: 0 | HV206: 0 | HW206: 0
A207: 3 | B207: 0 | C207: 0 | D207: 0 | E207: 0 | F207: 0 | G207: 0 | H207: 0 | I207: 0 | J207: 0 | K207: 0 | L207: 0 | M207: 0 | N207: 0 | O207: 0 | P207: 0 | Q207: 0 | R207: 0 | S207: 0 | T207: 0 | U207: 0 | V207: 0 | W207: 0 | X207: 0 | Y207: 0 | Z207: 6 | AA207: 3 | AB207: 100 | AC207: 90 | AD207: 0 | AE207: 0 | AF207: 0 | AG207: 0 | AH207: 0 | AI207: 0 | AJ207: 0 | AK207: 0 | AL207: 0 | AM207: 0 | AN207: 0 | AO207: 0 | AP207: 0 | AQ207: 0 | AR207: 0 | AS207: 0 | AT207: 0 | AU207: 0 | AV207: 0 | AW207: 0 | AX207: 0 | AY207: 0 | AZ207: 0 | BA207: 0 | BB207: 0 | BC207: 0 | BD207: 0 | BE207: 0 | BF207: 0 | BG207: 0 | BH207: 0 | BI207: 0 | BJ207: 0 | BK207: 0 | BL207: 0 | BM207: 0 | BN207: 0 | BO207: 0 | BP207: 0 | BQ207: 0 | BR207: 0 | BS207: 0 | BT207: 0 | BU207: 0 | BV207: 0 | BW207: 0 | BX207: 0 | BY207: 0 | BZ207: 0 | CA207: 0 | CB207: 0 | CC207: 2 | CD207: 0 | CE207: 0 | CF207: 0 | CG207: 0 | CH207: 0 | CI207: 1 | CJ207: 40 | CK207: 0 | CL207: 0 | CM207: 0 | CN207: 0 | CO207: 0 | CP207: 0 | CQ207: 0 | CR207: 0 | CS207: 0 | CT207: 0 | CU207: 0 | CV207: 0 | CW207: 0 | CX207: 0 | CY207: 0 | CZ207: 0 | DA207: 0 | DB207: 0 | DC207: 0 | DD207: 0 | DE207: 0 | DF207: 0 | DG207: 0 | DH207: 0 | DI207: 0 | DJ207: 0 | DK207: 0 | DL207: 0 | DM207: 0 | DN207: 0 | DO207: 0 | DP207: 0 | DQ207: 0 | DR207: 0 | DS207: 0 | DT207: 0 | DU207: 0 | DV207: 0 | DW207: 0 | DX207: 0 | DY207: 0 | DZ207: 0 | EA207: 0 | EB207: 0 | EC207: 0 | ED207: 0 | EE207: 0 | EF207: 0 | EG207: 0 | EH207: 0 | EI207: 0 | EJ207: 0 | EK207: 0 | EL207: 0 | EM207: 0 | EN207: 0 | EO207: 0 | EP207: 0 | EQ207: 0 | ER207: 0 | ES207: 0 | ET207: 0 | EU207: 0 | EV207: 0 | EW207: 0 | EX207: 0 | EY207: 0 | EZ207: 0 | FA207: 0 | FB207: 0 | FC207: 0 | FD207: 0 | FE207: 0 | FF207: 0 | FG207: 0 | FH207: 0 | FI207: 0 | FJ207: 0 | FK207: 0 | FL207: 0 | FM207: 0 | FN207: 0 | FO207: 0 | FP207: 0 | FQ207: 0 | FR207: 0 | FS207: 0 | FT207: 0 | FU207: 0 | FV207: 0 | FW207: 0 | FX207: 0 | FY207: 0 | FZ207: 0 | GA207: 0 | GB207: 0 | GC207: 0 | GD207: 0 | GE207: 0 | GF207: 0 | GG207: 0 | GH207: 0 | GI207: 0 | GJ207: 0 | GK207: 0 | GL207: 0 | GM207: 0 | GN207: 0 | GO207: 0 | GP207: 0 | GQ207: 0 | GR207: 0 | GS207: 0 | GT207: 0 | GU207: 0 | GV207: 0 | GW207: 0 | GX207: 0 | GY207: 0 | GZ207: 0 | HA207: 0 | HB207: 0 | HC207: 0 | HD207: 0 | HE207: 0 | HF207: 0 | HG207: 0 | HH207: 0 | HI207: 0 | HJ207: 0 | HK207: 0 | HL207: 0 | HM207: 0 | HN207: 0 | HO207: 0 | HP207: 0 | HQ207: 0 | HR207: 0 | HS207: 0 | HT207: 0 | HU207: 0 | HV207: 0 | HW207: 0
A208: Total | B208: 0 | C208: 0 | D208: 0 | E208: 0 | F208: 0 | G208: 0 | H208: 0 | I208: 0 | J208: 0 | K208: 0 | L208: 0 | M208: 0 | N208: 0 | O208: 0 | P208: 0 | Q208: 0 | R208: 0 | S208: 0 | T208: 0 | U208: 0 | V208: 0 | W208: 0 | X208: 0 | Y208: 0 | Z208: 6 | AA208: 3 | AB208: 100 | AC208: 90 | AD208: 0 | AE208: 0 | AF208: 0 | AG208: 0 | AH208: 0 | AI208: 0 | AJ208: 0 | AK208: 0 | AL208: 0 | AM208: 0 | AN208: 0 | AO208: 0 | AP208: 0 | AQ208: 0 | AR208: 0 | AS208: 0 | AT208: 0 | AU208: 0 | AV208: 0 | AW208: 0 | AX208: 0 | AY208: 0 | AZ208: 0 | BA208: 0 | BB208: 0 | BC208: 0 | BD208: 0 | BE208: 0 | BF208: 0 | BG208: 0 | BH208: 0 | BI208: 0 | BJ208: 0 | BK208: 0 | BL208: 0 | BM208: 0 | BN208: 0 | BO208: 0 | BP208: 0 | BQ208: 0 | BR208: 0 | BS208: 0 | BT208: 0 | BU208: 0 | BV208: 0 | BW208: 0 | BX208: 0 | BY208: 0 | BZ208: 0 | CA208: 0 | CB208: 0 | CC208: 2 | CD208: 0 | CE208: 0 | CF208: 1 | CG208: 0 | CH208: 0 | CI208: 1 | CJ208: 158 | CK208: 0 | CL208: 2 | CM208: 0 | CN208: 0 | CO208: 0 | CP208: 0 | CQ208: 0 | CR208: 0 | CS208: 0 | CT208: 0 | CU208: 0 | CV208: 0 | CW208: 0 | CX208: 0 | CY208: 0 | CZ208: 0 | DA208: 0 | DB208: 0 | DC208: 0 | DD208: 0 | DE208: 0 | DF208: 0 | DG208: 0 | DH208: 0 | DI208: 0 | DJ208: 0 | DK208: 0 | DL208: 0 | DM208: 0 | DN208: 0 | DO208: 0 | DP208: 0 | DQ208: 0 | DR208: 0 | DS208: 0 | DT208: 0 | DU208: 0 | DV208: 0 | DW208: 0 | DX208: 0 | DY208: 0 | DZ208: 0 | EA208: 0 | EB208: 0 | EC208: 0 | ED208: 0 | EE208: 0 | EF208: 0 | EG208: 0 | EH208: 0 | EI208: 0 | EJ208: 0 | EK208: 0 | EL208: 0 | EM208: 0 | EN208: 0 | EO208: 0 | EP208: 0 | EQ208: 0 | ER208: 0 | ES208: 0 | ET208: 0 | EU208: 0 | EV208: 0 | EW208: 0 | EX208: 0 | EY208: 0 | EZ208: 0 | FA208: 0 | FB208: 0 | FC208: 0 | FD208: 0 | FE208: 0 | FF208: 0 | FG208: 0 | FH208: 0 | FI208: 0 | FJ208: 0 | FK208: 0 | FL208: 0 | FM208: 0 | FN208: 0 | FO208: 0 | FP208: 0 | FQ208: 0 | FR208: 0 | FS208: 0 | FT208: 0 | FU208: 0 | FV208: 0 | FW208: 0 | FX208: 0 | FY208: 0 | FZ208: 0 | GA208: 0 | GB208: 0 | GC208: 0 | GD208: 0 | GE208: 0 | GF208: 0 | GG208: 0 | GH208: 0 | GI208: 0 | GJ208: 0 | GK208: 0 | GL208: 0 | GM208: 0 | GN208: 0 | GO208: 0 | GP208: 0 | GQ208: 0 | GR208: 0 | GS208: 0 | GT208: 0 | GU208: 0 | GV208: 0 | GW208: 0 | GX208: 0 | GY208: 0 | GZ208: 0 | HA208: 0 | HB208: 0 | HC208: 0 | HD208: 0 | HE208: 0 | HF208: 0 | HG208: 0 | HH208: 0 | HI208: 0 | HJ208: 0 | HK208: 0 | HL208: 0 | HM208: 0 | HN208: 0 | HO208: 0 | HP208: 0 | HQ208: 0 | HR208: 0 | HS208: 0 | HT208: 0 | HU208: 0 | HV208: 0 | HW208: 0
A222: TOTAL
A223: =COUNT(A202:A220) -> 3 | B223: =SUM(B202:B220) -> 0 | C223: =SUM(C202:C220) -> 0 | D223: 0 | E223: 0 | F223: 0 | G223: 0 | H223: 0 | I223: 0 | J223: 0 | K223: 0 | L223: 0 | M223: 0 | N223: 0 | O223: 0 | P223: 0 | Q223: 0 | R223: 0 | S223: 0 | T223: 0 | U223: 0 | V223: 0 | W223: 0 | X223: 0 | Y223: 0 | Z223: 12 | AA223: 6 | AB223: 200 | AC223: 180 | AD223: 0 | AE223: 0 | AF223: 0 | AG223: 0 | AH223: 0 | AI223: 0 | AJ223: 0 | AK223: 0 | AL223: 0 | AM223: 0 | AN223: 0 | AO223: 0 | AP223: 0 | AQ223: 0 | AR223: 0 | AS223: 0 | AT223: 0 | AU223: 0 | AV223: 0 | AW223: 0 | AX223: 0 | AY223: 0 | AZ223: 0 | BA223: 0 | BB223: 0 | BC223: 0 | BD223: 0 | BE223: 0 | BF223: 0 | BG223: 0 | BH223: 0 | BI223: 0 | BJ223: 0 | BK223: 0 | BL223: 0 | BM223: 0 | BN223: 0 | BO223: =SUM(BO202:BO220) -> 0 | BP223: 0 | BQ223: 0 | BR223: 0 | BS223: 0 | BT223: 0 | BU223: 0 | BV223: 0 | BW223: 0 | BX223: 0 | BY223: 0 | BZ223: 0 | CA223: 0 | CB223: 0 | CC223: 4 | CD223: 0 | CE223: 0 | CF223: 2 | CG223: 0 | CH223: 0 | CI223: 2 | CJ223: 316 | CK223: 0 | CL223: 4 | CM223: 0 | CN223: 0 | CO223: 0 | CP223: 0 | CQ223: 0 | CR223: 0 | CS223: 0 | CT223: 0 | CU223: 0 | CV223: 0 | CW223: 0 | CX223: 0 | CY223: 0 | CZ223: 0 | DA223: 0 | DB223: 0 | DC223: 0 | DD223: 0 | DE223: 0 | DF223: 0 | DG223: 0 | DH223: 0 | DI223: 0 | DJ223: 0 | DK223: 0 | DL223: 0 | DM223: 0 | DN223: 0 | DO223: 0 | DP223: 0 | DQ223: 0 | DR223: 0 | DS223: 0 | DT223: 0 | DU223: 0 | DV223: 0 | DW223: 0 | DX223: 0 | DY223: 0 | DZ223: 0 | EA223: =SUM(EA202:EA220) -> 0 | EB223: 0 | EC223: 0 | ED223: 0 | EE223: 0 | EF223: 0 | EG223: 0 | EH223: 0 | EI223: 0 | EJ223: 0 | EK223: 0 | EL223: 0 | EM223: 0 | EN223: 0 | EO223: 0 | EP223: 0 | EQ223: 0 | ER223: 0 | ES223: 0 | ET223: 0 | EU223: 0 | EV223: 0 | EW223: 0 | EX223: 0 | EY223: 0 | EZ223: 0 | FA223: 0 | FB223: 0 | FC223: 0 | FD223: 0 | FE223: 0 | FF223: 0 | FG223: 0 | FH223: 0 | FI223: 0 | FJ223: 0 | FK223: 0 | FL223: 0 | FM223: 0 | FN223: 0 | FO223: 0 | FP223: 0 | FQ223: 0 | FR223: 0 | FS223: 0 | FT223: 0 | FU223: 0 | FV223: 0 | FW223: 0 | FX223: 0 | FY223: 0 | FZ223: 0 | GA223: 0 | GB223: 0 | GC223: 0 | GD223: 0 | GE223: 0 | GF223: 0 | GG223: 0 | GH223: 0 | GI223: 0 | GJ223: 0 | GK223: 0 | GL223: 0 | GM223: =SUM(GM202:GM220) -> 0 | GN223: 0 | GO223: 0 | GP223: 0 | GQ223: 0 | GR223: 0 | GS223: 0 | GT223: 0 | GU223: 0 | GV223: 0 | GW223: 0 | GX223: 0 | GY223: 0 | GZ223: 0 | HA223: 0 | HB223: 0 | HC223: 0 | HD223: 0 | HE223: 0 | HF223: 0 | HG223: 0 | HH223: 0 | HI223: 0 | HJ223: 0 | HK223: 0 | HL223: 0 | HM223: 0 | HN223: 0 | HO223: 0 | HP223: 0 | HQ223: 0 | HR223: 0 | HS223: 0 | HT223: 0 | HU223: 0 | HV223: 0 | HW223: 0 | HX223: 0
A224: =CONCATENATE(A205,"-",A206,"-",A207,"-",A208,"-",A209,"-",A210,"-",A211,"-",A212,"-",A213,"-",A214,"-",A215,"-",A216) -> 1-2-3-Total--------
B225: BAS001 | C225: BAS002 | D225: BAS003 | E225: BAS004 | F225: BAS005 | G225: BAS006 | H225: BAS007 | I225: BAS008 | J225: BAS009 | K225: BAS010 | L225: BAS011 | M225: BAS012 | N225: BAS013 | O225: BAS014 | P225: BAS015 | Q225: BAS016 | R225: BAS017 | S225: BAS018 | T225: BAS019 | U225: BAS020 | V225: BAS021 | W225: BAS022 | X225: BAS023 | Y225: BAS024 | Z225: BAS025 | AA225: BAS026 | AB225: BAS027 | AC225: BAS028 | AD225: BAS029 | AE225: BAS030 | AF225: BAS031 | AG225: BAS032 | AH225: BAS033 | AI225: BAS034 | AJ225: BAS035 | AK225: BAS036 | AL225: BAS037 | AM225: BAS038 | AN225: BAS039 | AO225: BAS040 | AP225: BAS041 | AQ225: BAS042 | AR225: BAS043 | AS225: BAS044 | AT225: BAS045 | AU225: BAS046 | AV225: BAS047 | AW225: BAS048 | AX225: BAS049 | AY225: BAS050 | AZ225: BAS051 | BA225: BAS052 | BB225: BAS053 | BC225: BAS054 | BD225: BAS055 | BE225: BAS056 | BF225: BAS057 | BG225: BAS058 | BH225: BAS059 | BI225: BAS060 | BJ225: BAS061 | BK225: BAS062 | BL225: BAS063 | BM225: BAS064 | BN225: BAS065 | BO225: BAS066 | BP225: BAS067 | BQ225: BAS068 | BR225: BAS069 | BS225: BAS070 | BT225: BAS071 | BU225: BAS072 | BV225: BAS073 | BW225: BAS074 | BX225: BAS075 | BY225: BAS076 | BZ225: BAS077 | CA225: BAS078 | CB225: BAS079 | CC225: BAS080 | CD225: BAS081 | CE225: BAS082 | CF225: BAS083 | CG225: BAS084 | CH225: BAS085 | CI225: BAS086 | CJ225: BAS087 | CK225: BAS088 | CL225: BAS089 | CM225: BAS090 | CN225: BAS091 | CO225: BAS092 | CP225: BAS093 | CQ225: BAS094 | CR225: BAS095 | CS225: BAS096 | CT225: BAS097 | CU225: BAS098 | CV225: BAS099 | CW225: BAS100 | CX225: BAS101 | CY225: BAS102 | CZ225: BAS103 | DA225: BAS104 | DB225: BAS105 | DC225: BAS106 | DD225: BAS107 | DE225: BAS108 | DF225: BAS109 | DG225: BAS110 | DH225: BAS111 | DI225: BAS112 | DJ225: BAS113 | DK225: BAS114 | DL225: BAS115 | DM225: BAS116 | DN225: BAS117 | DO225: BAS118 | DP225: BAS119 | DQ225: BAS120 | DR225: BAS121 | DS225: BAS122 | DT225: BAS123 | DU225: BAS124 | DV225: BAS125 | DW225: BAS126 | DX225: BAS127 | DY225: BAS128 | DZ225: BAS129 | EA225: BAS130 | EB225: BAS131 | EC225: BAS132 | ED225: BAS133 | EE225: BAS134 | EF225: BAS135 | EG225: BAS136 | EH225: BAS137 | EI225: BAS138 | EJ225: BAS139 | EK225: BAS140 | EL225: BAS141 | EM225: BAS142 | EN225: BAS143 | EO225: BAS144 | EP225: BAS145 | EQ225: BAS146 | ER225: BAS147 | ES225: BAS148 | ET225: BAS149 | EU225: BAS150 | EV225: BAS151 | EW225: BAS152 | EX225: BAS153 | EY225: BAS154 | EZ225: BAS155 | FA225: BAS156 | FB225: BAS157 | FC225: BAS158 | FD225: BAS159 | FE225: BAS160 | FF225: BAS161 | FG225: BAS162 | FH225: BAS163 | FI225: BAS164 | FJ225: BAS165 | FK225: BAS166 | FL225: BAS167 | FM225: BAS168 | FN225: BAS169 | FO225: BAS170 | FP225: BAS171 | FQ225: BAS172 | FR225: BAS173 | FS225: BAS174 | FT225: BAS175 | FU225: BAS176 | FV225: BAS177 | FW225: BAS178 | FX225: BAS179 | FY225: BAS180 | FZ225: BAS181 | GA225: BAS182 | GB225: BAS183 | GC225: BAS184 | GD225: BAS185 | GE225: BAS186 | GF225: BAS187 | GG225: BAS188 | GH225: BAS189 | GI225: BAS190 | GJ225: BAS191 | GK225: BAS192 | GL225: BAS193 | GM225: BAS194 | GN225: BAS195 | GO225: BAS196 | GP225: BAS197 | GQ225: BAS198 | GR225: BAS199 | GS225: BAS200 | GT225: BAS201 | GU225: BAS202 | GV225: BAS203 | GW225: BAS204 | GX225: BAS205 | GY225: BAS206 | GZ225: BAS207 | HA225: BAS208 | HB225: BAS209 | HC225: BAS210 | HD225: BAS211 | HE225: BAS212 | HF225: BAS213 | HG225: BAS214 | HH225: BAS215 | HI225: BAS216 | HJ225: BAS217 | HK225: BAS218 | HL225: BAS219 | HM225: BAS220 | HN225: BAS221 | HO225: BAS222 | HP225: BAS223 | HQ225: BAS224 | HR225: BAS225 | HS225: BAS226 | HT225: BAS227 | HU225: BAS228 | HV225: BAS229 | HW225: BAS230
B226: =IF(B225=B204,"SI","NO") -> SI | C226: =IF(C225=C204,"SI","NO") -> SI | D226: SI | E226: SI | F226: SI | G226: SI | H226: SI | I226: SI | J226: SI | K226: SI | L226: SI | M226: SI | N226: SI | O226: SI | P226: SI | Q226: SI | R226: SI | S226: SI | T226: SI | U226: SI | V226: SI | W226: SI | X226: SI | Y226: SI | Z226: SI | AA226: SI | AB226: SI | AC226: SI | AD226: SI | AE226: SI | AF226: SI | AG226: SI | AH226: SI | AI226: SI | AJ226: SI | AK226: SI | AL226: SI | AM226: SI | AN226: SI | AO226: SI | AP226: SI | AQ226: SI | AR226: SI | AS226: SI | AT226: SI | AU226: SI | AV226: SI | AW226: SI | AX226: SI | AY226: SI | AZ226: SI | BA226: SI | BB226: SI | BC226: SI | BD226: SI | BE226: SI | BF226: SI | BG226: SI | BH226: SI | BI226: SI | BJ226: SI | BK226: SI | BL226: SI | BM226: SI | BN226: SI | BO226: =IF(BO225=BO204,"SI","NO") -> SI | BP226: SI | BQ226: SI | BR226: SI | BS226: SI | BT226: SI | BU226: SI | BV226: SI | BW226: SI | BX226: SI | BY226: SI | BZ226: SI | CA226: SI | CB226: SI | CC226: SI | CD226: SI | CE226: SI | CF226: SI | CG226: SI | CH226: SI | CI226: SI | CJ226: SI | CK226: SI | CL226: SI | CM226: SI | CN226: SI | CO226: SI | CP226: SI | CQ226: SI | CR226: SI | CS226: SI | CT226: SI | CU226: SI | CV226: SI | CW226: SI | CX226: SI | CY226: SI | CZ226: SI | DA226: SI | DB226: SI | DC226: SI | DD226: SI | DE226: SI | DF226: SI | DG226: SI | DH226: SI | DI226: SI | DJ226: SI | DK226: SI | DL226: SI | DM226: SI | DN226: SI | DO226: SI | DP226: SI | DQ226: SI | DR226: SI | DS226: SI | DT226: SI | DU226: SI | DV226: SI | DW226: SI | DX226: SI | DY226: SI | DZ226: SI | EA226: =IF(EA225=EA204,"SI","NO") -> SI | EB226: SI | EC226: SI | ED226: SI | EE226: SI | EF226: SI | EG226: SI | EH226: SI | EI226: SI | EJ226: SI | EK226: SI | EL226: SI | EM226: SI | EN226: SI | EO226: SI | EP226: SI | EQ226: SI | ER226: SI | ES226: SI | ET226: SI | EU226: SI | EV226: SI | EW226: SI | EX226: SI | EY226: SI | EZ226: SI | FA226: SI | FB226: SI | FC226: SI | FD226: SI | FE226: SI | FF226: SI | FG226: SI | FH226: SI | FI226: SI | FJ226: SI | FK226: SI | FL226: SI | FM226: SI | FN226: SI | FO226: SI | FP226: SI | FQ226: SI | FR226: SI | FS226: SI | FT226: SI | FU226: SI | FV226: SI | FW226: SI | FX226: SI | FY226: SI | FZ226: SI | GA226: SI | GB226: SI | GC226: SI | GD226: SI | GE226: SI | GF226: SI | GG226: SI | GH226: SI | GI226: SI | GJ226: SI | GK226: SI | GL226: SI | GM226: =IF(GM225=GM204,"SI","NO") -> SI | GN226: SI | GO226: SI | GP226: SI | GQ226: SI | GR226: SI | GS226: SI | GT226: SI | GU226: SI | GV226: SI | GW226: SI | GX226: SI | GY226: SI | GZ226: SI | HA226: SI | HB226: SI | HC226: SI | HD226: SI | HE226: SI | HF226: SI | HG226: SI | HH226: SI | HI226: SI | HJ226: SI | HK226: SI | HL226: SI | HM226: SI | HN226: SI | HO226: SI | HP226: SI | HQ226: SI | HR226: SI | HS226: SI | HT226: SI | HU226: SI | HV226: SI | HW226: SI
A229: PLANI_06
A230: ANNO | B230: 2025
A231: cod_red | B231: 03
A232: codmic | B232: (Todas)
A233: cod_prov | B233: (Todas)
A234: coddist | B234: (Todas)
A235: cod_estab | B235: (Todas)
A236: cod_eje | B236: (Todas) | E236: =+GETPIVOTDATA(" BAS001",$A$238) -> 1
B238: Valores
A239: Etiquetas de fila | B239: BAS001 | C239: BAS002 | D239: BAS003 | E239: BAS004 | F239: BAS005 | G239: BAS006 | H239: BAS007 | I239: BAS008 | J239: BAS009 | K239: BAS010 | L239: BAS011 | M239: BAS012 | N239: BAS013 | O239: BAS014 | P239: BAS015 | Q239: BAS016 | R239: BAS017 | S239: BAS018 | T239: BAS019 | U239: BAS020 | V239: BAS021 | W239: BAS022 | X239: BAS023 | Y239: BAS024 | Z239: BAS025 | AA239: BAS026 | AB239: BAS027 | AC239: BAS028 | AD239: BAS029 | AE239: BAS030 | AF239: BAS031 | AG239: BAS032 | AH239: BAS033 | AI239: BAS034 | AJ239: BAS035 | AK239: BAS036 | AL239: BAS037 | AM239: BAS038 | AN239: BAS039 | AO239: BAS040 | AP239: BAS041 | AQ239: BAS042 | AR239: BAS043 | AS239: BAS044 | AT239: BAS045 | AU239: BAS046 | AV239: BAS047 | AW239: BAS048 | AX239: BAS049 | AY239: BAS050 | AZ239: BAS051 | BA239: BAS052 | BB239: BAS053 | BC239: BAS054 | BD239: BAS055 | BE239: BAS056 | BF239: BAS057 | BG239: BAS058 | BH239: BAS059 | BI239: BAS060 | BJ239: BAS061 | BK239: BAS062 | BL239: BAS063 | BM239: BAS064 | BN239: BAS065 | BO239: BAS066 | BP239: BAS067 | BQ239: BAS068 | BR239: BAS069 | BS239: BAS070 | BT239: BAS071 | BU239: BAS072 | BV239: BAS073 | BW239: BAS074 | BX239: BAS075 | BY239: BAS076 | BZ239: BAS077 | CA239: BAS078 | CB239: BAS079 | CC239: BAS080 | CD239: BAS081 | CE239: BAS082 | CF239: BAS083 | CG239: BAS084 | CH239: BAS085 | CI239: BAS086 | CJ239: BAS087 | CK239: BAS088 | CL239: BAS089 | CM239: BAS090 | CN239: BAS091 | CO239: BAS092 | CP239: BAS093 | CQ239: BAS094 | CR239: BAS095 | CS239: BAS096 | CT239: BAS097 | CU239: BAS098 | CV239: BAS099 | CW239: BAS100 | CX239: BAS101 | CY239: BAS102 | CZ239: BAS103 | DA239: BAS104 | DB239: BAS105 | DC239: BAS106 | DD239: BAS107 | DE239: BAS108 | DF239: BAS109 | DG239: BAS110 | DH239: BAS111 | DI239: BAS112 | DJ239: BAS113 | DK239: BAS114 | DL239: BAS115 | DM239: BAS116 | DN239: BAS117 | DO239: BAS118 | DP239: BAS119 | DQ239: BAS120 | DR239: BAS121 | DS239: BAS122 | DT239: BAS123 | DU239: BAS124 | DV239: BAS125 | DW239: BAS126 | DX239: BAS127 | DY239: BAS128 | DZ239: BAS129 | EA239: BAS130 | EB239: BAS131 | EC239: BAS132 | ED239: BAS133 | EE239: BAS134 | EF239: BAS135 | EG239: BAS136 | EH239: BAS137 | EI239: BAS138 | EJ239: BAS139 | EK239: BAS140 | EL239: BAS141 | EM239: BAS142 | EN239: BAS143 | EO239: BAS144 | EP239: BAS145 | EQ239: BAS146 | ER239: BAS147 | ES239: BAS148 | ET239: BAS149 | EU239: BAS150 | EV239: BAS151 | EW239: BAS152 | EX239: BAS153 | EY239: BAS154 | EZ239: BAS155 | FA239: BAS156 | FB239: BAS157 | FC239: BAS158 | FD239: BAS159 | FE239: BAS160 | FF239: BAS161 | FG239: BAS162 | FH239: BAS163 | FI239: BAS164 | FJ239: BAS165 | FK239: BAS166 | FL239: BAS167 | FM239: BAS168 | FN239: BAS169 | FO239: BAS170 | FP239: BAS171 | FQ239: BAS172 | FR239: BAS173 | FS239: BAS174 | FT239: BAS175 | FU239: BAS176 | FV239: BAS177 | FW239: BAS178 | FX239: BAS179 | FY239: BAS180 | FZ239: BAS181 | GA239: BAS182 | GB239: BAS183 | GC239: BAS184 | GD239: BAS185 | GE239: BAS186 | GF239: BAS187 | GG239: BAS188 | GH239: BAS189 | GI239: BAS190 | GJ239: BAS191 | GK239: BAS192 | GL239: BAS193 | GM239: BAS194 | GN239: BAS195 | GO239: BAS196 | GP239: BAS197 | GQ239: BAS198 | GR239: BAS199 | GS239: BAS200 | GT239: BAS201 | GU239: BAS202 | GV239: BAS203 | GW239: BAS204 | GX239: BAS205 | GY239: BAS206 | GZ239: BAS207 | HA239: BAS208 | HB239: BAS209 | HC239: BAS210 | HD239: BAS211 | HE239: BAS212 | HF239: BAS213 | HG239: BAS214 | HH239: BAS215 | HI239: BAS216 | HJ239: BAS217 | HK239: BAS218 | HL239: BAS219 | HM239: BAS220 | HN239: BAS221 | HO239: BAS222 | HP239: BAS223 | HQ239: BAS224 | HR239: BAS225 | HS239: BAS226 | HT239: BAS227 | HU239: BAS228 | HV239: BAS229 | HW239: BAS230
A240: 1 | B240: 0 | C240: 0 | D240: 0 | E240: 5 | F240: 5 | G240: 0 | H240: 0 | I240: 0 | J240: 1 | K240: 1 | L240: 17 | M240: 0 | N240: 21 | O240: 61 | P240: 1123 | Q240: 11 | R240: 0 | S240: 26 | T240: 250 | U240: 1127 | V240: 6 | W240: 0 | X240: 31 | Y240: 25 | Z240: 569 | AA240: 6 | AB240: 0 | AC240: 7 | AD240: 101 | AE240: 101 | AF240: 16 | AG240: 0 | AH240: 7 | AI240: 44 | AJ240: 6632 | AK240: 0 | AL240: 0 | AM240: 0 | AN240: 0 | AO240: 0 | AP240: 0 | AQ240: 0 | AR240: 0 | AS240: 8 | AT240: 8 | AU240: 0 | AV240: 0 | AW240: 0 | AX240: 0 | AY240: 0 | AZ240: 0 | BA240: 0 | BB240: 0 | BC240: 0 | BD240: 0 | BE240: 0 | BF240: 0 | BG240: 0 | BH240: 0 | BI240: 13 | BJ240: 4 | BK240: 56 | BL240: 17 | BM240: 2 | BN240: 1143 | BO240: 394 | BP240: 391 | BQ240: 1 | BR240: 118 | BS240: 117 | BT240: 117 | BU240: 0 | BV240: 0 | BW240: 0 | BX240: 0 | BY240: 0 | BZ240: 0 | CA240: 0 | CB240: 0 | CC240: 0 | CD240: 0 | CE240: 0 | CF240: 0 | CG240: 0 | CH240: 0 | CI240: 0 | CJ240: 0 | CK240: 0 | CL240: 0 | CM240: 0 | CN240: 0 | CO240: 0 | CP240: 0 | CQ240: 0 | CR240: 0 | CS240: 0 | CT240: 0 | CU240: 0 | CV240: 0 | CW240: 0 | CX240: 0 | CY240: 0 | CZ240: 0 | DA240: 0 | DB240: 0 | DC240: 0 | DD240: 0 | DE240: 0 | DF240: 0 | DG240: 0 | DH240: 0 | DI240: 0 | DJ240: 0 | DK240: 0 | DL240: 0 | DM240: 0 | DN240: 0 | DO240: 0 | DP240: 0 | DQ240: 0 | DR240: 0 | DS240: 0 | DT240: 0 | DU240: 0 | DV240: 0 | DW240: 0 | DX240: 0 | DY240: 0 | DZ240: 0 | EA240: 0 | EB240: 0 | EC240: 0 | ED240: 0 | EE240: 0 | EF240: 0 | EG240: 0 | EH240: 0 | EI240: 0 | EJ240: 0 | EK240: 0 | EL240: 0 | EM240: 0 | EN240: 0 | EO240: 0 | EP240: 0 | EQ240: 0 | ER240: 0 | ES240: 0 | ET240: 0 | EU240: 0 | EV240: 0 | EW240: 0 | EX240: 0 | EY240: 0 | EZ240: 0 | FA240: 0 | FB240: 0 | FC240: 0 | FD240: 0 | FE240: 0 | FF240: 0 | FG240: 0 | FH240: 0 | FI240: 0 | FJ240: 0 | FK240: 0 | FL240: 0 | FM240: 0 | FN240: 0 | FO240: 0 | FP240: 0 | FQ240: 0 | FR240: 0 | FS240: 0 | FT240: 0 | FU240: 0 | FV240: 0 | FW240: 0 | FX240: 0 | FY240: 0 | FZ240: 0 | GA240: 0 | GB240: 0 | GC240: 0 | GD240: 0 | GE240: 0 | GF240: 0 | GG240: 0 | GH240: 0 | GI240: 0 | GJ240: 0 | GK240: 0 | GL240: 0 | GM240: 0 | GN240: 0 | GO240: 0 | GP240: 0 | GQ240: 0 | GR240: 0 | GS240: 0 | GT240: 0 | GU240: 0 | GV240: 0 | GW240: 0 | GX240: 0 | GY240: 0 | GZ240: 0 | HA240: 0 | HB240: 0 | HC240: 0 | HD240: 0 | HE240: 0 | HF240: 0 | HG240: 0 | HH240: 0 | HI240: 0 | HJ240: 0 | HK240: 0 | HL240: 0 | HM240: 0 | HN240: 0 | HO240: 0 | HP240: 0 | HQ240: 0 | HR240: 0 | HS240: 0 | HT240: 0 | HU240: 0 | HV240: 0 | HW240: 0
A241: 2 | B241: 0 | C241: 0 | D241: 0 | E241: 0 | F241: 0 | G241: 0 | H241: 0 | I241: 0 | J241: 0 | K241: 0 | L241: 6 | M241: 0 | N241: 15 | O241: 52 | P241: 1108 | Q241: 9 | R241: 1 | S241: 38 | T241: 223 | U241: 1023 | V241: 5 | W241: 0 | X241: 12 | Y241: 16 | Z241: 482 | AA241: 2 | AB241: 0 | AC241: 10 | AD241: 84 | AE241: 84 | AF241: 10 | AG241: 0 | AH241: 2 | AI241: 48 | AJ241: 7066 | AK241: 0 | AL241: 0 | AM241: 0 | AN241: 0 | AO241: 11 | AP241: 0 | AQ241: 0 | AR241: 0 | AS241: 0 | AT241: 0 | AU241: 0 | AV241: 0 | AW241: 0 | AX241: 0 | AY241: 0 | AZ241: 0 | BA241: 0 | BB241: 0 | BC241: 0 | BD241: 0 | BE241: 0 | BF241: 0 | BG241: 0 | BH241: 0 | BI241: 8 | BJ241: 0 | BK241: 48 | BL241: 22 | BM241: 5 | BN241: 1040 | BO241: 459 | BP241: 365 | BQ241: 0 | BR241: 388 | BS241: 384 | BT241: 384 | BU241: 0 | BV241: 0 | BW241: 0 | BX241: 0 | BY241: 0 | BZ241: 0 | CA241: 0 | CB241: 0 | CC241: 0 | CD241: 0 | CE241: 0 | CF241: 0 | CG241: 0 | CH241: 0 | CI241: 0 | CJ241: 0 | CK241: 0 | CL241: 0 | CM241: 0 | CN241: 0 | CO241: 0 | CP241: 0 | CQ241: 0 | CR241: 0 | CS241: 0 | CT241: 0 | CU241: 0 | CV241: 0 | CW241: 0 | CX241: 0 | CY241: 0 | CZ241: 0 | DA241: 0 | DB241: 0 | DC241: 0 | DD241: 0 | DE241: 0 | DF241: 0 | DG241: 0 | DH241: 0 | DI241: 0 | DJ241: 0 | DK241: 0 | DL241: 0 | DM241: 0 | DN241: 0 | DO241: 0 | DP241: 0 | DQ241: 0 | DR241: 0 | DS241: 0 | DT241: 0 | DU241: 0 | DV241: 0 | DW241: 0 | DX241: 0 | DY241: 0 | DZ241: 0 | EA241: 0 | EB241: 0 | EC241: 0 | ED241: 0 | EE241: 0 | EF241: 0 | EG241: 0 | EH241: 0 | EI241: 0 | EJ241: 0 | EK241: 0 | EL241: 0 | EM241: 0 | EN241: 0 | EO241: 0 | EP241: 0 | EQ241: 0 | ER241: 0 | ES241: 0 | ET241: 0 | EU241: 0 | EV241: 0 | EW241: 0 | EX241: 0 | EY241: 0 | EZ241: 0 | FA241: 0 | FB241: 0 | FC241: 0 | FD241: 0 | FE241: 0 | FF241: 0 | FG241: 0 | FH241: 0 | FI241: 0 | FJ241: 0 | FK241: 0 | FL241: 0 | FM241: 0 | FN241: 0 | FO241: 0 | FP241: 0 | FQ241: 0 | FR241: 0 | FS241: 0 | FT241: 0 | FU241: 0 | FV241: 0 | FW241: 0 | FX241: 0 | FY241: 0 | FZ241: 0 | GA241: 0 | GB241: 0 | GC241: 0 | GD241: 0 | GE241: 0 | GF241: 0 | GG241: 0 | GH241: 0 | GI241: 0 | GJ241: 0 | GK241: 0 | GL241: 0 | GM241: 0 | GN241: 0 | GO241: 0 | GP241: 0 | GQ241: 0 | GR241: 0 | GS241: 0 | GT241: 0 | GU241: 0 | GV241: 0 | GW241: 0 | GX241: 0 | GY241: 0 | GZ241: 0 | HA241: 0 | HB241: 0 | HC241: 0 | HD241: 0 | HE241: 0 | HF241: 0 | HG241: 0 | HH241: 0 | HI241: 0 | HJ241: 0 | HK241: 0 | HL241: 0 | HM241: 0 | HN241: 0 | HO241: 0 | HP241: 0 | HQ241: 0 | HR241: 0 | HS241: 0 | HT241: 0 | HU241: 0 | HV241: 0 | HW241: 0
A242: 3 | B242: 1 | C242: 0 | D242: 0 | E242: 2 | F242: 2 | G242: 0 | H242: 0 | I242: 0 | J242: 2 | K242: 2 | L242: 17 | M242: 0 | N242: 30 | O242: 59 | P242: 1106 | Q242: 10 | R242: 0 | S242: 52 | T242: 236 | U242: 1056 | V242: 13 | W242: 0 | X242: 13 | Y242: 18 | Z242: 482 | AA242: 6 | AB242: 0 | AC242: 15 | AD242: 102 | AE242: 102 | AF242: 12 | AG242: 0 | AH242: 4 | AI242: 64 | AJ242: 8631 | AK242: 0 | AL242: 0 | AM242: 0 | AN242: 0 | AO242: 1 | AP242: 0 | AQ242: 0 | AR242: 0 | AS242: 21 | AT242: 21 | AU242: 0 | AV242: 0 | AW242: 0 | AX242: 0 | AY242: 0 | AZ242: 0 | BA242: 0 | BB242: 0 | BC242: 0 | BD242: 0 | BE242: 0 | BF242: 0 | BG242: 0 | BH242: 1 | BI242: 14 | BJ242: 1 | BK242: 52 | BL242: 11 | BM242: 6 | BN242: 1040 | BO242: 476 | BP242: 415 | BQ242: 0 | BR242: 262 | BS242: 258 | BT242: 258 | BU242: 0 | BV242: 0 | BW242: 0 | BX242: 0 | BY242: 0 | BZ242: 0 | CA242: 0 | CB242: 0 | CC242: 0 | CD242: 0 | CE242: 0 | CF242: 0 | CG242: 0 | CH242: 0 | CI242: 0 | CJ242: 0 | CK242: 0 | CL242: 0 | CM242: 0 | CN242: 0 | CO242: 0 | CP242: 0 | CQ242: 0 | CR242: 0 | CS242: 0 | CT242: 0 | CU242: 0 | CV242: 0 | CW242: 0 | CX242: 0 | CY242: 0 | CZ242: 0 | DA242: 0 | DB242: 0 | DC242: 0 | DD242: 0 | DE242: 0 | DF242: 0 | DG242: 0 | DH242: 0 | DI242: 0 | DJ242: 0 | DK242: 0 | DL242: 0 | DM242: 0 | DN242: 0 | DO242: 0 | DP242: 0 | DQ242: 0 | DR242: 0 | DS242: 0 | DT242: 0 | DU242: 0 | DV242: 0 | DW242: 0 | DX242: 0 | DY242: 0 | DZ242: 0 | EA242: 0 | EB242: 0 | EC242: 0 | ED242: 0 | EE242: 0 | EF242: 0 | EG242: 0 | EH242: 0 | EI242: 0 | EJ242: 0 | EK242: 0 | EL242: 0 | EM242: 0 | EN242: 0 | EO242: 0 | EP242: 0 | EQ242: 0 | ER242: 0 | ES242: 0 | ET242: 0 | EU242: 0 | EV242: 0 | EW242: 0 | EX242: 0 | EY242: 0 | EZ242: 0 | FA242: 0 | FB242: 0 | FC242: 0 | FD242: 0 | FE242: 0 | FF242: 0 | FG242: 0 | FH242: 0 | FI242: 0 | FJ242: 0 | FK242: 0 | FL242: 0 | FM242: 0 | FN242: 0 | FO242: 0 | FP242: 0 | FQ242: 0 | FR242: 0 | FS242: 0 | FT242: 0 | FU242: 0 | FV242: 0 | FW242: 0 | FX242: 0 | FY242: 0 | FZ242: 0 | GA242: 0 | GB242: 0 | GC242: 0 | GD242: 0 | GE242: 0 | GF242: 0 | GG242: 0 | GH242: 0 | GI242: 0 | GJ242: 0 | GK242: 0 | GL242: 0 | GM242: 0 | GN242: 0 | GO242: 0 | GP242: 0 | GQ242: 0 | GR242: 0 | GS242: 0 | GT242: 0 | GU242: 0 | GV242: 0 | GW242: 0 | GX242: 0 | GY242: 0 | GZ242: 0 | HA242: 0 | HB242: 0 | HC242: 0 | HD242: 0 | HE242: 0 | HF242: 0 | HG242: 0 | HH242: 0 | HI242: 0 | HJ242: 0 | HK242: 0 | HL242: 0 | HM242: 0 | HN242: 0 | HO242: 0 | HP242: 0 | HQ242: 0 | HR242: 0 | HS242: 0 | HT242: 0 | HU242: 0 | HV242: 0 | HW242: 0
A243: Total | B243: 1 | C243: 0 | D243: 0 | E243: 7 | F243: 7 | G243: 0 | H243: 0 | I243: 0 | J243: 3 | K243: 3 | L243: 40 | M243: 0 | N243: 66 | O243: 172 | P243: 3337 | Q243: 30 | R243: 1 | S243: 116 | T243: 709 | U243: 3206 | V243: 24 | W243: 0 | X243: 56 | Y243: 59 | Z243: 1533 | AA243: 14 | AB243: 0 | AC243: 32 | AD243: 287 | AE243: 287 | AF243: 38 | AG243: 0 | AH243: 13 | AI243: 156 | AJ243: 22329 | AK243: 0 | AL243: 0 | AM243: 0 | AN243: 0 | AO243: 12 | AP243: 0 | AQ243: 0 | AR243: 0 | AS243: 29 | AT243: 29 | AU243: 0 | AV243: 0 | AW243: 0 | AX243: 0 | AY243: 0 | AZ243: 0 | BA243: 0 | BB243: 0 | BC243: 0 | BD243: 0 | BE243: 0 | BF243: 0 | BG243: 0 | BH243: 1 | BI243: 35 | BJ243: 5 | BK243: 156 | BL243: 50 | BM243: 13 | BN243: 3223 | BO243: 1329 | BP243: 1171 | BQ243: 1 | BR243: 768 | BS243: 759 | BT243: 759 | BU243: 0 | BV243: 0 | BW243: 0 | BX243: 0 | BY243: 0 | BZ243: 0 | CA243: 0 | CB243: 0 | CC243: 0 | CD243: 0 | CE243: 0 | CF243: 0 | CG243: 0 | CH243: 0 | CI243: 0 | CJ243: 0 | CK243: 0 | CL243: 0 | CM243: 0 | CN243: 0 | CO243: 0 | CP243: 0 | CQ243: 0 | CR243: 0 | CS243: 0 | CT243: 0 | CU243: 0 | CV243: 0 | CW243: 0 | CX243: 0 | CY243: 0 | CZ243: 0 | DA243: 0 | DB243: 0 | DC243: 0 | DD243: 0 | DE243: 0 | DF243: 0 | DG243: 0 | DH243: 0 | DI243: 0 | DJ243: 0 | DK243: 0 | DL243: 0 | DM243: 0 | DN243: 0 | DO243: 0 | DP243: 0 | DQ243: 0 | DR243: 0 | DS243: 0 | DT243: 0 | DU243: 0 | DV243: 0 | DW243: 0 | DX243: 0 | DY243: 0 | DZ243: 0 | EA243: 0 | EB243: 0 | EC243: 0 | ED243: 0 | EE243: 0 | EF243: 0 | EG243: 0 | EH243: 0 | EI243: 0 | EJ243: 0 | EK243: 0 | EL243: 0 | EM243: 0 | EN243: 0 | EO243: 0 | EP243: 0 | EQ243: 0 | ER243: 0 | ES243: 0 | ET243: 0 | EU243: 0 | EV243: 0 | EW243: 0 | EX243: 0 | EY243: 0 | EZ243: 0 | FA243: 0 | FB243: 0 | FC243: 0 | FD243: 0 | FE243: 0 | FF243: 0 | FG243: 0 | FH243: 0 | FI243: 0 | FJ243: 0 | FK243: 0 | FL243: 0 | FM243: 0 | FN243: 0 | FO243: 0 | FP243: 0 | FQ243: 0 | FR243: 0 | FS243: 0 | FT243: 0 | FU243: 0 | FV243: 0 | FW243: 0 | FX243: 0 | FY243: 0 | FZ243: 0 | GA243: 0 | GB243: 0 | GC243: 0 | GD243: 0 | GE243: 0 | GF243: 0 | GG243: 0 | GH243: 0 | GI243: 0 | GJ243: 0 | GK243: 0 | GL243: 0 | GM243: 0 | GN243: 0 | GO243: 0 | GP243: 0 | GQ243: 0 | GR243: 0 | GS243: 0 | GT243: 0 | GU243: 0 | GV243: 0 | GW243: 0 | GX243: 0 | GY243: 0 | GZ243: 0 | HA243: 0 | HB243: 0 | HC243: 0 | HD243: 0 | HE243: 0 | HF243: 0 | HG243: 0 | HH243: 0 | HI243: 0 | HJ243: 0 | HK243: 0 | HL243: 0 | HM243: 0 | HN243: 0 | HO243: 0 | HP243: 0 | HQ243: 0 | HR243: 0 | HS243: 0 | HT243: 0 | HU243: 0 | HV243: 0 | HW243: 0
A257: TOTAL
A258: =COUNT(A237:A255) -> 3 | B258: =SUM(B237:B255) -> 2 | C258: =SUM(C237:C255) -> 0 | D258: 0 | E258: 14 | F258: 14 | G258: 0 | H258: 0 | I258: 0 | J258: 6 | K258: 6 | L258: 80 | M258: 0 | N258: 132 | O258: 344 | P258: 6674 | Q258: 60 | R258: 2 | S258: 232 | T258: 1418 | U258: 6412 | V258: 48 | W258: 0 | X258: 112 | Y258: 118 | Z258: 3066 | AA258: 28 | AB258: 0 | AC258: 64 | AD258: 574 | AE258: 574 | AF258: 76 | AG258: 0 | AH258: 26 | AI258: 312 | AJ258: 44658 | AK258: 0 | AL258: 0 | AM258: 0 | AN258: 0 | AO258: 24 | AP258: 0 | AQ258: 0 | AR258: 0 | AS258: 58 | AT258: 58 | AU258: 0 | AV258: 0 | AW258: 0 | AX258: 0 | AY258: 0 | AZ258: 0 | BA258: 0 | BB258: 0 | BC258: 0 | BD258: 0 | BE258: 0 | BF258: 0 | BG258: 0 | BH258: 2 | BI258: 70 | BJ258: 10 | BK258: 312 | BL258: 100 | BM258: 26 | BN258: 6446 | BO258: =SUM(BO237:BO255) -> 2658 | BP258: 2342 | BQ258: 2 | BR258: 1536 | BS258: 1518 | BT258: 1518 | BU258: 0 | BV258: 0 | BW258: 0 | BX258: 0 | BY258: 0 | BZ258: 0 | CA258: 0 | CB258: 0 | CC258: 0 | CD258: 0 | CE258: 0 | CF258: 0 | CG258: 0 | CH258: 0 | CI258: 0 | CJ258: 0 | CK258: 0 | CL258: 0 | CM258: 0 | CN258: 0 | CO258: 0 | CP258: 0 | CQ258: 0 | CR258: 0 | CS258: 0 | CT258: 0 | CU258: 0 | CV258: 0 | CW258: 0 | CX258: 0 | CY258: 0 | CZ258: 0 | DA258: 0 | DB258: 0 | DC258: 0 | DD258: 0 | DE258: 0 | DF258: 0 | DG258: 0 | DH258: 0 | DI258: 0 | DJ258: 0 | DK258: 0 | DL258: 0 | DM258: 0 | DN258: 0 | DO258: 0 | DP258: 0 | DQ258: 0 | DR258: 0 | DS258: 0 | DT258: 0 | DU258: 0 | DV258: 0 | DW258: 0 | DX258: 0 | DY258: 0 | DZ258: 0 | EA258: =SUM(EA237:EA255) -> 0 | EB258: 0 | EC258: 0 | ED258: 0 | EE258: 0 | EF258: 0 | EG258: 0 | EH258: 0 | EI258: 0 | EJ258: 0 | EK258: 0 | EL258: 0 | EM258: 0 | EN258: 0 | EO258: 0 | EP258: 0 | EQ258: 0 | ER258: 0 | ES258: 0 | ET258: 0 | EU258: 0 | EV258: 0 | EW258: 0 | EX258: 0 | EY258: 0 | EZ258: 0 | FA258: 0 | FB258: 0 | FC258: 0 | FD258: 0 | FE258: 0 | FF258: 0 | FG258: 0 | FH258: 0 | FI258: 0 | FJ258: 0 | FK258: 0 | FL258: 0 | FM258: 0 | FN258: 0 | FO258: 0 | FP258: 0 | FQ258: 0 | FR258: 0 | FS258: 0 | FT258: 0 | FU258: 0 | FV258: 0 | FW258: 0 | FX258: 0 | FY258: 0 | FZ258: 0 | GA258: 0 | GB258: 0 | GC258: 0 | GD258: 0 | GE258: 0 | GF258: 0 | GG258: 0 | GH258: 0 | GI258: 0 | GJ258: 0 | GK258: 0 | GL258: 0 | GM258: =SUM(GM237:GM255) -> 0 | GN258: 0 | GO258: 0 | GP258: 0 | GQ258: 0 | GR258: 0 | GS258: 0 | GT258: 0 | GU258: 0 | GV258: 0 | GW258: 0 | GX258: 0 | GY258: 0 | GZ258: 0 | HA258: 0 | HB258: 0 | HC258: 0 | HD258: 0 | HE258: 0 | HF258: 0 | HG258: 0 | HH258: 0 | HI258: 0 | HJ258: 0 | HK258: 0 | HL258: 0 | HM258: 0 | HN258: 0 | HO258: 0 | HP258: 0 | HQ258: 0 | HR258: 0 | HS258: 0 | HT258: 0 | HU258: 0 | HV258: 0 | HW258: 0 | HX258: 0
A259: =CONCATENATE(A240,"-",A241,"-",A242,"-",A243,"-",A244,"-",A245,"-",A246,"-",A247,"-",A248,"-",A249,"-",A250,"-",A251) -> 1-2-3-Total--------
B260: BAS001 | C260: BAS002 | D260: BAS003 | E260: BAS004 | F260: BAS005 | G260: BAS006 | H260: BAS007 | I260: BAS008 | J260: BAS009 | K260: BAS010 | L260: BAS011 | M260: BAS012 | N260: BAS013 | O260: BAS014 | P260: BAS015 | Q260: BAS016 | R260: BAS017 | S260: BAS018 | T260: BAS019 | U260: BAS020 | V260: BAS021 | W260: BAS022 | X260: BAS023 | Y260: BAS024 | Z260: BAS025 | AA260: BAS026 | AB260: BAS027 | AC260: BAS028 | AD260: BAS029 | AE260: BAS030 | AF260: BAS031 | AG260: BAS032 | AH260: BAS033 | AI260: BAS034 | AJ260: BAS035 | AK260: BAS036 | AL260: BAS037 | AM260: BAS038 | AN260: BAS039 | AO260: BAS040 | AP260: BAS041 | AQ260: BAS042 | AR260: BAS043 | AS260: BAS044 | AT260: BAS045 | AU260: BAS046 | AV260: BAS047 | AW260: BAS048 | AX260: BAS049 | AY260: BAS050 | AZ260: BAS051 | BA260: BAS052 | BB260: BAS053 | BC260: BAS054 | BD260: BAS055 | BE260: BAS056 | BF260: BAS057 | BG260: BAS058 | BH260: BAS059 | BI260: BAS060 | BJ260: BAS061 | BK260: BAS062 | BL260: BAS063 | BM260: BAS064 | BN260: BAS065 | BO260: BAS066 | BP260: BAS067 | BQ260: BAS068 | BR260: BAS069 | BS260: BAS070 | BT260: BAS071 | BU260: BAS072 | BV260: BAS073 | BW260: BAS074 | BX260: BAS075 | BY260: BAS076 | BZ260: BAS077 | CA260: BAS078 | CB260: BAS079 | CC260: BAS080 | CD260: BAS081 | CE260: BAS082 | CF260: BAS083 | CG260: BAS084 | CH260: BAS085 | CI260: BAS086 | CJ260: BAS087 | CK260: BAS088 | CL260: BAS089 | CM260: BAS090 | CN260: BAS091 | CO260: BAS092 | CP260: BAS093 | CQ260: BAS094 | CR260: BAS095 | CS260: BAS096 | CT260: BAS097 | CU260: BAS098 | CV260: BAS099 | CW260: BAS100 | CX260: BAS101 | CY260: BAS102 | CZ260: BAS103 | DA260: BAS104 | DB260: BAS105 | DC260: BAS106 | DD260: BAS107 | DE260: BAS108 | DF260: BAS109 | DG260: BAS110 | DH260: BAS111 | DI260: BAS112 | DJ260: BAS113 | DK260: BAS114 | DL260: BAS115 | DM260: BAS116 | DN260: BAS117 | DO260: BAS118 | DP260: BAS119 | DQ260: BAS120 | DR260: BAS121 | DS260: BAS122 | DT260: BAS123 | DU260: BAS124 | DV260: BAS125 | DW260: BAS126 | DX260: BAS127 | DY260: BAS128 | DZ260: BAS129 | EA260: BAS130 | EB260: BAS131 | EC260: BAS132 | ED260: BAS133 | EE260: BAS134 | EF260: BAS135 | EG260: BAS136 | EH260: BAS137 | EI260: BAS138 | EJ260: BAS139 | EK260: BAS140 | EL260: BAS141 | EM260: BAS142 | EN260: BAS143 | EO260: BAS144 | EP260: BAS145 | EQ260: BAS146 | ER260: BAS147 | ES260: BAS148 | ET260: BAS149 | EU260: BAS150 | EV260: BAS151 | EW260: BAS152 | EX260: BAS153 | EY260: BAS154 | EZ260: BAS155 | FA260: BAS156 | FB260: BAS157 | FC260: BAS158 | FD260: BAS159 | FE260: BAS160 | FF260: BAS161 | FG260: BAS162 | FH260: BAS163 | FI260: BAS164 | FJ260: BAS165 | FK260: BAS166 | FL260: BAS167 | FM260: BAS168 | FN260: BAS169 | FO260: BAS170 | FP260: BAS171 | FQ260: BAS172 | FR260: BAS173 | FS260: BAS174 | FT260: BAS175 | FU260: BAS176 | FV260: BAS177 | FW260: BAS178 | FX260: BAS179 | FY260: BAS180 | FZ260: BAS181 | GA260: BAS182 | GB260: BAS183 | GC260: BAS184 | GD260: BAS185 | GE260: BAS186 | GF260: BAS187 | GG260: BAS188 | GH260: BAS189 | GI260: BAS190 | GJ260: BAS191 | GK260: BAS192 | GL260: BAS193 | GM260: BAS194 | GN260: BAS195 | GO260: BAS196 | GP260: BAS197 | GQ260: BAS198 | GR260: BAS199 | GS260: BAS200 | GT260: BAS201 | GU260: BAS202 | GV260: BAS203 | GW260: BAS204 | GX260: BAS205 | GY260: BAS206 | GZ260: BAS207 | HA260: BAS208 | HB260: BAS209 | HC260: BAS210 | HD260: BAS211 | HE260: BAS212 | HF260: BAS213 | HG260: BAS214 | HH260: BAS215 | HI260: BAS216 | HJ260: BAS217 | HK260: BAS218 | HL260: BAS219 | HM260: BAS220 | HN260: BAS221 | HO260: BAS222 | HP260: BAS223 | HQ260: BAS224 | HR260: BAS225 | HS260: BAS226 | HT260: BAS227 | HU260: BAS228 | HV260: BAS229 | HW260: BAS230
B261: =IF(B260=B239,"SI","NO") -> SI | C261: =IF(C260=C239,"SI","NO") -> SI | D261: SI | E261: SI | F261: SI | G261: SI | H261: SI | I261: SI | J261: SI | K261: SI | L261: SI | M261: SI | N261: SI | O261: SI | P261: SI | Q261: SI | R261: SI | S261: SI | T261: SI | U261: SI | V261: SI | W261: SI | X261: SI | Y261: SI | Z261: SI | AA261: SI | AB261: SI | AC261: SI | AD261: SI | AE261: SI | AF261: SI | AG261: SI | AH261: SI | AI261: SI | AJ261: SI | AK261: SI | AL261: SI | AM261: SI | AN261: SI | AO261: SI | AP261: SI | AQ261: SI | AR261: SI | AS261: SI | AT261: SI | AU261: SI | AV261: SI | AW261: SI | AX261: SI | AY261: SI | AZ261: SI | BA261: SI | BB261: SI | BC261: SI | BD261: SI | BE261: SI | BF261: SI | BG261: SI | BH261: SI | BI261: SI | BJ261: SI | BK261: SI | BL261: SI | BM261: SI | BN261: SI | BO261: =IF(BO260=BO239,"SI","NO") -> SI | BP261: SI | BQ261: SI | BR261: SI | BS261: SI | BT261: SI | BU261: SI | BV261: SI | BW261: SI | BX261: SI | BY261: SI | BZ261: SI | CA261: SI | CB261: SI | CC261: SI | CD261: SI | CE261: SI | CF261: SI | CG261: SI | CH261: SI | CI261: SI | CJ261: SI | CK261: SI | CL261: SI | CM261: SI | CN261: SI | CO261: SI | CP261: SI | CQ261: SI | CR261: SI | CS261: SI | CT261: SI | CU261: SI | CV261: SI | CW261: SI | CX261: SI | CY261: SI | CZ261: SI | DA261: SI | DB261: SI | DC261: SI | DD261: SI | DE261: SI | DF261: SI | DG261: SI | DH261: SI | DI261: SI | DJ261: SI | DK261: SI | DL261: SI | DM261: SI | DN261: SI | DO261: SI | DP261: SI | DQ261: SI | DR261: SI | DS261: SI | DT261: SI | DU261: SI | DV261: SI | DW261: SI | DX261: SI | DY261: SI | DZ261: SI | EA261: =IF(EA260=EA239,"SI","NO") -> SI | EB261: SI | EC261: SI | ED261: SI | EE261: SI | EF261: SI | EG261: SI | EH261: SI | EI261: SI | EJ261: SI | EK261: SI | EL261: SI | EM261: SI | EN261: SI | EO261: SI | EP261: SI | EQ261: SI | ER261: SI | ES261: SI | ET261: SI | EU261: SI | EV261: SI | EW261: SI | EX261: SI | EY261: SI | EZ261: SI | FA261: SI | FB261: SI | FC261: SI | FD261: SI | FE261: SI | FF261: SI | FG261: SI | FH261: SI | FI261: SI | FJ261: SI | FK261: SI | FL261: SI | FM261: SI | FN261: SI | FO261: SI | FP261: SI | FQ261: SI | FR261: SI | FS261: SI | FT261: SI | FU261: SI | FV261: SI | FW261: SI | FX261: SI | FY261: SI | FZ261: SI | GA261: SI | GB261: SI | GC261: SI | GD261: SI | GE261: SI | GF261: SI | GG261: SI | GH261: SI | GI261: SI | GJ261: SI | GK261: SI | GL261: SI | GM261: =IF(GM260=GM239,"SI","NO") -> SI | GN261: SI | GO261: SI | GP261: SI | GQ261: SI | GR261: SI | GS261: SI | GT261: SI | GU261: SI | GV261: SI | GW261: SI | GX261: SI | GY261: SI | GZ261: SI | HA261: SI | HB261: SI | HC261: SI | HD261: SI | HE261: SI | HF261: SI | HG261: SI | HH261: SI | HI261: SI | HJ261: SI | HK261: SI | HL261: SI | HM261: SI | HN261: SI | HO261: SI | HP261: SI | HQ261: SI | HR261: SI | HS261: SI | HT261: SI | HU261: SI | HV261: SI | HW261: SI
A267: METAS
A268: ANNO | B268: 2025
A269: cod_red | B269: 03
A270: codmic | B270: (Todas)
A271: cod_prov | B271: (Todas)
A272: coddist | B272: (Todas)
A273: cod_estab | B273: (Todas)
A274: cod_eje | B274: (Todas)
A276: Valores
A277: f20087901 | B277: f23317201 | C277: f23317203 | D277: f23317204 | E277: f23317205 | F277: f23317206 | G277: f23317209 | H277: f23317210 | I277: f23317211 | J277: f23328701 | K277: f23328702 | L277: f23329101 | M277: f23329102 | N277: f23329103 | O277: f23329104 | P277: f23329105 | Q277: f23329106 | R277: f23329107 | S277: f23329108 | T277: f23329109 | U277: f23329110 | V277: f23329111 | W277: f23329112 | X277: f23329113 | Y277: f23329114 | Z277: f23329115 | AA277: f23329116 | AB277: f23329117 | AC277: f23329201 | AD277: f23329202 | AE277: f23329203 | AF277: f23329404 | AG277: f23329406 | AH277: f23329407 | AI277: f23329408 | AJ277: f23329409 | AK277: f23329413 | AL277: f23329414 | AM277: f23329415 | AN277: f23329416 | AO277: f23329417 | AP277: f23329418 | AQ277: f23329501 | AR277: f23329601 | AS277: f23329602 | AT277: f23329701 | AU277: f23329801 | AV277: f23329901 | AW277: f23329902 | AX277: f23329903 | AY277: f23330001 | AZ277: f23330002 | BA277: f23330003 | BB277: f23330004 | BC277: f23330005 | BD277: f23330401 | BE277: f23330402 | BF277: f23330403 | BG277: f23330501 | BH277: f23330503 | BI277: f23330504 | BJ277: f23330505 | BK277: f23330506 | BL277: f23330601 | BM277: f23330602 | BN277: f23330603 | BO277: f23330604 | BP277: f23330605 | BQ277: f23330606 | BR277: f23330608 | BS277: f23330609 | BT277: f23330610 | BU277: f23330611 | BV277: f23330612 | BW277: f23330613 | BX277: f23330614 | BY277: f23330615 | BZ277: f23330616 | CA277: f23330617 | CB277: f23330618 | CC277: f23330619 | CD277: f23330701 | CE277: f23330702 | CF277: f23330703 | CG277: f23330704 | CH277: f23330705 | CI277: f23330706 | CJ277: f23330707 | CK277: f23330708 | CL277: f23330709 | CM277: f23330710 | CN277: f23341201 | CO277: f23341202 | CP277: f23341203 | CQ277: f23341204 | CR277: f23341205 | CS277: f24427702 | CT277: f24427703 | CU277: f24427704 | CV277: f25000201 | CW277: f25000202 | CX277: f25000203 | CY277: f25000502 | CZ277: f25000503
A278: 4783 | B278: 1964 | C278: 1713 | D278: 1964 | E278: 1105 | F278: 1106 | G278: 652 | H278: 1558 | I278: 1211 | J278: 0 | K278: 0 | L278: 0 | M278: 0 | N278: 70 | O278: 0 | P278: 62 | Q278: 3964 | R278: 1116 | S278: 1373 | T278: 465 | U278: 11 | V278: 40 | W278: 0 | X278: 817 | Y278: 41 | Z278: 1042 | AA278: 5 | AB278: 280 | AC278: 10439 | AD278: 1305 | AE278: 179 | AF278: 27 | AG278: 197 | AH278: 40 | AI278: 57 | AJ278: 1860 | AK278: 27 | AL278: 13 | AM278: 38 | AN278: 8 | AO278: 140 | AP278: 490 | AQ278: 1433 | AR278: 241 | AS278: 136 | AT278: 379 | AU278: 1674 | AV278: 4 | AW278: 6 | AX278: 3 | AY278: 0 | AZ278: 0 | BA278: 0 | BB278: 0 | BC278: 0 | BD278: 180 | BE278: 100 | BF278: 30 | BG278: 1812 | BH278: 1591 | BI278: 0 | BJ278: 1682 | BK278: 1812 | BL278: 28 | BM278: 2 | BN278: 4 | BO278: 11 | BP278: 110 | BQ278: 4 | BR278: 7 | BS278: 2 | BT278: 8 | BU278: 34 | BV278: 15 | BW278: 0 | BX278: 0 | BY278: 7 | BZ278: 1 | CA278: 1 | CB278: 0 | CC278: 0 | CD278: 0 | CE278: 0 | CF278: 0 | CG278: 0 | CH278: 0 | CI278: 0 | CJ278: 0 | CK278: 0 | CL278: 0 | CM278: 0 | CN278: 570 | CO278: 226 | CP278: 1350 | CQ278: 228 | CR278: 11 | CS278: 2 | CT278: 2 | CU278: 0 | CV278: 0 | CW278: 0 | CX278: 0 | CY278: 8793 | CZ278: 0

Sheet INFORME
B3: GERENCIA REGIONAL DE SALUD CUSCO
B4: DIRECCION DE ESTADISTICA, INFORMATICA Y TELECOMUNICACIONES
B5: ESTRATEGIA SANITARIA DE SALUD SEXUAL Y REPRODUCTIVA
B7: REPORTE MENSUAL DE ACTIVIDADES DE PLANIFICACIÓN FAMILIAR
C9: GERESA | F9: CUSCO
C11: RED DE SALUD | F11: =+TABLAS!O9 -> 03 - LA CONVENCION | L11: PROVINCIA | N11: =+TABLAS!O12 ->  | R11: AÑO | S11: =+TABLAS!I16 -> 2025
C13: MICRO RED | F13: =+TABLAS!O10 ->  | L13: DISTRITO | N13: =+TABLAS!O13 ->  | R13: MES | S13: =+TABLAS!N26 -> ENE - MAR | T13: =+TABLAS!N20 -> 3
C15: ESTABLECIMIENTO DE SALUD | F15: =+TABLAS!O11 ->  | L15: EJECUTORA | N15: =+TABLAS!O14 ->  | S15: =IF(T13=1,MID(F15,1,9)&"_"&MID(F15,13,20)&"_"&MID(S13,1,3)&"_"&S11,MID(F15,1,9)&"_"&MID(F15,13,20)&"_"&MID(S13,1,3)&"_"&MID(S13,7,3)&"_"&S11) -> __ENE_MAR_2025
T16: CONTAR LOS TA | U16: FACTOR DE CONVERSIÓN
H17: 1 | I17: 2 | R17: 1 | S17: =+R17+1 -> 2 | T17: =+S17+1 -> 3 | U17: 4 | W17: =+U17+1 -> 5
C18: METODO | E18: Tipo de Usuaria | F18: TOTAL | H18: 10 a 11 a. | J18: 12 a 17 a. | L18: 18 a 29 a | N18: 30 a 59 a | P18: > 60 a. | R18: Usuaria Captada para PF | S18: Embarazo por Falla de Método | T18: Persona Protegida con Método Moderno (Los 12 últimos meses) | U18: Pareja Protegida con (Factor de Conversión) | V18: Factor de Conversión | W18: Control
F20: Nuevas | G20: Continuadoras | H20: Nuevas | I20: Continua-doras | J20: Nuevas | K20: Continua-doras | L20: Nuevas | M20: Continua-doras | N20: Nuevas | O20: Continua-doras | P20: Nuevas | Q20: Continua-doras
C21: TOTAL 5000043 | E21: A | F21: =+F23+F26+F29+F32+F35+F38+F41+F44+F47+F48+F49+F50 -> 2708 | G21: =+G23+G26+G29+G32+G35+G38+G41+G44+G47+G48+G49+G50 -> 4688 | H21: 3 | I21: 0 | J21: 175 | K21: 191 | L21: 1112 | M21: 1618 | N21: 1412 | O21: 2876 | P21: 6 | Q21: 3 | R21: =SUM(R23:R50) -> 147 | S21: =SUM(S23:S50) -> 1 | T21: 283 | U21: 1741.185641 | W21: =SUM(W23:W50) -> 61500 | AH21: =+GETPIVOTDATA(" BAS001",TABLAS!$A$97) -> 0
E22: I | F22: =+F24+F27+F30+F33+F36+F39+F42+F45 -> 8637 | G22: =+G24+G27+G30+G33+G36+G39+G42+G45 -> 22085 | H22: 3 | I22: 0 | J22: 305 | K22: 348 | L22: 3384 | M22: 6470 | N22: 4845 | O22: 15177 | P22: 100 | Q22: 90 | AH22: =+IMPORTARDATOSDINAMICOS(" BAS | AJ22: ",TABLAS!$A$238)
C23: DIU 3329105 | E23: A | F23: =+H23+J23+L23+N23+P23 -> 7 | G23: =+I23+K23+M23+O23+Q23 -> 0 | H23: =+GETPIVOTDATA(" BAS001",TABLAS!$A$59) -> 0 | I23: =+GETPIVOTDATA(" BAS002",TABLAS!$A$59) -> 0 | J23: =+GETPIVOTDATA(" BAS001",TABLAS!$A$97) -> 0 | K23: =+GETPIVOTDATA(" BAS002",TABLAS!$A$97) -> 0 | L23: =+GETPIVOTDATA(" BAS001",TABLAS!$A$132) -> 4 | M23: =+GETPIVOTDATA(" BAS002",TABLAS!$A$132) -> 0 | N23: =+GETPIVOTDATA(" BAS001",TABLAS!$A$167) -> 3 | O23: =+GETPIVOTDATA(" BAS002",TABLAS!$A$167) -> 0 | P23: =+GETPIVOTDATA(" BAS001",TABLAS!$A$203) -> 0 | Q23: =+GETPIVOTDATA(" BAS002",TABLAS!$A$203) -> 0 | R23: =+GETPIVOTDATA(" BAS001",TABLAS!$A$238) -> 1 | S23: =+GETPIVOTDATA(" BAS002",TABLAS!$A$238) -> 0 | T23: =+GETPIVOTDATA(" BAS003",TABLAS!$A$238) -> 0 | U23: =+W23/V23 -> 7 | V23: 1 | W23: =+GETPIVOTDATA(" BAS005",TABLAS!$A$238) -> 7 | X23: =+GETPIVOTDATA(" f23329105",TABLAS!$A$276) -> 62 | Y23: =+U23*100/X23 -> 11.29032258
E24: I | F24: =+H24+J24+L24+N24+P24 -> 7 | G24: =+I24+K24+M24+O24+Q24 -> 0 | H24: =+GETPIVOTDATA(" BAS003",TABLAS!$A$59) -> 0 | I24: =+GETPIVOTDATA(" BAS004",TABLAS!$A$59) -> 0 | J24: =+GETPIVOTDATA(" BAS003",TABLAS!$A$97) -> 0 | K24: =+GETPIVOTDATA(" BAS004",TABLAS!$A$97) -> 0 | L24: =+GETPIVOTDATA(" BAS003",TABLAS!$A$132) -> 4 | M24: =+GETPIVOTDATA(" BAS004",TABLAS!$A$132) -> 0 | N24: =+GETPIVOTDATA(" BAS003",TABLAS!$A$167) -> 3 | O24: =+GETPIVOTDATA(" BAS004",TABLAS!$A$167) -> 0 | P24: =+GETPIVOTDATA(" BAS003",TABLAS!$A$203) -> 0 | Q24: =+GETPIVOTDATA(" BAS004",TABLAS!$A$203) -> 0 | W24: =+F24+G24 -> 7 | X24: =+W23-W24 -> 0
H25: =+H23*1 -> 0 | I25: =+I23*1 -> 0 | J25: 0 | K25: 0 | L25: 4 | M25: 0 | N25: 3 | O25: 0 | P25: 0 | Q25: 0
C26: DIU LIBERADOR DE PROGESTÁGENO 3329105 | E26: A | F26: 3 | G26: 0 | H26: =+GETPIVOTDATA(" BAS005",TABLAS!$A$59) -> 0 | I26: =+GETPIVOTDATA(" BAS006",TABLAS!$A$59) -> 0 | J26: =+GETPIVOTDATA(" BAS005",TABLAS!$A$97) -> 0 | K26: =+GETPIVOTDATA(" BAS006",TABLAS!$A$97) -> 0 | L26: =+GETPIVOTDATA(" BAS005",TABLAS!$A$132) -> 0 | M26: =+GETPIVOTDATA(" BAS006",TABLAS!$A$132) -> 0 | N26: =+GETPIVOTDATA(" BAS005",TABLAS!$A$167) -> 3 | O26: =+GETPIVOTDATA(" BAS006",TABLAS!$A$167) -> 0 | P26: =+GETPIVOTDATA(" BAS005",TABLAS!$A$203) -> 0 | Q26: =+GETPIVOTDATA(" BAS006",TABLAS!$A$203) -> 0 | R26: =+GETPIVOTDATA(" BAS006",TABLAS!$A$238) -> 0 | S26: =+GETPIVOTDATA(" BAS007",TABLAS!$A$238) -> 0 | T26: =+GETPIVOTDATA(" BAS008",TABLAS!$A$238) -> 0 | U26: =+W26/V26 -> 3 | V26: 1 | W26: =+GETPIVOTDATA(" BAS010",TABLAS!$A$238) -> 3 | X26: =+GETPIVOTDATA(" f23329105",TABLAS!$A$276) -> 62 | Y26: =+U26*100/X26 -> 4.838709677
E27: I | F27: 3 | G27: 0 | H27: =+GETPIVOTDATA(" BAS007",TABLAS!$A$59) -> 0 | I27: =+GETPIVOTDATA(" BAS008",TABLAS!$A$59) -> 0 | J27: =+GETPIVOTDATA(" BAS007",TABLAS!$A$97) -> 0 | K27: =+GETPIVOTDATA(" BAS008",TABLAS!$A$97) -> 0 | L27: =+GETPIVOTDATA(" BAS007",TABLAS!$A$132) -> 0 | M27: =+GETPIVOTDATA(" BAS008",TABLAS!$A$132) -> 0 | N27: =+GETPIVOTDATA(" BAS007",TABLAS!$A$167) -> 3 | O27: =+GETPIVOTDATA(" BAS008",TABLAS!$A$167) -> 0 | P27: =+GETPIVOTDATA(" BAS007",TABLAS!$A$203) -> 0 | Q27: =+GETPIVOTDATA(" BAS008",TABLAS!$A$203) -> 0 | W27: =+F27+G27 -> 3 | X27: =+W26-W27 -> 0
H28: =+H26*1 -> 0 | I28: =+I26*1 -> 0 | J28: 0 | K28: 0 | L28: 0 | M28: 0 | N28: 3 | O28: 0 | P28: 0 | Q28: 0
C29: HORMONAL | D29: ORAL COMBINADO 3329108 | E29: A | F29: 357 | G29: 722 | H29: =+GETPIVOTDATA(" BAS009",TABLAS!$A$59) -> 0 | I29: =+GETPIVOTDATA(" BAS010",TABLAS!$A$59) -> 0 | J29: =+GETPIVOTDATA(" BAS009",TABLAS!$A$97) -> 18 | K29: =+GETPIVOTDATA(" BAS010",TABLAS!$A$97) -> 7 | L29: =+GETPIVOTDATA(" BAS009",TABLAS!$A$132) -> 158 | M29: =+GETPIVOTDATA(" BAS010",TABLAS!$A$132) -> 196 | N29: =+GETPIVOTDATA(" BAS009",TABLAS!$A$167) -> 181 | O29: =+GETPIVOTDATA(" BAS010",TABLAS!$A$167) -> 519 | P29: =+GETPIVOTDATA(" BAS009",TABLAS!$A$203) -> 0 | Q29: =+GETPIVOTDATA(" BAS010",TABLAS!$A$203) -> 0 | R29: =+GETPIVOTDATA(" BAS011",TABLAS!$A$238) -> 40 | S29: =+GETPIVOTDATA(" BAS012",TABLAS!$A$238) -> 0 | T29: =+GETPIVOTDATA(" BAS013",TABLAS!$A$238) -> 66 | U29: =+W29/V29 -> 256.6923077 | V29: 13 | W29: =+GETPIVOTDATA(" BAS015",TABLAS!$A$238) -> 3337 | X29: =+GETPIVOTDATA(" f23329108",TABLAS!$A$276) -> 1373 | Y29: =+U29*100/X29 -> 18.69572525
E30: I | F30: 525 | G30: 2816 | H30: =+GETPIVOTDATA(" BAS011",TABLAS!$A$59) -> 0 | I30: =+GETPIVOTDATA(" BAS012",TABLAS!$A$59) -> 0 | J30: =+GETPIVOTDATA(" BAS011",TABLAS!$A$97) -> 18 | K30: =+GETPIVOTDATA(" BAS012",TABLAS!$A$97) -> 28 | L30: =+GETPIVOTDATA(" BAS011",TABLAS!$A$132) -> 232 | M30: =+GETPIVOTDATA(" BAS012",TABLAS!$A$132) -> 749 | N30: =+GETPIVOTDATA(" BAS011",TABLAS!$A$167) -> 275 | O30: =+GETPIVOTDATA(" BAS012",TABLAS!$A$167) -> 2039 | P30: =+GETPIVOTDATA(" BAS011",TABLAS!$A$203) -> 0 | Q30: =+GETPIVOTDATA(" BAS012",TABLAS!$A$203) -> 0 | W30: =+F30+G30 -> 3341 | X30: =+W29-W30 -> -4 | AB30: =+AC29+1 -> 1 | AC30: =+AB30+1 -> 2 | AE30: =IF(AB30<9,CONCATENATE("00",AB30),IF(AND(AB30>9,AB30<100),CONCATENATE("0",AB30),AB30)) -> 001 | AF30: =IF(AC30<9,CONCATENATE("00",AC30),IF(AND(AC30>9,AC30<100),CONCATENATE("0",AC30),AC30)) -> 002 | AH30: =CONCATENATE($AH$22,AE30,$AJ$22) -> =+IMPORTARDATOSDINAMICOS(" BAS001",TABLAS!$A$238) | AI30: =CONCATENATE($AH$22,AF30,$AJ$22) -> =+IMPORTARDATOSDINAMICOS(" BAS002",TABLAS!$A$238)
H31: =+H29*1 -> 0 | I31: =+I29*4 -> 0 | J31: =+J29*1 -> 18 | K31: =+K29*4 -> 28 | L31: =+L29*1 -> 158 | M31: =+M29*4 -> 784 | N31: =+N29*1 -> 181 | O31: =+O29*4 -> 2076 | P31: =+P29*1 -> 0 | Q31: =+Q29*4 -> 0
D32: INYECTABLE TRIMESTRAL 3329106 | E32: A | F32: 913 | G32: 2319 | H32: =+GETPIVOTDATA(" BAS013",TABLAS!$A$59) -> 2 | I32: =+GETPIVOTDATA(" BAS014",TABLAS!$A$59) -> 0 | J32: =+GETPIVOTDATA(" BAS013",TABLAS!$A$97) -> 78 | K32: =+GETPIVOTDATA(" BAS014",TABLAS!$A$97) -> 131 | L32: =+GETPIVOTDATA(" BAS013",TABLAS!$A$132) -> 375 | M32: =+GETPIVOTDATA(" BAS014",TABLAS!$A$132) -> 857 | N32: =+GETPIVOTDATA(" BAS013",TABLAS!$A$167) -> 458 | O32: =+GETPIVOTDATA(" BAS014",TABLAS!$A$167) -> 1331 | P32: =+GETPIVOTDATA(" BAS013",TABLAS!$A$203) -> 0 | Q32: =+GETPIVOTDATA(" BAS014",TABLAS!$A$203) -> 0 | R32: =+GETPIVOTDATA(" BAS016",TABLAS!$A$238) -> 30 | S32: =+GETPIVOTDATA(" BAS017",TABLAS!$A$238) -> 1 | T32: =+GETPIVOTDATA(" BAS018",TABLAS!$A$238) -> 116 | U32: =+W32/V32 -> 801.5 | V32: 4 | W32: =+GETPIVOTDATA(" BAS020",TABLAS!$A$238) -> 3206 | X32: =+GETPIVOTDATA(" f23329106",TABLAS!$A$276) -> 3964 | Y32: =+U32*100/X32 -> 20.21947528 | AB32: =+AC30+1 -> 3 | AC32: 4 | AE32: 003 | AF32: 004 | AH32: =+IMPORTARDATOSDINAMICOS(" BAS003",TABLAS!$A$238) | AI32: =+IMPORTARDATOSDINAMICOS(" BAS004",TABLAS!$A$238)
E33: I | F33: 906 | G33: 2303 | H33: =+GETPIVOTDATA(" BAS015",TABLAS!$A$59) -> 2 | I33: =+GETPIVOTDATA(" BAS016",TABLAS!$A$59) -> 0 | J33: =+GETPIVOTDATA(" BAS015",TABLAS!$A$97) -> 78 | K33: =+GETPIVOTDATA(" BAS016",TABLAS!$A$97) -> 130 | L33: =+GETPIVOTDATA(" BAS015",TABLAS!$A$132) -> 371 | M33: =+GETPIVOTDATA(" BAS016",TABLAS!$A$132) -> 850 | N33: =+GETPIVOTDATA(" BAS015",TABLAS!$A$167) -> 455 | O33: =+GETPIVOTDATA(" BAS016",TABLAS!$A$167) -> 1323 | P33: =+GETPIVOTDATA(" BAS015",TABLAS!$A$203) -> 0 | Q33: =+GETPIVOTDATA(" BAS016",TABLAS!$A$203) -> 0 | W33: =+F33+G33 -> 3209 | X33: =+W32-W33 -> -3 | AB33: 5 | AC33: 6 | AE33: 005 | AF33: 006 | AH33: =+IMPORTARDATOSDINAMICOS(" BAS005",TABLAS!$A$238) | AI33: =+IMPORTARDATOSDINAMICOS(" BAS006",TABLAS!$A$238)
H34: =+H32*1 -> 2 | I34: =+I32*1 -> 0 | J34: 78 | K34: 131 | L34: 375 | M34: 857 | N34: 458 | O34: 1331 | P34: 0 | Q34: 0
D35: INYECTABLE MENSUAL 3329113 | E35: A | F35: 507 | G35: 1056 | H35: =+GETPIVOTDATA(" BAS017",TABLAS!$A$59) -> 0 | I35: =+GETPIVOTDATA(" BAS018",TABLAS!$A$59) -> 0 | J35: =+GETPIVOTDATA(" BAS017",TABLAS!$A$97) -> 30 | K35: =+GETPIVOTDATA(" BAS018",TABLAS!$A$97) -> 45 | L35: =+GETPIVOTDATA(" BAS017",TABLAS!$A$132) -> 201 | M35: =+GETPIVOTDATA(" BAS018",TABLAS!$A$132) -> 389 | N35: =+GETPIVOTDATA(" BAS017",TABLAS!$A$167) -> 276 | O35: =+GETPIVOTDATA(" BAS018",TABLAS!$A$167) -> 622 | P35: =+GETPIVOTDATA(" BAS017",TABLAS!$A$203) -> 0 | Q35: =+GETPIVOTDATA(" BAS018",TABLAS!$A$203) -> 0 | R35: =+GETPIVOTDATA(" BAS021",TABLAS!$A$238) -> 24 | S35: =+GETPIVOTDATA(" BAS022",TABLAS!$A$238) -> 0 | T35: =+GETPIVOTDATA(" BAS023",TABLAS!$A$238) -> 56 | U35: =+W35/V35 -> 127.75 | V35: 12 | W35: =+GETPIVOTDATA(" BAS025",TABLAS!$A$238) -> 1533 | X35: =+GETPIVOTDATA(" f23329113",TABLAS!$A$276) -> 817 | Y35: =+U35*100/X35 -> 15.63647491 | AB35: =+AC33+1 -> 7 | AC35: 8 | AE35: 007 | AF35: 008 | AH35: =+IMPORTARDATOSDINAMICOS(" BAS007",TABLAS!$A$238) | AI35: =+IMPORTARDATOSDINAMICOS(" BAS008",TABLAS!$A$238)
E36: I | F36: 476 | G36: 1058 | H36: =+GETPIVOTDATA(" BAS019",TABLAS!$A$59) -> 0 | I36: =+GETPIVOTDATA(" BAS020",TABLAS!$A$59) -> 0 | J36: =+GETPIVOTDATA(" BAS019",TABLAS!$A$97) -> 24 | K36: =+GETPIVOTDATA(" BAS020",TABLAS!$A$97) -> 47 | L36: =+GETPIVOTDATA(" BAS019",TABLAS!$A$132) -> 193 | M36: =+GETPIVOTDATA(" BAS020",TABLAS!$A$132) -> 386 | N36: =+GETPIVOTDATA(" BAS019",TABLAS!$A$167) -> 259 | O36: =+GETPIVOTDATA(" BAS020",TABLAS!$A$167) -> 625 | P36: =+GETPIVOTDATA(" BAS019",TABLAS!$A$203) -> 0 | Q36: =+GETPIVOTDATA(" BAS020",TABLAS!$A$203) -> 0 | W36: =+F36+G36 -> 1534 | X36: =+W35-W36 -> -1 | AB36: 9 | AC36: 10 | AE36: 9 | AF36: 010 | AH36: =+IMPORTARDATOSDINAMICOS(" BAS9",TABLAS!$A$238) | AI36: =+IMPORTARDATOSDINAMICOS(" BAS010",TABLAS!$A$238)
H37: =+H35*1 -> 0 | I37: =+I35*1 -> 0 | J37: 30 | K37: 45 | L37: 201 | M37: 389 | N37: 276 | O37: 622 | P37: 0 | Q37: 0
D38: IMPLANTE 3329115 | E38: A | F38: 230 | G38: 57 | H38: =+GETPIVOTDATA(" BAS021",TABLAS!$A$59) -> 1 | I38: =+GETPIVOTDATA(" BAS022",TABLAS!$A$59) -> 0 | J38: =+GETPIVOTDATA(" BAS021",TABLAS!$A$97) -> 24 | K38: =+GETPIVOTDATA(" BAS022",TABLAS!$A$97) -> 3 | L38: =+GETPIVOTDATA(" BAS021",TABLAS!$A$132) -> 112 | M38: =+GETPIVOTDATA(" BAS022",TABLAS!$A$132) -> 24 | N38: =+GETPIVOTDATA(" BAS021",TABLAS!$A$167) -> 93 | O38: =+GETPIVOTDATA(" BAS022",TABLAS!$A$167) -> 30 | P38: =+GETPIVOTDATA(" BAS021",TABLAS!$A$203) -> 0 | Q38: =+GETPIVOTDATA(" BAS022",TABLAS!$A$203) -> 0 | R38: =+GETPIVOTDATA(" BAS026",TABLAS!$A$238) -> 14 | S38: =+GETPIVOTDATA(" BAS027",TABLAS!$A$238) -> 0 | T38: =+GETPIVOTDATA(" BAS028",TABLAS!$A$238) -> 32 | U38: =+W38/V38 -> 287 | V38: 1 | W38: =+GETPIVOTDATA(" BAS030",TABLAS!$A$238) -> 287 | X38: =+GETPIVOTDATA(" f23329115",TABLAS!$A$276) -> 1042 | Y38: =+U38*100/X38 -> 27.54318618 | AB38: =+AC36+1 -> 11 | AC38: 12 | AE38: 011 | AF38: 012 | AH38: =+IMPORTARDATOSDINAMICOS(" BAS011",TABLAS!$A$238) | AI38: =+IMPORTARDATOSDINAMICOS(" BAS012",TABLAS!$A$238)
E39: I | F39: 230 | G39: 57 | H39: =+GETPIVOTDATA(" BAS023",TABLAS!$A$59) -> 1 | I39: =+GETPIVOTDATA(" BAS024",TABLAS!$A$59) -> 0 | J39: =+GETPIVOTDATA(" BAS023",TABLAS!$A$97) -> 24 | K39: =+GETPIVOTDATA(" BAS024",TABLAS!$A$97) -> 3 | L39: =+GETPIVOTDATA(" BAS023",TABLAS!$A$132) -> 112 | M39: =+GETPIVOTDATA(" BAS024",TABLAS!$A$132) -> 24 | N39: =+GETPIVOTDATA(" BAS023",TABLAS!$A$167) -> 93 | O39: =+GETPIVOTDATA(" BAS024",TABLAS!$A$167) -> 30 | P39: =+GETPIVOTDATA(" BAS023",TABLAS!$A$203) -> 0 | Q39: =+GETPIVOTDATA(" BAS024",TABLAS!$A$203) -> 0 | W39: =+F39+G39 -> 287 | X39: =+W38-W39 -> 0 | AB39: 13 | AC39: 14 | AE39: 013 | AF39: 014 | AH39: =+IMPORTARDATOSDINAMICOS(" BAS013",TABLAS!$A$238) | AI39: =+IMPORTARDATOSDINAMICOS(" BAS014",TABLAS!$A$238)
H40: =+H38*1 -> 1 | J40: =+J38*1 -> 24 | L40: =+L38*1 -> 112 | N40: =+N38*1 -> 93 | P40: =+P38*1 -> 0
C41: BARRERA | D41: CONDON MASCULINO 3329107 | E41: A | F41: 626 | G41: 533 | H41: =+GETPIVOTDATA(" BAS025",TABLAS!$A$59) -> 0 | I41: =+GETPIVOTDATA(" BAS026",TABLAS!$A$59) -> 0 | J41: =+GETPIVOTDATA(" BAS025",TABLAS!$A$97) -> 18 | K41: =+GETPIVOTDATA(" BAS026",TABLAS!$A$97) -> 5 | L41: =+GETPIVOTDATA(" BAS025",TABLAS!$A$132) -> 245 | M41: =+GETPIVOTDATA(" BAS026",TABLAS!$A$132) -> 152 | N41: =+GETPIVOTDATA(" BAS025",TABLAS!$A$167) -> 357 | O41: =+GETPIVOTDATA(" BAS026",TABLAS!$A$167) -> 373 | P41: =+GETPIVOTDATA(" BAS025",TABLAS!$A$203) -> 6 | Q41: =+GETPIVOTDATA(" BAS026",TABLAS!$A$203) -> 3 | R41: =+GETPIVOTDATA(" BAS031",TABLAS!$A$238) -> 38 | S41: =+GETPIVOTDATA(" BAS032",TABLAS!$A$238) -> 0 | T41: =+GETPIVOTDATA(" BAS033",TABLAS!$A$238) -> 13 | U41: =+W41/V41 -> 223.29 | V41: 100 | W41: =+GETPIVOTDATA(" BAS035",TABLAS!$A$238) -> 22329 | X41: =+GETPIVOTDATA(" f23329107",TABLAS!$A$276) -> 1116 | Y41: =+U41*100/X41 -> 20.00806452 | AB41: =+AC39+1 -> 15 | AC41: 16 | AE41: 015 | AF41: 016 | AH41: =+IMPORTARDATOSDINAMICOS(" BAS015",TABLAS!$A$238) | AI41: =+IMPORTARDATOSDINAMICOS(" BAS016",TABLAS!$A$238)
E42: I | F42: 6478 | G42: 15851 | H42: =+GETPIVOTDATA(" BAS027",TABLAS!$A$59) -> 0 | I42: =+GETPIVOTDATA(" BAS028",TABLAS!$A$59) -> 0 | J42: =+GETPIVOTDATA(" BAS027",TABLAS!$A$97) -> 161 | K42: =+GETPIVOTDATA(" BAS028",TABLAS!$A$97) -> 140 | L42: =+GETPIVOTDATA(" BAS027",TABLAS!$A$132) -> 2472 | M42: =+GETPIVOTDATA(" BAS028",TABLAS!$A$132) -> 4461 | N42: =+GETPIVOTDATA(" BAS027",TABLAS!$A$167) -> 3745 | O42: =+GETPIVOTDATA(" BAS028",TABLAS!$A$167) -> 11160 | P42: =+GETPIVOTDATA(" BAS027",TABLAS!$A$203) -> 100 | Q42: =+GETPIVOTDATA(" BAS028",TABLAS!$A$203) -> 90 | W42: =+F42+G42 -> 22329 | X42: =+W41-W42 -> 0 | AB42: 17 | AC42: 18 | AE42: 017 | AF42: 018 | AH42: =+IMPORTARDATOSDINAMICOS(" BAS017",TABLAS!$A$238) | AI42: =+IMPORTARDATOSDINAMICOS(" BAS018",TABLAS!$A$238)
H43: =+H41*10 -> 0 | I43: =+I41*30 -> 0 | J43: =+J41*10 -> 180 | K43: =+K41*30 -> 150 | L43: =+L41*10 -> 2450 | M43: =+M41*30 -> 4560 | N43: =+N41*10 -> 3570 | O43: =+O41*30 -> 11190 | P43: =+P41*10 -> 60 | Q43: =+Q41*30 -> 90
D44: CONDON FEMENINO 3329114 | E44: A | F44: 3 | G44: 0 | H44: =+GETPIVOTDATA(" BAS029",TABLAS!$A$59) -> 0 | I44: =+GETPIVOTDATA(" BAS030",TABLAS!$A$59) -> 0 | J44: =+GETPIVOTDATA(" BAS029",TABLAS!$A$97) -> 0 | K44: =+GETPIVOTDATA(" BAS030",TABLAS!$A$97) -> 0 | L44: =+GETPIVOTDATA(" BAS029",TABLAS!$A$132) -> 0 | M44: =+GETPIVOTDATA(" BAS030",TABLAS!$A$132) -> 0 | N44: =+GETPIVOTDATA(" BAS029",TABLAS!$A$167) -> 3 | O44: =+GETPIVOTDATA(" BAS030",TABLAS!$A$167) -> 0 | P44: =+GETPIVOTDATA(" BAS029",TABLAS!$A$203) -> 0 | Q44: =+GETPIVOTDATA(" BAS030",TABLAS!$A$203) -> 0 | R44: =+GETPIVOTDATA(" BAS036",TABLAS!$A$238) -> 0 | S44: =+GETPIVOTDATA(" BAS037",TABLAS!$A$238) -> 0 | T44: =+GETPIVOTDATA(" BAS038",TABLAS!$A$238) -> 0 | U44: =+W44/V44 -> 0.12 | V44: 100 | W44: =+GETPIVOTDATA(" BAS040",TABLAS!$A$238) -> 12 | X44: =+GETPIVOTDATA(" f23329114",TABLAS!$A$276) -> 41 | Y44: =+U44*100/X44 -> 0.2926829268 | AB44: =+AC42+1 -> 19 | AC44: 20 | AE44: 019 | AF44: 020 | AH44: =+IMPORTARDATOSDINAMICOS(" BAS019",TABLAS!$A$238) | AI44: =+IMPORTARDATOSDINAMICOS(" BAS020",TABLAS!$A$238)
E45: I | F45: 12 | G45: 0 | H45: =+GETPIVOTDATA(" BAS031",TABLAS!$A$59) -> 0 | I45: =+GETPIVOTDATA(" BAS032",TABLAS!$A$59) -> 0 | J45: =+GETPIVOTDATA(" BAS031",TABLAS!$A$97) -> 0 | K45: =+GETPIVOTDATA(" BAS032",TABLAS!$A$97) -> 0 | L45: =+GETPIVOTDATA(" BAS031",TABLAS!$A$132) -> 0 | M45: =+GETPIVOTDATA(" BAS032",TABLAS!$A$132) -> 0 | N45: =+GETPIVOTDATA(" BAS031",TABLAS!$A$167) -> 12 | O45: =+GETPIVOTDATA(" BAS032",TABLAS!$A$167) -> 0 | P45: =+GETPIVOTDATA(" BAS031",TABLAS!$A$203) -> 0 | Q45: =+GETPIVOTDATA(" BAS032",TABLAS!$A$203) -> 0 | W45: =+F45+G45 -> 12 | X45: =+W44-W45 -> 0 | AB45: 21 | AC45: 22 | AE45: 021 | AF45: 022 | AH45: =+IMPORTARDATOSDINAMICOS(" BAS021",TABLAS!$A$238) | AI45: =+IMPORTARDATOSDINAMICOS(" BAS022",TABLAS!$A$238)
H46: =+H44*10 -> 0 | I46: =+I44*30 -> 0 | J46: =+J44*10 -> 0 | K46: =+K44*30 -> 0 | L46: =+L44*10 -> 0 | M46: =+M44*30 -> 0 | N46: =+N44*10 -> 30 | O46: =+O44*30 -> 0 | P46: =+P44*10 -> 0 | Q46: =+Q44*30 -> 0
C47: AQV FEMENINO 3329103 | E47: A | F47: 25 | G47: 0 | H47: =+GETPIVOTDATA(" BAS033",TABLAS!$A$59) -> 0 | I47: =+GETPIVOTDATA(" BAS034",TABLAS!$A$59) -> 0 | J47: =+GETPIVOTDATA(" BAS033",TABLAS!$A$97) -> 0 | K47: =+GETPIVOTDATA(" BAS034",TABLAS!$A$97) -> 0 | L47: =+GETPIVOTDATA(" BAS033",TABLAS!$A$132) -> 6 | M47: =+GETPIVOTDATA(" BAS034",TABLAS!$A$132) -> 0 | N47: =+GETPIVOTDATA(" BAS033",TABLAS!$A$167) -> 19 | O47: =+GETPIVOTDATA(" BAS034",TABLAS!$A$167) -> 0 | P47: =+GETPIVOTDATA(" BAS033",TABLAS!$A$203) -> 0 | Q47: =+GETPIVOTDATA(" BAS034",TABLAS!$A$203) -> 0 | R47: =+GETPIVOTDATA(" BAS041",TABLAS!$A$238) -> 0 | S47: =+GETPIVOTDATA(" BAS042",TABLAS!$A$238) -> 0 | T47: =+GETPIVOTDATA(" BAS043",TABLAS!$A$238) -> 0 | U47: =+W47/V47 -> 29 | V47: 1 | W47: =+GETPIVOTDATA(" BAS045",TABLAS!$A$238) -> 29 | X47: =+GETPIVOTDATA(" f23329103",TABLAS!$A$276) -> 70 | Y47: =+U47*100/X47 -> 41.42857143 | AB47: =+AC45+1 -> 23 | AC47: 24 | AE47: 023 | AF47: 024 | AH47: =+IMPORTARDATOSDINAMICOS(" BAS023",TABLAS!$A$238) | AI47: =+IMPORTARDATOSDINAMICOS(" BAS024",TABLAS!$A$238)
C48: AQV MASCULINO 3329101 | E48: A | F48: 0 | G48: 0 | H48: =+GETPIVOTDATA(" BAS035",TABLAS!$A$59) -> 0 | I48: =+GETPIVOTDATA(" BAS036",TABLAS!$A$59) -> 0 | J48: =+GETPIVOTDATA(" BAS035",TABLAS!$A$97) -> 0 | K48: =+GETPIVOTDATA(" BAS036",TABLAS!$A$97) -> 0 | L48: =+GETPIVOTDATA(" BAS035",TABLAS!$A$132) -> 0 | M48: =+GETPIVOTDATA(" BAS036",TABLAS!$A$132) -> 0 | N48: =+GETPIVOTDATA(" BAS035",TABLAS!$A$167) -> 0 | O48: =+GETPIVOTDATA(" BAS036",TABLAS!$A$167) -> 0 | P48: =+GETPIVOTDATA(" BAS035",TABLAS!$A$203) -> 0 | Q48: =+GETPIVOTDATA(" BAS036",TABLAS!$A$203) -> 0 | R48: =+GETPIVOTDATA(" BAS046",TABLAS!$A$238) -> 0 | S48: =+GETPIVOTDATA(" BAS047",TABLAS!$A$238) -> 0 | T48: =+GETPIVOTDATA(" BAS048",TABLAS!$A$238) -> 0 | U48: =+W48/V48 -> 0 | V48: 1 | W48: =+GETPIVOTDATA(" BAS050",TABLAS!$A$238) -> 0 | X48: =+GETPIVOTDATA(" f23329101",TABLAS!$A$276) -> 0 | Y48: =+U48*100/X48 ->  | AB48: 25 | AC48: 26 | AE48: 025 | AF48: 026 | AH48: =+IMPORTARDATOSDINAMICOS(" BAS025",TABLAS!$A$238) | AI48: =+IMPORTARDATOSDINAMICOS(" BAS026",TABLAS!$A$238)
C49: MELA 3329111 | E49: A | F49: 3 | G49: 0 | H49: =+GETPIVOTDATA(" BAS037",TABLAS!$A$59) -> 0 | I49: =+GETPIVOTDATA(" BAS038",TABLAS!$A$59) -> 0 | J49: =+GETPIVOTDATA(" BAS037",TABLAS!$A$97) -> 0 | K49: =+GETPIVOTDATA(" BAS038",TABLAS!$A$97) -> 0 | L49: =+GETPIVOTDATA(" BAS037",TABLAS!$A$132) -> 1 | M49: =+GETPIVOTDATA(" BAS038",TABLAS!$A$132) -> 0 | N49: =+GETPIVOTDATA(" BAS037",TABLAS!$A$167) -> 2 | O49: =+GETPIVOTDATA(" BAS038",TABLAS!$A$167) -> 0 | P49: =+GETPIVOTDATA(" BAS037",TABLAS!$A$203) -> 0 | Q49: =+GETPIVOTDATA(" BAS038",TABLAS!$A$203) -> 0 | R49: =+GETPIVOTDATA(" BAS051",TABLAS!$A$238) -> 0 | S49: =+GETPIVOTDATA(" BAS052",TABLAS!$A$238) -> 0 | T49: =+GETPIVOTDATA(" BAS053",TABLAS!$A$238) -> 0 | U49: 0 | V49: 2 | W49: =+GETPIVOTDATA(" BAS055",TABLAS!$A$238) -> 0 | X49: =+GETPIVOTDATA(" f23329111",TABLAS!$A$276) -> 40 | Y49: =+U49*100/X49 -> 0 | AB49: 27 | AC49: 28 | AE49: 027 | AF49: 028 | AH49: =+IMPORTARDATOSDINAMICOS(" BAS027",TABLAS!$A$238) | AI49: =+IMPORTARDATOSDINAMICOS(" BAS028",TABLAS!$A$238)
C50: ABSTINENCIA PERIODICA 3329110 | E50: A | F50: 34 | G50: 1 | H50: =+GETPIVOTDATA(" BAS039",TABLAS!$A$59) -> 0 | I50: =+GETPIVOTDATA(" BAS040",TABLAS!$A$59) -> 0 | J50: =+GETPIVOTDATA(" BAS039",TABLAS!$A$97) -> 7 | K50: =+GETPIVOTDATA(" BAS040",TABLAS!$A$97) -> 0 | L50: =+GETPIVOTDATA(" BAS039",TABLAS!$A$132) -> 10 | M50: =+GETPIVOTDATA(" BAS040",TABLAS!$A$132) -> 0 | N50: =+GETPIVOTDATA(" BAS039",TABLAS!$A$167) -> 17 | O50: =+GETPIVOTDATA(" BAS040",TABLAS!$A$167) -> 1 | P50: =+GETPIVOTDATA(" BAS039",TABLAS!$A$203) -> 0 | Q50: =+GETPIVOTDATA(" BAS040",TABLAS!$A$203) -> 0 | R50: =+GETPIVOTDATA(" BAS056",TABLAS!$A$238) -> 0 | S50: =+GETPIVOTDATA(" BAS057",TABLAS!$A$238) -> 0 | T50: =+GETPIVOTDATA(" BAS058",TABLAS!$A$238) -> 0 | U50: 5.833333333 | V50: 6 | W50: =+GETPIVOTDATA(" BAS060",TABLAS!$A$238) -> 35 | X50: =+GETPIVOTDATA(" f23329110",TABLAS!$A$276) -> 11 | Y50: =+U50*100/X50 -> 53.03030303 | AB50: 29 | AC50: 30 | AE50: 029 | AF50: 030 | AH50: =+IMPORTARDATOSDINAMICOS(" BAS029",TABLAS!$A$238) | AI50: =+IMPORTARDATOSDINAMICOS(" BAS030",TABLAS!$A$238)
H51: 39 | I51: 40 | R51: 56 | S51: =+R51+1 -> 57 | T51: =+S51+1 -> 58 | U51: 59 | W51: =+U51+1 -> 60
G52: 41
C53: METODO | E53: Tipo de Usuaria | F53: TOTAL 3329109 | G53: 10 a 11 a. | H53: 12 a 17 a. | I53: 18 a 29 a | J53: 30 a 59 a | K53: <60 a
C55: ANTICONCEPCIÓN ORAL DE EMERGENCIA/PROGESTAGENO | D55: Total General | E55: A | F55: =SUM(H55:K55) -> 33 | G55: =+GETPIVOTDATA(" BAS041",TABLAS!$A$59) -> 0 | H55: =+GETPIVOTDATA(" BAS041",TABLAS!$A$97) -> 5 | I55: =+GETPIVOTDATA(" BAS041",TABLAS!$A$132) -> 15 | J55: =+GETPIVOTDATA(" BAS041",TABLAS!$A$167) -> 13 | K55: =+GETPIVOTDATA(" BAS041",TABLAS!$A$238) -> 0 | L55: =+GETPIVOTDATA(" f23329109",TABLAS!$A$276) -> 465 | M55: =+F55*100/L55 -> 7.096774194 | U55: =+W51+1 -> 61 | AB55: =+AC50+1 -> 31 | AE55: =IF(AB55<9,CONCATENATE("00",AB55),IF(AND(AB55>9,AB55<100),CONCATENATE("0",AB55),AB55)) -> 031 | AH55: =CONCATENATE($AH$22,AE55,$AJ$22) -> =+IMPORTARDATOSDINAMICOS(" BAS031",TABLAS!$A$238)
E56: I | F56: =SUM(H56:K56) -> 51 | G56: =+GETPIVOTDATA(" BAS042",TABLAS!$A$59) -> 0 | H56: =+GETPIVOTDATA(" BAS042",TABLAS!$A$97) -> 5 | I56: =+GETPIVOTDATA(" BAS042",TABLAS!$A$132) -> 24 | J56: =+GETPIVOTDATA(" BAS042",TABLAS!$A$167) -> 22 | K56: =+GETPIVOTDATA(" BAS042",TABLAS!$A$238) -> 0 | L56: =+GETPIVOTDATA(" f23329109",TABLAS!$A$276) -> 465 | M56: =+F56*100/L56 -> 10.96774194 | S56: OTROS PROCEDIMIENTOS | U56: Nº | AB56: =+AB55+1 -> 32 | AE56: 032 | AH56: =+IMPORTARDATOSDINAMICOS(" BAS032",TABLAS!$A$238)
D57: Victimas de Violacion Sexual | E57: A | F57: 1 | G57: =+GETPIVOTDATA(" BAS043",TABLAS!$A$59) -> 0 | H57: =+GETPIVOTDATA(" BAS043",TABLAS!$A$97) -> 1 | I57: =+GETPIVOTDATA(" BAS043",TABLAS!$A$132) -> 0 | J57: =+GETPIVOTDATA(" BAS043",TABLAS!$A$167) -> 0 | K57: =+GETPIVOTDATA(" BAS043",TABLAS!$A$238) -> 0 | L57: =+GETPIVOTDATA(" f23329109",TABLAS!$A$276) -> 465 | M57: 0.2150537634 | S57: REMOCIÓN DE DIU | U57: =+GETPIVOTDATA(" BAS061",TABLAS!$A$238) -> 5 | AB57: =+AB56+1 -> 33 | AE57: 033 | AH57: =+IMPORTARDATOSDINAMICOS(" BAS033",TABLAS!$A$238)
E58: I | F58: 30 | G58: =+GETPIVOTDATA(" BAS044",TABLAS!$A$59) -> 0 | H58: =+GETPIVOTDATA(" BAS044",TABLAS!$A$97) -> 1 | I58: =+GETPIVOTDATA(" BAS044",TABLAS!$A$132) -> 0 | J58: =+GETPIVOTDATA(" BAS044",TABLAS!$A$167) -> 0 | K58: =+GETPIVOTDATA(" BAS044",TABLAS!$A$238) -> 29 | L58: =+GETPIVOTDATA(" f23329109",TABLAS!$A$276) -> 465 | M58: 6.451612903 | S58: REMOCIÓN DE IMPLANTE 3329117 | U58: =+GETPIVOTDATA(" BAS062",TABLAS!$A$238) -> 156 | X58: =+GETPIVOTDATA(" f23329117",TABLAS!$A$276) -> 280 | Y58: =+U58*100/X58 -> 55.71428571 | AB58: 34 | AE58: 034 | AH58: =+IMPORTARDATOSDINAMICOS(" BAS034",TABLAS!$A$238)
G59: 44 | U59: 62
C61: ANTICONCEPCÓN POST EVENTO OBSTETRICO
F62: 45 | G62: =+F62+1 -> 46 | H62: =+G62+1 -> 47 | S62: =+U59+1 -> 63 | T62: =+S62+1 -> 64
C63: METODO | E63: TOTAL | F63: 10 a 11a | I63: 12 A 17a | L63: 18 A 29a | O63: 30 a 59a | S63: ATENCIÓN PRE CONCEPCIONAL 3329203
F64: CESAREA | G64: POST ABORTO | H64: POST PARTO | I64: CESAREA | J64: POST ABORTO | K64: POST PARTO | L64: CESAREA | M64: POST ABORTO | N64: POST PARTO | O64: CESAREA | P64: POST ABORTO | Q64: POST PARTO | S64: 1º | T64: 2º
C65: TOTAL | E65: =SUM(F65:Q65) -> 113 | F65: =SUM(F66:F74) -> 0 | G65: =SUM(G66:G74) -> 0 | H65: 0 | I65: 2 | J65: 4 | K65: 0 | L65: 21 | M65: 25 | N65: 2 | O65: 22 | P65: 37 | Q65: 0 | S65: =+GETPIVOTDATA(" BAS063",TABLAS!$A$238) -> 50 | T65: =+GETPIVOTDATA(" BAS064",TABLAS!$A$238) -> 13
C66: DIU | E66: =SUM(F66:Q66) -> 0 | F66: =+GETPIVOTDATA(" BAS045",TABLAS!$A$59) -> 0 | G66: =+GETPIVOTDATA(" BAS046",TABLAS!$A$59) -> 0 | H66: =+GETPIVOTDATA(" BAS047",TABLAS!$A$59) -> 0 | I66: =+GETPIVOTDATA(" BAS045",TABLAS!$A$97) -> 0 | J66: =+GETPIVOTDATA(" BAS046",TABLAS!$A$97) -> 0 | K66: =+GETPIVOTDATA(" BAS047",TABLAS!$A$97) -> 0 | L66: =+GETPIVOTDATA(" BAS045",TABLAS!$A$132) -> 0 | M66: =+GETPIVOTDATA(" BAS046",TABLAS!$A$132) -> 0 | N66: =+GETPIVOTDATA(" BAS047",TABLAS!$A$132) -> 0 | O66: =+GETPIVOTDATA(" BAS045",TABLAS!$A$167) -> 0 | P66: =+GETPIVOTDATA(" BAS046",TABLAS!$A$167) -> 0 | Q66: =+GETPIVOTDATA(" BAS047",TABLAS!$A$167) -> 0 | S66: =+GETPIVOTDATA(" f23329203",TABLAS!$A$276) -> 179 | T66: =+GETPIVOTDATA(" f23329203",TABLAS!$A$276) -> 179 | AB66: =+AB58+1 -> 35 | AC66: =+AB66+1 -> 36 | AD66: 37 | AE66: =IF(AB66<9,CONCATENATE("00",AB66),IF(AND(AB66>9,AB66<100),CONCATENATE("0",AB66),AB66)) -> 035 | AF66: =IF(AC66<9,CONCATENATE("00",AC66),IF(AND(AC66>9,AC66<100),CONCATENATE("0",AC66),AC66)) -> 036 | AG66: =IF(AD66<9,CONCATENATE("00",AD66),IF(AND(AD66>9,AD66<100),CONCATENATE("0",AD66),AD66)) -> 037 | AH66: =CONCATENATE($AH$22,AE66,$AJ$22) -> =+IMPORTARDATOSDINAMICOS(" BAS035",TABLAS!$A$238) | AI66: =CONCATENATE($AH$22,AF66,$AJ$22) -> =+IMPORTARDATOSDINAMICOS(" BAS036",TABLAS!$A$238) | AJ66: =CONCATENATE($AH$22,AG66,$AJ$22) -> =+IMPORTARDATOSDINAMICOS(" BAS037",TABLAS!$A$238)
C67: DIU LIBERADOR | E67: 0 | F67: =+GETPIVOTDATA(" BAS048",TABLAS!$A$59) -> 0 | G67: =+GETPIVOTDATA(" BAS049",TABLAS!$A$59) -> 0 | H67: =+GETPIVOTDATA(" BAS050",TABLAS!$A$59) -> 0 | I67: =+GETPIVOTDATA(" BAS048",TABLAS!$A$97) -> 0 | J67: =+GETPIVOTDATA(" BAS049",TABLAS!$A$97) -> 0 | K67: =+GETPIVOTDATA(" BAS050",TABLAS!$A$97) -> 0 | L67: =+GETPIVOTDATA(" BAS048",TABLAS!$A$132) -> 0 | M67: =+GETPIVOTDATA(" BAS049",TABLAS!$A$132) -> 0 | N67: =+GETPIVOTDATA(" BAS050",TABLAS!$A$132) -> 0 | O67: =+GETPIVOTDATA(" BAS048",TABLAS!$A$167) -> 0 | P67: =+GETPIVOTDATA(" BAS049",TABLAS!$A$167) -> 0 | Q67: =+GETPIVOTDATA(" BAS050",TABLAS!$A$167) -> 0 | S67: =+S65*100/S66 -> 27.93296089 | T67: =+T65*100/T66 -> 7.262569832 | AB67: =+AD66+1 -> 38 | AC67: 39 | AD67: 40 | AE67: =IF(AB67<9,CONCATENATE("00",AB67),IF(AND(AB67>9,AB67<100),CONCATENATE("0",AB67),AB67)) -> 038 | AF67: =IF(AC67<9,CONCATENATE("00",AC67),IF(AND(AC67>9,AC67<100),CONCATENATE("0",AC67),AC67)) -> 039 | AG67: =IF(AD67<9,CONCATENATE("00",AD67),IF(AND(AD67>9,AD67<100),CONCATENATE("0",AD67),AD67)) -> 040 | AH67: =CONCATENATE($AH$22,AE67,$AJ$22) -> =+IMPORTARDATOSDINAMICOS(" BAS038",TABLAS!$A$238) | AI67: =CONCATENATE($AH$22,AF67,$AJ$22) -> =+IMPORTARDATOSDINAMICOS(" BAS039",TABLAS!$A$238) | AJ67: =CONCATENATE($AH$22,AG67,$AJ$22) -> =+IMPORTARDATOSDINAMICOS(" BAS040",TABLAS!$A$238)
C68: INYECTABLE TRIMESTRAL | E68: 17 | F68: =+GETPIVOTDATA(" BAS051",TABLAS!$A$59) -> 0 | G68: =+GETPIVOTDATA(" BAS052",TABLAS!$A$59) -> 0 | H68: =+GETPIVOTDATA(" BAS053",TABLAS!$A$59) -> 0 | I68: =+GETPIVOTDATA(" BAS051",TABLAS!$A$97) -> 0 | J68: =+GETPIVOTDATA(" BAS052",TABLAS!$A$97) -> 0 | K68: =+GETPIVOTDATA(" BAS053",TABLAS!$A$97) -> 0 | L68: =+GETPIVOTDATA(" BAS051",TABLAS!$A$132) -> 9 | M68: =+GETPIVOTDATA(" BAS052",TABLAS!$A$132) -> 1 | N68: =+GETPIVOTDATA(" BAS053",TABLAS!$A$132) -> 0 | O68: =+GETPIVOTDATA(" BAS051",TABLAS!$A$167) -> 3 | P68: =+GETPIVOTDATA(" BAS052",TABLAS!$A$167) -> 4 | Q68: =+GETPIVOTDATA(" BAS053",TABLAS!$A$167) -> 0 | AB68: =+AD67+1 -> 41 | AC68: =+AB68+1 -> 42 | AD68: 43 | AE68: 041 | AF68: 042 | AG68: 043 | AH68: =+IMPORTARDATOSDINAMICOS(" BAS041",TABLAS!$A$238) | AI68: =+IMPORTARDATOSDINAMICOS(" BAS042",TABLAS!$A$238) | AJ68: =+IMPORTARDATOSDINAMICOS(" BAS043",TABLAS!$A$238)
C69: INYECTABLE MENSUAL | E69: 8 | F69: =+GETPIVOTDATA(" BAS054",TABLAS!$A$59) -> 0 | G69: =+GETPIVOTDATA(" BAS055",TABLAS!$A$59) -> 0 | H69: =+GETPIVOTDATA(" BAS056",TABLAS!$A$59) -> 0 | I69: =+GETPIVOTDATA(" BAS054",TABLAS!$A$97) -> 0 | J69: =+GETPIVOTDATA(" BAS055",TABLAS!$A$97) -> 0 | K69: =+GETPIVOTDATA(" BAS056",TABLAS!$A$97) -> 0 | L69: =+GETPIVOTDATA(" BAS054",TABLAS!$A$132) -> 0 | M69: =+GETPIVOTDATA(" BAS055",TABLAS!$A$132) -> 1 | N69: =+GETPIVOTDATA(" BAS056",TABLAS!$A$132) -> 0 | O69: =+GETPIVOTDATA(" BAS054",TABLAS!$A$167) -> 0 | P69: =+GETPIVOTDATA(" BAS055",TABLAS!$A$167) -> 7 | Q69: =+GETPIVOTDATA(" BAS056",TABLAS!$A$167) -> 0 | S69: USUARIAS CON RIESGO REPRODUCTIVO / DISCAPACIDAD | AB69: 44 | AC69: =+AB69+1 -> 45 | AD69: 46 | AE69: 044 | AF69: 045 | AG69: 046 | AH69: =+IMPORTARDATOSDINAMICOS(" BAS044",TABLAS!$A$238) | AI69: =+IMPORTARDATOSDINAMICOS(" BAS045",TABLAS!$A$238) | AJ69: =+IMPORTARDATOSDINAMICOS(" BAS046",TABLAS!$A$238)
C70: ORAL COMBINADO | E70: 11 | F70: =+GETPIVOTDATA(" BAS057",TABLAS!$A$59) -> 0 | G70: =+GETPIVOTDATA(" BAS058",TABLAS!$A$59) -> 0 | H70: =+GETPIVOTDATA(" BAS059",TABLAS!$A$59) -> 0 | I70: =+GETPIVOTDATA(" BAS057",TABLAS!$A$97) -> 0 | J70: =+GETPIVOTDATA(" BAS058",TABLAS!$A$97) -> 0 | K70: =+GETPIVOTDATA(" BAS059",TABLAS!$A$97) -> 0 | L70: =+GETPIVOTDATA(" BAS057",TABLAS!$A$132) -> 0 | M70: =+GETPIVOTDATA(" BAS058",TABLAS!$A$132) -> 6 | N70: =+GETPIVOTDATA(" BAS059",TABLAS!$A$132) -> 0 | O70: =+GETPIVOTDATA(" BAS057",TABLAS!$A$167) -> 0 | P70: =+GETPIVOTDATA(" BAS058",TABLAS!$A$167) -> 5 | Q70: =+GETPIVOTDATA(" BAS059",TABLAS!$A$167) -> 0 | AB70: 47 | AC70: =+AB70+1 -> 48 | AD70: 49 | AE70: 047 | AF70: 048 | AG70: 049 | AH70: =+IMPORTARDATOSDINAMICOS(" BAS047",TABLAS!$A$238) | AI70: =+IMPORTARDATOSDINAMICOS(" BAS048",TABLAS!$A$238) | AJ70: =+IMPORTARDATOSDINAMICOS(" BAS049",TABLAS!$A$238)
C71: IMPLANTE | E71: 15 | F71: =+GETPIVOTDATA(" BAS060",TABLAS!$A$59) -> 0 | G71: =+GETPIVOTDATA(" BAS061",TABLAS!$A$59) -> 0 | H71: =+GETPIVOTDATA(" BAS062",TABLAS!$A$59) -> 0 | I71: =+GETPIVOTDATA(" BAS060",TABLAS!$A$97) -> 2 | J71: =+GETPIVOTDATA(" BAS061",TABLAS!$A$97) -> 2 | K71: =+GETPIVOTDATA(" BAS062",TABLAS!$A$97) -> 0 | L71: =+GETPIVOTDATA(" BAS060",TABLAS!$A$132) -> 7 | M71: =+GETPIVOTDATA(" BAS061",TABLAS!$A$132) -> 2 | N71: =+GETPIVOTDATA(" BAS062",TABLAS!$A$132) -> 1 | O71: =+GETPIVOTDATA(" BAS060",TABLAS!$A$167) -> 0 | P71: =+GETPIVOTDATA(" BAS061",TABLAS!$A$167) -> 1 | Q71: =+GETPIVOTDATA(" BAS062",TABLAS!$A$167) -> 0 | S71: RIESGO BAJO | T71: =+GETPIVOTDATA(" BAS065",TABLAS!$A$238) -> 3223 | U71: =+T62+1 -> 65 | AB71: 50 | AC71: =+AB71+1 -> 51 | AD71: 52 | AE71: 050 | AF71: 051 | AG71: 052 | AH71: =+IMPORTARDATOSDINAMICOS(" BAS050",TABLAS!$A$238) | AI71: =+IMPORTARDATOSDINAMICOS(" BAS051",TABLAS!$A$238) | AJ71: =+IMPORTARDATOSDINAMICOS(" BAS052",TABLAS!$A$238)
C72: CONDON MASCULINO | E72: 0 | F72: =+GETPIVOTDATA(" BAS063",TABLAS!$A$59) -> 0 | G72: =+GETPIVOTDATA(" BAS064",TABLAS!$A$59) -> 0 | H72: =+GETPIVOTDATA(" BAS065",TABLAS!$A$59) -> 0 | I72: =+GETPIVOTDATA(" BAS063",TABLAS!$A$97) -> 0 | J72: =+GETPIVOTDATA(" BAS064",TABLAS!$A$97) -> 0 | K72: =+GETPIVOTDATA(" BAS065",TABLAS!$A$97) -> 0 | L72: =+GETPIVOTDATA(" BAS063",TABLAS!$A$132) -> 0 | M72: =+GETPIVOTDATA(" BAS064",TABLAS!$A$132) -> 0 | N72: =+GETPIVOTDATA(" BAS065",TABLAS!$A$132) -> 0 | O72: =+GETPIVOTDATA(" BAS063",TABLAS!$A$167) -> 0 | P72: =+GETPIVOTDATA(" BAS064",TABLAS!$A$167) -> 0 | Q72: =+GETPIVOTDATA(" BAS065",TABLAS!$A$167) -> 0 | S72: RIESGO MEDIO | T72: =+GETPIVOTDATA(" BAS066",TABLAS!$A$238) -> 1329 | U72: =+U71+1 -> 66 | AB72: 53 | AC72: =+AB72+1 -> 54 | AD72: 55 | AE72: 053 | AF72: 054 | AG72: 055 | AH72: =+IMPORTARDATOSDINAMICOS(" BAS053",TABLAS!$A$238) | AI72: =+IMPORTARDATOSDINAMICOS(" BAS054",TABLAS!$A$238) | AJ72: =+IMPORTARDATOSDINAMICOS(" BAS055",TABLAS!$A$238)
C73: CONDON FEMENINO | E73: 0 | F73: =+GETPIVOTDATA(" BAS066",TABLAS!$A$59) -> 0 | G73: =+GETPIVOTDATA(" BAS067",TABLAS!$A$59) -> 0 | H73: =+GETPIVOTDATA(" BAS068",TABLAS!$A$59) -> 0 | I73: =+GETPIVOTDATA(" BAS066",TABLAS!$A$97) -> 0 | J73: =+GETPIVOTDATA(" BAS067",TABLAS!$A$97) -> 0 | K73: =+GETPIVOTDATA(" BAS068",TABLAS!$A$97) -> 0 | L73: =+GETPIVOTDATA(" BAS066",TABLAS!$A$132) -> 0 | M73: =+GETPIVOTDATA(" BAS067",TABLAS!$A$132) -> 0 | N73: =+GETPIVOTDATA(" BAS068",TABLAS!$A$132) -> 0 | O73: =+GETPIVOTDATA(" BAS066",TABLAS!$A$167) -> 0 | P73: =+GETPIVOTDATA(" BAS067",TABLAS!$A$167) -> 0 | Q73: =+GETPIVOTDATA(" BAS068",TABLAS!$A$167) -> 0 | S73: RIESGO ALTO | T73: =+GETPIVOTDATA(" BAS067",TABLAS!$A$238) -> 1171 | U73: =+U72+1 -> 67 | AB73: 56 | AC73: =+AB73+1 -> 57 | AD73: 58 | AE73: 056 | AF73: 057 | AG73: 058 | AH73: =+IMPORTARDATOSDINAMICOS(" BAS056",TABLAS!$A$238) | AI73: =+IMPORTARDATOSDINAMICOS(" BAS057",TABLAS!$A$238) | AJ73: =+IMPORTARDATOSDINAMICOS(" BAS058",TABLAS!$A$238)
C74: AQV FEMENINO | E74: 62 | F74: =+GETPIVOTDATA(" BAS069",TABLAS!$A$59) -> 0 | G74: =+GETPIVOTDATA(" BAS070",TABLAS!$A$59) -> 0 | H74: =+GETPIVOTDATA(" BAS071",TABLAS!$A$59) -> 0 | I74: =+GETPIVOTDATA(" BAS069",TABLAS!$A$97) -> 0 | J74: =+GETPIVOTDATA(" BAS070",TABLAS!$A$97) -> 2 | K74: =+GETPIVOTDATA(" BAS071",TABLAS!$A$97) -> 0 | L74: =+GETPIVOTDATA(" BAS069",TABLAS!$A$132) -> 5 | M74: =+GETPIVOTDATA(" BAS070",TABLAS!$A$132) -> 15 | N74: =+GETPIVOTDATA(" BAS071",TABLAS!$A$132) -> 1 | O74: =+GETPIVOTDATA(" BAS069",TABLAS!$A$167) -> 19 | P74: =+GETPIVOTDATA(" BAS070",TABLAS!$A$167) -> 20 | Q74: =+GETPIVOTDATA(" BAS071",TABLAS!$A$167) -> 0 | S74: CON DISCAPACIDAD | T74: =+GETPIVOTDATA(" BAS068",TABLAS!$A$238) -> 1 | U74: 68 | AB74: 59 | AC74: =+AB74+1 -> 60 | AD74: 61 | AE74: 059 | AF74: 060 | AG74: 061 | AH74: =+IMPORTARDATOSDINAMICOS(" BAS059",TABLAS!$A$238) | AI74: =+IMPORTARDATOSDINAMICOS(" BAS060",TABLAS!$A$238) | AJ74: =+IMPORTARDATOSDINAMICOS(" BAS061",TABLAS!$A$238)
F75: 69 | G75: =+F75+1 -> 70 | H75: =+G75+1 -> 71
C76: ANTICONCEPCIÓN EN EL PUERPERIO DESPUÉS DEL ALTA
F77: 72
C78: METODO | E78: TOTAL | F78: 10 a 11a | G78: 12 A 17a | H78: 18 A 29a | I78: 30 a 59a | J78: >60a | M78: PF PAP | S78: Nº
C79: TOTAL | E79: =SUM(F79:I79) -> 40 | F79: =SUM(F80:F86) -> 0 | G79: =SUM(G80:G86) -> 1 | H79: 15 | I79: 24 | M79: Nº de mujeres con Descarte de Cáncer de Cuerllo Uterino | S79: =+GETPIVOTDATA(" BAS069",TABLAS!$A$238) -> 768 | T79: =+U74+1 -> 69
C80: DIU | E80: =SUM(F80:I80) -> 0 | F80: =+GETPIVOTDATA(" BAS072",TABLAS!$A$59) -> 0 | G80: =+GETPIVOTDATA(" BAS072",TABLAS!$A$97) -> 0 | H80: =+GETPIVOTDATA(" BAS072",TABLAS!$A$132) -> 0 | I80: =+GETPIVOTDATA(" BAS072",TABLAS!$A$167) -> 0 | M80: Nº de mujeres con algún MAC y VIH que se realiza Descarte de Cáncer de Cuerllo Uterino | S80: =+GETPIVOTDATA(" BAS070",TABLAS!$A$238) -> 759 | T80: =+T79+1 -> 70 | AB80: =+AD74+1 -> 62 | AE80: =IF(AB80<9,CONCATENATE("00",AB80),IF(AND(AB80>9,AB80<100),CONCATENATE("0",AB80),AB80)) -> 062 | AH80: =CONCATENATE($AH$22,AE80,$AJ$22) -> =+IMPORTARDATOSDINAMICOS(" BAS062",TABLAS!$A$238)
C81: DIU LIBERADOR | E81: 0 | F81: =+GETPIVOTDATA(" BAS073",TABLAS!$A$59) -> 0 | G81: =+GETPIVOTDATA(" BAS073",TABLAS!$A$97) -> 0 | H81: =+GETPIVOTDATA(" BAS073",TABLAS!$A$132) -> 0 | I81: =+GETPIVOTDATA(" BAS073",TABLAS!$A$167) -> 0 | M81: Nº de mujeres con algún MAC y VIH que se realiza examen de mama | S81: =+GETPIVOTDATA(" BAS071",TABLAS!$A$238) -> 759 | T81: =+T80+1 -> 71 | AB81: =+AB80+1 -> 63 | AE81: 063 | AH81: =+IMPORTARDATOSDINAMICOS(" BAS063",TABLAS!$A$238)
C82: INYECTABLE TRIMESTRAL | E82: 12 | F82: =+GETPIVOTDATA(" BAS074",TABLAS!$A$59) -> 0 | G82: =+GETPIVOTDATA(" BAS074",TABLAS!$A$97) -> 1 | H82: =+GETPIVOTDATA(" BAS074",TABLAS!$A$132) -> 8 | I82: =+GETPIVOTDATA(" BAS074",TABLAS!$A$167) -> 3 | AB82: =+AB81+1 -> 64 | AE82: 064 | AH82: =+IMPORTARDATOSDINAMICOS(" BAS064",TABLAS!$A$238)
C83: IMPLANTE | E83: 1 | F83: =+GETPIVOTDATA(" BAS075",TABLAS!$A$59) -> 0 | G83: =+GETPIVOTDATA(" BAS075",TABLAS!$A$97) -> 0 | H83: =+GETPIVOTDATA(" BAS075",TABLAS!$A$132) -> 1 | I83: =+GETPIVOTDATA(" BAS075",TABLAS!$A$167) -> 0 | P83: TELEMEDICINA | S83: Nº | AB83: 65 | AE83: 065 | AH83: =+IMPORTARDATOSDINAMICOS(" BAS065",TABLAS!$A$238)
C84: CONDON MASCULINO | E84: 3 | F84: =+GETPIVOTDATA(" BAS076",TABLAS!$A$59) -> 0 | G84: =+GETPIVOTDATA(" BAS076",TABLAS!$A$97) -> 0 | H84: =+GETPIVOTDATA(" BAS076",TABLAS!$A$132) -> 1 | I84: =+GETPIVOTDATA(" BAS076",TABLAS!$A$167) -> 2 | P84: Telemonitoreo | S84: =+GETPIVOTDATA(" BAS072",TABLAS!$A$238) -> 0 | T84: =+T81+1 -> 72 | AB84: 66 | AE84: 066 | AH84: =+IMPORTARDATOSDINAMICOS(" BAS066",TABLAS!$A$238)
C85: CONDON FEMENINO | E85: 0 | F85: =+GETPIVOTDATA(" BAS077",TABLAS!$A$59) -> 0 | G85: =+GETPIVOTDATA(" BAS077",TABLAS!$A$97) -> 0 | H85: =+GETPIVOTDATA(" BAS077",TABLAS!$A$132) -> 0 | I85: =+GETPIVOTDATA(" BAS077",TABLAS!$A$167) -> 0 | P85: Teleorientación sincrona | S85: =+GETPIVOTDATA(" BAS073",TABLAS!$A$238) -> 0 | T85: =+T84+1 -> 73 | AB85: 67 | AE85: 067 | AH85: =+IMPORTARDATOSDINAMICOS(" BAS067",TABLAS!$A$238)
C86: AQV FEMENINO | E86: 24 | F86: =+GETPIVOTDATA(" BAS078",TABLAS!$A$59) -> 0 | G86: =+GETPIVOTDATA(" BAS078",TABLAS!$A$97) -> 0 | H86: =+GETPIVOTDATA(" BAS078",TABLAS!$A$132) -> 5 | I86: =+GETPIVOTDATA(" BAS078",TABLAS!$A$167) -> 19 | T86: 1 | AB86: 68 | AE86: 068 | AH86: =+IMPORTARDATOSDINAMICOS(" BAS068",TABLAS!$A$238)
F87: 78
G88: =+F87+1 -> 79 | H88: =+G88+1 -> 80
C89: ORIENTACIÓN/ CONSEJERÍA | E89: Total | G89: 10 a 11 a. | I89: 12 A 17 a. | K89: 18 A 29 a. | M89: 30 a 59 a. | O89: >60a
E90: F | F90: M | G90: F | H90: M | I90: F | J90: M | K90: F | L90: M | M90: F | N90: M | O90: F | P90: M
C91: GENERAL P.F. | E91: =+G91+I91+K91+M91 -> 981 | F91: =+H91+J91+L91+N91 -> 44 | G91: =+GETPIVOTDATA(" BAS079",TABLAS!$A$59) -> 0 | H91: =+GETPIVOTDATA(" BAS080",TABLAS!$A$59) -> 0 | I91: =+GETPIVOTDATA(" BAS079",TABLAS!$A$97) -> 58 | J91: =+GETPIVOTDATA(" BAS080",TABLAS!$A$97) -> 10 | K91: =+GETPIVOTDATA(" BAS079",TABLAS!$A$132) -> 379 | L91: =+GETPIVOTDATA(" BAS080",TABLAS!$A$132) -> 17 | M91: =+GETPIVOTDATA(" BAS079",TABLAS!$A$167) -> 544 | N91: =+GETPIVOTDATA(" BAS080",TABLAS!$A$167) -> 17 | AB91: =+AB86+1 -> 69 | AC91: =+AB91+1 -> 70 | AE91: =IF(AB91<9,CONCATENATE("00",AB91),IF(AND(AB91>9,AB91<100),CONCATENATE("0",AB91),AB91)) -> 069 | AF91: 070 | AH91: =CONCATENATE($AH$22,AE91,$AJ$22) -> =+IMPORTARDATOSDINAMICOS(" BAS069",TABLAS!$A$238) | AI91: =+IMPORTARDATOSDINAMICOS(" BAS070",TABLAS!$A$238)
C92: AQV | E92: =+G92+I92+K92+M92 -> 41 | F92: =+H92+J92+L92+N92 -> 6 | G92: =+GETPIVOTDATA(" BAS081",TABLAS!$A$59) -> 0 | H92: =+GETPIVOTDATA(" BAS082",TABLAS!$A$59) -> 0 | I92: =+GETPIVOTDATA(" BAS081",TABLAS!$A$97) -> 0 | J92: =+GETPIVOTDATA(" BAS082",TABLAS!$A$97) -> 0 | K92: =+GETPIVOTDATA(" BAS081",TABLAS!$A$132) -> 4 | L92: =+GETPIVOTDATA(" BAS082",TABLAS!$A$132) -> 1 | M92: =+GETPIVOTDATA(" BAS081",TABLAS!$A$167) -> 37 | N92: =+GETPIVOTDATA(" BAS082",TABLAS!$A$167) -> 5 | AB92: =+AC91+1 -> 71 | AC92: =+AB92+1 -> 72 | AE92: =IF(AB92<9,CONCATENATE("00",AB92),IF(AND(AB92>9,AB92<100),CONCATENATE("0",AB92),AB92)) -> 071 | AF92: =IF(AC92<9,CONCATENATE("00",AC92),IF(AND(AC92>9,AC92<100),CONCATENATE("0",AC92),AC92)) -> 072 | AH92: =+IMPORTARDATOSDINAMICOS(" BAS071",TABLAS!$A$238) | AI92: =+IMPORTARDATOSDINAMICOS(" BAS072",TABLAS!$A$238)
C93: ANTICONCEPCIÓN DE EMERGENCIA | E93: 27 | F93: 0 | G93: =+GETPIVOTDATA(" BAS083",TABLAS!$A$59) -> 0 | H93: =+GETPIVOTDATA(" BAS084",TABLAS!$A$59) -> 0 | I93: =+GETPIVOTDATA(" BAS083",TABLAS!$A$97) -> 5 | J93: =+GETPIVOTDATA(" BAS084",TABLAS!$A$97) -> 0 | K93: =+GETPIVOTDATA(" BAS083",TABLAS!$A$132) -> 10 | L93: =+GETPIVOTDATA(" BAS084",TABLAS!$A$132) -> 0 | M93: =+GETPIVOTDATA(" BAS083",TABLAS!$A$167) -> 12 | N93: =+GETPIVOTDATA(" BAS084",TABLAS!$A$167) -> 0 | AB93: =+AC92+1 -> 73 | AC93: =+AB93+1 -> 74 | AE93: 073 | AF93: 074 | AH93: =+IMPORTARDATOSDINAMICOS(" BAS073",TABLAS!$A$238) | AI93: =+IMPORTARDATOSDINAMICOS(" BAS074",TABLAS!$A$238)
C94: SALUD SEXUAL Y REPRODUCTIVA | E94: 293 | F94: 2 | G94: =+GETPIVOTDATA(" BAS085",TABLAS!$A$59) -> 0 | H94: =+GETPIVOTDATA(" BAS086",TABLAS!$A$59) -> 0 | I94: =+GETPIVOTDATA(" BAS085",TABLAS!$A$97) -> 31 | J94: =+GETPIVOTDATA(" BAS086",TABLAS!$A$97) -> 2 | K94: =+GETPIVOTDATA(" BAS085",TABLAS!$A$132) -> 135 | L94: =+GETPIVOTDATA(" BAS086",TABLAS!$A$132) -> 0 | M94: =+GETPIVOTDATA(" BAS085",TABLAS!$A$167) -> 127 | N94: =+GETPIVOTDATA(" BAS086",TABLAS!$A$167) -> 0 | AB94: 75 | AC94: =+AB94+1 -> 76 | AE94: 075 | AF94: 076 | AH94: =+IMPORTARDATOSDINAMICOS(" BAS075",TABLAS!$A$238) | AI94: =+IMPORTARDATOSDINAMICOS(" BAS076",TABLAS!$A$238)
C95: TOTAL | E95: =+G95+I95+K95 -> 622 | F95: =+H95+J95+L95 -> 30 | G95: =SUM(G91:G94) -> 0 | H95: =SUM(H91:H94) -> 0 | I95: 94 | J95: 12 | K95: 528 | L95: 18 | M95: 720 | N95: 22 | Q95: =+E95+F95 -> 652 | R95: =+GETPIVOTDATA(" f23329201",TABLAS!$A$276) -> 10439 | S95: =+Q95*100/R95 -> 6.245808986
C96: TAMIZAJE DE VBG | E96: =+G96+I96+K96+M96 -> 6241 | F96: =+H96+J96+L96+N96 -> 0 | G96: =+GETPIVOTDATA(" BAS087",TABLAS!$A$59) -> 41 | H96: =+GETPIVOTDATA(" BAS088",TABLAS!$A$59) -> 0 | I96: =+GETPIVOTDATA(" BAS087",TABLAS!$A$97) -> 464 | J96: =+GETPIVOTDATA(" BAS088",TABLAS!$A$97) -> 0 | K96: =+GETPIVOTDATA(" BAS087",TABLAS!$A$132) -> 2206 | L96: =+GETPIVOTDATA(" BAS088",TABLAS!$A$132) -> 0 | M96: =+GETPIVOTDATA(" BAS087",TABLAS!$A$167) -> 3530 | N96: =+GETPIVOTDATA(" BAS088",TABLAS!$A$167) -> 0 | AB96: =+AC94+1 -> 77 | AC96: =+AB96+1 -> 78 | AE96: =IF(AB96<9,CONCATENATE("00",AB96),IF(AND(AB96>9,AB96<100),CONCATENATE("0",AB96),AB96)) -> 077 | AF96: =IF(AC96<9,CONCATENATE("00",AC96),IF(AND(AC96>9,AC96<100),CONCATENATE("0",AC96),AC96)) -> 078 | AH96: =+IMPORTARDATOSDINAMICOS(" BAS077",TABLAS!$A$238) | AI96: =+IMPORTARDATOSDINAMICOS(" BAS078",TABLAS!$A$238)
C97: TAMIZAJE DE VBG POSITIVO | E97: 165 | F97: 0 | G97: =+GETPIVOTDATA(" BAS089",TABLAS!$A$59) -> 4 | H97: =+GETPIVOTDATA(" BAS090",TABLAS!$A$59) -> 0 | I97: =+GETPIVOTDATA(" BAS089",TABLAS!$A$97) -> 30 | J97: =+GETPIVOTDATA(" BAS090",TABLAS!$A$97) -> 0 | K97: =+GETPIVOTDATA(" BAS089",TABLAS!$A$132) -> 39 | L97: =+GETPIVOTDATA(" BAS090",TABLAS!$A$132) -> 0 | M97: =+GETPIVOTDATA(" BAS089",TABLAS!$A$167) -> 92 | N97: =+GETPIVOTDATA(" BAS090",TABLAS!$A$167) -> 0 | AB97: =+AC96+1 -> 79 | AC97: =+AB97+1 -> 80 | AE97: =IF(AB97<9,CONCATENATE("00",AB97),IF(AND(AB97>9,AB97<100),CONCATENATE("0",AB97),AB97)) -> 079 | AF97: =IF(AC97<9,CONCATENATE("00",AC97),IF(AND(AC97>9,AC97<100),CONCATENATE("0",AC97),AC97)) -> 080 | AH97: =+IMPORTARDATOSDINAMICOS(" BAS079",TABLAS!$A$238) | AI97: =+IMPORTARDATOSDINAMICOS(" BAS080",TABLAS!$A$238)
G98: 89 | H98: 90 | I98: =+H98+1 -> 91 | J98: =+I98+1 -> 92
C99: TAMIZAJE PRUEBA RAPIDA | G99: TOTAL | I99: 10 a 11 a. | K99: 12 A 17 a. | M99: 18 A 29 a. | O99: 30 a 59 a. | Q99: >60a
G100: N° | H100: REACTIVA | I100: N° | J100: REACTIVA | K100: N° | L100: REACTIVA | M100: N° | N100: REACTIVA | O100: N° | P100: REACTIVA | Q100: N° | R100: REACTIVA
C101: Nº de Usuarias MEF que reciben Tamizaje con Prueba Rapida para VIH | G101: =+I101+K101+M101+O101 -> 620 | H101: =+J101+L101+N101+P101 -> 2 | I101: =+GETPIVOTDATA(" BAS091",TABLAS!$A$59) -> 0 | J101: =+GETPIVOTDATA(" BAS092",TABLAS!$A$59) -> 0 | K101: =+GETPIVOTDATA(" BAS091",TABLAS!$A$97) -> 41 | L101: =+GETPIVOTDATA(" BAS092",TABLAS!$A$97) -> 1 | M101: =+GETPIVOTDATA(" BAS091",TABLAS!$A$132) -> 216 | N101: =+GETPIVOTDATA(" BAS092",TABLAS!$A$132) -> 1 | O101: =+GETPIVOTDATA(" BAS091",TABLAS!$A$167) -> 363 | P101: =+GETPIVOTDATA(" BAS092",TABLAS!$A$167) -> 0 | AB101: =+AC97+1 -> 81 | AC101: =+AB101+1 -> 82 | AE101: =IF(AB101<9,CONCATENATE("00",AB101),IF(AND(AB101>9,AB101<100),CONCATENATE("0",AB101),AB101)) -> 081 | AF101: =IF(AC101<9,CONCATENATE("00",AC101),IF(AND(AC101>9,AC101<100),CONCATENATE("0",AC101),AC101)) -> 082 | AH101: =CONCATENATE($AH$22,AE101,$AJ$22) -> =+IMPORTARDATOSDINAMICOS(" BAS081",TABLAS!$A$238) | AI101: =CONCATENATE($AH$22,AF101,$AJ$22) -> =+IMPORTARDATOSDINAMICOS(" BAS082",TABLAS!$A$238)
C102: Nº de Usuarias MEF que reciben Tamizaje con Prueba Rapida para Sífilis | G102: =+I102+K102+M102+O102 -> 601 | H102: =+J102+L102+N102+P102 -> 2 | I102: =+GETPIVOTDATA(" BAS093",TABLAS!$A$59) -> 0 | J102: =+GETPIVOTDATA(" BAS094",TABLAS!$A$59) -> 0 | K102: =+GETPIVOTDATA(" BAS093",TABLAS!$A$97) -> 37 | L102: =+GETPIVOTDATA(" BAS094",TABLAS!$A$97) -> 1 | M102: =+GETPIVOTDATA(" BAS093",TABLAS!$A$132) -> 207 | N102: =+GETPIVOTDATA(" BAS094",TABLAS!$A$132) -> 1 | O102: =+GETPIVOTDATA(" BAS093",TABLAS!$A$167) -> 357 | P102: =+GETPIVOTDATA(" BAS094",TABLAS!$A$167) -> 0 | AB102: =+AC101+1 -> 83 | AC102: 84 | AE102: 083 | AF102: 084 | AH102: =+IMPORTARDATOSDINAMICOS(" BAS083",TABLAS!$A$238) | AI102: =+IMPORTARDATOSDINAMICOS(" BAS084",TABLAS!$A$238)
C103: Nº de Usuarias MEF que reciben Tamizaje con Prueba Rapida para Hepatitis B | G103: 603 | H103: 0 | I103: =+GETPIVOTDATA(" BAS095",TABLAS!$A$59) -> 0 | J103: =+GETPIVOTDATA(" BAS096",TABLAS!$A$59) -> 0 | K103: =+GETPIVOTDATA(" BAS095",TABLAS!$A$97) -> 34 | L103: =+GETPIVOTDATA(" BAS096",TABLAS!$A$97) -> 0 | M103: =+GETPIVOTDATA(" BAS095",TABLAS!$A$132) -> 208 | N103: =+GETPIVOTDATA(" BAS096",TABLAS!$A$132) -> 0 | O103: =+GETPIVOTDATA(" BAS095",TABLAS!$A$167) -> 361 | P103: =+GETPIVOTDATA(" BAS096",TABLAS!$A$167) -> 0 | AB103: =+AC102+1 -> 85 | AC103: 86 | AE103: 085 | AF103: 086 | AH103: =+IMPORTARDATOSDINAMICOS(" BAS085",TABLAS!$A$238) | AI103: =+IMPORTARDATOSDINAMICOS(" BAS086",TABLAS!$A$238)
C104: Nº Mujeres con VIH con algún MAC | G104: 0 | H104: 0 | I104: =+GETPIVOTDATA(" BAS097",TABLAS!$A$59) -> 0 | J104: =+GETPIVOTDATA(" BAS098",TABLAS!$A$59) -> 0 | K104: =+GETPIVOTDATA(" BAS097",TABLAS!$A$97) -> 0 | L104: =+GETPIVOTDATA(" BAS098",TABLAS!$A$97) -> 0 | M104: =+GETPIVOTDATA(" BAS097",TABLAS!$A$132) -> 0 | N104: =+GETPIVOTDATA(" BAS098",TABLAS!$A$132) -> 0 | O104: =+GETPIVOTDATA(" BAS097",TABLAS!$A$167) -> 0 | P104: =+GETPIVOTDATA(" BAS098",TABLAS!$A$167) -> 0 | AB104: 87 | AC104: 88 | AE104: 087 | AF104: 088 | AH104: =+IMPORTARDATOSDINAMICOS(" BAS087",TABLAS!$A$238) | AI104: =+IMPORTARDATOSDINAMICOS(" BAS088",TABLAS!$A$238)
I105: 97 | J105: =+I105+1 -> 98 | M105: AGREGAR METODOS
D107: EFECTOS SECUNDARIOS/COMPLICACIONES POR MÉTODO ANTICONCEPTIVO
I108: 99
D109: Código | E109: Efectos Secundarios/Complicaciones | H109: TOTAL | I109: 10 a 11a | J109: 12 A 17a | K109: 18 A 29a | L109: 30 a 59a | M109: >60a
D110: Anticonceptivos Orales Combinados (AOC) | H110: =SUM(H111:H113) -> 2 | I110: =SUM(I111:I113) -> 0 | J110: 0 | K110: 1 | L110: 1
D111: N912 | E111: a. Amenorrea | H111: =SUM(I111:M111) -> 2 | I111: =+GETPIVOTDATA(" BAS099",TABLAS!$A$59) -> 0 | J111: =+GETPIVOTDATA(" BAS099",TABLAS!$A$97) -> 0 | K111: =+GETPIVOTDATA(" BAS099",TABLAS!$A$132) -> 1 | L111: =+GETPIVOTDATA(" BAS099",TABLAS!$A$167) -> 1 | AB111: =+AC104+1 -> 89 | AE111: =IF(AB111<9,CONCATENATE("00",AB111),IF(AND(AB111>9,AB111<100),CONCATENATE("0",AB111),AB111)) -> 089 | AH111: =CONCATENATE($AH$22,AE111,$AJ$22) -> =+IMPORTARDATOSDINAMICOS(" BAS089",TABLAS!$A$238)
D112: R11X | E112: b. Náuseas, vómitos | H112: =SUM(I112:M112) -> 0 | I112: =+GETPIVOTDATA(" BAS100",TABLAS!$A$59) -> 0 | J112: =+GETPIVOTDATA(" BAS100",TABLAS!$A$97) -> 0 | K112: =+GETPIVOTDATA(" BAS100",TABLAS!$A$132) -> 0 | L112: =+GETPIVOTDATA(" BAS100",TABLAS!$A$167) -> 0 | AB112: =+AB111+1 -> 90 | AE112: 090 | AH112: =+IMPORTARDATOSDINAMICOS(" BAS090",TABLAS!$A$238)
D113: R51X | E113: c. Cefalea persistente | H113: 0 | I113: =+GETPIVOTDATA(" BAS101",TABLAS!$A$59) -> 0 | J113: =+GETPIVOTDATA(" BAS101",TABLAS!$A$97) -> 0 | K113: =+GETPIVOTDATA(" BAS101",TABLAS!$A$132) -> 0 | L113: =+GETPIVOTDATA(" BAS101",TABLAS!$A$167) -> 0 | AB113: =+AB112+1 -> 91 | AE113: 091 | AH113: =+IMPORTARDATOSDINAMICOS(" BAS091",TABLAS!$A$238)
D114: Anticonceptivos Hormonales Combinados de Depósito: Inyectable Combinado | H114: =SUM(H115:H117) -> 0 | I114: =SUM(I115:I117) -> 0 | J114: =SUM(J115:J117) -> 0 | K114: =SUM(K115:K117) -> 0 | L114: =SUM(L115:L117) -> 0 | AH114: =+IMPORTARDATOSDINAMICOS(" BAS",TABLAS!$A$238)
D115: N912 | E115: a. Amenorrea | H115: 0 | I115: =+GETPIVOTDATA(" BAS102",TABLAS!$A$59) -> 0 | J115: =+GETPIVOTDATA(" BAS102",TABLAS!$A$97) -> 0 | K115: =+GETPIVOTDATA(" BAS102",TABLAS!$A$132) -> 0 | L115: =+GETPIVOTDATA(" BAS102",TABLAS!$A$167) -> 0 | AB115: =+AB113+1 -> 92 | AE115: 092 | AH115: =+IMPORTARDATOSDINAMICOS(" BAS092",TABLAS!$A$238)
D116: R11X | E116: b. Náuseas, vómitos | H116: 0 | I116: =+GETPIVOTDATA(" BAS103",TABLAS!$A$59) -> 0 | J116: =+GETPIVOTDATA(" BAS103",TABLAS!$A$97) -> 0 | K116: =+GETPIVOTDATA(" BAS103",TABLAS!$A$132) -> 0 | L116: =+GETPIVOTDATA(" BAS103",TABLAS!$A$167) -> 0 | AB116: 93 | AE116: 093 | AH116: =+IMPORTARDATOSDINAMICOS(" BAS093",TABLAS!$A$238)
D117: R51X | E117: c. Cefalea persistente | H117: 0 | I117: =+GETPIVOTDATA(" BAS104",TABLAS!$A$59) -> 0 | J117: =+GETPIVOTDATA(" BAS104",TABLAS!$A$97) -> 0 | K117: =+GETPIVOTDATA(" BAS104",TABLAS!$A$132) -> 0 | L117: =+GETPIVOTDATA(" BAS104",TABLAS!$A$167) -> 0 | AB117: 94 | AE117: 094 | AH117: =+IMPORTARDATOSDINAMICOS(" BAS094",TABLAS!$A$238)
D118: Inyectables solo de Progestina: | H118: =SUM(H119:H123) -> 1 | I118: =SUM(I119:I123) -> 0 | J118: 0 | K118: 0 | L118: 1 | AH118: =+IMPORTARDATOSDINAMICOS(" BAS",TABLAS!$A$238)
D119: N912 | E119: a. Amenorrea | H119: 0 | I119: =+GETPIVOTDATA(" BAS105",TABLAS!$A$59) -> 0 | J119: =+GETPIVOTDATA(" BAS105",TABLAS!$A$97) -> 0 | K119: =+GETPIVOTDATA(" BAS105",TABLAS!$A$132) -> 0 | L119: =+GETPIVOTDATA(" BAS105",TABLAS!$A$167) -> 0 | AB119: =+AB117+1 -> 95 | AE119: 095 | AH119: =+IMPORTARDATOSDINAMICOS(" BAS095",TABLAS!$A$238)
D120: N914 | E120: b. Sangrado infrecuente | H120: 0 | I120: =+GETPIVOTDATA(" BAS106",TABLAS!$A$59) -> 0 | J120: =+GETPIVOTDATA(" BAS106",TABLAS!$A$97) -> 0 | K120: =+GETPIVOTDATA(" BAS106",TABLAS!$A$132) -> 0 | L120: =+GETPIVOTDATA(" BAS106",TABLAS!$A$167) -> 0 | AB120: 96 | AE120: 096 | AH120: =+IMPORTARDATOSDINAMICOS(" BAS096",TABLAS!$A$238)
D121: N939 | E121: c. Sangrado frecuente | H121: 0 | I121: =+GETPIVOTDATA(" BAS107",TABLAS!$A$59) -> 0 | J121: =+GETPIVOTDATA(" BAS107",TABLAS!$A$97) -> 0 | K121: =+GETPIVOTDATA(" BAS107",TABLAS!$A$132) -> 0 | L121: =+GETPIVOTDATA(" BAS107",TABLAS!$A$167) -> 0 | AB121: 97 | AE121: 097 | AH121: =+IMPORTARDATOSDINAMICOS(" BAS097",TABLAS!$A$238)
D122: R58X | E122: d. Sangrado prolongado | H122: 0 | I122: =+GETPIVOTDATA(" BAS108",TABLAS!$A$59) -> 0 | J122: =+GETPIVOTDATA(" BAS108",TABLAS!$A$97) -> 0 | K122: =+GETPIVOTDATA(" BAS108",TABLAS!$A$132) -> 0 | L122: =+GETPIVOTDATA(" BAS108",TABLAS!$A$167) -> 0 | AB122: 98 | AE122: 098 | AH122: =+IMPORTARDATOSDINAMICOS(" BAS098",TABLAS!$A$238)
D123: R51X | E123: e. Cefalea persistente | H123: 1 | I123: =+GETPIVOTDATA(" BAS109",TABLAS!$A$59) -> 0 | J123: =+GETPIVOTDATA(" BAS109",TABLAS!$A$97) -> 0 | K123: =+GETPIVOTDATA(" BAS109",TABLAS!$A$132) -> 0 | L123: =+GETPIVOTDATA(" BAS109",TABLAS!$A$167) -> 1 | AB123: 99 | AE123: 099 | AH123: =+IMPORTARDATOSDINAMICOS(" BAS099",TABLAS!$A$238)
D124: Implantes solo de Progestina 3329116 | H124: =SUM(H125:H129) -> 18 | I124: =SUM(I125:I129) -> 0 | J124: 2 | K124: 12 | L124: 4 | N124: =+GETPIVOTDATA(" f23329116",TABLAS!$A$276) -> 5 | O124: =+H124*100/N124 -> 360 | AH124: =+IMPORTARDATOSDINAMICOS(" BAS",TABLAS!$A$238)
D125: N912 | E125: a. Amenorrea | H125: 1 | I125: =+GETPIVOTDATA(" BAS110",TABLAS!$A$59) -> 0 | J125: =+GETPIVOTDATA(" BAS110",TABLAS!$A$97) -> 0 | K125: =+GETPIVOTDATA(" BAS110",TABLAS!$A$132) -> 1 | L125: =+GETPIVOTDATA(" BAS110",TABLAS!$A$167) -> 0 | AB125: =+AB123+1 -> 100 | AE125: 100 | AH125: =+IMPORTARDATOSDINAMICOS(" BAS100",TABLAS!$A$238)
D126: N914 | E126: b. Sangrado infrecuente | H126: 6 | I126: =+GETPIVOTDATA(" BAS111",TABLAS!$A$59) -> 0 | J126: =+GETPIVOTDATA(" BAS111",TABLAS!$A$97) -> 0 | K126: =+GETPIVOTDATA(" BAS111",TABLAS!$A$132) -> 4 | L126: =+GETPIVOTDATA(" BAS111",TABLAS!$A$167) -> 2 | AB126: 101 | AE126: 101 | AH126: =+IMPORTARDATOSDINAMICOS(" BAS101",TABLAS!$A$238)
D127: N939 | E127: c. Sangrado frecuente | H127: 7 | I127: =+GETPIVOTDATA(" BAS112",TABLAS!$A$59) -> 0 | J127: =+GETPIVOTDATA(" BAS112",TABLAS!$A$97) -> 1 | K127: =+GETPIVOTDATA(" BAS112",TABLAS!$A$132) -> 5 | L127: =+GETPIVOTDATA(" BAS112",TABLAS!$A$167) -> 1 | AB127: 102 | AE127: 102 | AH127: =+IMPORTARDATOSDINAMICOS(" BAS102",TABLAS!$A$238)
D128: R58X | E128: d. Sangrado prolongado | H128: 4 | I128: =+GETPIVOTDATA(" BAS113",TABLAS!$A$59) -> 0 | J128: =+GETPIVOTDATA(" BAS113",TABLAS!$A$97) -> 1 | K128: =+GETPIVOTDATA(" BAS113",TABLAS!$A$132) -> 2 | L128: =+GETPIVOTDATA(" BAS113",TABLAS!$A$167) -> 1 | AB128: 103 | AE128: 103 | AH128: =+IMPORTARDATOSDINAMICOS(" BAS103",TABLAS!$A$238)
D129: R51X | E129: e. Cefalea persistente | H129: 0 | I129: =+GETPIVOTDATA(" BAS114",TABLAS!$A$59) -> 0 | J129: =+GETPIVOTDATA(" BAS114",TABLAS!$A$97) -> 0 | K129: =+GETPIVOTDATA(" BAS114",TABLAS!$A$132) -> 0 | L129: =+GETPIVOTDATA(" BAS114",TABLAS!$A$167) -> 0 | AB129: 104 | AE129: 104 | AH129: =+IMPORTARDATOSDINAMICOS(" BAS104",TABLAS!$A$238)
D130: Dispositivo Intrauterino (DIU) 3329112 | H130: =SUM(H131:H140) -> 3 | I130: =SUM(I131:I140) -> 0 | J130: 0 | K130: 2 | L130: 1 | N130: =+GETPIVOTDATA(" f23329112",TABLAS!$A$276) -> 0 | O130: =+H130*100/N130 ->  | AH130: =+IMPORTARDATOSDINAMICOS(" BAS",TABLAS!$A$238)
D131: N912 | E131: a. Amenorrea | H131: 0 | I131: =+GETPIVOTDATA(" BAS115",TABLAS!$A$59) -> 0 | J131: =+GETPIVOTDATA(" BAS115",TABLAS!$A$97) -> 0 | K131: =+GETPIVOTDATA(" BAS115",TABLAS!$A$132) -> 0 | L131: =+GETPIVOTDATA(" BAS115",TABLAS!$A$167) -> 0 | AB131: =+AB129+1 -> 105 | AE131: 105 | AH131: =+IMPORTARDATOSDINAMICOS(" BAS105",TABLAS!$A$238)
D132: N943 | E132: b. Dismenorrea | H132: 0 | I132: =+GETPIVOTDATA(" BAS116",TABLAS!$A$59) -> 0 | J132: =+GETPIVOTDATA(" BAS116",TABLAS!$A$97) -> 0 | K132: =+GETPIVOTDATA(" BAS116",TABLAS!$A$132) -> 0 | L132: =+GETPIVOTDATA(" BAS116",TABLAS!$A$167) -> 0 | AB132: 106 | AE132: 106 | AH132: =+IMPORTARDATOSDINAMICOS(" BAS106",TABLAS!$A$238)
D133: T8331 | E133: c. Expulsión de DIU | H133: 1 | I133: =+GETPIVOTDATA(" BAS117",TABLAS!$A$59) -> 0 | J133: =+GETPIVOTDATA(" BAS117",TABLAS!$A$97) -> 0 | K133: =+GETPIVOTDATA(" BAS117",TABLAS!$A$132) -> 1 | L133: =+GETPIVOTDATA(" BAS117",TABLAS!$A$167) -> 0 | AB133: 107 | AE133: 107 | AH133: =+IMPORTARDATOSDINAMICOS(" BAS107",TABLAS!$A$238)
D134: N914 | E134: d. Sangrado infrecuente | H134: 0 | I134: =+GETPIVOTDATA(" BAS118",TABLAS!$A$59) -> 0 | J134: =+GETPIVOTDATA(" BAS118",TABLAS!$A$97) -> 0 | K134: =+GETPIVOTDATA(" BAS118",TABLAS!$A$132) -> 0 | L134: =+GETPIVOTDATA(" BAS118",TABLAS!$A$167) -> 0 | AB134: 108 | AE134: 108 | AH134: =+IMPORTARDATOSDINAMICOS(" BAS108",TABLAS!$A$238)
D135: T8332 | E135: e. Sangrado frecuente asociado a DIU | H135: 1 | I135: =+GETPIVOTDATA(" BAS119",TABLAS!$A$59) -> 0 | J135: =+GETPIVOTDATA(" BAS119",TABLAS!$A$97) -> 0 | K135: =+GETPIVOTDATA(" BAS119",TABLAS!$A$132) -> 1 | L135: =+GETPIVOTDATA(" BAS119",TABLAS!$A$167) -> 0 | AB135: 109 | AE135: 109 | AH135: =+IMPORTARDATOSDINAMICOS(" BAS109",TABLAS!$A$238)
D136: R58X | E136: f. Sangrado prolongado | H136: 0 | I136: =+GETPIVOTDATA(" BAS120",TABLAS!$A$59) -> 0 | J136: =+GETPIVOTDATA(" BAS120",TABLAS!$A$97) -> 0 | K136: =+GETPIVOTDATA(" BAS120",TABLAS!$A$132) -> 0 | L136: =+GETPIVOTDATA(" BAS120",TABLAS!$A$167) -> 0 | AB136: 110 | AE136: 110 | AH136: =+IMPORTARDATOSDINAMICOS(" BAS110",TABLAS!$A$238)
D137: T8333 | E137: g. DIU en Cavidad Abdominal | H137: 0 | I137: =+GETPIVOTDATA(" BAS121",TABLAS!$A$59) -> 0 | J137: =+GETPIVOTDATA(" BAS121",TABLAS!$A$97) -> 0 | K137: =+GETPIVOTDATA(" BAS121",TABLAS!$A$132) -> 0 | L137: =+GETPIVOTDATA(" BAS121",TABLAS!$A$167) -> 0 | AB137: 111 | AE137: 111 | AH137: =+IMPORTARDATOSDINAMICOS(" BAS111",TABLAS!$A$238)
D138: T8334 | E138: h. DIU Extraviado | H138: 0 | I138: =+GETPIVOTDATA(" BAS122",TABLAS!$A$59) -> 0 | J138: =+GETPIVOTDATA(" BAS122",TABLAS!$A$97) -> 0 | K138: =+GETPIVOTDATA(" BAS122",TABLAS!$A$132) -> 0 | L138: =+GETPIVOTDATA(" BAS122",TABLAS!$A$167) -> 0 | AB138: 112 | AE138: 112 | AH138: =+IMPORTARDATOSDINAMICOS(" BAS112",TABLAS!$A$238)
D139: T8335 | E139: i. Complicación de DIU con Perforación Uterina | H139: 0 | I139: =+GETPIVOTDATA(" BAS123",TABLAS!$A$59) -> 0 | J139: =+GETPIVOTDATA(" BAS123",TABLAS!$A$97) -> 0 | K139: =+GETPIVOTDATA(" BAS123",TABLAS!$A$132) -> 0 | L139: =+GETPIVOTDATA(" BAS123",TABLAS!$A$167) -> 0 | AB139: 113 | AE139: 113 | AH139: =+IMPORTARDATOSDINAMICOS(" BAS113",TABLAS!$A$238)
D140: T8336 | E140: j. Dolor Pélvico asociado a DIU | H140: 1 | I140: =+GETPIVOTDATA(" BAS124",TABLAS!$A$59) -> 0 | J140: =+GETPIVOTDATA(" BAS124",TABLAS!$A$97) -> 0 | K140: =+GETPIVOTDATA(" BAS124",TABLAS!$A$132) -> 0 | L140: =+GETPIVOTDATA(" BAS124",TABLAS!$A$167) -> 1 | AB140: 114 | AE140: 114 | AH140: =+IMPORTARDATOSDINAMICOS(" BAS114",TABLAS!$A$238)
D141: Anticoncepción Quirúrgica Voluntaria Femenina 3329102 | H141: =SUM(H142:H147) -> 0 | I141: =SUM(I142:I147) -> 0 | J141: 0 | K141: 0 | L141: 0 | N141: =+GETPIVOTDATA(" f23329102",TABLAS!$A$276) -> 0 | O141: =+H141*100/N141 ->  | AH141: =+IMPORTARDATOSDINAMICOS(" BAS",TABLAS!$A$238)
D142: C678 | E142: a. Lesiones de la Vejiga o del Intestino | H142: 0 | I142: =+GETPIVOTDATA(" BAS125",TABLAS!$A$59) -> 0 | J142: =+GETPIVOTDATA(" BAS125",TABLAS!$A$97) -> 0 | K142: =+GETPIVOTDATA(" BAS125",TABLAS!$A$132) -> 0 | L142: =+GETPIVOTDATA(" BAS125",TABLAS!$A$167) -> 0 | AB142: =+AB140+1 -> 115 | AE142: 115 | AH142: =+IMPORTARDATOSDINAMICOS(" BAS115",TABLAS!$A$238)
D143: R58X | E143: b. Sangrado superficial (en los bordes de la piel o nivel subcutáneo) | H143: 0 | I143: =+GETPIVOTDATA(" BAS126",TABLAS!$A$59) -> 0 | J143: =+GETPIVOTDATA(" BAS126",TABLAS!$A$97) -> 0 | K143: =+GETPIVOTDATA(" BAS126",TABLAS!$A$132) -> 0 | L143: =+GETPIVOTDATA(" BAS126",TABLAS!$A$167) -> 0 | AB143: 116 | AE143: 116 | AH143: =+IMPORTARDATOSDINAMICOS(" BAS116",TABLAS!$A$238)
D144: R10.2 | E144: c. Dolor en la incisión | H144: 0 | I144: =+GETPIVOTDATA(" BAS127",TABLAS!$A$59) -> 0 | J144: =+GETPIVOTDATA(" BAS127",TABLAS!$A$97) -> 0 | K144: =+GETPIVOTDATA(" BAS127",TABLAS!$A$132) -> 0 | L144: =+GETPIVOTDATA(" BAS127",TABLAS!$A$167) -> 0 | AB144: 117 | AE144: 117 | AH144: =+IMPORTARDATOSDINAMICOS(" BAS117",TABLAS!$A$238)
D145: N837 | E145: d. Hematoma subcutáneo | H145: 0 | I145: =+GETPIVOTDATA(" BAS128",TABLAS!$A$59) -> 0 | J145: =+GETPIVOTDATA(" BAS128",TABLAS!$A$97) -> 0 | K145: =+GETPIVOTDATA(" BAS128",TABLAS!$A$132) -> 0 | L145: =+GETPIVOTDATA(" BAS128",TABLAS!$A$167) -> 0 | AB145: 118 | AE145: 118 | AH145: =+IMPORTARDATOSDINAMICOS(" BAS118",TABLAS!$A$238)
D146: T81.4 | E146: e. Infección de Herida operatoria | H146: 0 | I146: =+GETPIVOTDATA(" BAS129",TABLAS!$A$59) -> 0 | J146: =+GETPIVOTDATA(" BAS129",TABLAS!$A$97) -> 0 | K146: =+GETPIVOTDATA(" BAS129",TABLAS!$A$132) -> 0 | L146: =+GETPIVOTDATA(" BAS129",TABLAS!$A$167) -> 0 | AB146: 119 | AE146: 119 | AH146: =+IMPORTARDATOSDINAMICOS(" BAS119",TABLAS!$A$238)
D147: T814 | E147: f. Fiebre postoperatoria | H147: 0 | I147: =+GETPIVOTDATA(" BAS130",TABLAS!$A$59) -> 0 | J147: =+GETPIVOTDATA(" BAS130",TABLAS!$A$97) -> 0 | K147: =+GETPIVOTDATA(" BAS130",TABLAS!$A$132) -> 0 | L147: =+GETPIVOTDATA(" BAS130",TABLAS!$A$167) -> 0 | AB147: 120 | AE147: 120 | AH147: =+IMPORTARDATOSDINAMICOS(" BAS120",TABLAS!$A$238)
D148: Anticoncepción Quirúrgica Voluntaria Masculino 3329104 | H148: =SUM(H149:H153) -> 0 | I148: =SUM(I149:I153) -> 0 | J148: 0 | K148: 0 | L148: 0 | N148: =+GETPIVOTDATA(" f23329104",TABLAS!$A$276) -> 0 | O148: =+H148*100/N148 ->  | AH148: =+IMPORTARDATOSDINAMICOS(" BAS",TABLAS!$A$238)
D149: R60.0 | E149: a. Inflamación severa | H149: 0 | I149: =+GETPIVOTDATA(" BAS131",TABLAS!$A$59) -> 0 | J149: =+GETPIVOTDATA(" BAS131",TABLAS!$A$97) -> 0 | K149: =+GETPIVOTDATA(" BAS131",TABLAS!$A$132) -> 0 | L149: =+GETPIVOTDATA(" BAS131",TABLAS!$A$167) -> 0 | AB149: =+AB147+1 -> 121 | AE149: 121 | AH149: =+IMPORTARDATOSDINAMICOS(" BAS121",TABLAS!$A$238)
D150: R233 | E150: b. Equimosis | H150: 0 | I150: =+GETPIVOTDATA(" BAS132",TABLAS!$A$59) -> 0 | J150: =+GETPIVOTDATA(" BAS132",TABLAS!$A$97) -> 0 | K150: =+GETPIVOTDATA(" BAS132",TABLAS!$A$132) -> 0 | L150: =+GETPIVOTDATA(" BAS132",TABLAS!$A$167) -> 0 | AB150: 122 | AE150: 122 | AH150: =+IMPORTARDATOSDINAMICOS(" BAS122",TABLAS!$A$238)
D151: N50.1 | E151: c. Hematoma | H151: 0 | I151: =+GETPIVOTDATA(" BAS133",TABLAS!$A$59) -> 0 | J151: =+GETPIVOTDATA(" BAS133",TABLAS!$A$97) -> 0 | K151: =+GETPIVOTDATA(" BAS133",TABLAS!$A$132) -> 0 | L151: =+GETPIVOTDATA(" BAS133",TABLAS!$A$167) -> 0 | AB151: 123 | AE151: 123 | AH151: =+IMPORTARDATOSDINAMICOS(" BAS123",TABLAS!$A$238)
D152: T814 | E152: d. Infección de la herida operatoria | H152: 0 | I152: =+GETPIVOTDATA(" BAS134",TABLAS!$A$59) -> 0 | J152: =+GETPIVOTDATA(" BAS134",TABLAS!$A$97) -> 0 | K152: =+GETPIVOTDATA(" BAS134",TABLAS!$A$132) -> 0 | L152: =+GETPIVOTDATA(" BAS134",TABLAS!$A$167) -> 0 | AB152: 124 | AE152: 124 | AH152: =+IMPORTARDATOSDINAMICOS(" BAS124",TABLAS!$A$238)
D153: N49.2 | E153: e. Granuloma a nivel de la herida | H153: 0 | I153: =+GETPIVOTDATA(" BAS135",TABLAS!$A$59) -> 0 | J153: =+GETPIVOTDATA(" BAS135",TABLAS!$A$97) -> 0 | K153: =+GETPIVOTDATA(" BAS135",TABLAS!$A$132) -> 0 | L153: =+GETPIVOTDATA(" BAS135",TABLAS!$A$167) -> 0 | AB153: 125 | AE153: 125 | AH153: =+IMPORTARDATOSDINAMICOS(" BAS125",TABLAS!$A$238)
I154: 135

Sheet Menor12
A1: ANNO | B1: 2025
A2: MES | B2: (Todas)
A3: DESC_RED | B3: (Todas)
A4: DESC_MICRO | B4: (Todas)
A6: Etiquetas de fila | B6: 1.Diu_NA_Nueva | C6: 3.Diu_NI_Insumo | D6: 2.Diu_CA_Continua | E6: 4.Diu_CI_Insumo | F6: 5.DiuProg_NA_Nueva | G6: 7.DiuProg_NI_Insumo | H6: 6.DiuProg_CA_Continua | I6: 8.DiuProg_CI_Insumo | J6: 9.OralCom_NA_Nueva | K6: 11.OralCom_NI_Insumo | L6: 10.OralCom_CA_Continua | M6: 12.OralCom_CI_Insumo | N6: 13.InyTri_NA_Nueva | O6: 15.InyTri_NI_Insumo | P6: 14.InyTri_CA_Continua | Q6: 16.InyTri_CI_Insumo | R6: 17.InyMen_NA_Nueva | S6: 19.InyMen_NI_Insumo | T6: 18.InyMen_CA_Continua | U6: 20.InyMen_CI_Insumo | V6: 21.Implante_NA_Nueva | W6: 23.Implante_NI_Insumo | X6: 22.Implante_CA_Continua | Y6: 24.Implante_CI_Insumo | Z6: 25.CondonM_NA_Nueva | AA6: 27.CondonM_NI_Insumo | AB6: 26.CondonM_CA_Continua | AC6: 28.CondonM_CI_Insumo | AD6: 29.CondonF_NA_Nueva | AE6: 31.CondonF_NI_Insumo | AF6: 30.CondonF_CA_Continua | AG6: 32.CondonF_CI_Insumo | AH6: 33.AQV_Fem_Nueva | AI6: 34.AQV_Fem_Continua | AJ6: 35.AQV_Mas_Nueva | AK6: 36.AQV_Mas_Continua | AL6: 37.Mela_Nueva | AM6: 38.Mela_Continua | AN6: 39.AbstPerio_Nueva | AO6: 40.AbstPerio_Continua | AP6: 41.AOE_P_TG_A | AQ6: 42.AOE_P_TG_I | AR6: 43.AOE_P_VSX_A | AS6: 44.AOE_P_VSX_I | AT6: 45.AC_PEO_DiuCesarea | AU6: 46.AC_PEO_DiuPaborto | AV6: 47.AC_PEO_DiuPparto | AW6: 48.AC_PEO_DiuLibCesarea | AX6: 49.AC_PEO_DiuLibPaborto | AY6: 50.AC_PEO_DiuLibPparto | AZ6: 51.AC_PEO_InyTriCesarea | BA6: 52.AC_PEO_InyTriPaborto | BB6: 53.AC_PEO_InyTriPparto | BC6: 54.AC_PEO_InyMenCesarea | BD6: 55.AC_PEO_InyMenPaborto | BE6: 56.AC_PEO_InyMenPparto | BF6: 57.AC_PEO_OralComCesarea | BG6: 58.AC_PEO_OralComPaborto | BH6: 59.AC_PEO_OralComPparto | BI6: 60.AC_PEO_ImplantCesarea | BJ6: 61.AC_PEO_ImplantPaborto | BK6: 62.AC_PEO_ImplantPparto | BL6: 63.AC_PEO_CondonMCesarea | BM6: 64.AC_PEO_CondonMPaborto | BN6: 65.AC_PEO_CondonMPparto | BO6: 66.AC_PEO_CondonFCesarea | BP6: 67.AC_PEO_CondonFPaborto | BQ6: 68.AC_PEO_CondonFPparto | BR6: 69.AC_PEO_AQVFCesarea | BS6: 70.AC_PEO_AQVFPaborto | BT6: 71.AC_PEO_AQVFPparto | BU6: 72.AC_PUER_Diu | BV6: 73.AC_PUER_DiuLib | BW6: 74.AC_PUER_InyTri | BX6: 75.AC_PUER_Implant | BY6: 76.AC_PUER_CondonM | BZ6: 77.AC_PUER_CondonF | CA6: 78.AC_PUER_AQVF | CB6: 79.OriCons_GenPF_F | CC6: 80.OriCons_GenPF_M | CD6: 81.OriCons_AQV_F | CE6: 82.OriCons_AQV_M | CF6: 83.OriCons_AOE_F | CG6: 84.OriCons_AOE_M | CH6: 85.OriCons_SSR_F | CI6: 86.OriCons_SSR_M | CJ6: 87.OriCons_TVBG_F | CK6: 88.OriCons_TVBG_M | CL6: 89.OriCons_TVBG+_F | CM6: 90.OriCons_TVBG+_M | CN6: 91.TamPruRap_MEF_VIH_Nro | CO6: 92.TamPruRap_MEF_VIH_React | CP6: 93.TamPruRap_MEF_SIF_Nro | CQ6: 94.TamPruRap_MEF_SIF_React | CR6: 95.TamPruRap_MEF_HVB_Nro | CS6: 96.TamPruRap_MEF_HVB_React | CT6: 97.TamPruRap_MujVIH_AMA_Nro | CU6: 98.TamPruRap_MujVIH_AMA_React | CV6: 99.EfecSecxMAC_AOC_Amenorrea | CW6: 100.EfecSecxMAC_AOC_Náuseas_Vómitos | CX6: 101.EfecSecxMAC_AOC_Cefalea_Persistente | CY6: 102.EfecSecxMAC_AHC_D_Amenorrea | CZ6: 103.EfecSecxMAC_AHC_D_Náuseas_Vómitos | DA6: 104.EfecSecxMAC_AHC_D_Cefalea_Persistente | DB6: 105.EfecSecxMAC_InyProg_Amenorrea | DC6: 106.EfecSecxMAC_InyProg_Sangrado_infrecuente | DD6: 107.EfecSecxMAC_InyProg_Sangrado_Frecuente | DE6: 108.EfecSecxMAC_InyProg_Sangrado_Prolongado | DF6: 109.EfecSecxMAC_InyProg_Cefalea_Persistente | DG6: 110.EfecSecxMAC_ImplProg_Amenorrea | DH6: 111.EfecSecxMAC_ImplProg_Sangrado_infrecuente | DI6: 112.EfecSecxMAC_ImplProg_Sangrado_Frecuente | DJ6: 113.EfecSecxMAC_ImplProg_Sangrado_Prolongado | DK6: 114.EfecSecxMAC_ImplProg_Cefalea_Persistente | DL6: 115.EfecSecxMAC_DispIntra_Amenorrea | DM6: 116.EfecSecxMAC_DispIntra_Dismenorrea | DN6: 117.EfecSecxMAC_DispIntra_Expulsión_DIU | DO6: 118.EfecSecxMAC_DispIntra_Sangrado_Infrecuente | DP6: 119.EfecSecxMAC_DispIntra_Sangrado_FrecuenteDIU | DQ6: 120.EfecSecxMAC_DispIntra_Sangrado_Prolongado | DR6: 121.EfecSecxMAC_DispIntra_DIU_Cavidad _Abdominal | DS6: 122.EfecSecxMAC_DispIntra_DIU_Extraviado | DT6: 123.EfecSecxMAC_DispIntra_Complicación_DIU | DU6: 124.EfecSecxMAC_DispIntra_Dolor_Pélvico_DIU | DV6: 125.EfecSecxMAC_AQVF_Lesiones_VejigaIntes | DW6: 126.EfecSecxMAC_AQVF_Sangrado_Superficial | DX6: 127.EfecSecxMAC_AQVF_Dolor_Incisión | DY6: 128.EfecSecxMAC_AQVF_Hematoma_Subcutáneo | DZ6: 129.EfecSecxMAC_AQVF_Infección_HeridaOpera | EA6: 130.EfecSecxMAC_AQVF_Fiebre_Postoperatoria | EB6: 131.EfecSecxMAC_AQVM_Inflamación_Severa | EC6: 132.EfecSecxMAC_AQVM_Equimosis | ED6: 133.EfecSecxMAC_AQVM_Hematoma | EE6: 134.EfecSecxMAC_AQVM_Infección_Herida_Operatoria | EF6: 135.EfecSecxMAC_AQVM_Granuloma_Herida
A7: ACCHA | B7: 0 | C7: 0 | D7: 0 | E7: 0 | F7: 0 | G7: 0 | H7: 0 | I7: 0 | J7: 0 | K7: 0 | L7: 0 | M7: 0 | N7: 0 | O7: 0 | P7: 0 | Q7: 0 | R7: 0 | S7: 0 | T7: 0 | U7: 0 | V7: 0 | W7: 0 | X7: 0 | Y7: 0 | Z7: 0 | AA7: 0 | AB7: 0 | AC7: 0 | AD7: 0 | AE7: 0 | AF7: 0 | AG7: 0 | AH7: 0 | AI7: 0 | AJ7: 0 | AK7: 0 | AL7: 0 | AM7: 0 | AN7: 0 | AO7: 0 | AP7: 0 | AQ7: 0 | AR7: 0 | AS7: 0 | AT7: 0 | AU7: 0 | AV7: 0 | AW7: 0 | AX7: 0 | AY7: 0 | AZ7: 0 | BA7: 0 | BB7: 0 | BC7: 0 | BD7: 0 | BE7: 0 | BF7: 0 | BG7: 0 | BH7: 0 | BI7: 0 | BJ7: 0 | BK7: 0 | BL7: 0 | BM7: 0 | BN7: 0 | BO7: 0 | BP7: 0 | BQ7: 0 | BR7: 0 | BS7: 0 | BT7: 0 | BU7: 0 | BV7: 0 | BW7: 0 | BX7: 0 | BY7: 0 | BZ7: 0 | CA7: 0 | CB7: 0 | CC7: 0 | CD7: 0 | CE7: 0 | CF7: 0 | CG7: 0 | CH7: 0 | CI7: 0 | CJ7: 0 | CK7: 0 | CL7: 0 | CM7: 0 | CN7: 0 | CO7: 0 | CP7: 0 | CQ7: 0 | CR7: 0 | CS7: 0 | CT7: 0 | CU7: 0 | CV7: 0 | CW7: 0 | CX7: 0 | CY7: 0 | CZ7: 0 | DA7: 0 | DB7: 0 | DC7: 0 | DD7: 0 | DE7: 0 | DF7: 0 | DG7: 0 | DH7: 0 | DI7: 0 | DJ7: 0 | DK7: 0 | DL7: 0 | DM7: 0 | DN7: 0 | DO7: 0 | DP7: 0 | DQ7: 0 | DR7: 0 | DS7: 0 | DT7: 0 | DU7: 0 | DV7: 0 | DW7: 0 | DX7: 0 | DY7: 0 | DZ7: 0 | EA7: 0 | EB7: 0 | EC7: 0 | ED7: 0 | EE7: 0 | EF7: 0
A8: ACCHA ALTA - PAMPALLACTA | B8: 0 | C8: 0 | D8: 0 | E8: 0 | F8: 0 | G8: 0 | H8: 0 | I8: 0 | J8: 0 | K8: 0 | L8: 0 | M8: 0 | N8: 0 | O8: 0 | P8: 0 | Q8: 0 | R8: 0 | S8: 0 | T8: 0 | U8: 0 | V8: 0 | W8: 0 | X8: 0 | Y8: 0 | Z8: 0 | AA8: 0 | AB8: 0 | AC8: 0 | AD8: 0 | AE8: 0 | AF8: 0 | AG8: 0 | AH8: 0 | AI8: 0 | AJ8: 0 | AK8: 0 | AL8: 0 | AM8: 0 | AN8: 0 | AO8: 0 | AP8: 0 | AQ8: 0 | AR8: 0 | AS8: 0 | AT8: 0 | AU8: 0 | AV8: 0 | AW8: 0 | AX8: 0 | AY8: 0 | AZ8: 0 | BA8: 0 | BB8: 0 | BC8: 0 | BD8: 0 | BE8: 0 | BF8: 0 | BG8: 0 | BH8: 0 | BI8: 0 | BJ8: 0 | BK8: 0 | BL8: 0 | BM8: 0 | BN8: 0 | BO8: 0 | BP8: 0 | BQ8: 0 | BR8: 0 | BS8: 0 | BT8: 0 | BU8: 0 | BV8: 0 | BW8: 0 | BX8: 0 | BY8: 0 | BZ8: 0 | CA8: 0 | CB8: 0 | CC8: 0 | CD8: 0 | CE8: 0 | CF8: 0 | CG8: 0 | CH8: 0 | CI8: 0 | CJ8: 0 | CK8: 0 | CL8: 0 | CM8: 0 | CN8: 0 | CO8: 0 | CP8: 0 | CQ8: 0 | CR8: 0 | CS8: 0 | CT8: 0 | CU8: 0 | CV8: 0 | CW8: 0 | CX8: 0 | CY8: 0 | CZ8: 0 | DA8: 0 | DB8: 0 | DC8: 0 | DD8: 0 | DE8: 0 | DF8: 0 | DG8: 0 | DH8: 0 | DI8: 0 | DJ8: 0 | DK8: 0 | DL8: 0 | DM8: 0 | DN8: 0 | DO8: 0 | DP8: 0 | DQ8: 0 | DR8: 0 | DS8: 0 | DT8: 0 | DU8: 0 | DV8: 0 | DW8: 0 | DX8: 0 | DY8: 0 | DZ8: 0 | EA8: 0 | EB8: 0 | EC8: 0 | ED8: 0 | EE8: 0 | EF8: 0
A9: ACCOCUNCA | B9: 0 | C9: 0 | D9: 0 | E9: 0 | F9: 0 | G9: 0 | H9: 0 | I9: 0 | J9: 0 | K9: 0 | L9: 0 | M9: 0 | N9: 0 | O9: 0 | P9: 0 | Q9: 0 | R9: 0 | S9: 0 | T9: 0 | U9: 0 | V9: 0 | W9: 0 | X9: 0 | Y9: 0 | Z9: 0 | AA9: 0 | AB9: 0 | AC9: 0 | AD9: 0 | AE9: 0 | AF9: 0 | AG9: 0 | AH9: 0 | AI9: 0 | AJ9: 0 | AK9: 0 | AL9: 0 | AM9: 0 | AN9: 0 | AO9: 0 | AP9: 0 | AQ9: 0 | AR9: 0 | AS9: 0 | AT9: 0 | AU9: 0 | AV9: 0 | AW9: 0 | AX9: 0 | AY9: 0 | AZ9: 0 | BA9: 0 | BB9: 0 | BC9: 0 | BD9: 0 | BE9: 0 | BF9: 0 | BG9: 0 | BH9: 0 | BI9: 0 | BJ9: 0 | BK9: 0 | BL9: 0 | BM9: 0 | BN9: 0 | BO9: 0 | BP9: 0 | BQ9: 0 | BR9: 0 | BS9: 0 | BT9: 0 | BU9: 0 | BV9: 0 | BW9: 0 | BX9: 0 | BY9: 0 | BZ9: 0 | CA9: 0 | CB9: 0 | CC9: 0 | CD9: 0 | CE9: 0 | CF9: 0 | CG9: 0 | CH9: 0 | CI9: 0 | CJ9: 0 | CK9: 0 | CL9: 0 | CM9: 0 | CN9: 0 | CO9: 0 | CP9: 0 | CQ9: 0 | CR9: 0 | CS9: 0 | CT9: 0 | CU9: 0 | CV9: 0 | CW9: 0 | CX9: 0 | CY9: 0 | CZ9: 0 | DA9: 0 | DB9: 0 | DC9: 0 | DD9: 0 | DE9: 0 | DF9: 0 | DG9: 0 | DH9: 0 | DI9: 0 | DJ9: 0 | DK9: 0 | DL9: 0 | DM9: 0 | DN9: 0 | DO9: 0 | DP9: 0 | DQ9: 0 | DR9: 0 | DS9: 0 | DT9: 0 | DU9: 0 | DV9: 0 | DW9: 0 | DX9: 0 | DY9: 0 | DZ9: 0 | EA9: 0 | EB9: 0 | EC9: 0 | ED9: 0 | EE9: 0 | EF9: 0
A10: ACOMAYO | B10: 0 | C10: 0 | D10: 0 | E10: 0 | F10: 0 | G10: 0 | H10: 0 | I10: 0 | J10: 0 | K10: 0 | L10: 0 | M10: 0 | N10: 0 | O10: 0 | P10: 0 | Q10: 0 | R10: 0 | S10: 0 | T10: 0 | U10: 0 | V10: 0 | W10: 0 | X10: 0 | Y10: 0 | Z10: 0 | AA10: 0 | AB10: 0 | AC10: 0 | AD10: 0 | AE10: 0 | AF10: 0 | AG10: 0 | AH10: 0 | AI10: 0 | AJ10: 0 | AK10: 0 | AL10: 0 | AM10: 0 | AN10: 0 | AO10: 0 | AP10: 0 | AQ10: 0 | AR10: 0 | AS10: 0 | AT10: 0 | AU10: 0 | AV10: 0 | AW10: 0 | AX10: 0 | AY10: 0 | AZ10: 0 | BA10: 0 | BB10: 0 | BC10: 0 | BD10: 0 | BE10: 0 | BF10: 0 | BG10: 0 | BH10: 0 | BI10: 0 | BJ10: 0 | BK10: 0 | BL10: 0 | BM10: 0 | BN10: 0 | BO10: 0 | BP10: 0 | BQ10: 0 | BR10: 0 | BS10: 0 | BT10: 0 | BU10: 0 | BV10: 0 | BW10: 0 | BX10: 0 | BY10: 0 | BZ10: 0 | CA10: 0 | CB10: 0 | CC10: 0 | CD10: 0 | CE10: 0 | CF10: 0 | CG10: 0 | CH10: 0 | CI10: 0 | CJ10: 0 | CK10: 0 | CL10: 0 | CM10: 0 | CN10: 0 | CO10: 0 | CP10: 0 | CQ10: 0 | CR10: 0 | CS10: 0 | CT10: 0 | CU10: 0 | CV10: 0 | CW10: 0 | CX10: 0 | CY10: 0 | CZ10: 0 | DA10: 0 | DB10: 0 | DC10: 0 | DD10: 0 | DE10: 0 | DF10: 0 | DG10: 0 | DH10: 0 | DI10: 0 | DJ10: 0 | DK10: 0 | DL10: 0 | DM10: 0 | DN10: 0 | DO10: 0 | DP10: 0 | DQ10: 0 | DR10: 0 | DS10: 0 | DT10: 0 | DU10: 0 | DV10: 0 | DW10: 0 | DX10: 0 | DY10: 0 | DZ10: 0 | EA10: 0 | EB10: 0 | EC10: 0 | ED10: 0 | EE10: 0 | EF10: 0
A11: ACOPIA | B11: 0 | C11: 0 | D11: 0 | E11: 0 | F11: 0 | G11: 0 | H11: 0 | I11: 0 | J11: 0 | K11: 0 | L11: 0 | M11: 0 | N11: 0 | O11: 0 | P11: 0 | Q11: 0 | R11: 0 | S11: 0 | T11: 0 | U11: 0 | V11: 0 | W11: 0 | X11: 0 | Y11: 0 | Z11: 0 | AA11: 0 | AB11: 0 | AC11: 0 | AD11: 0 | AE11: 0 | AF11: 0 | AG11: 0 | AH11: 0 | AI11: 0 | AJ11: 0 | AK11: 0 | AL11: 0 | AM11: 0 | AN11: 0 | AO11: 0 | AP11: 0 | AQ11: 0 | AR11: 0 | AS11: 0 | AT11: 0 | AU11: 0 | AV11: 0 | AW11: 0 | AX11: 0 | AY11: 0 | AZ11: 0 | BA11: 0 | BB11: 0 | BC11: 0 | BD11: 0 | BE11: 0 | BF11: 0 | BG11: 0 | BH11: 0 | BI11: 0 | BJ11: 0 | BK11: 0 | BL11: 0 | BM11: 0 | BN11: 0 | BO11: 0 | BP11: 0 | BQ11: 0 | BR11: 0 | BS11: 0 | BT11: 0 | BU11: 0 | BV11: 0 | BW11: 0 | BX11: 0 | BY11: 0 | BZ11: 0 | CA11: 0 | CB11: 0 | CC11: 0 | CD11: 0 | CE11: 0 | CF11: 0 | CG11: 0 | CH11: 0 | CI11: 0 | CJ11: 0 | CK11: 0 | CL11: 0 | CM11: 0 | CN11: 0 | CO11: 0 | CP11: 0 | CQ11: 0 | CR11: 0 | CS11: 0 | CT11: 0 | CU11: 0 | CV11: 0 | CW11: 0 | CX11: 0 | CY11: 0 | CZ11: 0 | DA11: 0 | DB11: 0 | DC11: 0 | DD11: 0 | DE11: 0 | DF11: 0 | DG11: 0 | DH11: 0 | DI11: 0 | DJ11: 0 | DK11: 0 | DL11: 0 | DM11: 0 | DN11: 0 | DO11: 0 | DP11: 0 | DQ11: 0 | DR11: 0 | DS11: 0 | DT11: 0 | DU11: 0 | DV11: 0 | DW11: 0 | DX11: 0 | DY11: 0 | DZ11: 0 | EA11: 0 | EB11: 0 | EC11: 0 | ED11: 0 | EE11: 0 | EF11: 0
A12: ACOS | B12: 0 | C12: 0 | D12: 0 | E12: 0 | F12: 0 | G12: 0 | H12: 0 | I12: 0 | J12: 0 | K12: 0 | L12: 0 | M12: 0 | N12: 0 | O12: 0 | P12: 0 | Q12: 0 | R12: 0 | S12: 0 | T12: 0 | U12: 0 | V12: 0 | W12: 0 | X12: 0 | Y12: 0 | Z12: 0 | AA12: 0 | AB12: 0 | AC12: 0 | AD12: 0 | AE12: 0 | AF12: 0 | AG12: 0 | AH12: 0 | AI12: 0 | AJ12: 0 | AK12: 0 | AL12: 0 | AM12: 0 | AN12: 0 | AO12: 0 | AP12: 0 | AQ12: 0 | AR12: 0 | AS12: 0 | AT12: 0 | AU12: 0 | AV12: 0 | AW12: 0 | AX12: 0 | AY12: 0 | AZ12: 0 | BA12: 0 | BB12: 0 | BC12: 0 | BD12: 0 | BE12: 0 | BF12: 0 | BG12: 0 | BH12: 0 | BI12: 0 | BJ12: 0 | BK12: 0 | BL12: 0 | BM12: 0 | BN12: 0 | BO12: 0 | BP12: 0 | BQ12: 0 | BR12: 0 | BS12: 0 | BT12: 0 | BU12: 0 | BV12: 0 | BW12: 0 | BX12: 0 | BY12: 0 | BZ12: 0 | CA12: 0 | CB12: 0 | CC12: 0 | CD12: 0 | CE12: 0 | CF12: 0 | CG12: 0 | CH12: 0 | CI12: 0 | CJ12: 0 | CK12: 0 | CL12: 0 | CM12: 0 | CN12: 0 | CO12: 0 | CP12: 0 | CQ12: 0 | CR12: 0 | CS12: 0 | CT12: 0 | CU12: 0 | CV12: 0 | CW12: 0 | CX12: 0 | CY12: 0 | CZ12: 0 | DA12: 0 | DB12: 0 | DC12: 0 | DD12: 0 | DE12: 0 | DF12: 0 | DG12: 0 | DH12: 0 | DI12: 0 | DJ12: 0 | DK12: 0 | DL12: 0 | DM12: 0 | DN12: 0 | DO12: 0 | DP12: 0 | DQ12: 0 | DR12: 0 | DS12: 0 | DT12: 0 | DU12: 0 | DV12: 0 | DW12: 0 | DX12: 0 | DY12: 0 | DZ12: 0 | EA12: 0 | EB12: 0 | EC12: 0 | ED12: 0 | EE12: 0 | EF12: 0
A13: ALCCA VICTORIA | B13: 0 | C13: 0 | D13: 0 | E13: 0 | F13: 0 | G13: 0 | H13: 0 | I13: 0 | J13: 0 | K13: 0 | L13: 0 | M13: 0 | N13: 0 | O13: 0 | P13: 0 | Q13: 0 | R13: 0 | S13: 0 | T13: 0 | U13: 0 | V13: 0 | W13: 0 | X13: 0 | Y13: 0 | Z13: 0 | AA13: 0 | AB13: 0 | AC13: 0 | AD13: 0 | AE13: 0 | AF13: 0 | AG13: 0 | AH13: 0 | AI13: 0 | AJ13: 0 | AK13: 0 | AL13: 0 | AM13: 0 | AN13: 0 | AO13: 0 | AP13: 0 | AQ13: 0 | AR13: 0 | AS13: 0 | AT13: 0 | AU13: 0 | AV13: 0 | AW13: 0 | AX13: 0 | AY13: 0 | AZ13: 0 | BA13: 0 | BB13: 0 | BC13: 0 | BD13: 0 | BE13: 0 | BF13: 0 | BG13: 0 | BH13: 0 | BI13: 0 | BJ13: 0 | BK13: 0 | BL13: 0 | BM13: 0 | BN13: 0 | BO13: 0 | BP13: 0 | BQ13: 0 | BR13: 0 | BS13: 0 | BT13: 0 | BU13: 0 | BV13: 0 | BW13: 0 | BX13: 0 | BY13: 0 | BZ13: 0 | CA13: 0 | CB13: 0 | CC13: 0 | CD13: 0 | CE13: 0 | CF13: 0 | CG13: 0 | CH13: 0 | CI13: 0 | CJ13: 0 | CK13: 0 | CL13: 0 | CM13: 0 | CN13: 0 | CO13: 0 | CP13: 0 | CQ13: 0 | CR13: 0 | CS13: 0 | CT13: 0 | CU13: 0 | CV13: 0 | CW13: 0 | CX13: 0 | CY13: 0 | CZ13: 0 | DA13: 0 | DB13: 0 | DC13: 0 | DD13: 0 | DE13: 0 | DF13: 0 | DG13: 0 | DH13: 0 | DI13: 0 | DJ13: 0 | DK13: 0 | DL13: 0 | DM13: 0 | DN13: 0 | DO13: 0 | DP13: 0 | DQ13: 0 | DR13: 0 | DS13: 0 | DT13: 0 | DU13: 0 | DV13: 0 | DW13: 0 | DX13: 0 | DY13: 0 | DZ13: 0 | EA13: 0 | EB13: 0 | EC13: 0 | ED13: 0 | EE13: 0 | EF13: 0
A14: ALFAMAYO | B14: 0 | C14: 0 | D14: 0 | E14: 0 | F14: 0 | G14: 0 | H14: 0 | I14: 0 | J14: 0 | K14: 0 | L14: 0 | M14: 0 | N14: 0 | O14: 0 | P14: 0 | Q14: 0 | R14: 0 | S14: 0 | T14: 0 | U14: 0 | V14: 0 | W14: 0 | X14: 0 | Y14: 0 | Z14: 0 | AA14: 0 | AB14: 0 | AC14: 0 | AD14: 0 | AE14: 0 | AF14: 0 | AG14: 0 | AH14: 0 | AI14: 0 | AJ14: 0 | AK14: 0 | AL14: 0 | AM14: 0 | AN14: 0 | AO14: 0 | AP14: 0 | AQ14: 0 | AR14: 0 | AS14: 0 | AT14: 0 | AU14: 0 | AV14: 0 | AW14: 0 | AX14: 0 | AY14: 0 | AZ14: 0 | BA14: 0 | BB14: 0 | BC14: 0 | BD14: 0 | BE14: 0 | BF14: 0 | BG14: 0 | BH14: 0 | BI14: 0 | BJ14: 0 | BK14: 0 | BL14: 0 | BM14: 0 | BN14: 0 | BO14: 0 | BP14: 0 | BQ14: 0 | BR14: 0 | BS14: 0 | BT14: 0 | BU14: 0 | BV14: 0 | BW14: 0 | BX14: 0 | BY14: 0 | BZ14: 0 | CA14: 0 | CB14: 0 | CC14: 0 | CD14: 0 | CE14: 0 | CF14: 0 | CG14: 0 | CH14: 0 | CI14: 0 | CJ14: 0 | CK14: 0 | CL14: 0 | CM14: 0 | CN14: 0 | CO14: 0 | CP14: 0 | CQ14: 0 | CR14: 0 | CS14: 0 | CT14: 0 | CU14: 0 | CV14: 0 | CW14: 0 | CX14: 0 | CY14: 0 | CZ14: 0 | DA14: 0 | DB14: 0 | DC14: 0 | DD14: 0 | DE14: 0 | DF14: 0 | DG14: 0 | DH14: 0 | DI14: 0 | DJ14: 0 | DK14: 0 | DL14: 0 | DM14: 0 | DN14: 0 | DO14: 0 | DP14: 0 | DQ14: 0 | DR14: 0 | DS14: 0 | DT14: 0 | DU14: 0 | DV14: 0 | DW14: 0 | DX14: 0 | DY14: 0 | DZ14: 0 | EA14: 0 | EB14: 0 | EC14: 0 | ED14: 0 | EE14: 0 | EF14: 0
A15: ALHUACCHULLO | B15: 0 | C15: 0 | D15: 0 | E15: 0 | F15: 0 | G15: 0 | H15: 0 | I15: 0 | J15: 0 | K15: 0 | L15: 0 | M15: 0 | N15: 0 | O15: 0 | P15: 0 | Q15: 0 | R15: 0 | S15: 0 | T15: 0 | U15: 0 | V15: 0 | W15: 0 | X15: 0 | Y15: 0 | Z15: 0 | AA15: 0 | AB15: 0 | AC15: 0 | AD15: 0 | AE15: 0 | AF15: 0 | AG15: 0 | AH15: 0 | AI15: 0 | AJ15: 0 | AK15: 0 | AL15: 0 | AM15: 0 | AN15: 0 | AO15: 0 | AP15: 0 | AQ15: 0 | AR15: 0 | AS15: 0 | AT15: 0 | AU15: 0 | AV15: 0 | AW15: 0 | AX15: 0 | AY15: 0 | AZ15: 0 | BA15: 0 | BB15: 0 | BC15: 0 | BD15: 0 | BE15: 0 | BF15: 0 | BG15: 0 | BH15: 0 | BI15: 0 | BJ15: 0 | BK15: 0 | BL15: 0 | BM15: 0 | BN15: 0 | BO15: 0 | BP15: 0 | BQ15: 0 | BR15: 0 | BS15: 0 | BT15: 0 | BU15: 0 | BV15: 0 | BW15: 0 | BX15: 0 | BY15: 0 | BZ15: 0 | CA15: 0 | CB15: 0 | CC15: 0 | CD15: 0 | CE15: 0 | CF15: 0 | CG15: 0 | CH15: 0 | CI15: 0 | CJ15: 0 | CK15: 0 | CL15: 0 | CM15: 0 | CN15: 0 | CO15: 0 | CP15: 0 | CQ15: 0 | CR15: 0 | CS15: 0 | CT15: 0 | CU15: 0 | CV15: 0 | CW15: 0 | CX15: 0 | CY15: 0 | CZ15: 0 | DA15: 0 | DB15: 0 | DC15: 0 | DD15: 0 | DE15: 0 | DF15: 0 | DG15: 0 | DH15: 0 | DI15: 0 | DJ15: 0 | DK15: 0 | DL15: 0 | DM15: 0 | DN15: 0 | DO15: 0 | DP15: 0 | DQ15: 0 | DR15: 0 | DS15: 0 | DT15: 0 | DU15: 0 | DV15: 0 | DW15: 0 | DX15: 0 | DY15: 0 | DZ15: 0 | EA15: 0 | EB15: 0 | EC15: 0 | ED15: 0 | EE15: 0 | EF15: 0
A16: AMAYBAMBA | B16: 0 | C16: 0 | D16: 0 | E16: 0 | F16: 0 | G16: 0 | H16: 0 | I16: 0 | J16: 0 | K16: 0 | L16: 0 | M16: 0 | N16: 0 | O16: 0 | P16: 0 | Q16: 0 | R16: 0 | S16: 0 | T16: 0 | U16: 0 | V16: 0 | W16: 0 | X16: 0 | Y16: 0 | Z16: 0 | AA16: 0 | AB16: 0 | AC16: 0 | AD16: 0 | AE16: 0 | AF16: 0 | AG16: 0 | AH16: 0 | AI16: 0 | AJ16: 0 | AK16: 0 | AL16: 0 | AM16: 0 | AN16: 0 | AO16: 0 | AP16: 0 | AQ16: 0 | AR16: 0 | AS16: 0 | AT16: 0 | AU16: 0 | AV16: 0 | AW16: 0 | AX16: 0 | AY16: 0 | AZ16: 0 | BA16: 0 | BB16: 0 | BC16: 0 | BD16: 0 | BE16: 0 | BF16: 0 | BG16: 0 | BH16: 0 | BI16: 0 | BJ16: 0 | BK16: 0 | BL16: 0 | BM16: 0 | BN16: 0 | BO16: 0 | BP16: 0 | BQ16: 0 | BR16: 0 | BS16: 0 | BT16: 0 | BU16: 0 | BV16: 0 | BW16: 0 | BX16: 0 | BY16: 0 | BZ16: 0 | CA16: 0 | CB16: 0 | CC16: 0 | CD16: 0 | CE16: 0 | CF16: 0 | CG16: 0 | CH16: 0 | CI16: 0 | CJ16: 0 | CK16: 0 | CL16: 0 | CM16: 0 | CN16: 0 | CO16: 0 | CP16: 0 | CQ16: 0 | CR16: 0 | CS16: 0 | CT16: 0 | CU16: 0 | CV16: 0 | CW16: 0 | CX16: 0 | CY16: 0 | CZ16: 0 | DA16: 0 | DB16: 0 | DC16: 0 | DD16: 0 | DE16: 0 | DF16: 0 | DG16: 0 | DH16: 0 | DI16: 0 | DJ16: 0 | DK16: 0 | DL16: 0 | DM16: 0 | DN16: 0 | DO16: 0 | DP16: 0 | DQ16: 0 | DR16: 0 | DS16: 0 | DT16: 0 | DU16: 0 | DV16: 0 | DW16: 0 | DX16: 0 | DY16: 0 | DZ16: 0 | EA16: 0 | EB16: 0 | EC16: 0 | ED16: 0 | EE16: 0 | EF16: 0
A17: AMPARAES | B17: 0 | C17: 0 | D17: 0 | E17: 0 | F17: 0 | G17: 0 | H17: 0 | I17: 0 | J17: 0 | K17: 0 | L17: 0 | M17: 0 | N17: 0 | O17: 0 | P17: 0 | Q17: 0 | R17: 0 | S17: 0 | T17: 0 | U17: 0 | V17: 0 | W17: 0 | X17: 0 | Y17: 0 | Z17: 0 | AA17: 0 | AB17: 0 | AC17: 0 | AD17: 0 | AE17: 0 | AF17: 0 | AG17: 0 | AH17: 0 | AI17: 0 | AJ17: 0 | AK17: 0 | AL17: 0 | AM17: 0 | AN17: 0 | AO17: 0 | AP17: 0 | AQ17: 0 | AR17: 0 | AS17: 0 | AT17: 0 | AU17: 0 | AV17: 0 | AW17: 0 | AX17: 0 | AY17: 0 | AZ17: 0 | BA17: 0 | BB17: 0 | BC17: 0 | BD17: 0 | BE17: 0 | BF17: 0 | BG17: 0 | BH17: 0 | BI17: 0 | BJ17: 0 | BK17: 0 | BL17: 0 | BM17: 0 | BN17: 0 | BO17: 0 | BP17: 0 | BQ17: 0 | BR17: 0 | BS17: 0 | BT17: 0 | BU17: 0 | BV17: 0 | BW17: 0 | BX17: 0 | BY17: 0 | BZ17: 0 | CA17: 0 | CB17: 0 | CC17: 0 | CD17: 0 | CE17: 0 | CF17: 0 | CG17: 0 | CH17: 0 | CI17: 0 | CJ17: 0 | CK17: 0 | CL17: 0 | CM17: 0 | CN17: 0 | CO17: 0 | CP17: 0 | CQ17: 0 | CR17: 0 | CS17: 0 | CT17: 0 | CU17: 0 | CV17: 0 | CW17: 0 | CX17: 0 | CY17: 0 | CZ17: 0 | DA17: 0 | DB17: 0 | DC17: 0 | DD17: 0 | DE17: 0 | DF17: 0 | DG17: 0 | DH17: 0 | DI17: 0 | DJ17: 0 | DK17: 0 | DL17: 0 | DM17: 0 | DN17: 0 | DO17: 0 | DP17: 0 | DQ17: 0 | DR17: 0 | DS17: 0 | DT17: 0 | DU17: 0 | DV17: 0 | DW17: 0 | DX17: 0 | DY17: 0 | DZ17: 0 | EA17: 0 | EB17: 0 | EC17: 0 | ED17: 0 | EE17: 0 | EF17: 0
A18: ANCAHUASI | B18: 0 | C18: 0 | D18: 0 | E18: 0 | F18: 0 | G18: 0 | H18: 0 | I18: 0 | J18: 0 | K18: 0 | L18: 0 | M18: 0 | N18: 0 | O18: 0 | P18: 0 | Q18: 0 | R18: 0 | S18: 0 | T18: 0 | U18: 0 | V18: 0 | W18: 0 | X18: 0 | Y18: 0 | Z18: 0 | AA18: 0 | AB18: 0 | AC18: 0 | AD18: 0 | AE18: 0 | AF18: 0 | AG18: 0 | AH18: 0 | AI18: 0 | AJ18: 0 | AK18: 0 | AL18: 0 | AM18: 0 | AN18: 0 | AO18: 0 | AP18: 0 | AQ18: 0 | AR18: 0 | AS18: 0 | AT18: 0 | AU18: 0 | AV18: 0 | AW18: 0 | AX18: 0 | AY18: 0 | AZ18: 0 | BA18: 0 | BB18: 0 | BC18: 0 | BD18: 0 | BE18: 0 | BF18: 0 | BG18: 0 | BH18: 0 | BI18: 0 | BJ18: 0 | BK18: 0 | BL18: 0 | BM18: 0 | BN18: 0 | BO18: 0 | BP18: 0 | BQ18: 0 | BR18: 0 | BS18: 0 | BT18: 0 | BU18: 0 | BV18: 0 | BW18: 0 | BX18: 0 | BY18: 0 | BZ18: 0 | CA18: 0 | CB18: 0 | CC18: 0 | CD18: 0 | CE18: 0 | CF18: 0 | CG18: 0 | CH18: 0 | CI18: 0 | CJ18: 0 | CK18: 0 | CL18: 0 | CM18: 0 | CN18: 0 | CO18: 0 | CP18: 0 | CQ18: 0 | CR18: 0 | CS18: 0 | CT18: 0 | CU18: 0 | CV18: 0 | CW18: 0 | CX18: 0 | CY18: 0 | CZ18: 0 | DA18: 0 | DB18: 0 | DC18: 0 | DD18: 0 | DE18: 0 | DF18: 0 | DG18: 0 | DH18: 0 | DI18: 0 | DJ18: 0 | DK18: 0 | DL18: 0 | DM18: 0 | DN18: 0 | DO18: 0 | DP18: 0 | DQ18: 0 | DR18: 0 | DS18: 0 | DT18: 0 | DU18: 0 | DV18: 0 | DW18: 0 | DX18: 0 | DY18: 0 | DZ18: 0 | EA18: 0 | EB18: 0 | EC18: 0 | ED18: 0 | EE18: 0 | EF18: 0
A19: ANDAHUAYLILLAS | B19: 0 | C19: 0 | D19: 0 | E19: 0 | F19: 0 | G19: 0 | H19: 0 | I19: 0 | J19: 0 | K19: 0 | L19: 0 | M19: 0 | N19: 0 | O19: 0 | P19: 0 | Q19: 0 | R19: 0 | S19: 0 | T19: 0 | U19: 0 | V19: 0 | W19: 0 | X19: 0 | Y19: 0 | Z19: 0 | AA19: 0 | AB19: 0 | AC19: 0 | AD19: 0 | AE19: 0 | AF19: 0 | AG19: 0 | AH19: 0 | AI19: 0 | AJ19: 0 | AK19: 0 | AL19: 0 | AM19: 0 | AN19: 0 | AO19: 0 | AP19: 0 | AQ19: 0 | AR19: 0 | AS19: 0 | AT19: 0 | AU19: 0 | AV19: 0 | AW19: 0 | AX19: 0 | AY19: 0 | AZ19: 0 | BA19: 0 | BB19: 0 | BC19: 0 | BD19: 0 | BE19: 0 | BF19: 0 | BG19: 0 | BH19: 0 | BI19: 0 | BJ19: 0 | BK19: 0 | BL19: 0 | BM19: 0 | BN19: 0 | BO19: 0 | BP19: 0 | BQ19: 0 | BR19: 0 | BS19: 0 | BT19: 0 | BU19: 0 | BV19: 0 | BW19: 0 | BX19: 0 | BY19: 0 | BZ19: 0 | CA19: 0 | CB19: 0 | CC19: 0 | CD19: 0 | CE19: 0 | CF19: 0 | CG19: 0 | CH19: 0 | CI19: 0 | CJ19: 0 | CK19: 0 | CL19: 0 | CM19: 0 | CN19: 0 | CO19: 0 | CP19: 0 | CQ19: 0 | CR19: 0 | CS19: 0 | CT19: 0 | CU19: 0 | CV19: 0 | CW19: 0 | CX19: 0 | CY19: 0 | CZ19: 0 | DA19: 0 | DB19: 0 | DC19: 0 | DD19: 0 | DE19: 0 | DF19: 0 | DG19: 0 | DH19: 0 | DI19: 0 | DJ19: 0 | DK19: 0 | DL19: 0 | DM19: 0 | DN19: 0 | DO19: 0 | DP19: 0 | DQ19: 0 | DR19: 0 | DS19: 0 | DT19: 0 | DU19: 0 | DV19: 0 | DW19: 0 | DX19: 0 | DY19: 0 | DZ19: 0 | EA19: 0 | EB19: 0 | EC19: 0 | ED19: 0 | EE19: 0 | EF19: 0
A20: ANGELES | B20: 0 | C20: 0 | D20: 0 | E20: 0 | F20: 0 | G20: 0 | H20: 0 | I20: 0 | J20: 0 | K20: 0 | L20: 0 | M20: 0 | N20: 0 | O20: 0 | P20: 0 | Q20: 0 | R20: 0 | S20: 0 | T20: 0 | U20: 0 | V20: 0 | W20: 0 | X20: 0 | Y20: 0 | Z20: 0 | AA20: 0 | AB20: 0 | AC20: 0 | AD20: 0 | AE20: 0 | AF20: 0 | AG20: 0 | AH20: 0 | AI20: 0 | AJ20: 0 | AK20: 0 | AL20: 0 | AM20: 0 | AN20: 0 | AO20: 0 | AP20: 0 | AQ20: 0 | AR20: 0 | AS20: 0 | AT20: 0 | AU20: 0 | AV20: 0 | AW20: 0 | AX20: 0 | AY20: 0 | AZ20: 0 | BA20: 0 | BB20: 0 | BC20: 0 | BD20: 0 | BE20: 0 | BF20: 0 | BG20: 0 | BH20: 0 | BI20: 0 | BJ20: 0 | BK20: 0 | BL20: 0 | BM20: 0 | BN20: 0 | BO20: 0 | BP20: 0 | BQ20: 0 | BR20: 0 | BS20: 0 | BT20: 0 | BU20: 0 | BV20: 0 | BW20: 0 | BX20: 0 | BY20: 0 | BZ20: 0 | CA20: 0 | CB20: 0 | CC20: 0 | CD20: 0 | CE20: 0 | CF20: 0 | CG20: 0 | CH20: 0 | CI20: 0 | CJ20: 0 | CK20: 0 | CL20: 0 | CM20: 0 | CN20: 0 | CO20: 0 | CP20: 0 | CQ20: 0 | CR20: 0 | CS20: 0 | CT20: 0 | CU20: 0 | CV20: 0 | CW20: 0 | CX20: 0 | CY20: 0 | CZ20: 0 | DA20: 0 | DB20: 0 | DC20: 0 | DD20: 0 | DE20: 0 | DF20: 0 | DG20: 0 | DH20: 0 | DI20: 0 | DJ20: 0 | DK20: 0 | DL20: 0 | DM20: 0 | DN20: 0 | DO20: 0 | DP20: 0 | DQ20: 0 | DR20: 0 | DS20: 0 | DT20: 0 | DU20: 0 | DV20: 0 | DW20: 0 | DX20: 0 | DY20: 0 | DZ20: 0 | EA20: 0 | EB20: 0 | EC20: 0 | ED20: 0 | EE20: 0 | EF20: 0
A21: ANTA | B21: 0 | C21: 0 | D21: 0 | E21: 0 | F21: 0 | G21: 0 | H21: 0 | I21: 0 | J21: 0 | K21: 0 | L21: 0 | M21: 0 | N21: 0 | O21: 0 | P21: 0 | Q21: 0 | R21: 0 | S21: 0 | T21: 0 | U21: 0 | V21: 0 | W21: 0 | X21: 0 | Y21: 0 | Z21: 0 | AA21: 0 | AB21: 0 | AC21: 0 | AD21: 0 | AE21: 0 | AF21: 0 | AG21: 0 | AH21: 0 | AI21: 0 | AJ21: 0 | AK21: 0 | AL21: 0 | AM21: 0 | AN21: 0 | AO21: 0 | AP21: 0 | AQ21: 0 | AR21: 0 | AS21: 0 | AT21: 0 | AU21: 0 | AV21: 0 | AW21: 0 | AX21: 0 | AY21: 0 | AZ21: 0 | BA21: 0 | BB21: 0 | BC21: 0 | BD21: 0 | BE21: 0 | BF21: 0 | BG21: 0 | BH21: 0 | BI21: 0 | BJ21: 0 | BK21: 0 | BL21: 0 | BM21: 0 | BN21: 0 | BO21: 0 | BP21: 0 | BQ21: 0 | BR21: 0 | BS21: 0 | BT21: 0 | BU21: 0 | BV21: 0 | BW21: 0 | BX21: 0 | BY21: 0 | BZ21: 0 | CA21: 0 | CB21: 0 | CC21: 0 | CD21: 0 | CE21: 0 | CF21: 0 | CG21: 0 | CH21: 0 | CI21: 0 | CJ21: 0 | CK21: 0 | CL21: 0 | CM21: 0 | CN21: 0 | CO21: 0 | CP21: 0 | CQ21: 0 | CR21: 0 | CS21: 0 | CT21: 0 | CU21: 0 | CV21: 0 | CW21: 0 | CX21: 0 | CY21: 0 | CZ21: 0 | DA21: 0 | DB21: 0 | DC21: 0 | DD21: 0 | DE21: 0 | DF21: 0 | DG21: 0 | DH21: 0 | DI21: 0 | DJ21: 0 | DK21: 0 | DL21: 0 | DM21: 0 | DN21: 0 | DO21: 0 | DP21: 0 | DQ21: 0 | DR21: 0 | DS21: 0 | DT21: 0 | DU21: 0 | DV21: 0 | DW21: 0 | DX21: 0 | DY21: 0 | DZ21: 0 | EA21: 0 | EB21: 0 | EC21: 0 | ED21: 0 | EE21: 0 | EF21: 0
A22: ANTAPALLPA | B22: 0 | C22: 0 | D22: 0 | E22: 0 | F22: 0 | G22: 0 | H22: 0 | I22: 0 | J22: 0 | K22: 0 | L22: 0 | M22: 0 | N22: 0 | O22: 0 | P22: 0 | Q22: 0 | R22: 0 | S22: 0 | T22: 0 | U22: 0 | V22: 0 | W22: 0 | X22: 0 | Y22: 0 | Z22: 0 | AA22: 0 | AB22: 0 | AC22: 0 | AD22: 0 | AE22: 0 | AF22: 0 | AG22: 0 | AH22: 0 | AI22: 0 | AJ22: 0 | AK22: 0 | AL22: 0 | AM22: 0 | AN22: 0 | AO22: 0 | AP22: 0 | AQ22: 0 | AR22: 0 | AS22: 0 | AT22: 0 | AU22: 0 | AV22: 0 | AW22: 0 | AX22: 0 | AY22: 0 | AZ22: 0 | BA22: 0 | BB22: 0 | BC22: 0 | BD22: 0 | BE22: 0 | BF22: 0 | BG22: 0 | BH22: 0 | BI22: 0 | BJ22: 0 | BK22: 0 | BL22: 0 | BM22: 0 | BN22: 0 | BO22: 0 | BP22: 0 | BQ22: 0 | BR22: 0 | BS22: 0 | BT22: 0 | BU22: 0 | BV22: 0 | BW22: 0 | BX22: 0 | BY22: 0 | BZ22: 0 | CA22: 0 | CB22: 0 | CC22: 0 | CD22: 0 | CE22: 0 | CF22: 0 | CG22: 0 | CH22: 0 | CI22: 0 | CJ22: 0 | CK22: 0 | CL22: 0 | CM22: 0 | CN22: 0 | CO22: 0 | CP22: 0 | CQ22: 0 | CR22: 0 | CS22: 0 | CT22: 0 | CU22: 0 | CV22: 0 | CW22: 0 | CX22: 0 | CY22: 0 | CZ22: 0 | DA22: 0 | DB22: 0 | DC22: 0 | DD22: 0 | DE22: 0 | DF22: 0 | DG22: 0 | DH22: 0 | DI22: 0 | DJ22: 0 | DK22: 0 | DL22: 0 | DM22: 0 | DN22: 0 | DO22: 0 | DP22: 0 | DQ22: 0 | DR22: 0 | DS22: 0 | DT22: 0 | DU22: 0 | DV22: 0 | DW22: 0 | DX22: 0 | DY22: 0 | DZ22: 0 | EA22: 0 | EB22: 0 | EC22: 0 | ED22: 0 | EE22: 0 | EF22: 0
A23: ANTONIO LORENA DEL CUSCO | B23: 0 | C23: 0 | D23: 0 | E23: 0 | F23: 0 | G23: 0 | H23: 0 | I23: 0 | J23: 0 | K23: 0 | L23: 0 | M23: 0 | N23: 0 | O23: 0 | P23: 0 | Q23: 0 | R23: 0 | S23: 0 | T23: 0 | U23: 0 | V23: 0 | W23: 0 | X23: 0 | Y23: 0 | Z23: 0 | AA23: 0 | AB23: 0 | AC23: 0 | AD23: 0 | AE23: 0 | AF23: 0 | AG23: 0 | AH23: 0 | AI23: 0 | AJ23: 0 | AK23: 0 | AL23: 0 | AM23: 0 | AN23: 0 | AO23: 0 | AP23: 0 | AQ23: 0 | AR23: 0 | AS23: 0 | AT23: 0 | AU23: 0 | AV23: 0 | AW23: 0 | AX23: 0 | AY23: 0 | AZ23: 0 | BA23: 0 | BB23: 0 | BC23: 0 | BD23: 0 | BE23: 0 | BF23: 0 | BG23: 0 | BH23: 0 | BI23: 0 | BJ23: 0 | BK23: 0 | BL23: 0 | BM23: 0 | BN23: 0 | BO23: 0 | BP23: 0 | BQ23: 0 | BR23: 0 | BS23: 0 | BT23: 0 | BU23: 0 | BV23: 0 | BW23: 0 | BX23: 0 | BY23: 0 | BZ23: 0 | CA23: 0 | CB23: 0 | CC23: 0 | CD23: 0 | CE23: 0 | CF23: 0 | CG23: 0 | CH23: 0 | CI23: 0 | CJ23: 0 | CK23: 0 | CL23: 0 | CM23: 0 | CN23: 0 | CO23: 0 | CP23: 0 | CQ23: 0 | CR23: 0 | CS23: 0 | CT23: 0 | CU23: 0 | CV23: 0 | CW23: 0 | CX23: 0 | CY23: 0 | CZ23: 0 | DA23: 0 | DB23: 0 | DC23: 0 | DD23: 0 | DE23: 0 | DF23: 0 | DG23: 0 | DH23: 0 | DI23: 0 | DJ23: 0 | DK23: 0 | DL23: 0 | DM23: 0 | DN23: 0 | DO23: 0 | DP23: 0 | DQ23: 0 | DR23: 0 | DS23: 0 | DT23: 0 | DU23: 0 | DV23: 0 | DW23: 0 | DX23: 0 | DY23: 0 | DZ23: 0 | EA23: 0 | EB23: 0 | EC23: 0 | ED23: 0 | EE23: 0 | EF23: 0
A24: ANTUYO | B24: 0 | C24: 0 | D24: 0 | E24: 0 | F24: 0 | G24: 0 | H24: 0 | I24: 0 | J24: 0 | K24: 0 | L24: 0 | M24: 0 | N24: 0 | O24: 0 | P24: 0 | Q24: 0 | R24: 0 | S24: 0 | T24: 0 | U24: 0 | V24: 0 | W24: 0 | X24: 0 | Y24: 0 | Z24: 0 | AA24: 0 | AB24: 0 | AC24: 0 | AD24: 0 | AE24: 0 | AF24: 0 | AG24: 0 | AH24: 0 | AI24: 0 | AJ24: 0 | AK24: 0 | AL24: 0 | AM24: 0 | AN24: 0 | AO24: 0 | AP24: 0 | AQ24: 0 | AR24: 0 | AS24: 0 | AT24: 0 | AU24: 0 | AV24: 0 | AW24: 0 | AX24: 0 | AY24: 0 | AZ24: 0 | BA24: 0 | BB24: 0 | BC24: 0 | BD24: 0 | BE24: 0 | BF24: 0 | BG24: 0 | BH24: 0 | BI24: 0 | BJ24: 0 | BK24: 0 | BL24: 0 | BM24: 0 | BN24: 0 | BO24: 0 | BP24: 0 | BQ24: 0 | BR24: 0 | BS24: 0 | BT24: 0 | BU24: 0 | BV24: 0 | BW24: 0 | BX24: 0 | BY24: 0 | BZ24: 0 | CA24: 0 | CB24: 0 | CC24: 0 | CD24: 0 | CE24: 0 | CF24: 0 | CG24: 0 | CH24: 0 | CI24: 0 | CJ24: 0 | CK24: 0 | CL24: 0 | CM24: 0 | CN24: 0 | CO24: 0 | CP24: 0 | CQ24: 0 | CR24: 0 | CS24: 0 | CT24: 0 | CU24: 0 | CV24: 0 | CW24: 0 | CX24: 0 | CY24: 0 | CZ24: 0 | DA24: 0 | DB24: 0 | DC24: 0 | DD24: 0 | DE24: 0 | DF24: 0 | DG24: 0 | DH24: 0 | DI24: 0 | DJ24: 0 | DK24: 0 | DL24: 0 | DM24: 0 | DN24: 0 | DO24: 0 | DP24: 0 | DQ24: 0 | DR24: 0 | DS24: 0 | DT24: 0 | DU24: 0 | DV24: 0 | DW24: 0 | DX24: 0 | DY24: 0 | DZ24: 0 | EA24: 0 | EB24: 0 | EC24: 0 | ED24: 0 | EE24: 0 | EF24: 0
A25: AÑAHUICHI | B25: 0 | C25: 0 | D25: 0 | E25: 0 | F25: 0 | G25: 0 | H25: 0 | I25: 0 | J25: 0 | K25: 0 | L25: 0 | M25: 0 | N25: 0 | O25: 0 | P25: 0 | Q25: 0 | R25: 0 | S25: 0 | T25: 0 | U25: 0 | V25: 0 | W25: 0 | X25: 0 | Y25: 0 | Z25: 0 | AA25: 0 | AB25: 0 | AC25: 0 | AD25: 0 | AE25: 0 | AF25: 0 | AG25: 0 | AH25: 0 | AI25: 0 | AJ25: 0 | AK25: 0 | AL25: 0 | AM25: 0 | AN25: 0 | AO25: 0 | AP25: 0 | AQ25: 0 | AR25: 0 | AS25: 0 | AT25: 0 | AU25: 0 | AV25: 0 | AW25: 0 | AX25: 0 | AY25: 0 | AZ25: 0 | BA25: 0 | BB25: 0 | BC25: 0 | BD25: 0 | BE25: 0 | BF25: 0 | BG25: 0 | BH25: 0 | BI25: 0 | BJ25: 0 | BK25: 0 | BL25: 0 | BM25: 0 | BN25: 0 | BO25: 0 | BP25: 0 | BQ25: 0 | BR25: 0 | BS25: 0 | BT25: 0 | BU25: 0 | BV25: 0 | BW25: 0 | BX25: 0 | BY25: 0 | BZ25: 0 | CA25: 0 | CB25: 0 | CC25: 0 | CD25: 0 | CE25: 0 | CF25: 0 | CG25: 0 | CH25: 0 | CI25: 0 | CJ25: 0 | CK25: 0 | CL25: 0 | CM25: 0 | CN25: 0 | CO25: 0 | CP25: 0 | CQ25: 0 | CR25: 0 | CS25: 0 | CT25: 0 | CU25: 0 | CV25: 0 | CW25: 0 | CX25: 0 | CY25: 0 | CZ25: 0 | DA25: 0 | DB25: 0 | DC25: 0 | DD25: 0 | DE25: 0 | DF25: 0 | DG25: 0 | DH25: 0 | DI25: 0 | DJ25: 0 | DK25: 0 | DL25: 0 | DM25: 0 | DN25: 0 | DO25: 0 | DP25: 0 | DQ25: 0 | DR25: 0 | DS25: 0 | DT25: 0 | DU25: 0 | DV25: 0 | DW25: 0 | DX25: 0 | DY25: 0 | DZ25: 0 | EA25: 0 | EB25: 0 | EC25: 0 | ED25: 0 | EE25: 0 | EF25: 0
A26: ARCANGEL SAN MIGUEL DE ESQUINA CONGUNYA | B26: 0 | C26: 0 | D26: 0 | E26: 0 | F26: 0 | G26: 0 | H26: 0 | I26: 0 | J26: 0 | K26: 0 | L26: 0 | M26: 0 | N26: 0 | O26: 0 | P26: 0 | Q26: 0 | R26: 0 | S26: 0 | T26: 0 | U26: 0 | V26: 0 | W26: 0 | X26: 0 | Y26: 0 | Z26: 0 | AA26: 0 | AB26: 0 | AC26: 0 | AD26: 0 | AE26: 0 | AF26: 0 | AG26: 0 | AH26: 0 | AI26: 0 | AJ26: 0 | AK26: 0 | AL26: 0 | AM26: 0 | AN26: 0 | AO26: 0 | AP26: 0 | AQ26: 0 | AR26: 0 | AS26: 0 | AT26: 0 | AU26: 0 | AV26: 0 | AW26: 0 | AX26: 0 | AY26: 0 | AZ26: 0 | BA26: 0 | BB26: 0 | BC26: 0 | BD26: 0 | BE26: 0 | BF26: 0 | BG26: 0 | BH26: 0 | BI26: 0 | BJ26: 0 | BK26: 0 | BL26: 0 | BM26: 0 | BN26: 0 | BO26: 0 | BP26: 0 | BQ26: 0 | BR26: 0 | BS26: 0 | BT26: 0 | BU26: 0 | BV26: 0 | BW26: 0 | BX26: 0 | BY26: 0 | BZ26: 0 | CA26: 0 | CB26: 0 | CC26: 0 | CD26: 0 | CE26: 0 | CF26: 0 | CG26: 0 | CH26: 0 | CI26: 0 | CJ26: 0 | CK26: 0 | CL26: 0 | CM26: 0 | CN26: 0 | CO26: 0 | CP26: 0 | CQ26: 0 | CR26: 0 | CS26: 0 | CT26: 0 | CU26: 0 | CV26: 0 | CW26: 0 | CX26: 0 | CY26: 0 | CZ26: 0 | DA26: 0 | DB26: 0 | DC26: 0 | DD26: 0 | DE26: 0 | DF26: 0 | DG26: 0 | DH26: 0 | DI26: 0 | DJ26: 0 | DK26: 0 | DL26: 0 | DM26: 0 | DN26: 0 | DO26: 0 | DP26: 0 | DQ26: 0 | DR26: 0 | DS26: 0 | DT26: 0 | DU26: 0 | DV26: 0 | DW26: 0 | DX26: 0 | DY26: 0 | DZ26: 0 | EA26: 0 | EB26: 0 | EC26: 0 | ED26: 0 | EE26: 0 | EF26: 0
A27: ARMA | B27: 0 | C27: 0 | D27: 0 | E27: 0 | F27: 0 | G27: 0 | H27: 0 | I27: 0 | J27: 0 | K27: 0 | L27: 0 | M27: 0 | N27: 0 | O27: 0 | P27: 0 | Q27: 0 | R27: 0 | S27: 0 | T27: 0 | U27: 0 | V27: 0 | W27: 0 | X27: 0 | Y27: 0 | Z27: 0 | AA27: 0 | AB27: 0 | AC27: 0 | AD27: 0 | AE27: 0 | AF27: 0 | AG27: 0 | AH27: 0 | AI27: 0 | AJ27: 0 | AK27: 0 | AL27: 0 | AM27: 0 | AN27: 0 | AO27: 0 | AP27: 0 | AQ27: 0 | AR27: 0 | AS27: 0 | AT27: 0 | AU27: 0 | AV27: 0 | AW27: 0 | AX27: 0 | AY27: 0 | AZ27: 0 | BA27: 0 | BB27: 0 | BC27: 0 | BD27: 0 | BE27: 0 | BF27: 0 | BG27: 0 | BH27: 0 | BI27: 0 | BJ27: 0 | BK27: 0 | BL27: 0 | BM27: 0 | BN27: 0 | BO27: 0 | BP27: 0 | BQ27: 0 | BR27: 0 | BS27: 0 | BT27: 0 | BU27: 0 | BV27: 0 | BW27: 0 | BX27: 0 | BY27: 0 | BZ27: 0 | CA27: 0 | CB27: 0 | CC27: 0 | CD27: 0 | CE27: 0 | CF27: 0 | CG27: 0 | CH27: 0 | CI27: 0 | CJ27: 1 | CK27: 0 | CL27: 0 | CM27: 0 | CN27: 0 | CO27: 0 | CP27: 0 | CQ27: 0 | CR27: 0 | CS27: 0 | CT27: 0 | CU27: 0 | CV27: 0 | CW27: 0 | CX27: 0 | CY27: 0 | CZ27: 0 | DA27: 0 | DB27: 0 | DC27: 0 | DD27: 0 | DE27: 0 | DF27: 0 | DG27: 0 | DH27: 0 | DI27: 0 | DJ27: 0 | DK27: 0 | DL27: 0 | DM27: 0 | DN27: 0 | DO27: 0 | DP27: 0 | DQ27: 0 | DR27: 0 | DS27: 0 | DT27: 0 | DU27: 0 | DV27: 0 | DW27: 0 | DX27: 0 | DY27: 0 | DZ27: 0 | EA27: 0 | EB27: 0 | EC27: 0 | ED27: 0 | EE27: 0 | EF27: 0
A28: AUSANTA | B28: 0 | C28: 0 | D28: 0 | E28: 0 | F28: 0 | G28: 0 | H28: 0 | I28: 0 | J28: 0 | K28: 0 | L28: 0 | M28: 0 | N28: 0 | O28: 0 | P28: 0 | Q28: 0 | R28: 0 | S28: 0 | T28: 0 | U28: 0 | V28: 0 | W28: 0 | X28: 0 | Y28: 0 | Z28: 0 | AA28: 0 | AB28: 0 | AC28: 0 | AD28: 0 | AE28: 0 | AF28: 0 | AG28: 0 | AH28: 0 | AI28: 0 | AJ28: 0 | AK28: 0 | AL28: 0 | AM28: 0 | AN28: 0 | AO28: 0 | AP28: 0 | AQ28: 0 | AR28: 0 | AS28: 0 | AT28: 0 | AU28: 0 | AV28: 0 | AW28: 0 | AX28: 0 | AY28: 0 | AZ28: 0 | BA28: 0 | BB28: 0 | BC28: 0 | BD28: 0 | BE28: 0 | BF28: 0 | BG28: 0 | BH28: 0 | BI28: 0 | BJ28: 0 | BK28: 0 | BL28: 0 | BM28: 0 | BN28: 0 | BO28: 0 | BP28: 0 | BQ28: 0 | BR28: 0 | BS28: 0 | BT28: 0 | BU28: 0 | BV28: 0 | BW28: 0 | BX28: 0 | BY28: 0 | BZ28: 0 | CA28: 0 | CB28: 0 | CC28: 0 | CD28: 0 | CE28: 0 | CF28: 0 | CG28: 0 | CH28: 0 | CI28: 0 | CJ28: 0 | CK28: 0 | CL28: 0 | CM28: 0 | CN28: 0 | CO28: 0 | CP28: 0 | CQ28: 0 | CR28: 0 | CS28: 0 | CT28: 0 | CU28: 0 | CV28: 0 | CW28: 0 | CX28: 0 | CY28: 0 | CZ28: 0 | DA28: 0 | DB28: 0 | DC28: 0 | DD28: 0 | DE28: 0 | DF28: 0 | DG28: 0 | DH28: 0 | DI28: 0 | DJ28: 0 | DK28: 0 | DL28: 0 | DM28: 0 | DN28: 0 | DO28: 0 | DP28: 0 | DQ28: 0 | DR28: 0 | DS28: 0 | DT28: 0 | DU28: 0 | DV28: 0 | DW28: 0 | DX28: 0 | DY28: 0 | DZ28: 0 | EA28: 0 | EB28: 0 | EC28: 0 | ED28: 0 | EE28: 0 | EF28: 0
A29: AYACCASI | B29: 0 | C29: 0 | D29: 0 | E29: 0 | F29: 0 | G29: 0 | H29: 0 | I29: 0 | J29: 0 | K29: 0 | L29: 0 | M29: 0 | N29: 0 | O29: 0 | P29: 0 | Q29: 0 | R29: 0 | S29: 0 | T29: 0 | U29: 0 | V29: 0 | W29: 0 | X29: 0 | Y29: 0 | Z29: 0 | AA29: 0 | AB29: 0 | AC29: 0 | AD29: 0 | AE29: 0 | AF29: 0 | AG29: 0 | AH29: 0 | AI29: 0 | AJ29: 0 | AK29: 0 | AL29: 0 | AM29: 0 | AN29: 0 | AO29: 0 | AP29: 0 | AQ29: 0 | AR29: 0 | AS29: 0 | AT29: 0 | AU29: 0 | AV29: 0 | AW29: 0 | AX29: 0 | AY29: 0 | AZ29: 0 | BA29: 0 | BB29: 0 | BC29: 0 | BD29: 0 | BE29: 0 | BF29: 0 | BG29: 0 | BH29: 0 | BI29: 0 | BJ29: 0 | BK29: 0 | BL29: 0 | BM29: 0 | BN29: 0 | BO29: 0 | BP29: 0 | BQ29: 0 | BR29: 0 | BS29: 0 | BT29: 0 | BU29: 0 | BV29: 0 | BW29: 0 | BX29: 0 | BY29: 0 | BZ29: 0 | CA29: 0 | CB29: 0 | CC29: 0 | CD29: 0 | CE29: 0 | CF29: 0 | CG29: 0 | CH29: 0 | CI29: 0 | CJ29: 0 | CK29: 0 | CL29: 0 | CM29: 0 | CN29: 0 | CO29: 0 | CP29: 0 | CQ29: 0 | CR29: 0 | CS29: 0 | CT29: 0 | CU29: 0 | CV29: 0 | CW29: 0 | CX29: 0 | CY29: 0 | CZ29: 0 | DA29: 0 | DB29: 0 | DC29: 0 | DD29: 0 | DE29: 0 | DF29: 0 | DG29: 0 | DH29: 0 | DI29: 0 | DJ29: 0 | DK29: 0 | DL29: 0 | DM29: 0 | DN29: 0 | DO29: 0 | DP29: 0 | DQ29: 0 | DR29: 0 | DS29: 0 | DT29: 0 | DU29: 0 | DV29: 0 | DW29: 0 | DX29: 0 | DY29: 0 | DZ29: 0 | EA29: 0 | EB29: 0 | EC29: 0 | ED29: 0 | EE29: 0 | EF29: 0
A30: AYRE | B30: 0 | C30: 0 | D30: 0 | E30: 0 | F30: 0 | G30: 0 | H30: 0 | I30: 0 | J30: 0 | K30: 0 | L30: 0 | M30: 0 | N30: 0 | O30: 0 | P30: 0 | Q30: 0 | R30: 0 | S30: 0 | T30: 0 | U30: 0 | V30: 0 | W30: 0 | X30: 0 | Y30: 0 | Z30: 0 | AA30: 0 | AB30: 0 | AC30: 0 | AD30: 0 | AE30: 0 | AF30: 0 | AG30: 0 | AH30: 0 | AI30: 0 | AJ30: 0 | AK30: 0 | AL30: 0 | AM30: 0 | AN30: 0 | AO30: 0 | AP30: 0 | AQ30: 0 | AR30: 0 | AS30: 0 | AT30: 0 | AU30: 0 | AV30: 0 | AW30: 0 | AX30: 0 | AY30: 0 | AZ30: 0 | BA30: 0 | BB30: 0 | BC30: 0 | BD30: 0 | BE30: 0 | BF30: 0 | BG30: 0 | BH30: 0 | BI30: 0 | BJ30: 0 | BK30: 0 | BL30: 0 | BM30: 0 | BN30: 0 | BO30: 0 | BP30: 0 | BQ30: 0 | BR30: 0 | BS30: 0 | BT30: 0 | BU30: 0 | BV30: 0 | BW30: 0 | BX30: 0 | BY30: 0 | BZ30: 0 | CA30: 0 | CB30: 0 | CC30: 0 | CD30: 0 | CE30: 0 | CF30: 0 | CG30: 0 | CH30: 0 | CI30: 0 | CJ30: 0 | CK30: 0 | CL30: 0 | CM30: 0 | CN30: 0 | CO30: 0 | CP30: 0 | CQ30: 0 | CR30: 0 | CS30: 0 | CT30: 0 | CU30: 0 | CV30: 0 | CW30: 0 | CX30: 0 | CY30: 0 | CZ30: 0 | DA30: 0 | DB30: 0 | DC30: 0 | DD30: 0 | DE30: 0 | DF30: 0 | DG30: 0 | DH30: 0 | DI30: 0 | DJ30: 0 | DK30: 0 | DL30: 0 | DM30: 0 | DN30: 0 | DO30: 0 | DP30: 0 | DQ30: 0 | DR30: 0 | DS30: 0 | DT30: 0 | DU30: 0 | DV30: 0 | DW30: 0 | DX30: 0 | DY30: 0 | DZ30: 0 | EA30: 0 | EB30: 0 | EC30: 0 | ED30: 0 | EE30: 0 | EF30: 0
A31: BELEMPAMPA | B31: 0 | C31: 0 | D31: 0 | E31: 0 | F31: 0 | G31: 0 | H31: 0 | I31: 0 | J31: 0 | K31: 0 | L31: 0 | M31: 0 | N31: 0 | O31: 0 | P31: 0 | Q31: 0 | R31: 0 | S31: 0 | T31: 0 | U31: 0 | V31: 0 | W31: 0 | X31: 0 | Y31: 0 | Z31: 0 | AA31: 0 | AB31: 0 | AC31: 0 | AD31: 0 | AE31: 0 | AF31: 0 | AG31: 0 | AH31: 0 | AI31: 0 | AJ31: 0 | AK31: 0 | AL31: 0 | AM31: 0 | AN31: 0 | AO31: 0 | AP31: 0 | AQ31: 0 | AR31: 0 | AS31: 0 | AT31: 0 | AU31: 0 | AV31: 0 | AW31: 0 | AX31: 0 | AY31: 0 | AZ31: 0 | BA31: 0 | BB31: 0 | BC31: 0 | BD31: 0 | BE31: 0 | BF31: 0 | BG31: 0 | BH31: 0 | BI31: 0 | BJ31: 0 | BK31: 0 | BL31: 0 | BM31: 0 | BN31: 0 | BO31: 0 | BP31: 0 | BQ31: 0 | BR31: 0 | BS31: 0 | BT31: 0 | BU31: 0 | BV31: 0 | BW31: 0 | BX31: 0 | BY31: 0 | BZ31: 0 | CA31: 0 | CB31: 0 | CC31: 0 | CD31: 0 | CE31: 0 | CF31: 0 | CG31: 0 | CH31: 0 | CI31: 0 | CJ31: 0 | CK31: 0 | CL31: 0 | CM31: 0 | CN31: 0 | CO31: 0 | CP31: 0 | CQ31: 0 | CR31: 0 | CS31: 0 | CT31: 0 | CU31: 0 | CV31: 0 | CW31: 0 | CX31: 0 | CY31: 0 | CZ31: 0 | DA31: 0 | DB31: 0 | DC31: 0 | DD31: 0 | DE31: 0 | DF31: 0 | DG31: 0 | DH31: 0 | DI31: 0 | DJ31: 0 | DK31: 0 | DL31: 0 | DM31: 0 | DN31: 0 | DO31: 0 | DP31: 0 | DQ31: 0 | DR31: 0 | DS31: 0 | DT31: 0 | DU31: 0 | DV31: 0 | DW31: 0 | DX31: 0 | DY31: 0 | DZ31: 0 | EA31: 0 | EB31: 0 | EC31: 0 | ED31: 0 | EE31: 0 | EF31: 0
A32: BELLAVISTA | B32: 0 | C32: 0 | D32: 0 | E32: 0 | F32: 0 | G32: 0 | H32: 0 | I32: 0 | J32: 0 | K32: 0 | L32: 0 | M32: 0 | N32: 0 | O32: 0 | P32: 0 | Q32: 0 | R32: 0 | S32: 0 | T32: 0 | U32: 0 | V32: 0 | W32: 0 | X32: 0 | Y32: 0 | Z32: 0 | AA32: 0 | AB32: 0 | AC32: 0 | AD32: 0 | AE32: 0 | AF32: 0 | AG32: 0 | AH32: 0 | AI32: 0 | AJ32: 0 | AK32: 0 | AL32: 0 | AM32: 0 | AN32: 0 | AO32: 0 | AP32: 0 | AQ32: 0 | AR32: 0 | AS32: 0 | AT32: 0 | AU32: 0 | AV32: 0 | AW32: 0 | AX32: 0 | AY32: 0 | AZ32: 0 | BA32: 0 | BB32: 0 | BC32: 0 | BD32: 0 | BE32: 0 | BF32: 0 | BG32: 0 | BH32: 0 | BI32: 0 | BJ32: 0 | BK32: 0 | BL32: 0 | BM32: 0 | BN32: 0 | BO32: 0 | BP32: 0 | BQ32: 0 | BR32: 0 | BS32: 0 | BT32: 0 | BU32: 0 | BV32: 0 | BW32: 0 | BX32: 0 | BY32: 0 | BZ32: 0 | CA32: 0 | CB32: 0 | CC32: 0 | CD32: 0 | CE32: 0 | CF32: 0 | CG32: 0 | CH32: 0 | CI32: 0 | CJ32: 0 | CK32: 0 | CL32: 0 | CM32: 0 | CN32: 0 | CO32: 0 | CP32: 0 | CQ32: 0 | CR32: 0 | CS32: 0 | CT32: 0 | CU32: 0 | CV32: 0 | CW32: 0 | CX32: 0 | CY32: 0 | CZ32: 0 | DA32: 0 | DB32: 0 | DC32: 0 | DD32: 0 | DE32: 0 | DF32: 0 | DG32: 0 | DH32: 0 | DI32: 0 | DJ32: 0 | DK32: 0 | DL32: 0 | DM32: 0 | DN32: 0 | DO32: 0 | DP32: 0 | DQ32: 0 | DR32: 0 | DS32: 0 | DT32: 0 | DU32: 0 | DV32: 0 | DW32: 0 | DX32: 0 | DY32: 0 | DZ32: 0 | EA32: 0 | EB32: 0 | EC32: 0 | ED32: 0 | EE32: 0 | EF32: 0
A33: BUENA VISTA | B33: 0 | C33: 0 | D33: 0 | E33: 0 | F33: 0 | G33: 0 | H33: 0 | I33: 0 | J33: 0 | K33: 0 | L33: 0 | M33: 0 | N33: 0 | O33: 0 | P33: 0 | Q33: 0 | R33: 0 | S33: 0 | T33: 0 | U33: 0 | V33: 0 | W33: 0 | X33: 0 | Y33: 0 | Z33: 0 | AA33: 0 | AB33: 0 | AC33: 0 | AD33: 0 | AE33: 0 | AF33: 0 | AG33: 0 | AH33: 0 | AI33: 0 | AJ33: 0 | AK33: 0 | AL33: 0 | AM33: 0 | AN33: 0 | AO33: 0 | AP33: 0 | AQ33: 0 | AR33: 0 | AS33: 0 | AT33: 0 | AU33: 0 | AV33: 0 | AW33: 0 | AX33: 0 | AY33: 0 | AZ33: 0 | BA33: 0 | BB33: 0 | BC33: 0 | BD33: 0 | BE33: 0 | BF33: 0 | BG33: 0 | BH33: 0 | BI33: 0 | BJ33: 0 | BK33: 0 | BL33: 0 | BM33: 0 | BN33: 0 | BO33: 0 | BP33: 0 | BQ33: 0 | BR33: 0 | BS33: 0 | BT33: 0 | BU33: 0 | BV33: 0 | BW33: 0 | BX33: 0 | BY33: 0 | BZ33: 0 | CA33: 0 | CB33: 0 | CC33: 0 | CD33: 0 | CE33: 0 | CF33: 0 | CG33: 0 | CH33: 0 | CI33: 0 | CJ33: 0 | CK33: 0 | CL33: 0 | CM33: 0 | CN33: 0 | CO33: 0 | CP33: 0 | CQ33: 0 | CR33: 0 | CS33: 0 | CT33: 0 | CU33: 0 | CV33: 0 | CW33: 0 | CX33: 0 | CY33: 0 | CZ33: 0 | DA33: 0 | DB33: 0 | DC33: 0 | DD33: 0 | DE33: 0 | DF33: 0 | DG33: 0 | DH33: 0 | DI33: 0 | DJ33: 0 | DK33: 0 | DL33: 0 | DM33: 0 | DN33: 0 | DO33: 0 | DP33: 0 | DQ33: 0 | DR33: 0 | DS33: 0 | DT33: 0 | DU33: 0 | DV33: 0 | DW33: 0 | DX33: 0 | DY33: 0 | DZ33: 0 | EA33: 0 | EB33: 0 | EC33: 0 | ED33: 0 | EE33: 0 | EF33: 0
A34: CACHIMAYO | B34: 0 | C34: 0 | D34: 0 | E34: 0 | F34: 0 | G34: 0 | H34: 0 | I34: 0 | J34: 0 | K34: 0 | L34: 0 | M34: 0 | N34: 0 | O34: 0 | P34: 0 | Q34: 0 | R34: 0 | S34: 0 | T34: 0 | U34: 0 | V34: 0 | W34: 0 | X34: 0 | Y34: 0 | Z34: 0 | AA34: 0 | AB34: 0 | AC34: 0 | AD34: 0 | AE34: 0 | AF34: 0 | AG34: 0 | AH34: 0 | AI34: 0 | AJ34: 0 | AK34: 0 | AL34: 0 | AM34: 0 | AN34: 0 | AO34: 0 | AP34: 0 | AQ34: 0 | AR34: 0 | AS34: 0 | AT34: 0 | AU34: 0 | AV34: 0 | AW34: 0 | AX34: 0 | AY34: 0 | AZ34: 0 | BA34: 0 | BB34: 0 | BC34: 0 | BD34: 0 | BE34: 0 | BF34: 0 | BG34: 0 | BH34: 0 | BI34: 0 | BJ34: 0 | BK34: 0 | BL34: 0 | BM34: 0 | BN34: 0 | BO34: 0 | BP34: 0 | BQ34: 0 | BR34: 0 | BS34: 0 | BT34: 0 | BU34: 0 | BV34: 0 | BW34: 0 | BX34: 0 | BY34: 0 | BZ34: 0 | CA34: 0 | CB34: 0 | CC34: 0 | CD34: 0 | CE34: 0 | CF34: 0 | CG34: 0 | CH34: 0 | CI34: 0 | CJ34: 0 | CK34: 0 | CL34: 0 | CM34: 0 | CN34: 0 | CO34: 0 | CP34: 0 | CQ34: 0 | CR34: 0 | CS34: 0 | CT34: 0 | CU34: 0 | CV34: 0 | CW34: 0 | CX34: 0 | CY34: 0 | CZ34: 0 | DA34: 0 | DB34: 0 | DC34: 0 | DD34: 0 | DE34: 0 | DF34: 0 | DG34: 0 | DH34: 0 | DI34: 0 | DJ34: 0 | DK34: 0 | DL34: 0 | DM34: 0 | DN34: 0 | DO34: 0 | DP34: 0 | DQ34: 0 | DR34: 0 | DS34: 0 | DT34: 0 | DU34: 0 | DV34: 0 | DW34: 0 | DX34: 0 | DY34: 0 | DZ34: 0 | EA34: 0 | EB34: 0 | EC34: 0 | ED34: 0 | EE34: 0 | EF34: 0
A35: CAICAY | B35: 0 | C35: 0 | D35: 0 | E35: 0 | F35: 0 | G35: 0 | H35: 0 | I35: 0 | J35: 0 | K35: 0 | L35: 0 | M35: 0 | N35: 0 | O35: 0 | P35: 0 | Q35: 0 | R35: 0 | S35: 0 | T35: 0 | U35: 0 | V35: 0 | W35: 0 | X35: 0 | Y35: 0 | Z35: 0 | AA35: 0 | AB35: 0 | AC35: 0 | AD35: 0 | AE35: 0 | AF35: 0 | AG35: 0 | AH35: 0 | AI35: 0 | AJ35: 0 | AK35: 0 | AL35: 0 | AM35: 0 | AN35: 0 | AO35: 0 | AP35: 0 | AQ35: 0 | AR35: 0 | AS35: 0 | AT35: 0 | AU35: 0 | AV35: 0 | AW35: 0 | AX35: 0 | AY35: 0 | AZ35: 0 | BA35: 0 | BB35: 0 | BC35: 0 | BD35: 0 | BE35: 0 | BF35: 0 | BG35: 0 | BH35: 0 | BI35: 0 | BJ35: 0 | BK35: 0 | BL35: 0 | BM35: 0 | BN35: 0 | BO35: 0 | BP35: 0 | BQ35: 0 | BR35: 0 | BS35: 0 | BT35: 0 | BU35: 0 | BV35: 0 | BW35: 0 | BX35: 0 | BY35: 0 | BZ35: 0 | CA35: 0 | CB35: 0 | CC35: 0 | CD35: 0 | CE35: 0 | CF35: 0 | CG35: 0 | CH35: 0 | CI35: 0 | CJ35: 0 | CK35: 0 | CL35: 0 | CM35: 0 | CN35: 0 | CO35: 0 | CP35: 0 | CQ35: 0 | CR35: 0 | CS35: 0 | CT35: 0 | CU35: 0 | CV35: 0 | CW35: 0 | CX35: 0 | CY35: 0 | CZ35: 0 | DA35: 0 | DB35: 0 | DC35: 0 | DD35: 0 | DE35: 0 | DF35: 0 | DG35: 0 | DH35: 0 | DI35: 0 | DJ35: 0 | DK35: 0 | DL35: 0 | DM35: 0 | DN35: 0 | DO35: 0 | DP35: 0 | DQ35: 0 | DR35: 0 | DS35: 0 | DT35: 0 | DU35: 0 | DV35: 0 | DW35: 0 | DX35: 0 | DY35: 0 | DZ35: 0 | EA35: 0 | EB35: 0 | EC35: 0 | ED35: 0 | EE35: 0 | EF35: 0
A36: CALCA | B36: 0 | C36: 0 | D36: 0 | E36: 0 | F36: 0 | G36: 0 | H36: 0 | I36: 0 | J36: 0 | K36: 0 | L36: 0 | M36: 0 | N36: 0 | O36: 0 | P36: 0 | Q36: 0 | R36: 0 | S36: 0 | T36: 0 | U36: 0 | V36: 0 | W36: 0 | X36: 0 | Y36: 0 | Z36: 0 | AA36: 0 | AB36: 0 | AC36: 0 | AD36: 0 | AE36: 0 | AF36: 0 | AG36: 0 | AH36: 0 | AI36: 0 | AJ36: 0 | AK36: 0 | AL36: 0 | AM36: 0 | AN36: 0 | AO36: 0 | AP36: 0 | AQ36: 0 | AR36: 0 | AS36: 0 | AT36: 0 | AU36: 0 | AV36: 0 | AW36: 0 | AX36: 0 | AY36: 0 | AZ36: 0 | BA36: 0 | BB36: 0 | BC36: 0 | BD36: 0 | BE36: 0 | BF36: 0 | BG36: 0 | BH36: 0 | BI36: 0 | BJ36: 0 | BK36: 0 | BL36: 0 | BM36: 0 | BN36: 0 | BO36: 0 | BP36: 0 | BQ36: 0 | BR36: 0 | BS36: 0 | BT36: 0 | BU36: 0 | BV36: 0 | BW36: 0 | BX36: 0 | BY36: 0 | BZ36: 0 | CA36: 0 | CB36: 0 | CC36: 0 | CD36: 0 | CE36: 0 | CF36: 0 | CG36: 0 | CH36: 0 | CI36: 0 | CJ36: 0 | CK36: 0 | CL36: 0 | CM36: 0 | CN36: 0 | CO36: 0 | CP36: 0 | CQ36: 0 | CR36: 0 | CS36: 0 | CT36: 0 | CU36: 0 | CV36: 0 | CW36: 0 | CX36: 0 | CY36: 0 | CZ36: 0 | DA36: 0 | DB36: 0 | DC36: 0 | DD36: 0 | DE36: 0 | DF36: 0 | DG36: 0 | DH36: 0 | DI36: 0 | DJ36: 0 | DK36: 0 | DL36: 0 | DM36: 0 | DN36: 0 | DO36: 0 | DP36: 0 | DQ36: 0 | DR36: 0 | DS36: 0 | DT36: 0 | DU36: 0 | DV36: 0 | DW36: 0 | DX36: 0 | DY36: 0 | DZ36: 0 | EA36: 0 | EB36: 0 | EC36: 0 | ED36: 0 | EE36: 0 | EF36: 0
A37: CAMINO INCA HUAYLLABAMBA | B37: 0 | C37: 0 | D37: 0 | E37: 0 | F37: 0 | G37: 0 | H37: 0 | I37: 0 | J37: 0 | K37: 0 | L37: 0 | M37: 0 | N37: 0 | O37: 0 | P37: 0 | Q37: 0 | R37: 0 | S37: 0 | T37: 0 | U37: 0 | V37: 0 | W37: 0 | X37: 0 | Y37: 0 | Z37: 0 | AA37: 0 | AB37: 0 | AC37: 0 | AD37: 0 | AE37: 0 | AF37: 0 | AG37: 0 | AH37: 0 | AI37: 0 | AJ37: 0 | AK37: 0 | AL37: 0 | AM37: 0 | AN37: 0 | AO37: 0 | AP37: 0 | AQ37: 0 | AR37: 0 | AS37: 0 | AT37: 0 | AU37: 0 | AV37: 0 | AW37: 0 | AX37: 0 | AY37: 0 | AZ37: 0 | BA37: 0 | BB37: 0 | BC37: 0 | BD37: 0 | BE37: 0 | BF37: 0 | BG37: 0 | BH37: 0 | BI37: 0 | BJ37: 0 | BK37: 0 | BL37: 0 | BM37: 0 | BN37: 0 | BO37: 0 | BP37: 0 | BQ37: 0 | BR37: 0 | BS37: 0 | BT37: 0 | BU37: 0 | BV37: 0 | BW37: 0 | BX37: 0 | BY37: 0 | BZ37: 0 | CA37: 0 | CB37: 0 | CC37: 0 | CD37: 0 | CE37: 0 | CF37: 0 | CG37: 0 | CH37: 0 | CI37: 0 | CJ37: 0 | CK37: 0 | CL37: 0 | CM37: 0 | CN37: 0 | CO37: 0 | CP37: 0 | CQ37: 0 | CR37: 0 | CS37: 0 | CT37: 0 | CU37: 0 | CV37: 0 | CW37: 0 | CX37: 0 | CY37: 0 | CZ37: 0 | DA37: 0 | DB37: 0 | DC37: 0 | DD37: 0 | DE37: 0 | DF37: 0 | DG37: 0 | DH37: 0 | DI37: 0 | DJ37: 0 | DK37: 0 | DL37: 0 | DM37: 0 | DN37: 0 | DO37: 0 | DP37: 0 | DQ37: 0 | DR37: 0 | DS37: 0 | DT37: 0 | DU37: 0 | DV37: 0 | DW37: 0 | DX37: 0 | DY37: 0 | DZ37: 0 | EA37: 0 | EB37: 0 | EC37: 0 | ED37: 0 | EE37: 0 | EF37: 0
A38: CANCAHUANI | B38: 0 | C38: 0 | D38: 0 | E38: 0 | F38: 0 | G38: 0 | H38: 0 | I38: 0 | J38: 0 | K38: 0 | L38: 0 | M38: 0 | N38: 0 | O38: 0 | P38: 0 | Q38: 0 | R38: 0 | S38: 0 | T38: 0 | U38: 0 | V38: 0 | W38: 0 | X38: 0 | Y38: 0 | Z38: 0 | AA38: 0 | AB38: 0 | AC38: 0 | AD38: 0 | AE38: 0 | AF38: 0 | AG38: 0 | AH38: 0 | AI38: 0 | AJ38: 0 | AK38: 0 | AL38: 0 | AM38: 0 | AN38: 0 | AO38: 0 | AP38: 0 | AQ38: 0 | AR38: 0 | AS38: 0 | AT38: 0 | AU38: 0 | AV38: 0 | AW38: 0 | AX38: 0 | AY38: 0 | AZ38: 0 | BA38: 0 | BB38: 0 | BC38: 0 | BD38: 0 | BE38: 0 | BF38: 0 | BG38: 0 | BH38: 0 | BI38: 0 | BJ38: 0 | BK38: 0 | BL38: 0 | BM38: 0 | BN38: 0 | BO38: 0 | BP38: 0 | BQ38: 0 | BR38: 0 | BS38: 0 | BT38: 0 | BU38: 0 | BV38: 0 | BW38: 0 | BX38: 0 | BY38: 0 | BZ38: 0 | CA38: 0 | CB38: 0 | CC38: 0 | CD38: 0 | CE38: 0 | CF38: 0 | CG38: 0 | CH38: 0 | CI38: 0 | CJ38: 0 | CK38: 0 | CL38: 0 | CM38: 0 | CN38: 0 | CO38: 0 | CP38: 0 | CQ38: 0 | CR38: 0 | CS38: 0 | CT38: 0 | CU38: 0 | CV38: 0 | CW38: 0 | CX38: 0 | CY38: 0 | CZ38: 0 | DA38: 0 | DB38: 0 | DC38: 0 | DD38: 0 | DE38: 0 | DF38: 0 | DG38: 0 | DH38: 0 | DI38: 0 | DJ38: 0 | DK38: 0 | DL38: 0 | DM38: 0 | DN38: 0 | DO38: 0 | DP38: 0 | DQ38: 0 | DR38: 0 | DS38: 0 | DT38: 0 | DU38: 0 | DV38: 0 | DW38: 0 | DX38: 0 | DY38: 0 | DZ38: 0 | EA38: 0 | EB38: 0 | EC38: 0 | ED38: 0 | EE38: 0 | EF38: 0
A39: CASHIRIARI | B39: 0 | C39: 0 | D39: 0 | E39: 0 | F39: 0 | G39: 0 | H39: 0 | I39: 0 | J39: 0 | K39: 0 | L39: 0 | M39: 0 | N39: 0 | O39: 0 | P39: 0 | Q39: 0 | R39: 0 | S39: 0 | T39: 0 | U39: 0 | V39: 0 | W39: 0 | X39: 0 | Y39: 0 | Z39: 0 | AA39: 0 | AB39: 0 | AC39: 0 | AD39: 0 | AE39: 0 | AF39: 0 | AG39: 0 | AH39: 0 | AI39: 0 | AJ39: 0 | AK39: 0 | AL39: 0 | AM39: 0 | AN39: 0 | AO39: 0 | AP39: 0 | AQ39: 0 | AR39: 0 | AS39: 0 | AT39: 0 | AU39: 0 | AV39: 0 | AW39: 0 | AX39: 0 | AY39: 0 | AZ39: 0 | BA39: 0 | BB39: 0 | BC39: 0 | BD39: 0 | BE39: 0 | BF39: 0 | BG39: 0 | BH39: 0 | BI39: 0 | BJ39: 0 | BK39: 0 | BL39: 0 | BM39: 0 | BN39: 0 | BO39: 0 | BP39: 0 | BQ39: 0 | BR39: 0 | BS39: 0 | BT39: 0 | BU39: 0 | BV39: 0 | BW39: 0 | BX39: 0 | BY39: 0 | BZ39: 0 | CA39: 0 | CB39: 0 | CC39: 0 | CD39: 0 | CE39: 0 | CF39: 0 | CG39: 0 | CH39: 0 | CI39: 0 | CJ39: 0 | CK39: 0 | CL39: 0 | CM39: 0 | CN39: 0 | CO39: 0 | CP39: 0 | CQ39: 0 | CR39: 0 | CS39: 0 | CT39: 0 | CU39: 0 | CV39: 0 | CW39: 0 | CX39: 0 | CY39: 0 | CZ39: 0 | DA39: 0 | DB39: 0 | DC39: 0 | DD39: 0 | DE39: 0 | DF39: 0 | DG39: 0 | DH39: 0 | DI39: 0 | DJ39: 0 | DK39: 0 | DL39: 0 | DM39: 0 | DN39: 0 | DO39: 0 | DP39: 0 | DQ39: 0 | DR39: 0 | DS39: 0 | DT39: 0 | DU39: 0 | DV39: 0 | DW39: 0 | DX39: 0 | DY39: 0 | DZ39: 0 | EA39: 0 | EB39: 0 | EC39: 0 | ED39: 0 | EE39: 0 | EF39: 0
A40: CCACHIN | B40: 0 | C40: 0 | D40: 0 | E40: 0 | F40: 0 | G40: 0 | H40: 0 | I40: 0 | J40: 0 | K40: 0 | L40: 0 | M40: 0 | N40: 0 | O40: 0 | P40: 0 | Q40: 0 | R40: 0 | S40: 0 | T40: 0 | U40: 0 | V40: 0 | W40: 0 | X40: 0 | Y40: 0 | Z40: 0 | AA40: 0 | AB40: 0 | AC40: 0 | AD40: 0 | AE40: 0 | AF40: 0 | AG40: 0 | AH40: 0 | AI40: 0 | AJ40: 0 | AK40: 0 | AL40: 0 | AM40: 0 | AN40: 0 | AO40: 0 | AP40: 0 | AQ40: 0 | AR40: 0 | AS40: 0 | AT40: 0 | AU40: 0 | AV40: 0 | AW40: 0 | AX40: 0 | AY40: 0 | AZ40: 0 | BA40: 0 | BB40: 0 | BC40: 0 | BD40: 0 | BE40: 0 | BF40: 0 | BG40: 0 | BH40: 0 | BI40: 0 | BJ40: 0 | BK40: 0 | BL40: 0 | BM40: 0 | BN40: 0 | BO40: 0 | BP40: 0 | BQ40: 0 | BR40: 0 | BS40: 0 | BT40: 0 | BU40: 0 | BV40: 0 | BW40: 0 | BX40: 0 | BY40: 0 | BZ40: 0 | CA40: 0 | CB40: 0 | CC40: 0 | CD40: 0 | CE40: 0 | CF40: 0 | CG40: 0 | CH40: 0 | CI40: 0 | CJ40: 0 | CK40: 0 | CL40: 0 | CM40: 0 | CN40: 0 | CO40: 0 | CP40: 0 | CQ40: 0 | CR40: 0 | CS40: 0 | CT40: 0 | CU40: 0 | CV40: 0 | CW40: 0 | CX40: 0 | CY40: 0 | CZ40: 0 | DA40: 0 | DB40: 0 | DC40: 0 | DD40: 0 | DE40: 0 | DF40: 0 | DG40: 0 | DH40: 0 | DI40: 0 | DJ40: 0 | DK40: 0 | DL40: 0 | DM40: 0 | DN40: 0 | DO40: 0 | DP40: 0 | DQ40: 0 | DR40: 0 | DS40: 0 | DT40: 0 | DU40: 0 | DV40: 0 | DW40: 0 | DX40: 0 | DY40: 0 | DZ40: 0 | EA40: 0 | EB40: 0 | EC40: 0 | ED40: 0 | EE40: 0 | EF40: 0
A41: CCAPACMARCA | B41: 0 | C41: 0 | D41: 0 | E41: 0 | F41: 0 | G41: 0 | H41: 0 | I41: 0 | J41: 0 | K41: 0 | L41: 0 | M41: 0 | N41: 0 | O41: 0 | P41: 0 | Q41: 0 | R41: 0 | S41: 0 | T41: 0 | U41: 0 | V41: 0 | W41: 0 | X41: 0 | Y41: 0 | Z41: 0 | AA41: 0 | AB41: 0 | AC41: 0 | AD41: 0 | AE41: 0 | AF41: 0 | AG41: 0 | AH41: 0 | AI41: 0 | AJ41: 0 | AK41: 0 | AL41: 0 | AM41: 0 | AN41: 0 | AO41: 0 | AP41: 0 | AQ41: 0 | AR41: 0 | AS41: 0 | AT41: 0 | AU41: 0 | AV41: 0 | AW41: 0 | AX41: 0 | AY41: 0 | AZ41: 0 | BA41: 0 | BB41: 0 | BC41: 0 | BD41: 0 | BE41: 0 | BF41: 0 | BG41: 0 | BH41: 0 | BI41: 0 | BJ41: 0 | BK41: 0 | BL41: 0 | BM41: 0 | BN41: 0 | BO41: 0 | BP41: 0 | BQ41: 0 | BR41: 0 | BS41: 0 | BT41: 0 | BU41: 0 | BV41: 0 | BW41: 0 | BX41: 0 | BY41: 0 | BZ41: 0 | CA41: 0 | CB41: 0 | CC41: 0 | CD41: 0 | CE41: 0 | CF41: 0 | CG41: 0 | CH41: 0 | CI41: 0 | CJ41: 0 | CK41: 0 | CL41: 0 | CM41: 0 | CN41: 0 | CO41: 0 | CP41: 0 | CQ41: 0 | CR41: 0 | CS41: 0 | CT41: 0 | CU41: 0 | CV41: 0 | CW41: 0 | CX41: 0 | CY41: 0 | CZ41: 0 | DA41: 0 | DB41: 0 | DC41: 0 | DD41: 0 | DE41: 0 | DF41: 0 | DG41: 0 | DH41: 0 | DI41: 0 | DJ41: 0 | DK41: 0 | DL41: 0 | DM41: 0 | DN41: 0 | DO41: 0 | DP41: 0 | DQ41: 0 | DR41: 0 | DS41: 0 | DT41: 0 | DU41: 0 | DV41: 0 | DW41: 0 | DX41: 0 | DY41: 0 | DZ41: 0 | EA41: 0 | EB41: 0 | EC41: 0 | ED41: 0 | EE41: 0 | EF41: 0
A42: CCAPANA | B42: 0 | C42: 0 | D42: 0 | E42: 0 | F42: 0 | G42: 0 | H42: 0 | I42: 0 | J42: 0 | K42: 0 | L42: 0 | M42: 0 | N42: 0 | O42: 0 | P42: 0 | Q42: 0 | R42: 0 | S42: 0 | T42: 0 | U42: 0 | V42: 0 | W42: 0 | X42: 0 | Y42: 0 | Z42: 0 | AA42: 0 | AB42: 0 | AC42: 0 | AD42: 0 | AE42: 0 | AF42: 0 | AG42: 0 | AH42: 0 | AI42: 0 | AJ42: 0 | AK42: 0 | AL42: 0 | AM42: 0 | AN42: 0 | AO42: 0 | AP42: 0 | AQ42: 0 | AR42: 0 | AS42: 0 | AT42: 0 | AU42: 0 | AV42: 0 | AW42: 0 | AX42: 0 | AY42: 0 | AZ42: 0 | BA42: 0 | BB42: 0 | BC42: 0 | BD42: 0 | BE42: 0 | BF42: 0 | BG42: 0 | BH42: 0 | BI42: 0 | BJ42: 0 | BK42: 0 | BL42: 0 | BM42: 0 | BN42: 0 | BO42: 0 | BP42: 0 | BQ42: 0 | BR42: 0 | BS42: 0 | BT42: 0 | BU42: 0 | BV42: 0 | BW42: 0 | BX42: 0 | BY42: 0 | BZ42: 0 | CA42: 0 | CB42: 0 | CC42: 0 | CD42: 0 | CE42: 0 | CF42: 0 | CG42: 0 | CH42: 0 | CI42: 0 | CJ42: 0 | CK42: 0 | CL42: 0 | CM42: 0 | CN42: 0 | CO42: 0 | CP42: 0 | CQ42: 0 | CR42: 0 | CS42: 0 | CT42: 0 | CU42: 0 | CV42: 0 | CW42: 0 | CX42: 0 | CY42: 0 | CZ42: 0 | DA42: 0 | DB42: 0 | DC42: 0 | DD42: 0 | DE42: 0 | DF42: 0 | DG42: 0 | DH42: 0 | DI42: 0 | DJ42: 0 | DK42: 0 | DL42: 0 | DM42: 0 | DN42: 0 | DO42: 0 | DP42: 0 | DQ42: 0 | DR42: 0 | DS42: 0 | DT42: 0 | DU42: 0 | DV42: 0 | DW42: 0 | DX42: 0 | DY42: 0 | DZ42: 0 | EA42: 0 | EB42: 0 | EC42: 0 | ED42: 0 | EE42: 0 | EF42: 0
A43: CCAPI | B43: 0 | C43: 0 | D43: 0 | E43: 0 | F43: 0 | G43: 0 | H43: 0 | I43: 0 | J43: 0 | K43: 0 | L43: 0 | M43: 0 | N43: 0 | O43: 0 | P43: 0 | Q43: 0 | R43: 0 | S43: 0 | T43: 0 | U43: 0 | V43: 0 | W43: 0 | X43: 0 | Y43: 0 | Z43: 0 | AA43: 0 | AB43: 0 | AC43: 0 | AD43: 0 | AE43: 0 | AF43: 0 | AG43: 0 | AH43: 0 | AI43: 0 | AJ43: 0 | AK43: 0 | AL43: 0 | AM43: 0 | AN43: 0 | AO43: 0 | AP43: 0 | AQ43: 0 | AR43: 0 | AS43: 0 | AT43: 0 | AU43: 0 | AV43: 0 | AW43: 0 | AX43: 0 | AY43: 0 | AZ43: 0 | BA43: 0 | BB43: 0 | BC43: 0 | BD43: 0 | BE43: 0 | BF43: 0 | BG43: 0 | BH43: 0 | BI43: 0 | BJ43: 0 | BK43: 0 | BL43: 0 | BM43: 0 | BN43: 0 | BO43: 0 | BP43: 0 | BQ43: 0 | BR43: 0 | BS43: 0 | BT43: 0 | BU43: 0 | BV43: 0 | BW43: 0 | BX43: 0 | BY43: 0 | BZ43: 0 | CA43: 0 | CB43: 0 | CC43: 0 | CD43: 0 | CE43: 0 | CF43: 0 | CG43: 0 | CH43: 0 | CI43: 0 | CJ43: 0 | CK43: 0 | CL43: 0 | CM43: 0 | CN43: 0 | CO43: 0 | CP43: 0 | CQ43: 0 | CR43: 0 | CS43: 0 | CT43: 0 | CU43: 0 | CV43: 0 | CW43: 0 | CX43: 0 | CY43: 0 | CZ43: 0 | DA43: 0 | DB43: 0 | DC43: 0 | DD43: 0 | DE43: 0 | DF43: 0 | DG43: 0 | DH43: 0 | DI43: 0 | DJ43: 0 | DK43: 0 | DL43: 0 | DM43: 0 | DN43: 0 | DO43: 0 | DP43: 0 | DQ43: 0 | DR43: 0 | DS43: 0 | DT43: 0 | DU43: 0 | DV43: 0 | DW43: 0 | DX43: 0 | DY43: 0 | DZ43: 0 | EA43: 0 | EB43: 0 | EC43: 0 | ED43: 0 | EE43: 0 | EF43: 0
A44: CCARCCO | B44: 0 | C44: 0 | D44: 0 | E44: 0 | F44: 0 | G44: 0 | H44: 0 | I44: 0 | J44: 0 | K44: 0 | L44: 0 | M44: 0 | N44: 0 | O44: 0 | P44: 0 | Q44: 0 | R44: 0 | S44: 0 | T44: 0 | U44: 0 | V44: 0 | W44: 0 | X44: 0 | Y44: 0 | Z44: 0 | AA44: 0 | AB44: 0 | AC44: 0 | AD44: 0 | AE44: 0 | AF44: 0 | AG44: 0 | AH44: 0 | AI44: 0 | AJ44: 0 | AK44: 0 | AL44: 0 | AM44: 0 | AN44: 0 | AO44: 0 | AP44: 0 | AQ44: 0 | AR44: 0 | AS44: 0 | AT44: 0 | AU44: 0 | AV44: 0 | AW44: 0 | AX44: 0 | AY44: 0 | AZ44: 0 | BA44: 0 | BB44: 0 | BC44: 0 | BD44: 0 | BE44: 0 | BF44: 0 | BG44: 0 | BH44: 0 | BI44: 0 | BJ44: 0 | BK44: 0 | BL44: 0 | BM44: 0 | BN44: 0 | BO44: 0 | BP44: 0 | BQ44: 0 | BR44: 0 | BS44: 0 | BT44: 0 | BU44: 0 | BV44: 0 | BW44: 0 | BX44: 0 | BY44: 0 | BZ44: 0 | CA44: 0 | CB44: 0 | CC44: 0 | CD44: 0 | CE44: 0 | CF44: 0 | CG44: 0 | CH44: 0 | CI44: 0 | CJ44: 1 | CK44: 0 | CL44: 0 | CM44: 0 | CN44: 0 | CO44: 0 | CP44: 0 | CQ44: 0 | CR44: 0 | CS44: 0 | CT44: 0 | CU44: 0 | CV44: 0 | CW44: 0 | CX44: 0 | CY44: 0 | CZ44: 0 | DA44: 0 | DB44: 0 | DC44: 0 | DD44: 0 | DE44: 0 | DF44: 0 | DG44: 0 | DH44: 0 | DI44: 0 | DJ44: 0 | DK44: 0 | DL44: 0 | DM44: 0 | DN44: 0 | DO44: 0 | DP44: 0 | DQ44: 0 | DR44: 0 | DS44: 0 | DT44: 0 | DU44: 0 | DV44: 0 | DW44: 0 | DX44: 0 | DY44: 0 | DZ44: 0 | EA44: 0 | EB44: 0 | EC44: 0 | ED44: 0 | EE44: 0 | EF44: 0
A45: CCARHUAYO | B45: 0 | C45: 0 | D45: 0 | E45: 0 | F45: 0 | G45: 0 | H45: 0 | I45: 0 | J45: 0 | K45: 0 | L45: 0 | M45: 0 | N45: 0 | O45: 0 | P45: 0 | Q45: 0 | R45: 0 | S45: 0 | T45: 0 | U45: 0 | V45: 0 | W45: 0 | X45: 0 | Y45: 0 | Z45: 0 | AA45: 0 | AB45: 0 | AC45: 0 | AD45: 0 | AE45: 0 | AF45: 0 | AG45: 0 | AH45: 0 | AI45: 0 | AJ45: 0 | AK45: 0 | AL45: 0 | AM45: 0 | AN45: 0 | AO45: 0 | AP45: 0 | AQ45: 0 | AR45: 0 | AS45: 0 | AT45: 0 | AU45: 0 | AV45: 0 | AW45: 0 | AX45: 0 | AY45: 0 | AZ45: 0 | BA45: 0 | BB45: 0 | BC45: 0 | BD45: 0 | BE45: 0 | BF45: 0 | BG45: 0 | BH45: 0 | BI45: 0 | BJ45: 0 | BK45: 0 | BL45: 0 | BM45: 0 | BN45: 0 | BO45: 0 | BP45: 0 | BQ45: 0 | BR45: 0 | BS45: 0 | BT45: 0 | BU45: 0 | BV45: 0 | BW45: 0 | BX45: 0 | BY45: 0 | BZ45: 0 | CA45: 0 | CB45: 0 | CC45: 0 | CD45: 0 | CE45: 0 | CF45: 0 | CG45: 0 | CH45: 0 | CI45: 0 | CJ45: 0 | CK45: 0 | CL45: 0 | CM45: 0 | CN45: 0 | CO45: 0 | CP45: 0 | CQ45: 0 | CR45: 0 | CS45: 0 | CT45: 0 | CU45: 0 | CV45: 0 | CW45: 0 | CX45: 0 | CY45: 0 | CZ45: 0 | DA45: 0 | DB45: 0 | DC45: 0 | DD45: 0 | DE45: 0 | DF45: 0 | DG45: 0 | DH45: 0 | DI45: 0 | DJ45: 0 | DK45: 0 | DL45: 0 | DM45: 0 | DN45: 0 | DO45: 0 | DP45: 0 | DQ45: 0 | DR45: 0 | DS45: 0 | DT45: 0 | DU45: 0 | DV45: 0 | DW45: 0 | DX45: 0 | DY45: 0 | DZ45: 0 | EA45: 0 | EB45: 0 | EC45: 0 | ED45: 0 | EE45: 0 | EF45: 0
A46: CCATCCA | B46: 0 | C46: 0 | D46: 0 | E46: 0 | F46: 0 | G46: 0 | H46: 0 | I46: 0 | J46: 0 | K46: 0 | L46: 0 | M46: 0 | N46: 0 | O46: 0 | P46: 0 | Q46: 0 | R46: 0 | S46: 0 | T46: 0 | U46: 0 | V46: 0 | W46: 0 | X46: 0 | Y46: 0 | Z46: 0 | AA46: 0 | AB46: 0 | AC46: 0 | AD46: 0 | AE46: 0 | AF46: 0 | AG46: 0 | AH46: 0 | AI46: 0 | AJ46: 0 | AK46: 0 | AL46: 0 | AM46: 0 | AN46: 0 | AO46: 0 | AP46: 0 | AQ46: 0 | AR46: 0 | AS46: 0 | AT46: 0 | AU46: 0 | AV46: 0 | AW46: 0 | AX46: 0 | AY46: 0 | AZ46: 0 | BA46: 0 | BB46: 0 | BC46: 0 | BD46: 0 | BE46: 0 | BF46: 0 | BG46: 0 | BH46: 0 | BI46: 0 | BJ46: 0 | BK46: 0 | BL46: 0 | BM46: 0 | BN46: 0 | BO46: 0 | BP46: 0 | BQ46: 0 | BR46: 0 | BS46: 0 | BT46: 0 | BU46: 0 | BV46: 0 | BW46: 0 | BX46: 0 | BY46: 0 | BZ46: 0 | CA46: 0 | CB46: 0 | CC46: 0 | CD46: 0 | CE46: 0 | CF46: 0 | CG46: 0 | CH46: 0 | CI46: 0 | CJ46: 0 | CK46: 0 | CL46: 0 | CM46: 0 | CN46: 0 | CO46: 0 | CP46: 0 | CQ46: 0 | CR46: 0 | CS46: 0 | CT46: 0 | CU46: 0 | CV46: 0 | CW46: 0 | CX46: 0 | CY46: 0 | CZ46: 0 | DA46: 0 | DB46: 0 | DC46: 0 | DD46: 0 | DE46: 0 | DF46: 0 | DG46: 0 | DH46: 0 | DI46: 0 | DJ46: 0 | DK46: 0 | DL46: 0 | DM46: 0 | DN46: 0 | DO46: 0 | DP46: 0 | DQ46: 0 | DR46: 0 | DS46: 0 | DT46: 0 | DU46: 0 | DV46: 0 | DW46: 0 | DX46: 0 | DY46: 0 | DZ46: 0 | EA46: 0 | EB46: 0 | EC46: 0 | ED46: 0 | EE46: 0 | EF46: 0
A47: CCOCHAPATA | B47: 0 | C47: 0 | D47: 0 | E47: 0 | F47: 0 | G47: 0 | H47: 0 | I47: 0 | J47: 0 | K47: 0 | L47: 0 | M47: 0 | N47: 0 | O47: 0 | P47: 0 | Q47: 0 | R47: 0 | S47: 0 | T47: 0 | U47: 0 | V47: 0 | W47: 0 | X47: 0 | Y47: 0 | Z47: 0 | AA47: 0 | AB47: 0 | AC47: 0 | AD47: 0 | AE47: 0 | AF47: 0 | AG47: 0 | AH47: 0 | AI47: 0 | AJ47: 0 | AK47: 0 | AL47: 0 | AM47: 0 | AN47: 0 | AO47: 0 | AP47: 0 | AQ47: 0 | AR47: 0 | AS47: 0 | AT47: 0 | AU47: 0 | AV47: 0 | AW47: 0 | AX47: 0 | AY47: 0 | AZ47: 0 | BA47: 0 | BB47: 0 | BC47: 0 | BD47: 0 | BE47: 0 | BF47: 0 | BG47: 0 | BH47: 0 | BI47: 0 | BJ47: 0 | BK47: 0 | BL47: 0 | BM47: 0 | BN47: 0 | BO47: 0 | BP47: 0 | BQ47: 0 | BR47: 0 | BS47: 0 | BT47: 0 | BU47: 0 | BV47: 0 | BW47: 0 | BX47: 0 | BY47: 0 | BZ47: 0 | CA47: 0 | CB47: 0 | CC47: 0 | CD47: 0 | CE47: 0 | CF47: 0 | CG47: 0 | CH47: 0 | CI47: 0 | CJ47: 0 | CK47: 0 | CL47: 0 | CM47: 0 | CN47: 0 | CO47: 0 | CP47: 0 | CQ47: 0 | CR47: 0 | CS47: 0 | CT47: 0 | CU47: 0 | CV47: 0 | CW47: 0 | CX47: 0 | CY47: 0 | CZ47: 0 | DA47: 0 | DB47: 0 | DC47: 0 | DD47: 0 | DE47: 0 | DF47: 0 | DG47: 0 | DH47: 0 | DI47: 0 | DJ47: 0 | DK47: 0 | DL47: 0 | DM47: 0 | DN47: 0 | DO47: 0 | DP47: 0 | DQ47: 0 | DR47: 0 | DS47: 0 | DT47: 0 | DU47: 0 | DV47: 0 | DW47: 0 | DX47: 0 | DY47: 0 | DZ47: 0 | EA47: 0 | EB47: 0 | EC47: 0 | ED47: 0 | EE47: 0 | EF47: 0
A48: CCOCHIRIHUAY | B48: 0 | C48: 0 | D48: 0 | E48: 0 | F48: 0 | G48: 0 | H48: 0 | I48: 0 | J48: 0 | K48: 0 | L48: 0 | M48: 0 | N48: 0 | O48: 0 | P48: 0 | Q48: 0 | R48: 0 | S48: 0 | T48: 0 | U48: 0 | V48: 0 | W48: 0 | X48: 0 | Y48: 0 | Z48: 0 | AA48: 0 | AB48: 0 | AC48: 0 | AD48: 0 | AE48: 0 | AF48: 0 | AG48: 0 | AH48: 0 | AI48: 0 | AJ48: 0 | AK48: 0 | AL48: 0 | AM48: 0 | AN48: 0 | AO48: 0 | AP48: 0 | AQ48: 0 | AR48: 0 | AS48: 0 | AT48: 0 | AU48: 0 | AV48: 0 | AW48: 0 | AX48: 0 | AY48: 0 | AZ48: 0 | BA48: 0 | BB48: 0 | BC48: 0 | BD48: 0 | BE48: 0 | BF48: 0 | BG48: 0 | BH48: 0 | BI48: 0 | BJ48: 0 | BK48: 0 | BL48: 0 | BM48: 0 | BN48: 0 | BO48: 0 | BP48: 0 | BQ48: 0 | BR48: 0 | BS48: 0 | BT48: 0 | BU48: 0 | BV48: 0 | BW48: 0 | BX48: 0 | BY48: 0 | BZ48: 0 | CA48: 0 | CB48: 0 | CC48: 0 | CD48: 0 | CE48: 0 | CF48: 0 | CG48: 0 | CH48: 0 | CI48: 0 | CJ48: 0 | CK48: 0 | CL48: 0 | CM48: 0 | CN48: 0 | CO48: 0 | CP48: 0 | CQ48: 0 | CR48: 0 | CS48: 0 | CT48: 0 | CU48: 0 | CV48: 0 | CW48: 0 | CX48: 0 | CY48: 0 | CZ48: 0 | DA48: 0 | DB48: 0 | DC48: 0 | DD48: 0 | DE48: 0 | DF48: 0 | DG48: 0 | DH48: 0 | DI48: 0 | DJ48: 0 | DK48: 0 | DL48: 0 | DM48: 0 | DN48: 0 | DO48: 0 | DP48: 0 | DQ48: 0 | DR48: 0 | DS48: 0 | DT48: 0 | DU48: 0 | DV48: 0 | DW48: 0 | DX48: 0 | DY48: 0 | DZ48: 0 | EA48: 0 | EB48: 0 | EC48: 0 | ED48: 0 | EE48: 0 | EF48: 0
A49: CCOLCA | B49: 0 | C49: 0 | D49: 0 | E49: 0 | F49: 0 | G49: 0 | H49: 0 | I49: 0 | J49: 0 | K49: 0 | L49: 0 | M49: 0 | N49: 0 | O49: 0 | P49: 0 | Q49: 0 | R49: 0 | S49: 0 | T49: 0 | U49: 0 | V49: 0 | W49: 0 | X49: 0 | Y49: 0 | Z49: 0 | AA49: 0 | AB49: 0 | AC49: 0 | AD49: 0 | AE49: 0 | AF49: 0 | AG49: 0 | AH49: 0 | AI49: 0 | AJ49: 0 | AK49: 0 | AL49: 0 | AM49: 0 | AN49: 0 | AO49: 0 | AP49: 0 | AQ49: 0 | AR49: 0 | AS49: 0 | AT49: 0 | AU49: 0 | AV49: 0 | AW49: 0 | AX49: 0 | AY49: 0 | AZ49: 0 | BA49: 0 | BB49: 0 | BC49: 0 | BD49: 0 | BE49: 0 | BF49: 0 | BG49: 0 | BH49: 0 | BI49: 0 | BJ49: 0 | BK49: 0 | BL49: 0 | BM49: 0 | BN49: 0 | BO49: 0 | BP49: 0 | BQ49: 0 | BR49: 0 | BS49: 0 | BT49: 0 | BU49: 0 | BV49: 0 | BW49: 0 | BX49: 0 | BY49: 0 | BZ49: 0 | CA49: 0 | CB49: 0 | CC49: 0 | CD49: 0 | CE49: 0 | CF49: 0 | CG49: 0 | CH49: 0 | CI49: 0 | CJ49: 0 | CK49: 0 | CL49: 0 | CM49: 0 | CN49: 0 | CO49: 0 | CP49: 0 | CQ49: 0 | CR49: 0 | CS49: 0 | CT49: 0 | CU49: 0 | CV49: 0 | CW49: 0 | CX49: 0 | CY49: 0 | CZ49: 0 | DA49: 0 | DB49: 0 | DC49: 0 | DD49: 0 | DE49: 0 | DF49: 0 | DG49: 0 | DH49: 0 | DI49: 0 | DJ49: 0 | DK49: 0 | DL49: 0 | DM49: 0 | DN49: 0 | DO49: 0 | DP49: 0 | DQ49: 0 | DR49: 0 | DS49: 0 | DT49: 0 | DU49: 0 | DV49: 0 | DW49: 0 | DX49: 0 | DY49: 0 | DZ49: 0 | EA49: 0 | EB49: 0 | EC49: 0 | ED49: 0 | EE49: 0 | EF49: 0
A50: CCOLLANA | B50: 0 | C50: 0 | D50: 0 | E50: 0 | F50: 0 | G50: 0 | H50: 0 | I50: 0 | J50: 0 | K50: 0 | L50: 0 | M50: 0 | N50: 0 | O50: 0 | P50: 0 | Q50: 0 | R50: 0 | S50: 0 | T50: 0 | U50: 0 | V50: 0 | W50: 0 | X50: 0 | Y50: 0 | Z50: 0 | AA50: 0 | AB50: 0 | AC50: 0 | AD50: 0 | AE50: 0 | AF50: 0 | AG50: 0 | AH50: 0 | AI50: 0 | AJ50: 0 | AK50: 0 | AL50: 0 | AM50: 0 | AN50: 0 | AO50: 0 | AP50: 0 | AQ50: 0 | AR50: 0 | AS50: 0 | AT50: 0 | AU50: 0 | AV50: 0 | AW50: 0 | AX50: 0 | AY50: 0 | AZ50: 0 | BA50: 0 | BB50: 0 | BC50: 0 | BD50: 0 | BE50: 0 | BF50: 0 | BG50: 0 | BH50: 0 | BI50: 0 | BJ50: 0 | BK50: 0 | BL50: 0 | BM50: 0 | BN50: 0 | BO50: 0 | BP50: 0 | BQ50: 0 | BR50: 0 | BS50: 0 | BT50: 0 | BU50: 0 | BV50: 0 | BW50: 0 | BX50: 0 | BY50: 0 | BZ50: 0 | CA50: 0 | CB50: 0 | CC50: 0 | CD50: 0 | CE50: 0 | CF50: 0 | CG50: 0 | CH50: 0 | CI50: 0 | CJ50: 0 | CK50: 0 | CL50: 0 | CM50: 0 | CN50: 0 | CO50: 0 | CP50: 0 | CQ50: 0 | CR50: 0 | CS50: 0 | CT50: 0 | CU50: 0 | CV50: 0 | CW50: 0 | CX50: 0 | CY50: 0 | CZ50: 0 | DA50: 0 | DB50: 0 | DC50: 0 | DD50: 0 | DE50: 0 | DF50: 0 | DG50: 0 | DH50: 0 | DI50: 0 | DJ50: 0 | DK50: 0 | DL50: 0 | DM50: 0 | DN50: 0 | DO50: 0 | DP50: 0 | DQ50: 0 | DR50: 0 | DS50: 0 | DT50: 0 | DU50: 0 | DV50: 0 | DW50: 0 | DX50: 0 | DY50: 0 | DZ50: 0 | EA50: 0 | EB50: 0 | EC50: 0 | ED50: 0 | EE50: 0 | EF50: 0
A51: CCONCHACCOLLO | B51: 0 | C51: 0 | D51: 0 | E51: 0 | F51: 0 | G51: 0 | H51: 0 | I51: 0 | J51: 0 | K51: 0 | L51: 0 | M51: 0 | N51: 0 | O51: 0 | P51: 0 | Q51: 0 | R51: 0 | S51: 0 | T51: 0 | U51: 0 | V51: 0 | W51: 0 | X51: 0 | Y51: 0 | Z51: 0 | AA51: 0 | AB51: 0 | AC51: 0 | AD51: 0 | AE51: 0 | AF51: 0 | AG51: 0 | AH51: 0 | AI51: 0 | AJ51: 0 | AK51: 0 | AL51: 0 | AM51: 0 | AN51: 0 | AO51: 0 | AP51: 0 | AQ51: 0 | AR51: 0 | AS51: 0 | AT51: 0 | AU51: 0 | AV51: 0 | AW51: 0 | AX51: 0 | AY51: 0 | AZ51: 0 | BA51: 0 | BB51: 0 | BC51: 0 | BD51: 0 | BE51: 0 | BF51: 0 | BG51: 0 | BH51: 0 | BI51: 0 | BJ51: 0 | BK51: 0 | BL51: 0 | BM51: 0 | BN51: 0 | BO51: 0 | BP51: 0 | BQ51: 0 | BR51: 0 | BS51: 0 | BT51: 0 | BU51: 0 | BV51: 0 | BW51: 0 | BX51: 0 | BY51: 0 | BZ51: 0 | CA51: 0 | CB51: 0 | CC51: 0 | CD51: 0 | CE51: 0 | CF51: 0 | CG51: 0 | CH51: 0 | CI51: 0 | CJ51: 0 | CK51: 0 | CL51: 0 | CM51: 0 | CN51: 0 | CO51: 0 | CP51: 0 | CQ51: 0 | CR51: 0 | CS51: 0 | CT51: 0 | CU51: 0 | CV51: 0 | CW51: 0 | CX51: 0 | CY51: 0 | CZ51: 0 | DA51: 0 | DB51: 0 | DC51: 0 | DD51: 0 | DE51: 0 | DF51: 0 | DG51: 0 | DH51: 0 | DI51: 0 | DJ51: 0 | DK51: 0 | DL51: 0 | DM51: 0 | DN51: 0 | DO51: 0 | DP51: 0 | DQ51: 0 | DR51: 0 | DS51: 0 | DT51: 0 | DU51: 0 | DV51: 0 | DW51: 0 | DX51: 0 | DY51: 0 | DZ51: 0 | EA51: 0 | EB51: 0 | EC51: 0 | ED51: 0 | EE51: 0 | EF51: 0
A52: CCORAO | B52: 0 | C52: 0 | D52: 0 | E52: 0 | F52: 0 | G52: 0 | H52: 0 | I52: 0 | J52: 0 | K52: 0 | L52: 0 | M52: 0 | N52: 0 | O52: 0 | P52: 0 | Q52: 0 | R52: 0 | S52: 0 | T52: 0 | U52: 0 | V52: 0 | W52: 0 | X52: 0 | Y52: 0 | Z52: 0 | AA52: 0 | AB52: 0 | AC52: 0 | AD52: 0 | AE52: 0 | AF52: 0 | AG52: 0 | AH52: 0 | AI52: 0 | AJ52: 0 | AK52: 0 | AL52: 0 | AM52: 0 | AN52: 0 | AO52: 0 | AP52: 0 | AQ52: 0 | AR52: 0 | AS52: 0 | AT52: 0 | AU52: 0 | AV52: 0 | AW52: 0 | AX52: 0 | AY52: 0 | AZ52: 0 | BA52: 0 | BB52: 0 | BC52: 0 | BD52: 0 | BE52: 0 | BF52: 0 | BG52: 0 | BH52: 0 | BI52: 0 | BJ52: 0 | BK52: 0 | BL52: 0 | BM52: 0 | BN52: 0 | BO52: 0 | BP52: 0 | BQ52: 0 | BR52: 0 | BS52: 0 | BT52: 0 | BU52: 0 | BV52: 0 | BW52: 0 | BX52: 0 | BY52: 0 | BZ52: 0 | CA52: 0 | CB52: 0 | CC52: 0 | CD52: 0 | CE52: 0 | CF52: 0 | CG52: 0 | CH52: 0 | CI52: 0 | CJ52: 0 | CK52: 0 | CL52: 0 | CM52: 0 | CN52: 0 | CO52: 0 | CP52: 0 | CQ52: 0 | CR52: 0 | CS52: 0 | CT52: 0 | CU52: 0 | CV52: 0 | CW52: 0 | CX52: 0 | CY52: 0 | CZ52: 0 | DA52: 0 | DB52: 0 | DC52: 0 | DD52: 0 | DE52: 0 | DF52: 0 | DG52: 0 | DH52: 0 | DI52: 0 | DJ52: 0 | DK52: 0 | DL52: 0 | DM52: 0 | DN52: 0 | DO52: 0 | DP52: 0 | DQ52: 0 | DR52: 0 | DS52: 0 | DT52: 0 | DU52: 0 | DV52: 0 | DW52: 0 | DX52: 0 | DY52: 0 | DZ52: 0 | EA52: 0 | EB52: 0 | EC52: 0 | ED52: 0 | EE52: 0 | EF52: 0
A53: CCORCCA | B53: 0 | C53: 0 | D53: 0 | E53: 0 | F53: 0 | G53: 0 | H53: 0 | I53: 0 | J53: 0 | K53: 0 | L53: 0 | M53: 0 | N53: 0 | O53: 0 | P53: 0 | Q53: 0 | R53: 0 | S53: 0 | T53: 0 | U53: 0 | V53: 0 | W53: 0 | X53: 0 | Y53: 0 | Z53: 0 | AA53: 0 | AB53: 0 | AC53: 0 | AD53: 0 | AE53: 0 | AF53: 0 | AG53: 0 | AH53: 0 | AI53: 0 | AJ53: 0 | AK53: 0 | AL53: 0 | AM53: 0 | AN53: 0 | AO53: 0 | AP53: 0 | AQ53: 0 | AR53: 0 | AS53: 0 | AT53: 0 | AU53: 0 | AV53: 0 | AW53: 0 | AX53: 0 | AY53: 0 | AZ53: 0 | BA53: 0 | BB53: 0 | BC53: 0 | BD53: 0 | BE53: 0 | BF53: 0 | BG53: 0 | BH53: 0 | BI53: 0 | BJ53: 0 | BK53: 0 | BL53: 0 | BM53: 0 | BN53: 0 | BO53: 0 | BP53: 0 | BQ53: 0 | BR53: 0 | BS53: 0 | BT53: 0 | BU53: 0 | BV53: 0 | BW53: 0 | BX53: 0 | BY53: 0 | BZ53: 0 | CA53: 0 | CB53: 0 | CC53: 0 | CD53: 0 | CE53: 0 | CF53: 0 | CG53: 0 | CH53: 0 | CI53: 0 | CJ53: 0 | CK53: 0 | CL53: 0 | CM53: 0 | CN53: 0 | CO53: 0 | CP53: 0 | CQ53: 0 | CR53: 0 | CS53: 0 | CT53: 0 | CU53: 0 | CV53: 0 | CW53: 0 | CX53: 0 | CY53: 0 | CZ53: 0 | DA53: 0 | DB53: 0 | DC53: 0 | DD53: 0 | DE53: 0 | DF53: 0 | DG53: 0 | DH53: 0 | DI53: 0 | DJ53: 0 | DK53: 0 | DL53: 0 | DM53: 0 | DN53: 0 | DO53: 0 | DP53: 0 | DQ53: 0 | DR53: 0 | DS53: 0 | DT53: 0 | DU53: 0 | DV53: 0 | DW53: 0 | DX53: 0 | DY53: 0 | DZ53: 0 | EA53: 0 | EB53: 0 | EC53: 0 | ED53: 0 | EE53: 0 | EF53: 0
A54: CCORIMAYO | B54: 0 | C54: 0 | D54: 0 | E54: 0 | F54: 0 | G54: 0 | H54: 0 | I54: 0 | J54: 0 | K54: 0 | L54: 0 | M54: 0 | N54: 0 | O54: 0 | P54: 0 | Q54: 0 | R54: 0 | S54: 0 | T54: 0 | U54: 0 | V54: 0 | W54: 0 | X54: 0 | Y54: 0 | Z54: 0 | AA54: 0 | AB54: 0 | AC54: 0 | AD54: 0 | AE54: 0 | AF54: 0 | AG54: 0 | AH54: 0 | AI54: 0 | AJ54: 0 | AK54: 0 | AL54: 0 | AM54: 0 | AN54: 0 | AO54: 0 | AP54: 0 | AQ54: 0 | AR54: 0 | AS54: 0 | AT54: 0 | AU54: 0 | AV54: 0 | AW54: 0 | AX54: 0 | AY54: 0 | AZ54: 0 | BA54: 0 | BB54: 0 | BC54: 0 | BD54: 0 | BE54: 0 | BF54: 0 | BG54: 0 | BH54: 0 | BI54: 0 | BJ54: 0 | BK54: 0 | BL54: 0 | BM54: 0 | BN54: 0 | BO54: 0 | BP54: 0 | BQ54: 0 | BR54: 0 | BS54: 0 | BT54: 0 | BU54: 0 | BV54: 0 | BW54: 0 | BX54: 0 | BY54: 0 | BZ54: 0 | CA54: 0 | CB54: 0 | CC54: 0 | CD54: 0 | CE54: 0 | CF54: 0 | CG54: 0 | CH54: 0 | CI54: 0 | CJ54: 0 | CK54: 0 | CL54: 0 | CM54: 0 | CN54: 0 | CO54: 0 | CP54: 0 | CQ54: 0 | CR54: 0 | CS54: 0 | CT54: 0 | CU54: 0 | CV54: 0 | CW54: 0 | CX54: 0 | CY54: 0 | CZ54: 0 | DA54: 0 | DB54: 0 | DC54: 0 | DD54: 0 | DE54: 0 | DF54: 0 | DG54: 0 | DH54: 0 | DI54: 0 | DJ54: 0 | DK54: 0 | DL54: 0 | DM54: 0 | DN54: 0 | DO54: 0 | DP54: 0 | DQ54: 0 | DR54: 0 | DS54: 0 | DT54: 0 | DU54: 0 | DV54: 0 | DW54: 0 | DX54: 0 | DY54: 0 | DZ54: 0 | EA54: 0 | EB54: 0 | EC54: 0 | ED54: 0 | EE54: 0 | EF54: 0
A55: CCOYABAMBA | B55: 0 | C55: 0 | D55: 0 | E55: 0 | F55: 0 | G55: 0 | H55: 0 | I55: 0 | J55: 0 | K55: 0 | L55: 0 | M55: 0 | N55: 0 | O55: 0 | P55: 0 | Q55: 0 | R55: 0 | S55: 0 | T55: 0 | U55: 0 | V55: 0 | W55: 0 | X55: 0 | Y55: 0 | Z55: 0 | AA55: 0 | AB55: 0 | AC55: 0 | AD55: 0 | AE55: 0 | AF55: 0 | AG55: 0 | AH55: 0 | AI55: 0 | AJ55: 0 | AK55: 0 | AL55: 0 | AM55: 0 | AN55: 0 | AO55: 0 | AP55: 0 | AQ55: 0 | AR55: 0 | AS55: 0 | AT55: 0 | AU55: 0 | AV55: 0 | AW55: 0 | AX55: 0 | AY55: 0 | AZ55: 0 | BA55: 0 | BB55: 0 | BC55: 0 | BD55: 0 | BE55: 0 | BF55: 0 | BG55: 0 | BH55: 0 | BI55: 0 | BJ55: 0 | BK55: 0 | BL55: 0 | BM55: 0 | BN55: 0 | BO55: 0 | BP55: 0 | BQ55: 0 | BR55: 0 | BS55: 0 | BT55: 0 | BU55: 0 | BV55: 0 | BW55: 0 | BX55: 0 | BY55: 0 | BZ55: 0 | CA55: 0 | CB55: 0 | CC55: 0 | CD55: 0 | CE55: 0 | CF55: 0 | CG55: 0 | CH55: 0 | CI55: 0 | CJ55: 0 | CK55: 0 | CL55: 0 | CM55: 0 | CN55: 0 | CO55: 0 | CP55: 0 | CQ55: 0 | CR55: 0 | CS55: 0 | CT55: 0 | CU55: 0 | CV55: 0 | CW55: 0 | CX55: 0 | CY55: 0 | CZ55: 0 | DA55: 0 | DB55: 0 | DC55: 0 | DD55: 0 | DE55: 0 | DF55: 0 | DG55: 0 | DH55: 0 | DI55: 0 | DJ55: 0 | DK55: 0 | DL55: 0 | DM55: 0 | DN55: 0 | DO55: 0 | DP55: 0 | DQ55: 0 | DR55: 0 | DS55: 0 | DT55: 0 | DU55: 0 | DV55: 0 | DW55: 0 | DX55: 0 | DY55: 0 | DZ55: 0 | EA55: 0 | EB55: 0 | EC55: 0 | ED55: 0 | EE55: 0 | EF55: 0
A56: CCOYO | B56: 0 | C56: 0 | D56: 0 | E56: 0 | F56: 0 | G56: 0 | H56: 0 | I56: 0 | J56: 0 | K56: 0 | L56: 0 | M56: 0 | N56: 0 | O56: 0 | P56: 0 | Q56: 0 | R56: 0 | S56: 0 | T56: 0 | U56: 0 | V56: 0 | W56: 0 | X56: 0 | Y56: 0 | Z56: 0 | AA56: 0 | AB56: 0 | AC56: 0 | AD56: 0 | AE56: 0 | AF56: 0 | AG56: 0 | AH56: 0 | AI56: 0 | AJ56: 0 | AK56: 0 | AL56: 0 | AM56: 0 | AN56: 0 | AO56: 0 | AP56: 0 | AQ56: 0 | AR56: 0 | AS56: 0 | AT56: 0 | AU56: 0 | AV56: 0 | AW56: 0 | AX56: 0 | AY56: 0 | AZ56: 0 | BA56: 0 | BB56: 0 | BC56: 0 | BD56: 0 | BE56: 0 | BF56: 0 | BG56: 0 | BH56: 0 | BI56: 0 | BJ56: 0 | BK56: 0 | BL56: 0 | BM56: 0 | BN56: 0 | BO56: 0 | BP56: 0 | BQ56: 0 | BR56: 0 | BS56: 0 | BT56: 0 | BU56: 0 | BV56: 0 | BW56: 0 | BX56: 0 | BY56: 0 | BZ56: 0 | CA56: 0 | CB56: 0 | CC56: 0 | CD56: 0 | CE56: 0 | CF56: 0 | CG56: 0 | CH56: 0 | CI56: 0 | CJ56: 0 | CK56: 0 | CL56: 0 | CM56: 0 | CN56: 0 | CO56: 0 | CP56: 0 | CQ56: 0 | CR56: 0 | CS56: 0 | CT56: 0 | CU56: 0 | CV56: 0 | CW56: 0 | CX56: 0 | CY56: 0 | CZ56: 0 | DA56: 0 | DB56: 0 | DC56: 0 | DD56: 0 | DE56: 0 | DF56: 0 | DG56: 0 | DH56: 0 | DI56: 0 | DJ56: 0 | DK56: 0 | DL56: 0 | DM56: 0 | DN56: 0 | DO56: 0 | DP56: 0 | DQ56: 0 | DR56: 0 | DS56: 0 | DT56: 0 | DU56: 0 | DV56: 0 | DW56: 0 | DX56: 0 | DY56: 0 | DZ56: 0 | EA56: 0 | EB56: 0 | EC56: 0 | ED56: 0 | EE56: 0 | EF56: 0
A57: CCUYO | B57: 0 | C57: 0 | D57: 0 | E57: 0 | F57: 0 | G57: 0 | H57: 0 | I57: 0 | J57: 0 | K57: 0 | L57: 0 | M57: 0 | N57: 0 | O57: 0 | P57: 0 | Q57: 0 | R57: 0 | S57: 0 | T57: 0 | U57: 0 | V57: 0 | W57: 0 | X57: 0 | Y57: 0 | Z57: 0 | AA57: 0 | AB57: 0 | AC57: 0 | AD57: 0 | AE57: 0 | AF57: 0 | AG57: 0 | AH57: 0 | AI57: 0 | AJ57: 0 | AK57: 0 | AL57: 0 | AM57: 0 | AN57: 0 | AO57: 0 | AP57: 0 | AQ57: 0 | AR57: 0 | AS57: 0 | AT57: 0 | AU57: 0 | AV57: 0 | AW57: 0 | AX57: 0 | AY57: 0 | AZ57: 0 | BA57: 0 | BB57: 0 | BC57: 0 | BD57: 0 | BE57: 0 | BF57: 0 | BG57: 0 | BH57: 0 | BI57: 0 | BJ57: 0 | BK57: 0 | BL57: 0 | BM57: 0 | BN57: 0 | BO57: 0 | BP57: 0 | BQ57: 0 | BR57: 0 | BS57: 0 | BT57: 0 | BU57: 0 | BV57: 0 | BW57: 0 | BX57: 0 | BY57: 0 | BZ57: 0 | CA57: 0 | CB57: 0 | CC57: 0 | CD57: 0 | CE57: 0 | CF57: 0 | CG57: 0 | CH57: 0 | CI57: 0 | CJ57: 0 | CK57: 0 | CL57: 0 | CM57: 0 | CN57: 0 | CO57: 0 | CP57: 0 | CQ57: 0 | CR57: 0 | CS57: 0 | CT57: 0 | CU57: 0 | CV57: 0 | CW57: 0 | CX57: 0 | CY57: 0 | CZ57: 0 | DA57: 0 | DB57: 0 | DC57: 0 | DD57: 0 | DE57: 0 | DF57: 0 | DG57: 0 | DH57: 0 | DI57: 0 | DJ57: 0 | DK57: 0 | DL57: 0 | DM57: 0 | DN57: 0 | DO57: 0 | DP57: 0 | DQ57: 0 | DR57: 0 | DS57: 0 | DT57: 0 | DU57: 0 | DV57: 0 | DW57: 0 | DX57: 0 | DY57: 0 | DZ57: 0 | EA57: 0 | EB57: 0 | EC57: 0 | ED57: 0 | EE57: 0 | EF57: 0
A58: CHACAN | B58: 0 | C58: 0 | D58: 0 | E58: 0 | F58: 0 | G58: 0 | H58: 0 | I58: 0 | J58: 0 | K58: 0 | L58: 0 | M58: 0 | N58: 0 | O58: 0 | P58: 0 | Q58: 0 | R58: 0 | S58: 0 | T58: 0 | U58: 0 | V58: 0 | W58: 0 | X58: 0 | Y58: 0 | Z58: 0 | AA58: 0 | AB58: 0 | AC58: 0 | AD58: 0 | AE58: 0 | AF58: 0 | AG58: 0 | AH58: 0 | AI58: 0 | AJ58: 0 | AK58: 0 | AL58: 0 | AM58: 0 | AN58: 0 | AO58: 0 | AP58: 0 | AQ58: 0 | AR58: 0 | AS58: 0 | AT58: 0 | AU58: 0 | AV58: 0 | AW58: 0 | AX58: 0 | AY58: 0 | AZ58: 0 | BA58: 0 | BB58: 0 | BC58: 0 | BD58: 0 | BE58: 0 | BF58: 0 | BG58: 0 | BH58: 0 | BI58: 0 | BJ58: 0 | BK58: 0 | BL58: 0 | BM58: 0 | BN58: 0 | BO58: 0 | BP58: 0 | BQ58: 0 | BR58: 0 | BS58: 0 | BT58: 0 | BU58: 0 | BV58: 0 | BW58: 0 | BX58: 0 | BY58: 0 | BZ58: 0 | CA58: 0 | CB58: 0 | CC58: 0 | CD58: 0 | CE58: 0 | CF58: 0 | CG58: 0 | CH58: 0 | CI58: 0 | CJ58: 0 | CK58: 0 | CL58: 0 | CM58: 0 | CN58: 0 | CO58: 0 | CP58: 0 | CQ58: 0 | CR58: 0 | CS58: 0 | CT58: 0 | CU58: 0 | CV58: 0 | CW58: 0 | CX58: 0 | CY58: 0 | CZ58: 0 | DA58: 0 | DB58: 0 | DC58: 0 | DD58: 0 | DE58: 0 | DF58: 0 | DG58: 0 | DH58: 0 | DI58: 0 | DJ58: 0 | DK58: 0 | DL58: 0 | DM58: 0 | DN58: 0 | DO58: 0 | DP58: 0 | DQ58: 0 | DR58: 0 | DS58: 0 | DT58: 0 | DU58: 0 | DV58: 0 | DW58: 0 | DX58: 0 | DY58: 0 | DZ58: 0 | EA58: 0 | EB58: 0 | EC58: 0 | ED58: 0 | EE58: 0 | EF58: 0
A59: CHACCO | B59: 0 | C59: 0 | D59: 0 | E59: 0 | F59: 0 | G59: 0 | H59: 0 | I59: 0 | J59: 0 | K59: 0 | L59: 0 | M59: 0 | N59: 0 | O59: 0 | P59: 0 | Q59: 0 | R59: 0 | S59: 0 | T59: 0 | U59: 0 | V59: 0 | W59: 0 | X59: 0 | Y59: 0 | Z59: 0 | AA59: 0 | AB59: 0 | AC59: 0 | AD59: 0 | AE59: 0 | AF59: 0 | AG59: 0 | AH59: 0 | AI59: 0 | AJ59: 0 | AK59: 0 | AL59: 0 | AM59: 0 | AN59: 0 | AO59: 0 | AP59: 0 | AQ59: 0 | AR59: 0 | AS59: 0 | AT59: 0 | AU59: 0 | AV59: 0 | AW59: 0 | AX59: 0 | AY59: 0 | AZ59: 0 | BA59: 0 | BB59: 0 | BC59: 0 | BD59: 0 | BE59: 0 | BF59: 0 | BG59: 0 | BH59: 0 | BI59: 0 | BJ59: 0 | BK59: 0 | BL59: 0 | BM59: 0 | BN59: 0 | BO59: 0 | BP59: 0 | BQ59: 0 | BR59: 0 | BS59: 0 | BT59: 0 | BU59: 0 | BV59: 0 | BW59: 0 | BX59: 0 | BY59: 0 | BZ59: 0 | CA59: 0 | CB59: 0 | CC59: 0 | CD59: 0 | CE59: 0 | CF59: 0 | CG59: 0 | CH59: 0 | CI59: 0 | CJ59: 0 | CK59: 0 | CL59: 0 | CM59: 0 | CN59: 0 | CO59: 0 | CP59: 0 | CQ59: 0 | CR59: 0 | CS59: 0 | CT59: 0 | CU59: 0 | CV59: 0 | CW59: 0 | CX59: 0 | CY59: 0 | CZ59: 0 | DA59: 0 | DB59: 0 | DC59: 0 | DD59: 0 | DE59: 0 | DF59: 0 | DG59: 0 | DH59: 0 | DI59: 0 | DJ59: 0 | DK59: 0 | DL59: 0 | DM59: 0 | DN59: 0 | DO59: 0 | DP59: 0 | DQ59: 0 | DR59: 0 | DS59: 0 | DT59: 0 | DU59: 0 | DV59: 0 | DW59: 0 | DX59: 0 | DY59: 0 | DZ59: 0 | EA59: 0 | EB59: 0 | EC59: 0 | ED59: 0 | EE59: 0 | EF59: 0
A60: CHAHUARES | B60: 0 | C60: 0 | D60: 0 | E60: 0 | F60: 0 | G60: 0 | H60: 0 | I60: 0 | J60: 0 | K60: 0 | L60: 0 | M60: 0 | N60: 0 | O60: 0 | P60: 0 | Q60: 0 | R60: 0 | S60: 0 | T60: 0 | U60: 0 | V60: 0 | W60: 0 | X60: 0 | Y60: 0 | Z60: 0 | AA60: 0 | AB60: 0 | AC60: 0 | AD60: 0 | AE60: 0 | AF60: 0 | AG60: 0 | AH60: 0 | AI60: 0 | AJ60: 0 | AK60: 0 | AL60: 0 | AM60: 0 | AN60: 0 | AO60: 0 | AP60: 0 | AQ60: 0 | AR60: 0 | AS60: 0 | AT60: 0 | AU60: 0 | AV60: 0 | AW60: 0 | AX60: 0 | AY60: 0 | AZ60: 0 | BA60: 0 | BB60: 0 | BC60: 0 | BD60: 0 | BE60: 0 | BF60: 0 | BG60: 0 | BH60: 0 | BI60: 0 | BJ60: 0 | BK60: 0 | BL60: 0 | BM60: 0 | BN60: 0 | BO60: 0 | BP60: 0 | BQ60: 0 | BR60: 0 | BS60: 0 | BT60: 0 | BU60: 0 | BV60: 0 | BW60: 0 | BX60: 0 | BY60: 0 | BZ60: 0 | CA60: 0 | CB60: 0 | CC60: 0 | CD60: 0 | CE60: 0 | CF60: 0 | CG60: 0 | CH60: 0 | CI60: 0 | CJ60: 1 | CK60: 0 | CL60: 0 | CM60: 0 | CN60: 0 | CO60: 0 | CP60: 0 | CQ60: 0 | CR60: 0 | CS60: 0 | CT60: 0 | CU60: 0 | CV60: 0 | CW60: 0 | CX60: 0 | CY60: 0 | CZ60: 0 | DA60: 0 | DB60: 0 | DC60: 0 | DD60: 0 | DE60: 0 | DF60: 0 | DG60: 0 | DH60: 0 | DI60: 0 | DJ60: 0 | DK60: 0 | DL60: 0 | DM60: 0 | DN60: 0 | DO60: 0 | DP60: 0 | DQ60: 0 | DR60: 0 | DS60: 0 | DT60: 0 | DU60: 0 | DV60: 0 | DW60: 0 | DX60: 0 | DY60: 0 | DZ60: 0 | EA60: 0 | EB60: 0 | EC60: 0 | ED60: 0 | EE60: 0 | EF60: 0
A61: CHALLABAMBA | B61: 0 | C61: 0 | D61: 0 | E61: 0 | F61: 0 | G61: 0 | H61: 0 | I61: 0 | J61: 0 | K61: 0 | L61: 0 | M61: 0 | N61: 0 | O61: 0 | P61: 0 | Q61: 0 | R61: 0 | S61: 0 | T61: 0 | U61: 0 | V61: 0 | W61: 0 | X61: 0 | Y61: 0 | Z61: 0 | AA61: 0 | AB61: 0 | AC61: 0 | AD61: 0 | AE61: 0 | AF61: 0 | AG61: 0 | AH61: 0 | AI61: 0 | AJ61: 0 | AK61: 0 | AL61: 0 | AM61: 0 | AN61: 0 | AO61: 0 | AP61: 0 | AQ61: 0 | AR61: 0 | AS61: 0 | AT61: 0 | AU61: 0 | AV61: 0 | AW61: 0 | AX61: 0 | AY61: 0 | AZ61: 0 | BA61: 0 | BB61: 0 | BC61: 0 | BD61: 0 | BE61: 0 | BF61: 0 | BG61: 0 | BH61: 0 | BI61: 0 | BJ61: 0 | BK61: 0 | BL61: 0 | BM61: 0 | BN61: 0 | BO61: 0 | BP61: 0 | BQ61: 0 | BR61: 0 | BS61: 0 | BT61: 0 | BU61: 0 | BV61: 0 | BW61: 0 | BX61: 0 | BY61: 0 | BZ61: 0 | CA61: 0 | CB61: 0 | CC61: 0 | CD61: 0 | CE61: 0 | CF61: 0 | CG61: 0 | CH61: 0 | CI61: 0 | CJ61: 0 | CK61: 0 | CL61: 0 | CM61: 0 | CN61: 0 | CO61: 0 | CP61: 0 | CQ61: 0 | CR61: 0 | CS61: 0 | CT61: 0 | CU61: 0 | CV61: 0 | CW61: 0 | CX61: 0 | CY61: 0 | CZ61: 0 | DA61: 0 | DB61: 0 | DC61: 0 | DD61: 0 | DE61: 0 | DF61: 0 | DG61: 0 | DH61: 0 | DI61: 0 | DJ61: 0 | DK61: 0 | DL61: 0 | DM61: 0 | DN61: 0 | DO61: 0 | DP61: 0 | DQ61: 0 | DR61: 0 | DS61: 0 | DT61: 0 | DU61: 0 | DV61: 0 | DW61: 0 | DX61: 0 | DY61: 0 | DZ61: 0 | EA61: 0 | EB61: 0 | EC61: 0 | ED61: 0 | EE61: 0 | EF61: 0
A62: CHAMACA | B62: 0 | C62: 0 | D62: 0 | E62: 0 | F62: 0 | G62: 0 | H62: 0 | I62: 0 | J62: 0 | K62: 0 | L62: 0 | M62: 0 | N62: 0 | O62: 0 | P62: 0 | Q62: 0 | R62: 0 | S62: 0 | T62: 0 | U62: 0 | V62: 0 | W62: 0 | X62: 0 | Y62: 0 | Z62: 0 | AA62: 0 | AB62: 0 | AC62: 0 | AD62: 0 | AE62: 0 | AF62: 0 | AG62: 0 | AH62: 0 | AI62: 0 | AJ62: 0 | AK62: 0 | AL62: 0 | AM62: 0 | AN62: 0 | AO62: 0 | AP62: 0 | AQ62: 0 | AR62: 0 | AS62: 0 | AT62: 0 | AU62: 0 | AV62: 0 | AW62: 0 | AX62: 0 | AY62: 0 | AZ62: 0 | BA62: 0 | BB62: 0 | BC62: 0 | BD62: 0 | BE62: 0 | BF62: 0 | BG62: 0 | BH62: 0 | BI62: 0 | BJ62: 0 | BK62: 0 | BL62: 0 | BM62: 0 | BN62: 0 | BO62: 0 | BP62: 0 | BQ62: 0 | BR62: 0 | BS62: 0 | BT62: 0 | BU62: 0 | BV62: 0 | BW62: 0 | BX62: 0 | BY62: 0 | BZ62: 0 | CA62: 0 | CB62: 0 | CC62: 0 | CD62: 0 | CE62: 0 | CF62: 0 | CG62: 0 | CH62: 0 | CI62: 0 | CJ62: 0 | CK62: 0 | CL62: 0 | CM62: 0 | CN62: 0 | CO62: 0 | CP62: 0 | CQ62: 0 | CR62: 0 | CS62: 0 | CT62: 0 | CU62: 0 | CV62: 0 | CW62: 0 | CX62: 0 | CY62: 0 | CZ62: 0 | DA62: 0 | DB62: 0 | DC62: 0 | DD62: 0 | DE62: 0 | DF62: 0 | DG62: 0 | DH62: 0 | DI62: 0 | DJ62: 0 | DK62: 0 | DL62: 0 | DM62: 0 | DN62: 0 | DO62: 0 | DP62: 0 | DQ62: 0 | DR62: 0 | DS62: 0 | DT62: 0 | DU62: 0 | DV62: 0 | DW62: 0 | DX62: 0 | DY62: 0 | DZ62: 0 | EA62: 0 | EB62: 0 | EC62: 0 | ED62: 0 | EE62: 0 | EF62: 0
A63: CHANCAMAYO | B63: 0 | C63: 0 | D63: 0 | E63: 0 | F63: 0 | G63: 0 | H63: 0 | I63: 0 | J63: 0 | K63: 0 | L63: 0 | M63: 0 | N63: 0 | O63: 0 | P63: 0 | Q63: 0 | R63: 0 | S63: 0 | T63: 0 | U63: 0 | V63: 0 | W63: 0 | X63: 0 | Y63: 0 | Z63: 0 | AA63: 0 | AB63: 0 | AC63: 0 | AD63: 0 | AE63: 0 | AF63: 0 | AG63: 0 | AH63: 0 | AI63: 0 | AJ63: 0 | AK63: 0 | AL63: 0 | AM63: 0 | AN63: 0 | AO63: 0 | AP63: 0 | AQ63: 0 | AR63: 0 | AS63: 0 | AT63: 0 | AU63: 0 | AV63: 0 | AW63: 0 | AX63: 0 | AY63: 0 | AZ63: 0 | BA63: 0 | BB63: 0 | BC63: 0 | BD63: 0 | BE63: 0 | BF63: 0 | BG63: 0 | BH63: 0 | BI63: 0 | BJ63: 0 | BK63: 0 | BL63: 0 | BM63: 0 | BN63: 0 | BO63: 0 | BP63: 0 | BQ63: 0 | BR63: 0 | BS63: 0 | BT63: 0 | BU63: 0 | BV63: 0 | BW63: 0 | BX63: 0 | BY63: 0 | BZ63: 0 | CA63: 0 | CB63: 0 | CC63: 0 | CD63: 0 | CE63: 0 | CF63: 0 | CG63: 0 | CH63: 0 | CI63: 0 | CJ63: 0 | CK63: 0 | CL63: 0 | CM63: 0 | CN63: 0 | CO63: 0 | CP63: 0 | CQ63: 0 | CR63: 0 | CS63: 0 | CT63: 0 | CU63: 0 | CV63: 0 | CW63: 0 | CX63: 0 | CY63: 0 | CZ63: 0 | DA63: 0 | DB63: 0 | DC63: 0 | DD63: 0 | DE63: 0 | DF63: 0 | DG63: 0 | DH63: 0 | DI63: 0 | DJ63: 0 | DK63: 0 | DL63: 0 | DM63: 0 | DN63: 0 | DO63: 0 | DP63: 0 | DQ63: 0 | DR63: 0 | DS63: 0 | DT63: 0 | DU63: 0 | DV63: 0 | DW63: 0 | DX63: 0 | DY63: 0 | DZ63: 0 | EA63: 0 | EB63: 0 | EC63: 0 | ED63: 0 | EE63: 0 | EF63: 0
A64: CHANCAVINE | B64: 0 | C64: 0 | D64: 0 | E64: 0 | F64: 0 | G64: 0 | H64: 0 | I64: 0 | J64: 0 | K64: 0 | L64: 0 | M64: 0 | N64: 0 | O64: 0 | P64: 0 | Q64: 0 | R64: 0 | S64: 0 | T64: 0 | U64: 0 | V64: 0 | W64: 0 | X64: 0 | Y64: 0 | Z64: 0 | AA64: 0 | AB64: 0 | AC64: 0 | AD64: 0 | AE64: 0 | AF64: 0 | AG64: 0 | AH64: 0 | AI64: 0 | AJ64: 0 | AK64: 0 | AL64: 0 | AM64: 0 | AN64: 0 | AO64: 0 | AP64: 0 | AQ64: 0 | AR64: 0 | AS64: 0 | AT64: 0 | AU64: 0 | AV64: 0 | AW64: 0 | AX64: 0 | AY64: 0 | AZ64: 0 | BA64: 0 | BB64: 0 | BC64: 0 | BD64: 0 | BE64: 0 | BF64: 0 | BG64: 0 | BH64: 0 | BI64: 0 | BJ64: 0 | BK64: 0 | BL64: 0 | BM64: 0 | BN64: 0 | BO64: 0 | BP64: 0 | BQ64: 0 | BR64: 0 | BS64: 0 | BT64: 0 | BU64: 0 | BV64: 0 | BW64: 0 | BX64: 0 | BY64: 0 | BZ64: 0 | CA64: 0 | CB64: 0 | CC64: 0 | CD64: 0 | CE64: 0 | CF64: 0 | CG64: 0 | CH64: 0 | CI64: 0 | CJ64: 1 | CK64: 0 | CL64: 0 | CM64: 0 | CN64: 0 | CO64: 0 | CP64: 0 | CQ64: 0 | CR64: 0 | CS64: 0 | CT64: 0 | CU64: 0 | CV64: 0 | CW64: 0 | CX64: 0 | CY64: 0 | CZ64: 0 | DA64: 0 | DB64: 0 | DC64: 0 | DD64: 0 | DE64: 0 | DF64: 0 | DG64: 0 | DH64: 0 | DI64: 0 | DJ64: 0 | DK64: 0 | DL64: 0 | DM64: 0 | DN64: 0 | DO64: 0 | DP64: 0 | DQ64: 0 | DR64: 0 | DS64: 0 | DT64: 0 | DU64: 0 | DV64: 0 | DW64: 0 | DX64: 0 | DY64: 0 | DZ64: 0 | EA64: 0 | EB64: 0 | EC64: 0 | ED64: 0 | EE64: 0 | EF64: 0
A65: CHAPO BOYERO | B65: 0 | C65: 0 | D65: 0 | E65: 0 | F65: 0 | G65: 0 | H65: 0 | I65: 0 | J65: 0 | K65: 0 | L65: 0 | M65: 0 | N65: 1 | O65: 1 | P65: 0 | Q65: 0 | R65: 0 | S65: 0 | T65: 0 | U65: 0 | V65: 0 | W65: 0 | X65: 0 | Y65: 0 | Z65: 0 | AA65: 0 | AB65: 0 | AC65: 0 | AD65: 0 | AE65: 0 | AF65: 0 | AG65: 0 | AH65: 0 | AI65: 0 | AJ65: 0 | AK65: 0 | AL65: 0 | AM65: 0 | AN65: 0 | AO65: 0 | AP65: 0 | AQ65: 0 | AR65: 0 | AS65: 0 | AT65: 0 | AU65: 0 | AV65: 0 | AW65: 0 | AX65: 0 | AY65: 0 | AZ65: 0 | BA65: 0 | BB65: 0 | BC65: 0 | BD65: 0 | BE65: 0 | BF65: 0 | BG65: 0 | BH65: 0 | BI65: 0 | BJ65: 0 | BK65: 0 | BL65: 0 | BM65: 0 | BN65: 0 | BO65: 0 | BP65: 0 | BQ65: 0 | BR65: 0 | BS65: 0 | BT65: 0 | BU65: 0 | BV65: 0 | BW65: 0 | BX65: 0 | BY65: 0 | BZ65: 0 | CA65: 0 | CB65: 0 | CC65: 0 | CD65: 0 | CE65: 0 | CF65: 0 | CG65: 0 | CH65: 0 | CI65: 0 | CJ65: 0 | CK65: 0 | CL65: 0 | CM65: 0 | CN65: 0 | CO65: 0 | CP65: 0 | CQ65: 0 | CR65: 0 | CS65: 0 | CT65: 0 | CU65: 0 | CV65: 0 | CW65: 0 | CX65: 0 | CY65: 0 | CZ65: 0 | DA65: 0 | DB65: 0 | DC65: 0 | DD65: 0 | DE65: 0 | DF65: 0 | DG65: 0 | DH65: 0 | DI65: 0 | DJ65: 0 | DK65: 0 | DL65: 0 | DM65: 0 | DN65: 0 | DO65: 0 | DP65: 0 | DQ65: 0 | DR65: 0 | DS65: 0 | DT65: 0 | DU65: 0 | DV65: 0 | DW65: 0 | DX65: 0 | DY65: 0 | DZ65: 0 | EA65: 0 | EB65: 0 | EC65: 0 | ED65: 0 | EE65: 0 | EF65: 0
A66: CHARAMURAY | B66: 0 | C66: 0 | D66: 0 | E66: 0 | F66: 0 | G66: 0 | H66: 0 | I66: 0 | J66: 0 | K66: 0 | L66: 0 | M66: 0 | N66: 0 | O66: 0 | P66: 0 | Q66: 0 | R66: 0 | S66: 0 | T66: 0 | U66: 0 | V66: 0 | W66: 0 | X66: 0 | Y66: 0 | Z66: 0 | AA66: 0 | AB66: 0 | AC66: 0 | AD66: 0 | AE66: 0 | AF66: 0 | AG66: 0 | AH66: 0 | AI66: 0 | AJ66: 0 | AK66: 0 | AL66: 0 | AM66: 0 | AN66: 0 | AO66: 0 | AP66: 0 | AQ66: 0 | AR66: 0 | AS66: 0 | AT66: 0 | AU66: 0 | AV66: 0 | AW66: 0 | AX66: 0 | AY66: 0 | AZ66: 0 | BA66: 0 | BB66: 0 | BC66: 0 | BD66: 0 | BE66: 0 | BF66: 0 | BG66: 0 | BH66: 0 | BI66: 0 | BJ66: 0 | BK66: 0 | BL66: 0 | BM66: 0 | BN66: 0 | BO66: 0 | BP66: 0 | BQ66: 0 | BR66: 0 | BS66: 0 | BT66: 0 | BU66: 0 | BV66: 0 | BW66: 0 | BX66: 0 | BY66: 0 | BZ66: 0 | CA66: 0 | CB66: 0 | CC66: 0 | CD66: 0 | CE66: 0 | CF66: 0 | CG66: 0 | CH66: 0 | CI66: 0 | CJ66: 0 | CK66: 0 | CL66: 0 | CM66: 0 | CN66: 0 | CO66: 0 | CP66: 0 | CQ66: 0 | CR66: 0 | CS66: 0 | CT66: 0 | CU66: 0 | CV66: 0 | CW66: 0 | CX66: 0 | CY66: 0 | CZ66: 0 | DA66: 0 | DB66: 0 | DC66: 0 | DD66: 0 | DE66: 0 | DF66: 0 | DG66: 0 | DH66: 0 | DI66: 0 | DJ66: 0 | DK66: 0 | DL66: 0 | DM66: 0 | DN66: 0 | DO66: 0 | DP66: 0 | DQ66: 0 | DR66: 0 | DS66: 0 | DT66: 0 | DU66: 0 | DV66: 0 | DW66: 0 | DX66: 0 | DY66: 0 | DZ66: 0 | EA66: 0 | EB66: 0 | EC66: 0 | ED66: 0 | EE66: 0 | EF66: 0
A67: CHECACUPE | B67: 0 | C67: 0 | D67: 0 | E67: 0 | F67: 0 | G67: 0 | H67: 0 | I67: 0 | J67: 0 | K67: 0 | L67: 0 | M67: 0 | N67: 0 | O67: 0 | P67: 0 | Q67: 0 | R67: 0 | S67: 0 | T67: 0 | U67: 0 | V67: 0 | W67: 0 | X67: 0 | Y67: 0 | Z67: 0 | AA67: 0 | AB67: 0 | AC67: 0 | AD67: 0 | AE67: 0 | AF67: 0 | AG67: 0 | AH67: 0 | AI67: 0 | AJ67: 0 | AK67: 0 | AL67: 0 | AM67: 0 | AN67: 0 | AO67: 0 | AP67: 0 | AQ67: 0 | AR67: 0 | AS67: 0 | AT67: 0 | AU67: 0 | AV67: 0 | AW67: 0 | AX67: 0 | AY67: 0 | AZ67: 0 | BA67: 0 | BB67: 0 | BC67: 0 | BD67: 0 | BE67: 0 | BF67: 0 | BG67: 0 | BH67: 0 | BI67: 0 | BJ67: 0 | BK67: 0 | BL67: 0 | BM67: 0 | BN67: 0 | BO67: 0 | BP67: 0 | BQ67: 0 | BR67: 0 | BS67: 0 | BT67: 0 | BU67: 0 | BV67: 0 | BW67: 0 | BX67: 0 | BY67: 0 | BZ67: 0 | CA67: 0 | CB67: 0 | CC67: 0 | CD67: 0 | CE67: 0 | CF67: 0 | CG67: 0 | CH67: 0 | CI67: 0 | CJ67: 0 | CK67: 0 | CL67: 0 | CM67: 0 | CN67: 0 | CO67: 0 | CP67: 0 | CQ67: 0 | CR67: 0 | CS67: 0 | CT67: 0 | CU67: 0 | CV67: 0 | CW67: 0 | CX67: 0 | CY67: 0 | CZ67: 0 | DA67: 0 | DB67: 0 | DC67: 0 | DD67: 0 | DE67: 0 | DF67: 0 | DG67: 0 | DH67: 0 | DI67: 0 | DJ67: 0 | DK67: 0 | DL67: 0 | DM67: 0 | DN67: 0 | DO67: 0 | DP67: 0 | DQ67: 0 | DR67: 0 | DS67: 0 | DT67: 0 | DU67: 0 | DV67: 0 | DW67: 0 | DX67: 0 | DY67: 0 | DZ67: 0 | EA67: 0 | EB67: 0 | EC67: 0 | ED67: 0 | EE67: 0 | EF67: 0
A68: CHECCA | B68: 0 | C68: 0 | D68: 0 | E68: 0 | F68: 0 | G68: 0 | H68: 0 | I68: 0 | J68: 0 | K68: 0 | L68: 0 | M68: 0 | N68: 0 | O68: 0 | P68: 0 | Q68: 0 | R68: 0 | S68: 0 | T68: 0 | U68: 0 | V68: 0 | W68: 0 | X68: 0 | Y68: 0 | Z68: 0 | AA68: 0 | AB68: 0 | AC68: 0 | AD68: 0 | AE68: 0 | AF68: 0 | AG68: 0 | AH68: 0 | AI68: 0 | AJ68: 0 | AK68: 0 | AL68: 0 | AM68: 0 | AN68: 0 | AO68: 0 | AP68: 0 | AQ68: 0 | AR68: 0 | AS68: 0 | AT68: 0 | AU68: 0 | AV68: 0 | AW68: 0 | AX68: 0 | AY68: 0 | AZ68: 0 | BA68: 0 | BB68: 0 | BC68: 0 | BD68: 0 | BE68: 0 | BF68: 0 | BG68: 0 | BH68: 0 | BI68: 0 | BJ68: 0 | BK68: 0 | BL68: 0 | BM68: 0 | BN68: 0 | BO68: 0 | BP68: 0 | BQ68: 0 | BR68: 0 | BS68: 0 | BT68: 0 | BU68: 0 | BV68: 0 | BW68: 0 | BX68: 0 | BY68: 0 | BZ68: 0 | CA68: 0 | CB68: 0 | CC68: 0 | CD68: 0 | CE68: 0 | CF68: 0 | CG68: 0 | CH68: 0 | CI68: 0 | CJ68: 0 | CK68: 0 | CL68: 0 | CM68: 0 | CN68: 0 | CO68: 0 | CP68: 0 | CQ68: 0 | CR68: 0 | CS68: 0 | CT68: 0 | CU68: 0 | CV68: 0 | CW68: 0 | CX68: 0 | CY68: 0 | CZ68: 0 | DA68: 0 | DB68: 0 | DC68: 0 | DD68: 0 | DE68: 0 | DF68: 0 | DG68: 0 | DH68: 0 | DI68: 0 | DJ68: 0 | DK68: 0 | DL68: 0 | DM68: 0 | DN68: 0 | DO68: 0 | DP68: 0 | DQ68: 0 | DR68: 0 | DS68: 0 | DT68: 0 | DU68: 0 | DV68: 0 | DW68: 0 | DX68: 0 | DY68: 0 | DZ68: 0 | EA68: 0 | EB68: 0 | EC68: 0 | ED68: 0 | EE68: 0 | EF68: 0
A69: CHECTUYOC | B69: 0 | C69: 0 | D69: 0 | E69: 0 | F69: 0 | G69: 0 | H69: 0 | I69: 0 | J69: 0 | K69: 0 | L69: 0 | M69: 0 | N69: 0 | O69: 0 | P69: 0 | Q69: 0 | R69: 0 | S69: 0 | T69: 0 | U69: 0 | V69: 0 | W69: 0 | X69: 0 | Y69: 0 | Z69: 0 | AA69: 0 | AB69: 0 | AC69: 0 | AD69: 0 | AE69: 0 | AF69: 0 | AG69: 0 | AH69: 0 | AI69: 0 | AJ69: 0 | AK69: 0 | AL69: 0 | AM69: 0 | AN69: 0 | AO69: 0 | AP69: 0 | AQ69: 0 | AR69: 0 | AS69: 0 | AT69: 0 | AU69: 0 | AV69: 0 | AW69: 0 | AX69: 0 | AY69: 0 | AZ69: 0 | BA69: 0 | BB69: 0 | BC69: 0 | BD69: 0 | BE69: 0 | BF69: 0 | BG69: 0 | BH69: 0 | BI69: 0 | BJ69: 0 | BK69: 0 | BL69: 0 | BM69: 0 | BN69: 0 | BO69: 0 | BP69: 0 | BQ69: 0 | BR69: 0 | BS69: 0 | BT69: 0 | BU69: 0 | BV69: 0 | BW69: 0 | BX69: 0 | BY69: 0 | BZ69: 0 | CA69: 0 | CB69: 0 | CC69: 0 | CD69: 0 | CE69: 0 | CF69: 0 | CG69: 0 | CH69: 0 | CI69: 0 | CJ69: 0 | CK69: 0 | CL69: 0 | CM69: 0 | CN69: 0 | CO69: 0 | CP69: 0 | CQ69: 0 | CR69: 0 | CS69: 0 | CT69: 0 | CU69: 0 | CV69: 0 | CW69: 0 | CX69: 0 | CY69: 0 | CZ69: 0 | DA69: 0 | DB69: 0 | DC69: 0 | DD69: 0 | DE69: 0 | DF69: 0 | DG69: 0 | DH69: 0 | DI69: 0 | DJ69: 0 | DK69: 0 | DL69: 0 | DM69: 0 | DN69: 0 | DO69: 0 | DP69: 0 | DQ69: 0 | DR69: 0 | DS69: 0 | DT69: 0 | DU69: 0 | DV69: 0 | DW69: 0 | DX69: 0 | DY69: 0 | DZ69: 0 | EA69: 0 | EB69: 0 | EC69: 0 | ED69: 0 | EE69: 0 | EF69: 0
A70: CHIARA | B70: 0 | C70: 0 | D70: 0 | E70: 0 | F70: 0 | G70: 0 | H70: 0 | I70: 0 | J70: 0 | K70: 0 | L70: 0 | M70: 0 | N70: 0 | O70: 0 | P70: 0 | Q70: 0 | R70: 0 | S70: 0 | T70: 0 | U70: 0 | V70: 0 | W70: 0 | X70: 0 | Y70: 0 | Z70: 0 | AA70: 0 | AB70: 0 | AC70: 0 | AD70: 0 | AE70: 0 | AF70: 0 | AG70: 0 | AH70: 0 | AI70: 0 | AJ70: 0 | AK70: 0 | AL70: 0 | AM70: 0 | AN70: 0 | AO70: 0 | AP70: 0 | AQ70: 0 | AR70: 0 | AS70: 0 | AT70: 0 | AU70: 0 | AV70: 0 | AW70: 0 | AX70: 0 | AY70: 0 | AZ70: 0 | BA70: 0 | BB70: 0 | BC70: 0 | BD70: 0 | BE70: 0 | BF70: 0 | BG70: 0 | BH70: 0 | BI70: 0 | BJ70: 0 | BK70: 0 | BL70: 0 | BM70: 0 | BN70: 0 | BO70: 0 | BP70: 0 | BQ70: 0 | BR70: 0 | BS70: 0 | BT70: 0 | BU70: 0 | BV70: 0 | BW70: 0 | BX70: 0 | BY70: 0 | BZ70: 0 | CA70: 0 | CB70: 0 | CC70: 0 | CD70: 0 | CE70: 0 | CF70: 0 | CG70: 0 | CH70: 0 | CI70: 0 | CJ70: 0 | CK70: 0 | CL70: 0 | CM70: 0 | CN70: 0 | CO70: 0 | CP70: 0 | CQ70: 0 | CR70: 0 | CS70: 0 | CT70: 0 | CU70: 0 | CV70: 0 | CW70: 0 | CX70: 0 | CY70: 0 | CZ70: 0 | DA70: 0 | DB70: 0 | DC70: 0 | DD70: 0 | DE70: 0 | DF70: 0 | DG70: 0 | DH70: 0 | DI70: 0 | DJ70: 0 | DK70: 0 | DL70: 0 | DM70: 0 | DN70: 0 | DO70: 0 | DP70: 0 | DQ70: 0 | DR70: 0 | DS70: 0 | DT70: 0 | DU70: 0 | DV70: 0 | DW70: 0 | DX70: 0 | DY70: 0 | DZ70: 0 | EA70: 0 | EB70: 0 | EC70: 0 | ED70: 0 | EE70: 0 | EF70: 0
A71: CHICHINA | B71: 0 | C71: 0 | D71: 0 | E71: 0 | F71: 0 | G71: 0 | H71: 0 | I71: 0 | J71: 0 | K71: 0 | L71: 0 | M71: 0 | N71: 0 | O71: 0 | P71: 0 | Q71: 0 | R71: 0 | S71: 0 | T71: 0 | U71: 0 | V71: 0 | W71: 0 | X71: 0 | Y71: 0 | Z71: 0 | AA71: 0 | AB71: 0 | AC71: 0 | AD71: 0 | AE71: 0 | AF71: 0 | AG71: 0 | AH71: 0 | AI71: 0 | AJ71: 0 | AK71: 0 | AL71: 0 | AM71: 0 | AN71: 0 | AO71: 0 | AP71: 0 | AQ71: 0 | AR71: 0 | AS71: 0 | AT71: 0 | AU71: 0 | AV71: 0 | AW71: 0 | AX71: 0 | AY71: 0 | AZ71: 0 | BA71: 0 | BB71: 0 | BC71: 0 | BD71: 0 | BE71: 0 | BF71: 0 | BG71: 0 | BH71: 0 | BI71: 0 | BJ71: 0 | BK71: 0 | BL71: 0 | BM71: 0 | BN71: 0 | BO71: 0 | BP71: 0 | BQ71: 0 | BR71: 0 | BS71: 0 | BT71: 0 | BU71: 0 | BV71: 0 | BW71: 0 | BX71: 0 | BY71: 0 | BZ71: 0 | CA71: 0 | CB71: 0 | CC71: 0 | CD71: 0 | CE71: 0 | CF71: 0 | CG71: 0 | CH71: 0 | CI71: 0 | CJ71: 0 | CK71: 0 | CL71: 0 | CM71: 0 | CN71: 0 | CO71: 0 | CP71: 0 | CQ71: 0 | CR71: 0 | CS71: 0 | CT71: 0 | CU71: 0 | CV71: 0 | CW71: 0 | CX71: 0 | CY71: 0 | CZ71: 0 | DA71: 0 | DB71: 0 | DC71: 0 | DD71: 0 | DE71: 0 | DF71: 0 | DG71: 0 | DH71: 0 | DI71: 0 | DJ71: 0 | DK71: 0 | DL71: 0 | DM71: 0 | DN71: 0 | DO71: 0 | DP71: 0 | DQ71: 0 | DR71: 0 | DS71: 0 | DT71: 0 | DU71: 0 | DV71: 0 | DW71: 0 | DX71: 0 | DY71: 0 | DZ71: 0 | EA71: 0 | EB71: 0 | EC71: 0 | ED71: 0 | EE71: 0 | EF71: 0
